Workbook

Sheet INDEX
A1: INDEX
A2: Model Specs
A3: 1. Information Sheet
A4: 2. Current Tariff Schedule
A5: 3. Continuity Schedule
A6: 4. Billing Det. for Def-Var
A7: 5. Allocating Def-Var Balances
A8: 6. Class A Consumption Data
A9: 6.1a GA Allocation
A10: 6.1 GA
A11: 6.2a CBR B_Allocation
A12: 6.2 CBR B
A13: 8. Calculation of Def-Var RR
A14: 9. STS-Tax Change
A15: 10. Shared Tax - RR
A16: 11. RTSR - Current Rates
A17: 12. RTSR-UTRs & Sub-Tx
A18: 13. RTSR-Historic Wholesale
A19: 14. RTSR-Current Wholesale
A20: 15. RTSR-Forecast Wholesale
A21: 16. RTSR-Rates to Forecast
A22: 17. Rev2Cost-GDPIPI
A23: 18. Regulatory Charges
A24: 19. Additional Rates
A25: 20. Final Tariff Schedule
A26: 21. Bill Impacts
A27: RATES
A28: BoD Reporting

Sheet Model Specs
A1: Back to Index | K1: Lists:
B2: Model Specifications
K3: Yes
B4: Utility | C4: PowerStream rate zone | K4: No
B6: Applying for Rates Effective | C6: 2020-01-01 | K6: kWh
K7: kW
K8: kVA
B9: Line Loss Factor | C9: 1.0369
K10: Alectra - PowerStream rate zone | L10: PowerStream rate zone
K11: Alectra - Enersource rate zone | L11: Enersource rate zone
K12: Alectra - Horizon rate zone | L12: Horizon rate zone
K13: Alectra - Brampton rate zone | L13: Brampton rate zone
C14: Rate Classes (select from the List) | K14: Alectra - Guelph rate zone | L14: Guelph rate zone
B15: =IFERROR(VLOOKUP(C15,$K$16:$L$31,2,FALSE),"") -> RES | C15: RESIDENTIAL SERVICE CLASSIFICATION
B16: GSL | C16: GENERAL SERVICE LESS THAN 50 kW SERVICE CLASSIFICATION | K16: RESIDENTIAL SERVICE CLASSIFICATION | L16: RES
B17: GS50 | C17: GENERAL SERVICE 50 to 4,999 kW SERVICE CLASSIFICATION | K17: GENERAL SERVICE LESS THAN 50 kW SERVICE CLASSIFICATION | L17: GSL
B18: LU | C18: LARGE USE SERVICE CLASSIFICATION | K18: GENERAL SERVICE 50 to 499 kW SERVICE CLASSIFICATION | L18: GS50_499
B19: USL | C19: UNMETERED SCATTERED LOAD SERVICE CLASSIFICATION | K19: GENERAL SERVICE 50 to 699 KW SERVICE CLASSIFICATION | L19: GS50_699
B20: SB | C20: STANDBY POWER SERVICE CLASSIFICATION | K20: GENERAL SERVICE 50 to 4,999 kW SERVICE CLASSIFICATION | L20: GS50
B21: SEN | C21: SENTINEL LIGHTING SERVICE CLASSIFICATION | K21: GENERAL SERVICE 500 to 4,999 kW SERVICE CLASSIFICATION | L21: GS500
B22: SL | C22: STREET LIGHTING SERVICE CLASSIFICATION | K22: GENERAL SERVICE 700 to 4,999 KW SERVICE CLASSIFICATION | L22: GS700
K23: LARGE USE SERVICE CLASSIFICATION | L23: LU
B24: =IFERROR(VLOOKUP(C24,$K$16:$L$31,2,FALSE),"") ->  | K24: LARGE USE SERVICE WITH DEDICATED ASSETSCLASSIFICATION | L24: LU_DA
K25: UNMETERED SCATTERED LOAD SERVICE CLASSIFICATION | L25: USL
K26: STREET LIGHTING SERVICE CLASSIFICATION | L26: SL
K27: STANDBY POWER SERVICE CLASSIFICATION | L27: SB
K28: SENTINEL LIGHTING SERVICE CLASSIFICATION | L28: SEN
K29: EMBEDDED DISTRIBUTOR SERVICE CLASSIFICATION | L29: EMB
K30: DISTRIBUTED GENERATION [DGEN] SERVICE CLASSIFICATION | L30: DG
K31: ENERGY FROM WASTE SERVICE CLASSIFICATION | L31: WST
B34: Have one or more Class A customers | C34: Yes
K36: Newer Disposed
K37: 2015
K38: 2016
K39: 2017
K40: 2018

Sheet 1. Information Sheet
A1: Back to Index | V1: a
B2: INCENTIVE REGULATION MODEL FOR 2020 FILERS
N12: Version | O12: 1
F14: Utility Name | G14: Alectra - PowerStream rate zone
F16: Service Territory
F18: Assigned EB Number | G18: EB-2019-0018
F20: Name of Contact and Title | G20: Indy J. Butany-DeSouza, Vice-President, Regulatory Affairs
F22: Phone Number | G22: 905-821-5727
F24: Email Address | G24: indy.butany@alectrautilities.com
F26: We are applying for rates effective | G26: 2020-01-01
F28: Rate-Setting Method | G28: Price Cap IR
B30: Please indicate in which Rate Year the Group 1 accounts were last cleared1 | G30: 2019
B32: Please indicate the last Cost of Service Re-Basing Year | G32: 2017
C35: Notes
D37: Pale gray cells represent input cells.
D39: Pale blue cells represent drop-down lists.
D41: White cells contain fixed values, automatically generated values or formulae.
B44: Note: 1. Rate year of application

Sheet 2. Current Tariff Schedule
A1: Back to Index | B1: Alectra Utilities Corporation
B2: PowerStream Rate Zone
B3: TARIFF OF RATES AND CHARGES
B4: Effective Date January 1, 2019
B5: Implementation Date February 1, 2019
B6: This schedule supersedes and replaces all previously
B7: approved schedules of Rates, Charges and Loss Factors
B8: EB-2018-0016
B9: RESIDENTIAL SERVICE CLASSIFICATION
B11: This classification refers to an account taking electricity at 750 volts or less where the electricity is used exclusively in a separately metered living accommodation. Customers shall be residing in single-dwelling units that consist of a detached house or one unit of a semi-detached, duplex, triplex or quadruplex house, with a residential zoning. Separately metered dwellings within a town house complex or apartment building also qualify as residential customers. Multi-unit residential establishments such as apartment buildings supplied through one service (bulk metered) shall be classified as general service. Class B consumers are defined in accordance with O. Reg. 429/04. Further servicing details are available in the distributor’s Conditions of Service.
B13: APPLICATION
B15: The application of these rates and charges shall be in accordance with the Licence of the Distributor and any Code or Order of the Ontario Energy Board, and amendments thereto as approved by the Ontario Energy Board, which may be applicable to the administration of this schedule.
B17: No rates and charges for the distribution of electricity and charges to meet the costs of any work or service done or furnished for the purpose of the distribution of electricity shall be made except as permitted by this schedule, unless required by the Distributor’s Licence or a Code or Order of the Ontario Energy Board, and amendments thereto as approved by the Ontario Energy Board, or as specified herein.
B19: Unless specifically noted, this schedule does not contain any charges for the electricity commodity, be it under the Regulated Price Plan, a contract with a retailer or the wholesale market price, as applicable. In addition, the charges in the MONTHLY RATES AND CHARGES – Regulatory Component of this schedule do not apply to a customer that is an embedded wholesale market participant.
B21: It should be noted that this schedule does not list any charges, assessments or credits that are required by law to be invoiced by a distributor and that are not subject to Ontario Energy Board approval, such as the Global Adjustment and the HST.
B23: MONTHLY RATES AND CHARGES – Delivery Component
A25: R_F | B25: Service Charge | D25: $ | E25: 24.91
A26: R_FRR19 | B26: Rate Rider for Recovery of 2019 Foregone Revenue - effective until December 31, 2019 | D26: $ | E26: 0.02
A27: R_ICMF19 | B27: Rate Rider for Recovery of Incremental Capital (2019) - in effect from March 1, 2019 until the effective date of the next cost of service based rate order | D27: $ | E27: 0.18
A28: R_ICMF18 | B28: Rate Rider for Recovery of Incremental Capital (2018) - in effect until the effective date of the next cost of service based rate order | D28: $ | E28: 0.11
A29: R_SME | B29: Smart Metering Entity Charge - effective until December 31, 2022 | D29: $ | E29: 0.57
A30: R_V | B30: Distribution Volumetric Rate | D30: $/kWh | E30: 0.0045
A31: R_LV | B31: Low Voltage Service Rate | D31: $/kWh | E31: 0.0005
A32: R_GA19 | B32: Rate Rider for Disposition of Global Adjustment Account (2019) - effective until December 31, 2019 Applicable only for Non-RPP Customers - Approved on an Interim Basis | D32: $/kWh | E32: 0.0031
A33: R_GA18 | B33: Rate Rider for Disposition of Global Adjustment Account (2018) - effective until April 30, 2019 - Applicable only for Non-RPP Customers | D33: $/kWh | E33: 0.0004
A34: R_DVA19 | B34: Rate Rider for Disposition of Deferral/Variance Accounts (2019) - effective until December 31, 2019 - Approved on an Interim Basis | D34: $/kWh | E34: -0.0021
A35: R_DVA18 | B35: Rate Rider for Disposition of Deferral/Variance Accounts (2018) - effective until April 30, 2019 | D35: $/kWh | E35: -0.003
A36: R_CBR18 | B36: Rate Rider for Disposition of Capacity Based Recovery Account (2018) - effective until April 30, 2019 - Applicable Only for Class B Customers | D36: $/kWh | E36: 0.0002
A37: R_LRV19 | B37: Rate Rider for Disposition of Lost Revenue Adjustment Mechanism Variance Account (LRAMVA) (2019) - effective until December 31, 2019 | D37: $/kWh | E37: 0.0004
A38: R_TN | B38: Retail Transmission Rate - Network Service Rate | D38: $/kWh | E38: 0.0073
A39: R_TC | B39: Retail Transmission Rate - Line and Transformation Connection Service Rate | D39: $/kWh | E39: 0.004
B41: MONTHLY RATES AND CHARGES – Regulatory Component
B43: Wholesale Market Service Rate (WMS) - not including CBR | D43: $/kWh | E43: 0.003
B44: Capacity Based Recovery (CBR) - Applicable for Class B Customers | D44: $/kWh | E44: 0.0004
B45: Rural or Remote Electricity Rate Protection Charge (RRRP) | D45: $/kWh | E45: 0.0005
B46: Standard Supply Service - Administrative Charge (if applicable) | D46: $ | E46: 0.25
B49: GENERAL SERVICE LESS THAN 50 KW SERVICE CLASSIFICATION
B51: This classification refers to a non-residential account taking electricity at 750 volts or less whose monthly average peak demand is less than, or is forecast to be less than, 50 kW. Class B consumers are defined in accordance with O. Reg. 429/04. Further servicing details are available in the distributor’s Conditions of Service.
B54: APPLICATION
B56: The application of these rates and charges shall be in accordance with the Licence of the Distributor and any Code or Order of the Ontario Energy Board, and amendments thereto as approved by the Ontario Energy Board, which may be applicable to the administration of this schedule.
B58: No rates and charges for the distribution of electricity and charges to meet the costs of any work or service done or furnished for the purpose of the distribution of electricity shall be made except as permitted by this schedule, unless required by the Distributor’s Licence or a Code or Order of the Ontario Energy Board, and amendments thereto as approved by the Ontario Energy Board, or as specified herein.
B60: Unless specifically noted, this schedule does not contain any charges for the electricity commodity, be it under the Regulated Price Plan, a contract with a retailer or the wholesale market price, as applicable. In addition, the charges in the MONTHLY RATES AND CHARGES – Regulatory Component of this schedule do not apply to a customer that is an embedded wholesale market participant.
B62: It should be noted that this schedule does not list any charges, assessments or credits that are required by law to be invoiced by a distributor and that are not subject to Ontario Energy Board approval, such as the Global Adjustment and the HST.
B64: MONTHLY RATES AND CHARGES – Delivery Component
A66: GSL_F | B66: Service Charge | D66: $ | E66: 29.35
A67: GSL_FRR19 | B67: Rate Rider for Recovery of 2019 Foregone Revenue - effective until December 31, 2019 | D67: $ | E67: 0.08
A68: GSL_ICMF19 | B68: Rate Rider for Recovery of Incremental Capital (2019) - in effect from March 1, 2019 until the effective date of the next cost of service based rate order | D68: $ | E68: 0.19
A69: GSL_ICMF18 | B69: Rate Rider for Recovery of Incremental Capital (2018) - in effect until the effective date of the next cost of service based rate order | D69: $ | E69: 0.12
A70: GSL_SME | B70: Smart Metering Entity Charge - effective until December 31, 2022 | D70: $ | E70: 0.57
A71: GSL_V | B71: Distribution Volumetric Rate | D71: $/kWh | E71: 0.0187
A72: GSL_LV | B72: Low Voltage Service Rate | D72: $/kWh | E72: 0.0004
A73: GSL_GA19 | B73: Rate Rider for Disposition of Global Adjustment Account (2019) - effective until December 31, 2019 Applicable only for Non-RPP Customers - Approved on an Interim Basis | D73: $/kWh | E73: 0.0031
A74: GSL_GA18 | B74: Rate Rider for Disposition of Global Adjustment Account (2018) - effective until April 30, 2019 - Applicable only for Non-RPP Customers | D74: $/kWh | E74: 0.0004
A75: GSL_DVA19 | B75: Rate Rider for Disposition of Deferral/Variance Accounts (2019) - effective until December 31, 2019 - Approved on an Interim Basis | D75: $/kWh | E75: -0.002
A76: GSL_DVA18 | B76: Rate Rider for Disposition of Deferral/Variance Accounts (2018) - effective until April 30, 2019 | D76: $/kWh | E76: -0.003
A77: GSL_CBR18 | B77: Rate Rider for Disposition of Capacity Based Recovery Account (2018) - effective until April 30, 2019 - Applicable Only for Class B Customers | D77: $/kWh | E77: 0.0002
A78: GSL_LRV19 | B78: Rate Rider for Disposition of Lost Revenue Adjustment Mechanism Variance Account (LRAMVA) (2019) - effective until December 31, 2019 | D78: $/kWh | E78: 0.0007
A79: GSL_LRV18 | B79: Rate Rider for Disposition of Lost Revenue Adjustment Mechanism Variance Account (LRAMVA) (2018) - effective until April 30, 2019 | D79: $/kWh | E79: 0.0009
A80: GSL_ICMV19 | B80: Rate Rider for Recovery of Incremental Capital (2019) - in effect from March 1, 2019 until the effective date of the next cost of service based rate order | D80: $/kWh | E80: 0.0001
A81: GSL_ICMV18 | B81: Rate Rider for Recovery of Incremental Capital (2018) - in effect until the effective date of the next cost of service based rate order | D81: $/kWh | E81: 0.0001
A82: GSL_TN | B82: Retail Transmission Rate - Network Service Rate | D82: $/kWh | E82: 0.0065
A83: GSL_TC | B83: Retail Transmission Rate - Line and Transformation Connection Service Rate | D83: $/kWh | E83: 0.0035
B85: MONTHLY RATES AND CHARGES – Regulatory Component
B87: Wholesale Market Service Rate (WMS) - not including CBR | D87: $/kWh | E87: 0.003
B88: Capacity Based Recovery (CBR) - Applicable for Class B Customers | D88: $/kWh | E88: 0.0004
B89: Rural or Remote Electricity Rate Protection Charge (RRRP) | D89: $/kWh | E89: 0.0005
B90: Standard Supply Service - Administrative Charge (if applicable) | D90: $ | E90: 0.25
B93: GENERAL SERVICE 50 TO 4,999 KW SERVICE CLASSIFICATION
B95: This classification refers to a non-residential account whose monthly average peak demand is equal to or greater than, or is forecast to be equal to or greater than, 50 kW but less than 5,000 kW, both regular and interval metered. Class A and Class B consumers are defined in accordance with O. Reg. 429/04. Further servicing details are available in the distributor’s Conditions of Service.
B97: APPLICATION
B99: The application of these rates and charges shall be in accordance with the Licence of the Distributor and any Code or Order of the Ontario Energy Board, and amendments thereto as approved by the Ontario Energy Board, which may be applicable to the administration of this schedule.
B101: No rates and charges for the distribution of electricity and charges to meet the costs of any work or service done or furnished for the purpose of the distribution of electricity shall be made except as permitted by this schedule, unless required by the Distributor’s Licence or a Code or Order of the Ontario Energy Board, and amendments thereto as approved by the Ontario Energy Board, or as specified herein.
B103: Unless specifically noted, this schedule does not contain any charges for the electricity commodity, be it under the Regulated Price Plan, a contract with a retailer or the wholesale market price, as applicable. In addition, the charges in the MONTHLY RATES AND CHARGES – Regulatory Component of this schedule do not apply to a customer that is an embedded wholesale market participant.
B105: The rate rider for the disposition of WMS Sub-Account CBR Class B is not applicable to wholesale market participant (WMP) customers. It is not applicable to WMP customers that transitioned between Class A and Class B during the variance account accumulation period, or to customers that were in Class A for the entire period. Customers that transitioned are to be charged or refunded their share of the variance disposed through customer specific billing adjustments. The rate rider is to be consistently applied for the entire period to the sunset date of the rate rider. In addition, this rate rider is applicable to all new non-RPP Class B customers.
B107: The rate rider for the disposition of Global Adjustment is only applicable to non-RPP Class B customers. It is not applicable to WMP customers that transitioned between Class A and Class B during the variance account accumulation period, or to customers that were in Class A for the entire period. Customers that transitioned are to be charged or refunded their share of the variance disposed through customer specific billing adjustments. The rate rider is to be consistently applied for the entire period to the sunset date of the rate rider. In addition, this rate rider is applicable to all new non-RPP Class B customers.
B109: It should be noted that this schedule does not list any charges, assessments or credits that are required by law to be invoiced by a distributor and that are not subject to Ontario Energy Board approval, such as the Global Adjustment and the HST.
B111: MONTHLY RATES AND CHARGES – Delivery Component
A113: GSG_F | B113: Service Charge | D113: $ | E113: 143.95
A114: GSG_FRR19 | B114: Rate Rider for Recovery of 2019 Foregone Revenue - effective until December 31, 2019 | D114: $ | E114: 0.99
A115: GSG_ICMF19 | B115: Rate Rider for Recovery of Incremental Capital (2019) - in effect from March 1, 2019 until the effective date of the next cost of service based rate order | D115: $ | E115: 0.95
A116: GSG_ICMF18 | B116: Rate Rider for Recovery of Incremental Capital (2018) - in effect until the effective date of the next cost of service based rate order | D116: $ | E116: 0.57
A117: GSG_V | B117: Distribution Volumetric Rate | D117: $/kW | E117: 4.2924
A118: GSG_LV | B118: Low Voltage Service Rate | D118: $/kW | E118: 0.1589
A119: GSG_GA19nonWMP | B119: Rate Rider for Disposition of Global Adjustment Account (2019) - effective from May 1, 2019 until December 31, 2019 Applicable only for Non-RPP Customers Non-Wholesale Market Participants non-interval metered - Approved on an Interim Basis | D119: $/kWh | E119: 0.0043
A120: GSG_GA18nonWMP | B120: Rate Rider for Disposition of Global Adjustment Account (2018) - effective until April 30, 2019 Applicable only for Non-RPP Customers Non-Wholesale Market Participants Non-interval metered | D120: $/kWh | E120: 0.0004
A121: GSG_DVA19 | B121: Rate Rider for Disposition of Deferral/Variance Accounts (2019) - effective until December 31, 2019 Approved on an Interim Basis | D121: $/kW | E121: -0.323
A122: GSG_DVA19nonWMP | B122: Rate Rider for Disposition of Deferral/Variance Accounts (2019) - effective until December 31, 2019 Applicable only for Non-Wholesale Market Participants - Approved on an Interim Basis | D122: $/kW | E122: -0.4296
A123: GSG_DVA18 | B123: Rate Rider for Disposition of Deferral/Variance Accounts (2018) - effective until April 30, 2019 | D123: $/kW | E123: 0.0184
A124: GSG_DVA18nonWMP | B124: Rate Rider for Disposition of Deferral/Variance Accounts (2018) - effective until April 30, 2019 - Applicable only for Non-Wholesale Market Participants | D124: $/kW | E124: -1.1367
A125: GSG_CBR18 | B125: Rate Rider for Disposition of Capacity Based Recovery Account (2018) - effective until April 30, 2019 - Applicable Only for Class B Customers | D125: $/kW | E125: 0.0905
A126: GSG_LRV19 | B126: Rate Rider for Disposition of Lost Revenue Adjustment Mechanism Variance Account (LRAMVA) (2019) - effective until December 31, 2019 | D126: $/kW | E126: 0.1073
A127: GSG_LRV18 | B127: Rate Rider for Disposition of Lost Revenue Adjustment Mechanism Variance Account (LRAMVA) (2018) -effective April 30, 2019 | D127: $/kW | E127: 0.0796
A128: GSG_ICMV19 | B128: Rate Rider for Recovery of Incremental Capital (2019) - in effect from March 1, 2019 until the effective date of the next cost of service based rate order | D128: $/kW | E128: 0.0282
A129: GSG_ICMV18 | B129: Rate Rider for Recovery of Incremental Capital (2018) - in effect until the effective date of the next cost of service based rate order | D129: $/kW | E129: 0.0168
A130: GSG_TN | B130: Retail Transmission Rate - Network Service Rate | D130: $/kW | E130: 2.613
A131: GSG_TC | B131: Retail Transmission Rate - Line and Transformation Connection Service Rate | D131: $/kW | E131: 1.3338
A132: GSGI_TN | B132: Retail Transmission Rate - Network Service Rate – Interval Metered | D132: $/kW | E132: 2.7391
A133: GSGI_TC | B133: Retail Transmission Rate - Line and Transformation Connection Service Rate – Interval Metered | D133: $/kW | E133: 1.4431
B135: MONTHLY RATES AND CHARGES – Regulatory Component
B137: Wholesale Market Service Rate (WMS) - not including CBR | D137: $/kWh | E137: 0.003
B138: Capacity Based Recovery (CBR) - Applicable for Class B Customers | D138: $/kWh | E138: 0.0004
B139: Rural or Remote Electricity Rate Protection Charge (RRRP) | D139: $/kWh | E139: 0.0005
B140: Standard Supply Service - Administrative Charge (if applicable) | D140: $ | E140: 0.25
B142: LARGE USE SERVICE CLASSIFICATION
B144: This classification refers to an account whose monthly average peak demand is equal to or greater than, or is forecast to be equal to or greater than, 5,000 kW. Class A and Class B consumers are defined in accordance with O. Reg. 429/04. Further servicing details are available in the distributor’s Conditions of Service.
B146: APPLICATION
B148: The application of these rates and charges shall be in accordance with the Licence of the Distributor and any Code or Order of the Ontario Energy Board, and amendments thereto as approved by the Ontario Energy Board, which may be applicable to the administration of this schedule.
B150: No rates and charges for the distribution of electricity and charges to meet the costs of any work or service done or furnished for the purpose of the distribution of electricity shall be made except as permitted by this schedule, unless required by the Distributor’s Licence or a Code or Order of the Ontario Energy Board, and amendments thereto as approved by the Ontario Energy Board, or as specified herein.
B152: Unless specifically noted, this schedule does not contain any charges for the electricity commodity, be it under the Regulated Price Plan, a contract with a retailer or the wholesale market price, as applicable. In addition, the charges in the MONTHLY RATES AND CHARGES – Regulatory Component of this schedule do not apply to a customer that is an embedded wholesale market participant.
B154: It should be noted that this schedule does not list any charges, assessments or credits that are required by law to be invoiced by a distributor and that are not subject to Ontario Energy Board approval, such as the Global Adjustment and the HST.
B156: MONTHLY RATES AND CHARGES – Delivery Component
A158: LU_F | B158: Service Charge | D158: $ | E158: 6201.88
A159: LU_FRR19 | B159: Rate Rider for Recovery of 2019 Foregone Revenue - effective until December 31, 2019 | D159: $ | E159: 15.43
A160: LU_ICMF19 | B160: Rate Rider for Recovery of Incremental Capital (2019) - in effect from March 1, 2019 until the effective date of the next cost of service based rate order | D160: $ | E160: 40.77
A161: LU_ICMF18 | B161: Rate Rider for Recovery of Incremental Capital (2018) - in effect until the effective date of the next cost of service based rate order | D161: $ | E161: 24.34
A162: LU_V | B162: Distribution Volumetric Rate | D162: $/kW | E162: 2.2894
A163: LU_LV | B163: Low Voltage Service Rate | D163: $/kW | E163: 0.163
A164: LU_DVA19 | B164: Rate Rider for Disposition of Deferral/Variance Accounts (2019) - effective until December 31, 2019 - Approved on an Interim Basis | D164: $/kW | E164: -1.2846
A165: LU_DVA18 | B165: Rate Rider for Disposition of Deferral/Variance Accounts (2018) - effective until April 30, 2019 | D165: $/kW | E165: -1.3235
A166: LU_LRV19 | B166: Rate Rider for Disposition of Lost Revenue Adjustment Mechanism Variance Account (LRAMVA) (2019) - effective until December 31, 2019 | D166: $/kW | E166: -0.0771
A167: LU_LRV18 | B167: Rate Rider for Disposition of Lost Revenue Adjustment Mechanism Variance Account (LRAMVA) (2018) - effective until April 30, 2019 | D167: $/kW | E167: -0.0723
A168: LU_ICMV19 | B168: Rate Rider for Recovery of Incremental Capital (2019) - in effect from March 1, 2019 until the effective date of the next cost of service based rate order | D168: $/kW | E168: 0.0151
A169: LU_ICMV18 | B169: Rate Rider for Recovery of Incremental Capital (2018) - in effect until the effective date of the next cost of service based rate order | D169: $/kW | E169: 0.009
A170: LU_TN | B170: Retail Transmission Rate - Network Service Rate | D170: $/kW | E170: 3.1569
A171: LU_TC | B171: Retail Transmission Rate - Line and Transformation Connection Service Rate | D171: $/kW | E171: 1.3931
B173: MONTHLY RATES AND CHARGES – Regulatory Component
B175: Wholesale Market Service Rate (WMS) - not including CBR | D175: $/kWh | E175: 0.003
B176: Capacity Based Recovery (CBR) - Applicable for Class B Customers | D176: $/kWh | E176: 0.0004
B177: Rural or Remote Electricity Rate Protection Charge (RRRP) | D177: $/kWh | E177: 0.0005
B178: Standard Supply Service - Administrative Charge (if applicable) | D178: $ | E178: 0.25
B180: STANDBY POWER SERVICE CLASSIFICATION
B182: This classification refers to an account that has Load Displacement Generation and requires the distributor to provide back-up service. Further servicing details are available in the distributor’s Conditions of Service.
B184: APPLICATION
B186: The application of these rates and charges shall be in accordance with the Licence of the Distributor and any Code or Order of the Ontario Energy Board, and amendments thereto as approved by the Ontario Energy Board, which may be applicable to the administration of this schedule.
B188: No rates and charges for the distribution of electricity and charges to meet the costs of any work or service done or furnished for the purpose of the distribution of electricity shall be made except as permitted by this schedule, unless required by the Distributor’s Licence or a Code or Order of the Ontario Energy Board, and amendments thereto as approved by the Ontario Energy Board, or as specified herein.
B190: Unless specifically noted, this schedule does not contain any charges for the electricity commodity, be it under the Regulated Price Plan, a contract with a retailer or the wholesale market price, as applicable.
B192: It should be noted that this schedule does not list any charges, assessments or credits that are required by law to be invoiced by a distributor and that are not subject to Ontario Energy Board approval, such as the the Global Adjustment and the HST.
B194: MONTHLY RATES AND CHARGES – Delivery Component - APPROVED ON AN INTERIM BASIS
A196: SB_V | B196: Standby Charge – for a month where standby power is not provided. The charge is applied to the contracted amount (e.g. nameplate rating of generation facility). | D196: $/kW | E196: 2.8334
B198: UNMETERED SCATTERED LOAD SERVICE CLASSIFICATION
B200: This classification refers to an account taking electricity at 750 volts or less whose average monthly peak demand is less than, or is forecast to be less than, 50 kW and the consumption is unmetered. Such connections include cable TV power packs, bus shelters, telephone booths, traffic lights, railway crossings, etc. The customer will provide detailed manufacturer information/documentation with regard to electrical demand/consumption of the proposed unmetered load. Class B consumers are defined in accordance with O. Reg. 429/04. Further servicing details are available in the distributor’s Conditions of Service.
B202: APPLICATION
B204: The application of these rates and charges shall be in accordance with the Licence of the Distributor and any Code or Order of the Ontario Energy Board, and amendments thereto as approved by the Ontario Energy Board, which may be applicable to the administration of this schedule.
B206: No rates and charges for the distribution of electricity and charges to meet the costs of any work or service done or furnished for the purpose of the distribution of electricity shall be made except as permitted by this schedule, unless required by the Distributor’s Licence or a Code or Order of the Ontario Energy Board, and amendments thereto as approved by the Ontario Energy Board, or as specified herein.
B208: Unless specifically noted, this schedule does not contain any charges for the electricity commodity, be it under the Regulated Price Plan, a contract with a retailer or the wholesale market price, as applicable. In addition, the charges in the MONTHLY RATES AND CHARGES – Regulatory Component of this schedule do not apply to a customer that is an embedded wholesale market participant.
B210: It should be noted that this schedule does not list any charges, assessments or credits that are required by law to be invoiced by a distributor and that are not subject to Ontario Energy Board approval, such as the Global Adjustment and the HST.
B212: MONTHLY RATES AND CHARGES – Delivery Component
A214: USL_F | B214: Service Charge | D214: $ | E214: 8.78
A215: USL_FRR19 | B215: Rate Rider for Recovery of 2019 Foregone Revenue - effective until December 31, 2019 | D215: $ | E215: 0.02
A216: USL_ICMF19 | B216: Rate Rider for Recovery of Incremental Capital (2019) - in effect from March 1, 2019 until the effective date of the next cost of service based rate order | D216: $ | E216: 0.06
A217: USL_ICMF18 | B217: Rate Rider for Recovery of Incremental Capital (2018) - in effect until the effective date of the next cost of service based rate order | D217: $ | E217: 0.03
A218: USL_V | B218: Distribution Volumetric Rate | D218: $/kWh | E218: 0.0199
A219: USL_LV | B219: Low Voltage Service Rate | D219: $/kWh | E219: 0.0005
A220: USL_GA19 | B220: Rate Rider for Disposition of Global Adjustment Account (2019) - effective until December 31, 2019 Applicable only for Non-RPP Customers Non-Wholesale Market Participants - Approved on an Interim Basis | D220: $/kWh | E220: 0.0031
A221: USL_GA18 | B221: Rate Rider for Disposition of Global Adjustment Account (2018) - effective until April 30, 2019 Applicable only for Non-RPP Customers Non-Wholesale Market Participants | D221: $/kWh | E221: 0.0004
A222: USL_DVA19 | B222: Rate Rider for Disposition of Deferral/Variance Accounts (2019) - effective until December 31, 2019 - Approved on an Interim Basis | D222: $/kWh | E222: -0.002
A223: USL_DVA18 | B223: Rate Rider for Disposition of Deferral/Variance Accounts (2018) - effective until April 30, 2019 | D223: $/kWh | E223: -0.0029
A224: USL_CBR18 | B224: Rate Rider for Disposition of Capacity Based Recovery Account (2018) - effective until April 30, 2019 - Applicable Only for Class B Customers | D224: $/kWh | E224: 0.0002
A225: USL_LRV19 | B225: Rate Rider for Disposition of Lost Revenue Adjustment Mechanism Variance Account (LRAMVA) (2019) - effective until December 31, 2019 | D225: $/kWh | E225: -0.0003
A226: USL_LRV18 | B226: Rate Rider for Disposition of Lost Revenue Adjustment Mechanism Variance Account (LRAMVA) (2018) - effective until April 30, 2019 | D226: $/kWh | E226: -0.0005
A227: USL_ICMV19 | B227: Rate Rider for Recovery of Incremental Capital (2019) - in effect from March 1, 2019 until the effective date of the next cost of service based rate order | D227: $/kWh | E227: 0.0001
A228: USL_ICMV18 | B228: Rate Rider for Recovery of Incremental Capital (2018) - in effect until the effective date of the next cost of service based rate order | D228: $/kWh | E228: 0.0001
A229: USL_TN | B229: Retail Transmission Rate - Network Service Rate | D229: $/kWh | E229: 0.0062
A230: USL_TC | B230: Retail Transmission Rate - Line and Transformation Connection Service Rate | D230: $/kWh | E230: 0.0037
B232: MONTHLY RATES AND CHARGES – Regulatory Component
B234: Wholesale Market Service Rate (WMS) - not including CBR | D234: $/kWh | E234: 0.003
B235: Capacity Based Recovery (CBR) - Applicable for Class B Customers | D235: $/kWh | E235: 0.0004
B236: Rural or Remote Electricity Rate Protection Charge (RRRP) | D236: $/kWh | E236: 0.0005
B237: Standard Supply Service - Administrative Charge (if applicable) | D237: $ | E237: 0.25
B239: SENTINEL LIGHTING SERVICE CLASSIFICATION
B241: This classification refers to an unmetered lighting load supplied to a sentinel light. Class B consumers are defined in accordance with O. Reg. 429/04. Further servicing details are available in the distributor’s Conditions of Service.
B243: APPLICATION
B245: The application of these rates and charges shall be in accordance with the Licence of the Distributor and any Code or Order of the Ontario Energy Board, and amendments thereto as approved by the Ontario Energy Board, which may be applicable to the administration of this schedule.
B247: No rates and charges for the distribution of electricity and charges to meet the costs of any work or service done or furnished for the purpose of the distribution of electricity shall be made except as permitted by this schedule, unless required by the Distributor’s Licence or a Code or Order of the Ontario Energy Board, and amendments thereto as approved by the Ontario Energy Board, or as specified herein.
B249: Unless specifically noted, this schedule does not contain any charges for the electricity commodity, be it under the Regulated Price Plan, a contract with a retailer or the wholesale market price, as applicable. In addition, the charges in the MONTHLY RATES AND CHARGES – Regulatory Component of this schedule do not apply to a customer that is an embedded wholesale market participant.
B251: It should be noted that this schedule does not list any charges, assessments or credits that are required by law to be invoiced by a distributor and that are not subject to Ontario Energy Board approval, such as the Global Adjustment and the HST.
B253: MONTHLY RATES AND CHARGES – Delivery Component
A255: SEN_F | B255: Service Charge (per Connection) | D255: $ | E255: 4.28
A256: SEN_FRR19 | B256: Rate Rider for Recovery of 2019 Foregone Revenue - effective until December 31, 2019 | D256: $ | E256: 0.01
A257: SEN_ICMF19 | B257: Rate Rider for Recovery of Incremental Capital (2019) - in effect from March 1, 2019 until the effective date of the next cost of service based rate order | D257: $ | E257: 0.03
A258: SEN_ICMF18 | B258: Rate Rider for Recovery of Incremental Capital (2018) - in effect until the effective date of the next cost of service based rate order | D258: $ | E258: 0.02
A259: SEN_V | B259: Distribution Volumetric Rate | D259: $/kW | E259: 10.0777
A260: SEN_LV | B260: Low Voltage Service Rate | D260: $/kW | E260: 0.117
A261: SEN_GA19 | B261: Rate Rider for Disposition of Global Adjustment Account (2019) - effective until December 31, 2019 Applicable only for Non-RPP Customers Non-Wholesale Market Participants - Approved on an Interim Basis | D261: $/kWh | E261: 0.0031
A262: SEN_GA18 | B262: Rate Rider for Disposition of Global Adjustment Account (2018) - effective until April 30, 2019 Applicable only for Non-RPP Customers Non-Wholesale Market Participants | D262: $/kWh | E262: 0.0004
A263: SEN_DVA19 | B263: Rate Rider for Disposition of Deferral/Variance Accounts (2019) - effective until December 31, 2019 - Approved on an Interim Basis | D263: $/kW | E263: -0.7463
A264: SEN_DVA18 | B264: Rate Rider for Disposition of Deferral/Variance Accounts (2018) - effective until April 30, 2019 | D264: $/kW | E264: -1.074
A265: SEN_CBR18 | B265: Rate Rider for Disposition of Capacity Based Recovery Account (2018) - effective until April 30, 2019 - Applicable Only for Class B Customers | D265: $/kW | E265: 0.0895
A266: SEN_LRV19 | B266: Rate Rider for Disposition of Lost Revenue Adjustment Mechanism Variance Account (LRAMVA) (2019) - effective until December 31, 2019 | D266: $/kW | E266: -0.2379
A267: SEN_LRV18 | B267: Rate Rider for Disposition of Lost Revenue Adjustment Mechanism Variance Account (LRAMVA) (2018) - effective until April 30, 2019 | D267: $/kW | E267: -0.385
A268: SEN_ICMV19 | B268: Rate Rider for Recovery of Incremental Capital (2019) - in effect from March 1, 2019 until the effective date of the next cost of service based rate order | D268: $/kW | E268: 0.0663
A269: SEN_ICMV18 | B269: Rate Rider for Recovery of Incremental Capital (2018) - in effect until the effective date of the next cost of service based rate order | D269: $/kW | E269: 0.0396
A270: SEN_TN | B270: Retail Transmission Rate - Network Service Rate | D270: $/kW | E270: 2.0304
A271: SEN_TC | B271: Retail Transmission Rate - Line and Transformation Connection Service Rate | D271: $/kW | E271: 0.9868
B273: MONTHLY RATES AND CHARGES – Regulatory Component
B275: Wholesale Market Service Rate (WMS) - not including CBR | D275: $/kWh | E275: 0.003
B276: Capacity Based Recovery (CBR) - Applicable for Class B Customers | D276: $/kWh | E276: 0.0004
B277: Rural or Remote Electricity Rate Protection Charge (RRRP) | D277: $/kWh | E277: 0.0005
B278: Standard Supply Service - Administrative Charge (if applicable) | D278: $ | E278: 0.25
B280: STREET LIGHTING SERVICE CLASSIFICATION
... 99 more rows

Sheet 3. Continuity Schedule
A1: Back to Index | B1: Back to Index | CB1: FALSE
C2: =+'1. Information Sheet'!B2 -> INCENTIVE REGULATION MODEL FOR 2020 FILERS | CB2: FALSE
CB3: FALSE
CB4: FALSE
CB5: FALSE
CB6: FALSE
CB7: FALSE
CB8: FALSE
CB9: FALSE
CB10: TRUE
CB11: TRUE
C12: Please complete the following continuity schedule for the following Deferral/Variance Accounts. Enter information into green cells only. Column CE shoudl match the latest 2.1.7 RRR filing. When inputting balances in the continuity schedule, Account 1580 RSVA - Wholesale Market Service Charge is to exclude any amounts relating to CBR. The CBR amounts are to be entered separately in the Class A and Class B 1580 sub-accounts. Only Class B amounts are to be disposed. Class A amounts are not to be disposed. If you have received approval to dispose of balances from prior years, the starting point for entries in the schedule below will be the balance sheet date as per your general ledger for which you received approval. For example, if in the 2020 EDR process (CoS or IRM) you received approval for the December 31, 2014 balances, the starting point for your entries below should be the 2013 year. This will allow for the correct starting point for the 2014 opening balance columns for both principal and interest. Please refer to the footnotes for further instructions.
E16: 2013 | O16: =E16+1 -> 2014 | Y16: =O16+1 -> 2015 | AI16: =Y16+1 -> 2016 | AS16: =AI16+1 -> 2017 | BC16: =AS16+1 -> 2018 | BM16: 2019 | BQ16: Projected Interest on Dec-31-18 Balances | BV16: 2.1.7 RRR
C17: Account Descriptions | D17: Account Number | E17: Opening Principal Amounts as of Jan 1, 2013 | F17: Transactions2 Debit / (Credit) during 2013 | G17: OEB-Approved Disposition during 2013 | H17: Principal Adjustments1 during 2013 | I17: Closing Principal Balance as of Dec 31, 2013 | J17: Opening Interest Amounts as of Jan 1, 2013 | K17: Interest Jan 1 to Dec 31, 2013 | L17: OEB-Approved Disposition during 2013 | M17: Interest Adjustments1 during 2013 | N17: Closing Interest Amounts as of Dec 31, 2013 | O17: Opening Principal Amounts as of Jan 1, 2014 | P17: Transactions2 Debit / (Credit) during 2014 | Q17: OEB-Approved Disposition during 2014 | R17: Principal Adjustments1 during 2014 | S17: Closing Principal Balance as of Dec 31, 2014 | T17: Opening Interest Amounts as of Jan 1, 2014 | U17: Interest Jan 1 to Dec 31. 2014 | V17: OEB-Approved Disposition during 2014 | W17: Interest Adjustments1 during 2014 | X17: Closing Interest Amounts as of Dec 31, 2014 | Y17: Opening Principal Amounts as of Jan 1, 2015 | Z17: Transactions2 Debit / (Credit) during 2015 | AA17: OEB-Approved Disposition during 2015 | AB17: Principal Adjustments1 during 2015 | AC17: Closing Principal Balance as of Dec 31, 15 | AD17: Opening Interest Amounts as of Jan 1, 15 | AE17: Interest Jan 1 to Dec 31, 15 | AF17: OEB-Approved Disposition during 2015 | AG17: Interest Adjustments1 during 2015 | AH17: Closing Interest Amounts as of Dec 31, 15 | AI17: Opening Principal Amounts as of Jan 1, 2016 | AJ17: Transactions2 Debit / (Credit) during 2016 | AK17: OEB-Approved Disposition during 2016 | AL17: Principal Adjustments1 during 2016 | AM17: Closing Principal Balance as of Dec 31, 16 | AN17: Opening Interest Amounts as of Jan 1, 16 | AO17: Interest Jan 1 to Dec 31, 16 | AP17: OEB-Approved Disposition during 2016 | AQ17: Interest Adjustments1 during 2016 | AR17: Closing Interest Amounts as of Dec 31, 16 | AS17: Opening Principal Amounts as of Jan 1, 2017 | AT17: Transactions2 Debit / (Credit) during 2017 | AU17: OEB-Approved Disposition during 2017 | AV17: Principal Adjustments1 during 2017 | AW17: Closing Principal Balance as of Dec 31, 17 | AX17: Opening Interest Amounts as of Jan 1, 17 | AY17: Interest Jan 1 to Dec 31, 17 | AZ17: OEB-Approved Disposition during 2017 | BA17: Interest Adjustments1 during 2017 | BB17: Closing Interest Amounts as of Dec 31, 17 | BC17: Opening Principal Amounts as of Jan 1, 2018 | BD17: Transactions2 Debit / (Credit) during 2018 | BE17: OEB-Approved Disposition during 2018 | BF17: Principal Adjustments1 during 2018 | BG17: Closing Principal Balance as of Dec 31, 2018 | BH17: Opening Interest Amounts as of Jan 1, 2018 | BI17: Interest Jan 1 to Dec 31, 2018 | BJ17: OEB-Approved Disposition during 2018 | BK17: Interest Adjustments1 during 2018 | BL17: Closing Interest Amounts as of Dec 31, 2018 | BM17: Principal Disposition during 2019 - instructed by OEB | BN17: Interest Disposition during 2019 - instructed by OEB | BO17: Closing Principal Balances as of Dec 31, 2018 Adjusted for Dispositions during 2019 | BP17: Closing Interest Balances as of Dec 31, 2018 Adjusted for Disposition in 2019 | BQ17: Projected Interest from January 1, 2019 to December 31, 2019 on December 31, 2018 balance adjusted for disposition during 2019 3 | BR17: Projected Interest from January 1, 2019 to April 30, 2019 on December 31, 2018 balance adjusted for disposition during 2019 3 | BS17: Total Interest | BT17: Dispose of Account? (Y/N) | BU17: Total Claim | BV17: As of Dec 31-18 | BW17: Variance RRR vs. 2018 Balance (Principal + Interest)
BU19: Claim before Forecasted Transactions
C20: Group 1 Accounts
C21: LV Variance Account | D21: 1550 | E21: 477919 | F21: -112182 | I21: =E21+F21-G21+SUM(H21:H21) -> 365737 | J21: 3031.6384 | K21: 6431 | N21: =J21+K21-L21+M21 -> 9462.6384 | O21: =I21 -> 365737 | P21: -133409 | Q21: 477919 | S21: =O21+P21-Q21+SUM(R21:R21) -> -245591 | T21: =N21 -> 9462.6384 | U21: -1339 | V21: 10057 | X21: =T21+U21-V21+W21 -> -1933.3616 | Y21: =S21 -> -245591 | Z21: 1878888.72 | AC21: =Y21+Z21-AA21+SUM(AB21:AB21) -> 1633297.72 | AD21: =X21 -> -1933.3616 | AE21: 2930.11 | AH21: =AD21+AE21-AF21+AG21 -> 996.7484 | AI21: =AC21 -> 1633297.72 | AJ21: 2598645.27 | AK21: -245591 | AM21: =AI21+AJ21-AK21+SUM(AL21:AL21) -> 4477533.99 | AN21: =AH21 -> 996.7484 | AO21: 31733.49338 | AP21: -6702 | AR21: =AN21+AO21-AP21+AQ21 -> 39432.24178 | AS21: =AM21 -> 4477533.99 | AT21: 1506287.71 | AW21: =AS21+AT21-AU21+SUM(AV21:AV21) -> 5983821.7 | AX21: =AR21 -> 39432.24178 | AY21: 62844.3 | BB21: =AX21+AY21-AZ21+BA21 -> 102276.5418 | BC21: =AW21 -> 5983821.7 | BD21: 525876.72 | BE21: 4477533.99 | BG21: =BC21+BD21-BE21+SUM(BF21:BF21) -> 2032164.43 | BH21: =BB21 -> 102276.5418 | BI21: 63392.13 | BJ21: 117005.5182 | BL21: =BH21+BI21-BJ21+BK21 -> 48663.15362 | BM21: 1506287.71 | BN21: 16401 | BO21: =BG21-BM21 -> 525876.72 | BP21: =BL21-BN21 -> 32262.15362 | BQ21: =+BO21*((2.45%*3/12)+(2.18%*9/12)) -> 11819.07928 | BS21: =BP21+BQ21+BR21 -> 44081.23291 | BU21: =SUM(BO21:BR21) -> 569957.9529 | BV21: 2080828.88 | BW21: =BV21-SUM(BG21,BL21) -> 1.29637675
C22: Smart Metering Entity Charge Variance Account | D22: 1551 | E22: 0 | F22: 185108 | I22: =E22+F22-G22+SUM(H22:H22) -> 185108 | J22: 0 | K22: 1632 | N22: =J22+K22-L22+M22 -> 1632 | O22: 185108 | P22: -93458 | S22: 91650 | T22: 1632 | U22: 2228 | X22: =T22+U22-V22+W22 -> 3860 | Y22: 91650 | Z22: -127715.26 | AC22: -36065.26 | AD22: 3860 | AE22: 652.96 | AH22: =AD22+AE22-AF22+AG22 -> 4512.96 | AI22: =AC22 -> -36065.26 | AJ22: -125095.12 | AK22: 91650 | AM22: =AI22+AJ22-AK22+SUM(AL22:AL22) -> -252810.38 | AN22: 4512.96 | AO22: -1054.24 | AP22: 5640 | AR22: =AN22+AO22-AP22+AQ22 -> -2181.28 | AS22: =AM22 -> -252810.38 | AT22: -389458.59 | AW22: =AS22+AT22-AU22+SUM(AV22:AV22) -> -642268.97 | AX22: -2181.28 | AY22: -3628 | BB22: =AX22+AY22-AZ22+BA22 -> -5809.28 | BC22: =AW22 -> -642268.97 | BD22: -298025.11 | BE22: -252810.38 | BG22: =BC22+BD22-BE22+SUM(BF22:BF22) -> -687483.7 | BH22: -5809.28 | BI22: -13191.99 | BJ22: -6561.219833 | BL22: =BH22+BI22-BJ22+BK22 -> -12440.05017 | BM22: -389458.59 | BN22: -7297 | BO22: -298025.11 | BP22: =BL22-BN22 -> -5143.050167 | BQ22: =+BO22*((2.45%*3/12)+(2.18%*9/12)) -> -6698.114347 | BS22: =BP22+BQ22+BR22 -> -11841.16451 | BU22: =SUM(BO22:BR22) -> -309866.2745 | BV22: -699924.01 | BW22: =BV22-SUM(BG22,BL22) -> -0.2598335
C23: RSVA - Wholesale Market Service Charge | D23: 1580 | E23: -10646313 | F23: -5065917 | I23: -15712230 | J23: -84419 | K23: -200434 | N23: =J23+K23-L23+M23 -> -284853 | O23: -15712230 | P23: -877534 | Q23: -10646313 | S23: -5943451 | T23: -284853 | U23: -58992 | V23: -240919 | X23: =T23+U23-V23+W23 -> -102926 | Y23: -5943451 | Z23: -18323012.7 | AC23: -24266463.7 | AD23: -102926 | AE23: -122114.92 | AH23: =AD23+AE23-AF23+AG23 -> -225040.92 | AI23: -24266463.7 | AJ23: -7562592.09 | AK23: -5943451 | AM23: =AI23+AJ23-AK23+SUM(AL23:AL23) -> -25885604.79 | AN23: -225040.92 | AO23: -299766.02 | AP23: -218327 | AR23: =AN23+AO23-AP23+AQ23 -> -306479.94 | AS23: -25885604.79 | AT23: -7987407.68 | AW23: =AS23+AT23-AU23+SUM(AV23:AV23) -> -33873012.47 | AX23: -306479.94 | AY23: -351627.42 | BB23: =AX23+AY23-AZ23+BA23 -> -658107.36 | BC23: -33873012.47 | BD23: -1688120.22 | BE23: -25885604.79 | BG23: =BC23+BD23-BE23+SUM(BF23:BF23) -> -9675527.9 | BH23: -658107.36 | BI23: -326063.58 | BJ23: -754948.043 | BL23: =BH23+BI23-BJ23+BK23 -> -229222.897 | BM23: -7987407.68 | BN23: -68232 | BO23: -1688120.22 | BP23: -160990.897 | BQ23: -37940.50194 | BS23: -198931.399 | BU23: =SUM(BO23:BR23) -> -1887051.619 | BV23: -9904751.117 | BW23: -0.3199999966
C24: Variance WMS – Sub-account CBR Class A | D24: 1580 | E24: 0 | I24: 0 | J24: 0 | N24: 0 | O24: 0 | S24: 0 | T24: 0 | X24: 0 | Y24: 0 | Z24: 52343.91 | AC24: =Y24+Z24-AA24+SUM(AB24:AB24) -> 52343.91 | AD24: 0 | AE24: 152.66 | AH24: 152.66 | AI24: 52343.91 | AJ24: -52343.91 | AM24: =AI24+AJ24-AK24+SUM(AL24:AL24) -> 0 | AN24: 152.66 | AO24: -152.66 | AR24: -2.842170943e-14 | AS24: 0 | AT24: 0 | AW24: =AS24+AT24-AU24+SUM(AV24:AV24) -> 0 | AX24: -2.842170943e-14 | AY24: 0 | BB24: -2.842170943e-14 | BC24: 0 | BD24: -0.28 | BE24: 0.02 | BG24: =BC24+BD24-BE24+SUM(BF24:BF24) -> -0.3 | BH24: -2.842170943e-14 | BJ24: 0.0003465 | BL24: -0.0003465000001 | BM24: -0.02 | BO24: -0.28 | BP24: -0.0003465000001 | BQ24: -0.006293 | BS24: -0.0066395 | BU24: -0.2866395 | BV24: -0.39 | BW24: -0.0896535
C25: Variance WMS – Sub-account CBR Class B | D25: 1580 | E25: 0 | I25: 0 | J25: 0 | N25: 0 | O25: 0 | S25: 0 | T25: 0 | X25: 0 | Y25: 0 | Z25: 2283691.86 | AC25: 2283691.86 | AD25: 0 | AE25: 7619.77 | AH25: 7619.77 | AI25: 2283691.86 | AJ25: -336420.75 | AM25: =AI25+AJ25-AK25+SUM(AL25:AL25) -> 1947271.11 | AN25: 7619.77 | AO25: 22213.17 | AR25: 29832.94 | AS25: 1947271.11 | AT25: -84171.47 | AW25: =AS25+AT25-AU25+SUM(AV25:AV25) -> 1863099.64 | AX25: 29832.94 | AY25: 22576.75 | BB25: 52409.69 | BC25: 1863099.64 | BD25: -234781.72 | BE25: 1947271.11 | BG25: =BC25+BD25-BE25+SUM(BF25:BF25) -> -318953.19 | BH25: 52409.69 | BI25: 9276.06 | BJ25: 63569.41198 | BL25: -1883.661981 | BM25: -84171.47 | BN25: -12899 | BO25: =BG25-BM25 -> -234781.72 | BP25: 11015.33802 | BQ25: -5276.719157 | BS25: 5738.618862 | BU25: -229043.1011 | BV25: -320836.852 | BW25: 0
C26: RSVA - Retail Transmission Network Charge | D26: 1584 | E26: 1005953 | F26: 2616584 | I26: 3622537 | J26: 23373 | K26: 30713 | N26: =J26+K26-L26+M26 -> 54086 | O26: 3622537 | P26: 1288689 | Q26: 1005953 | S26: 3905273 | T26: 54086 | U26: 47481 | V26: 38161 | X26: =T26+U26-V26+W26 -> 63406 | Y26: 3905273 | Z26: -2787980.34 | AC26: 1117292.66 | AD26: 63406 | AE26: 34775.27 | AH26: =AD26+AE26-AF26+AG26 -> 98181.27 | AI26: 1117292.66 | AJ26: -3707689.67 | AK26: 3905273 | AM26: =AI26+AJ26-AK26+SUM(AL26:AL26) -> -6495670.01 | AN26: 98181.27 | AO26: -12831.10098 | AP26: 139232 | AR26: =AN26+AO26-AP26+AQ26 -> -53881.83098 | AS26: -6495670.01 | AT26: -6668761.05 | AW26: -13164431.06 | AX26: -53881.83098 | AY26: -117824.16 | BB26: -171705.991 | BC26: -13164431.06 | BD26: -1879570.34 | BE26: -6495670.01 | BG26: -8548331.39 | BH26: -171705.991 | BI26: -205283.62 | BJ26: -166419.3139 | BL26: -210570.2971 | BM26: -6668761.05 | BN26: -143108 | BO26: =BG26-BM26 -> -1879570.34 | BP26: -67462.29708 | BQ26: -42243.34339 | BS26: -109705.6405 | BU26: -1989275.98 | BV26: -8758901.39 | BW26: 0.2970767487
C27: RSVA - Retail Transmission Connection Charge | D27: 1586 | E27: -588230 | F27: 601094 | I27: 12864 | J27: -4963 | K27: -5847 | N27: -10810 | O27: 12864 | P27: 852228 | Q27: -588230 | S27: 1453322 | T27: -10810 | U27: 10423 | V27: -13609 | X27: 13222 | Y27: 1453322 | Z27: 990194.18 | AC27: 2443516.18 | AD27: 13222 | AE27: 22520.13 | AH27: 35742.13 | AI27: 2443516.18 | AJ27: 1633312.96 | AK27: 1453320 | AM27: 2623509.14 | AN27: 35742.13 | AO27: 32517.2688 | AP27: 41440 | AR27: 26819.3988 | AS27: 2623509.14 | AT27: -1010067.39 | AW27: 1613441.75 | AX27: 26819.3988 | AY27: 23718.58 | BB27: 50537.9788 | BC27: 1613441.75 | BD27: 799486.52 | BE27: 2623509.14 | BG27: -210580.87 | BH27: 50537.9788 | BI27: 8127.71 | BJ27: 72271.69465 | BL27: -13606.00585 | BM27: -1010067.39 | BN27: -42608 | BO27: 799486.52 | BP27: 29001.99415 | BQ27: 17968.45954 | BS27: 46970.45369 | BU27: =SUM(BO27:BR27) -> 846456.9737 | BV27: -224186.58 | BW27: 0.2958505
C28: RSVA - Power | D28: 1588 | E28: 877088 | F28: 1357196 | I28: 2234284 | J28: -22210 | K28: 51968 | N28: 29758 | O28: 2234284 | P28: -794425 | Q28: 877088 | S28: 562771 | T28: 29758 | U28: 27275 | V28: -9317 | X28: 66350 | Y28: 562771 | Z28: -317280.77 | AC28: 245490.23 | AD28: 66350 | AE28: 18479.84 | AH28: 84829.84 | AI28: 245490.23 | AJ28: 2176561.37 | AK28: 562770 | AL28: -811309 | AM28: 1047972.6 | AN28: 84829.84 | AO28: 13235.0569 | AP28: 77277 | AR28: 20787.8969 | AS28: 1047972.6 | AT28: =2567046.61 -> 2567046.61 | AV28: -2790445 | AW28: 824574.21 | AX28: 20787.8969 | AY28: -21507.45 | BB28: -719.5530968 | BC28: 824574.21 | BD28: -9665402.71 | BE28: 1047972.6 | BF28: =3601754+(-483297.47+2561530.1)*-1+2785676.44+2558610.15 -> 6867807.96 | BG28: -3020993.14 | BH28: -719.5530968 | BI28: -93378.27 | BJ28: 38944.0222 | BL28: -133041.8453 | BM28: -223398.39 | BN28: -44280 | BO28: -2797594.75 | BP28: -88761.8453 | BQ28: -62875.94201 | BS28: -151637.7873 | BU28: -2949232.537 | BV28: -6420089.29 | BW28: -3266054.305
C29: RSVA - Global Adjustment | D29: 1589 | E29: -1664568 | F29: -3374332 | I29: -5038900 | J29: 1227 | K29: 22026 | N29: 23253 | O29: -5038900 | P29: 13553905 | Q29: -1664568 | S29: 10179573 | T29: 23253 | U29: 46383 | V29: -23242 | X29: 92878 | Y29: 10179573 | Z29: 5736836.86 | AC29: 15916409.86 | AD29: 92878 | AE29: 141760.4 | AH29: 234638.4 | AI29: 15916409.86 | AJ29: -9817313.03 | AK29: 10179574 | AL29: 4970749 | AM29: 890271.83 | AN29: 234638.4 | AO29: 157113.26 | AP29: 290529 | AR29: 101222.66 | AS29: 890271.83 | AT29: =4877432.07 -> 4877432.07 | AV29: -430860.8031 | AW29: 5336843.097 | AX29: 101222.66 | AY29: 42793.17 | BB29: 144015.83 | BC29: 5336843.097 | BD29: -1475817.41 | BE29: 890271.83 | BF29: =-4539888.2+3051572.72-2785676.44-2558610.15 -> -6832602.07 | BG29: -3861848.213 | BH29: 144015.83 | BI29: 96862.25 | BJ29: 116646.6195 | BL29: 124231.4605 | BM29: 4446571.267 | BN29: 119265 | BO29: =BG29-BM29 -> -8308419.48 | BP29: 4966.460545 | BQ29: -186731.7278 | BS29: -181765.2673 | BU29: =SUM(BO29:BR29) -> -8490184.747 | BV29: -1444902.91 | BW29: 2292713.843
C30: Disposition and Recovery/Refund of Regulatory Balances (2009)4 | D30: 1595 | E30: -15 | I30: -15 | J30: 14 | N30: 14 | O30: -15 | P30: 2 | Q30: -15 | S30: 2 | T30: 14 | V30: 14 | X30: 0 | Y30: 2 | AC30: 2 | AD30: 0 | AH30: 0 | AI30: 2 | AM30: 2 | AN30: 0 | AQ30: -21764 | AR30: -21764 | AS30: 2 | AW30: 2 | AX30: -21764 | BB30: -21764 | BC30: 2 | BE30: 2 | BG30: 0 | BH30: -21764 | BJ30: -21763.96535 | BL30: -0.03465 | BO30: 0 | BP30: -0.03465 | BQ30: 0 | BS30: -0.03465 | BT30: No | BU30: =IF(BT30="YES",SUM(BO30:BR30),0) -> 0 | BV30: 0.37 | BW30: 0.40465
C31: Disposition and Recovery/Refund of Regulatory Balances (2010)4 | D31: 1595 | E31: 0 | I31: 0 | J31: 0 | N31: 0 | O31: 0 | S31: 0 | T31: 0 | X31: 0 | Y31: 0 | AC31: 0 | AD31: 0 | AH31: 0 | AI31: 0 | AL31: 7318 | AM31: 7318 | AN31: 0 | AQ31: 153 | AR31: 153 | AS31: 7318 | AW31: 7318 | AX31: 153 | AY31: 88 | BB31: 241 | BC31: 7318 | BE31: 7318 | BG31: 0 | BH31: 241 | BJ31: 279.78435 | BL31: -38.78435 | BO31: 0 | BP31: -38.78435 | BQ31: 0 | BS31: -38.78435 | BT31: No | BU31: 0 | BV31: 11.45 | BW31: =BV31-SUM(BG31,BL31) -> 50.23435
C32: Disposition and Recovery/Refund of Regulatory Balances (2011)4 | D32: 1595 | E32: 1552958.65 | F32: 1575260 | I32: 3128218.65 | J32: -1798997 | K32: 8790 | N32: -1790207 | O32: 3128218.65 | P32: 124 | S32: 3128342.65 | T32: -1790207 | U32: 56768 | X32: -1733439 | Y32: 3128342.65 | Z32: 10844 | AB32: -3273851 | AC32: -134664.35 | AD32: -1733439 | AE32: -23253 | AG32: 1717032 | AH32: -39660 | AI32: -134664.35 | AL32: 135000 | AM32: 335.65 | AN32: -39660 | AO32: -1485 | AQ32: 41188 | AR32: 43 | AS32: 335.65 | AW32: 335.65 | AX32: 43 | AY32: 4 | BB32: 47 | BC32: 335.65 | BE32: 335.65 | BG32: 0 | BH32: 47 | BJ32: 48.81513625 | BL32: -1.81513625 | BO32: 0 | BP32: -1.81513625 | BQ32: 0 | BS32: -1.81513625 | BT32: No | BU32: 0 | BV32: 0.36 | BW32: 2.17513625
C33: Disposition and Recovery/Refund of Regulatory Balances (2012)4 | D33: 1595 | E33: -8245690 | F33: 2661660.62 | I33: -5584029.38 | J33: -86845 | K33: -105233.81 | N33: -192078.81 | O33: -5584029.38 | P33: 4519005.63 | S33: -1065023.75 | T33: -192078.81 | U33: -22367.46 | X33: -214446.27 | Y33: -1065023.75 | Z33: 237163.89 | AB33: 981651 | AC33: 153791.14 | AD33: -214446.27 | AE33: 3120 | AG33: 368236 | AH33: 156909.73 | AI33: 153791.14 | AJ33: 991 | AL33: -142316 | AM33: 12466.14 | AN33: =AH33 -> 156909.73 | AO33: 1695.54 | AQ33: -5332 | AR33: 153273.27 | AS33: 12466.14 | AW33: 12466.14 | AX33: 153273.27 | AY33: 149.66 | BB33: 153422.93 | BC33: 12466.14 | BE33: 12466.14 | BG33: 0 | BH33: 153422.93 | BJ33: 153489.2459 | BL33: -66.3158755 | BO33: 0 | BP33: -66.3158755 | BQ33: 0 | BS33: -66.3158755 | BT33: No | BU33: 0 | BV33: 19.27 | BW33: 85.5858755
C34: Disposition and Recovery/Refund of Regulatory Balances (2013)4 | D34: 1595 | E34: 0 | I34: 0 | J34: 0 | N34: 0 | O34: 0 | S34: 0 | T34: 0 | X34: 0 | Y34: 0 | AC34: 0 | AD34: 0 | AH34: 0 | AI34: 0 | AM34: 0 | AN34: 0 | AR34: 0 | AS34: 0 | AW34: 0 | AX34: 0 | BB34: 0 | BC34: 0 | BG34: 0 | BH34: 0 | BL34: 0 | BM34: 0 | BN34: 0 | BO34: 0 | BP34: 0 | BQ34: 0 | BS34: 0 | BT34: No | BU34: 0 | BV34: 0 | BW34: 0
C35: Disposition and Recovery/Refund of Regulatory Balances (2014)4 | D35: 1595 | E35: 0 | I35: 0 | J35: 0 | N35: 0 | O35: 0 | P35: 4751091.54 | Q35: 10538166 | S35: -5787074.46 | T35: 0 | U35: -90777.52 | V35: 277339 | X35: -368116.52 | Y35: -5787074.46 | Z35: 5684237.45 | AB35: 173316 | AC35: 70478.99 | AD35: -368116.52 | AE35: -18488 | AG35: 33613 | AH35: -352991.52 | AI35: 70478.99 | AJ35: 8671 | AL35: -79150 | AM35: -0.009999998845 | AN35: -352991.52 | AO35: -2385.19 | AQ35: 64903 | AR35: -290473.71 | AS35: -0.009999998845 | AT35: 1872.45 | AV35: 33769.25217 | AW35: 35641.69217 | AX35: -290473.71 | BA35: 1416.030033 | BB35: -289057.68 | BC35: 35641.69217 | BD35: -21.04 | BF35: -502.28 | BG35: 35118.37217 | BH35: -289057.68 | BI35: 228.87 | BJ35: -290473.7102 | BL35: 1644.900207 | BO35: 35118.37217 | BP35: 1644.900207 | BQ35: 789.2854144 | BS35: =BP35+BQ35+BR35 -> 2434.185621 | BT35: No | BU35: 0 | BV35: 36762.82 | BW35: -0.4523730786
C36: Disposition and Recovery/Refund of Regulatory Balances (2015)4 | D36: 1595 | E36: 0 | I36: 0 | J36: 0 | N36: 0 | O36: 0 | S36: 0 | T36: 0 | X36: 0 | Y36: 0 | AC36: 0 | AD36: 0 | AH36: 0 | AI36: 0 | AM36: 0 | AN36: 0 | AR36: 0 | AS36: 0 | AW36: 0 | AX36: 0 | BB36: 0 | BC36: 0 | BG36: 0 | BH36: 0 | BL36: 0 | BM36: 0 | BN36: 0 | BO36: 0 | BP36: 0 | BQ36: 0 | BS36: 0 | BT36: No | BU36: 0 | BV36: 0 | BW36: 0
C37: Disposition and Recovery/Refund of Regulatory Balances (2016)4 | D37: 1595 | E37: 0 | I37: 0 | J37: 0 | N37: 0 | O37: 0 | S37: 0 | T37: 0 | X37: 0 | Y37: 0 | AC37: 0 | AD37: 0 | AH37: 0 | AI37: 0 | AJ37: -1552490.79 | AK37: -12710010.78 | AM37: 11157519.99 | AN37: 0 | AO37: 10849.09 | AP37: -423732.53 | AR37: 434581.62 | AS37: 11157519.99 | AT37: -6473198.83 | AW37: 4684321.16 | AX37: 434581.62 | AY37: 95969.69 | BB37: 530551.31 | BC37: 4684321.16 | BD37: -4682037.33 | BG37: 2283.83 | BH37: 530551.31 | BI37: -536027.57 | BL37: -5476.26 | BM37: 0 | BN37: 0 | BO37: 2283.83 | BP37: -5476.26 | BQ37: 51.32907925 | BS37: -5424.930921 | BT37: No | BU37: 0 | BV37: -3192.43 | BW37: 8.149072528e-10
C38: Disposition and Recovery/Refund of Regulatory Balances (2017)4 | D38: 1595 | E38: 0 | I38: =E38+F38-G38+SUM(H38:H38) -> 0 | J38: 0 | N38: 0 | O38: 0 | S38: 0 | T38: 0 | AH38: =AD38+AE38-AF38+AG38 -> 0 | AI38: =AC38 -> 0 | AM38: =AI38+AJ38-AK38+SUM(AL38:AL38) -> 0 | AN38: =AH38 -> 0 | AR38: =AN38+AO38-AP38+AQ38 -> 0 | AS38: =AM38 -> 0 | AW38: =AS38+AT38-AU38+SUM(AV38:AV38) -> 0 | AX38: =AR38 -> 0 | BB38: =AX38+AY38-AZ38+BA38 -> 0 | BC38: =AW38 -> 0 | BG38: =BC38+BD38-BE38+SUM(BF38:BF38) -> 0 | BH38: =BB38 -> 0 | BL38: =BH38+BI38-BJ38+BK38 -> 0 | BO38: 0 | BP38: 0 | BQ38: 0 | BS38: =BP38+BQ38+BR38 -> 0 | BT38: No | BU38: 0 | BV38: 0 | BW38: 0
C39: Disposition and Recovery/Refund of Regulatory Balances (2018)4 | D39: 1595 | E39: 0 | I39: 0 | J39: 0 | N39: 0 | O39: 0 | S39: 0 | T39: 0 | AH39: 0 | AI39: 0 | AM39: 0 | AN39: 0 | AR39: 0 | AS39: 0 | AW39: 0 | AX39: 0 | BB39: 0 | BC39: 0 | BD39: 14140406.3 | BE39: 19712107 | BG39: -5571700.7 | BH39: 0 | BI39: -140304.15 | BJ39: 605606 | BL39: -745910.15 | BO39: -5571700.7 | BP39: -745910.15 | BQ39: -125223.9732 | BS39: -871134.1232 | BT39: No | BU39: 0 | BV39: -6317610.4 | BW39: 0.4500000011
C40: Disposition and Recovery/Refund of Regulatory Balances (2019)4 Not to be disposed of unless rate rider has expired and balance has been audited | D40: 1595 | E40: 0 | I40: 0 | J40: 0 | N40: 0 | O40: 0 | S40: 0 | T40: 0 | AH40: 0 | AI40: 0 | AM40: 0 | AN40: 0 | AR40: 0 | AS40: 0 | AW40: 0 | AX40: 0 | BB40: 0 | BC40: 0 | BG40: 0 | BH40: 0 | BL40: 0 | BM40: 7618503.53 | BN40: 77480.03 | BO40: -7618503.53 | BP40: -77480.03 | BQ40: -171225.8668 | BS40: -248705.8968 | BT40: No | BU40: 0 | BW40: 0
C42: =C29 -> RSVA - Global Adjustment | D42: 1589 | E42: -1664568 | F42: =F29 -> -3374332 | G42: 0 | H42: 0 | I42: -5038900 | J42: 1227 | K42: 22026 | L42: 0 | M42: 0 | N42: 23253 | O42: -5038900 | P42: 13553905 | Q42: -1664568 | R42: 0 | S42: 10179573 | T42: 23253 | U42: 46383 | V42: -23242 | W42: 0 | X42: 92878 | Y42: 10179573 | Z42: 5736836.86 | AA42: 0 | AB42: 0 | AC42: 15916409.86 | AD42: 92878 | AE42: 141760.4 | AF42: 0 | AG42: 0 | AH42: 234638.4 | AI42: 15916409.86 | AJ42: -9817313.03 | AK42: 10179574 | AL42: 4970749 | AM42: =AM29 -> 890271.83 | AN42: 234638.4 | AO42: 157113.26 | AP42: 290529 | AQ42: 0 | AR42: 101222.66 | AS42: 890271.83 | AT42: 4877432.07 | AU42: 0 | AV42: -430860.8031 | AW42: =AW29 -> 5336843.097 | AX42: 101222.66 | AY42: 42793.17 | AZ42: 0 | BA42: 0 | BB42: 144015.83 | BC42: 5336843.097 | BD42: -1475817.41 | BE42: 890271.83 | BF42: -6832602.07 | BG42: =BG29 -> -3861848.213 | BH42: 144015.83 | BI42: 96862.25 | BJ42: 116646.6195 | BK42: 0 | BL42: 124231.4605 | BM42: 4446571.267 | BN42: 119265 | BO42: -8308419.48 | BP42: 4966.460545 | BQ42: =BQ29 -> -186731.7278 | BR42: =BR29 -> 0 | BS42: =BS29 -> -181765.2673 | BU42: =BU29 -> -8490184.747 | BV42: =BV29 -> -1444902.91 | BW42: 2292713.843
C43: Total Group 1 Balance excluding Account 1589 - Global Adjustment | E43: =SUM(E21:E40)-E29 -> -15566329.35 | F43: 3818803.62 | G43: 0 | H43: 0 | I43: -11747525.73 | J43: -1971015.362 | K43: -211980.81 | L43: 0 | M43: 0 | N43: -2182996.172 | O43: -11747525.73 | P43: 9512314.17 | Q43: 1664568 | R43: 0 | S43: -3899779.56 | T43: -2182996.172 | U43: -29300.98 | V43: 61726 | W43: 0 | X43: -2274023.152 | Y43: -3899779.56 | Z43: -10418625.06 | AA43: 0 | AB43: -2118884 | AC43: -16437288.62 | AD43: -2274023.152 | AE43: -73605.18 | AF43: 0 | AG43: 2118881 | AH43: -228747.3316 | AI43: -16437288.62 | AJ43: -6918450.73 | AK43: -12886039.78 | AL43: -890457 | AM43: -11360156.57 | AN43: -228747.3316 | AO43: -205430.5919 | AP43: -385172.53 | AQ43: 79148 | AR43: 30142.60651 | AS43: -11360156.57 | AT43: -18537858.24 | AU43: 0 | AV43: -2756675.748 | AW43: -32654690.56 | AX43: 30142.60651 | AY43: -289236.05 | AZ43: 0 | BA43: 1416.030033 | BB43: -257677.4135 | BC43: -32654690.56 | BD43: -2982189.21 | BE43: -2805569.53 | BF43: 6867305.68 | BG43: =SUM(BG21:BG40)-BG29 -> -25964004.56 | BH43: =SUM(BH21:BH40)-BH29 -> -257677.4135 | BI43: -1233224.41 | BJ43: -188951.7595 | BK43: 0 | BL43: -1301950.064 | BM43: -7238473.35 | BN43: -224542.97 | BO43: -18725531.21 | BP43: -1077407.094 | BQ43: -420856.3139 | BR43: 0 | BS43: -1498263.408 | BU43: -5948054.872 | BV43: -30531869.31 | BW43: -3265914.687
C44: Total Group 1 Balance | E44: =SUM(E42,E43) -> -17230897.35 | F44: 444471.62 | G44: 0 | H44: 0 | I44: -16786425.73 | J44: -1969788.362 | K44: -189954.81 | L44: 0 | M44: 0 | N44: -2159743.172 | O44: -16786425.73 | P44: 23066219.17 | Q44: 0 | R44: 0 | S44: 6279793.44 | T44: -2159743.172 | U44: 17082.02 | V44: 38484 | W44: 0 | X44: -2181145.152 | Y44: 6279793.44 | Z44: -4681788.2 | AA44: 0 | AB44: -2118884 | AC44: -520878.76 | AD44: -2181145.152 | AE44: 68155.22 | AF44: 0 | AG44: 2118881 | AH44: 5891.0684 | AI44: -520878.76 | AJ44: -16735763.76 | AK44: -2706465.78 | AL44: 4080292 | AM44: -10469884.74 | AN44: 5891.0684 | AO44: -48317.33189 | AP44: -94643.53 | AQ44: 79148 | AR44: 131365.2665 | AS44: -10469884.74 | AT44: -13660426.17 | AU44: 0 | AV44: -3187536.551 | AW44: -27317847.46 | AX44: 131365.2665 | AY44: -246442.88 | AZ44: 0 | BA44: 1416.030033 | BB44: -113661.5835 | BC44: -27317847.46 | BD44: -4458006.62 | BE44: -1915297.7 | BF44: 34703.61 | BG44: -29825852.77 | BH44: -113661.5835 | BI44: -1136362.16 | BJ44: -72305.14009 | BK44: 0 | BL44: -1177718.603 | BM44: -2791902.083 | BN44: -105277.97 | BO44: -27033950.69 | BP44: -1072440.633 | BQ44: -607588.0417 | BR44: 0 | BS44: -1680028.675 | BU44: =SUM(BU42,BU43) -> -14438239.62 | BV44: =SUM(BV42,BV43) -> -31976772.22 | BW44: -973200.8447
A46: 29 | C46: LRAM Variance Account (only input amounts if applying for disposition of this account) | D46: 1568 | E46: 716910 | F46: -513961 | I46: =E46+F46-G46+SUM(H46:H46) -> 202949 | J46: 0 | K46: 13029 | N46: =J46+K46-L46+M46 -> 13029 | O46: =I46 -> 202949 | P46: 73996 | S46: =O46+P46-Q46+SUM(R46:R46) -> 276945 | T46: =N46 -> 13029 | U46: 3378 | X46: =T46+U46-V46+W46 -> 16407 | Y46: =S46 -> 276945 | Z46: 296819 | AC46: =Y46+Z46-AA46+SUM(AB46:AB46) -> 573764 | AD46: =X46 -> 16407 | AE46: 2310 | AH46: =AD46+AE46-AF46+AG46 -> 18717 | AI46: =AC46 -> 573764 | AJ46: 1581007 | AM46: =AI46+AJ46-AK46+SUM(AL46:AL46) -> 2154771 | AN46: =AH46 -> 18717 | AO46: 9806 | AR46: =AN46+AO46-AP46+AQ46 -> 28523 | AS46: =AM46 -> 2154771 | AT46: 3375748.33 | AW46: =AS46+AT46-AU46+SUM(AV46:AV46) -> 5530519.33 | AX46: =AR46 -> 28523 | AY46: 83241.2 | BB46: =AX46+AY46-AZ46+BA46 -> 111764.2 | BC46: =AW46 -> 5530519.33 | BD46: 4515938.75 | BE46: 1915298 | BG46: =BC46+BD46-BE46+SUM(BF46:BF46) -> 8131160.08 | BH46: =BB46 -> 111764.2 | BI46: 145416.83 | BJ46: 72305 | BL46: =BH46+BI46-BJ46+BK46 -> 184876.03 | BM46: 2791902.087 | BN46: 105277.9745 | BO46: =BG46-BM46 -> 5339257.993 | BP46: =BL46-BN46 -> 79598.05545 | BQ46: =+BO46*((2.45%*3/12)+(2.18%*9/12)) -> 119999.8234 | BS46: =BP46+BQ46+BR46 -> 199597.8788 | BU46: =SUM(BO46:BR46) -> 5538855.871 | BV46: 8316035.58 | BW46: -0.5300000003
C48: Total including Account 1568 | E48: =SUM(E44,E46) -> -16513987.35 | F48: -69489.38 | G48: 0 | H48: 0 | I48: -16583476.73 | J48: -1969788.362 | K48: -176925.81 | L48: 0 | M48: 0 | N48: -2146714.172 | O48: -16583476.73 | P48: 23140215.17 | Q48: 0 | R48: 0 | S48: 6556738.44 | T48: -2146714.172 | U48: 20460.02 | V48: 38484 | W48: 0 | X48: -2164738.152 | Y48: 6556738.44 | Z48: -4384969.2 | AA48: 0 | AB48: -2118884 | AC48: 52885.24 | AD48: -2164738.152 | AE48: 70465.22 | AF48: 0 | AG48: 2118881 | AH48: 24608.0684 | AI48: 52885.24 | AJ48: -15154756.76 | AK48: -2706465.78 | AL48: 4080292 | AM48: -8315113.74 | AN48: 24608.0684 | AO48: -38511.33189 | AP48: -94643.53 | AQ48: 79148 | AR48: 159888.2665 | AS48: -8315113.74 | AT48: -10284677.84 | AU48: 0 | AV48: -3187536.551 | AW48: -21787328.13 | AX48: 159888.2665 | AY48: -163201.68 | AZ48: 0 | BA48: 1416.030033 | BB48: -1897.383461 | BC48: -21787328.13 | BD48: 57932.13 | BE48: 0.2999999858 | BF48: 34703.61 | BG48: -21694692.69 | BH48: -1897.383461 | BI48: -990945.33 | BJ48: -0.1400948798 | BK48: 0 | BL48: -992842.5734 | BM48: 0.004356853664 | BN48: 0.004549208446 | BO48: -21694692.7 | BP48: -992842.5779 | BQ48: -487588.2183 | BR48: =SUM(BR44,BR46) -> 0 | BS48: -1480430.796 | BU48: =SUM(BU44,BU46) -> -8899383.748 | BV48: =SUM(BV44,BV46) -> -23660736.64 | BW48: -973201.3747
C51: For all OEB-Approved dispositions, please ensure that the disposition amount has the same sign (e.g: debit balances are to have a positive figure and credit balance are to have a negative figure) as per the related OEB decision.
B54: 1 | C54: Please provide explanations for the nature of the adjustments. If the adjustment relates to previously OEB-Approved disposed balances, please provide amounts for adjustments and include supporting documentations.
B55: 2 | C55: For RSVA accounts only, report the net variance to the account during the year. For all other accounts, record the transactions during the year.
B56: 3 | C56: If the LDC’s rate year begins on January 1, 2017, the projected interest is recorded from January 1, 2016 to December 31, 2016 on the December 31, 2015 balances adjusted for the disposed balances approved by the OEB in the 2016 rate decision. If the LDC’s rate year begins on May 1, 2017, the projected interest is recorded from January 1, 2016 to April 30, 2017 on the December 31, 2015 balances adjusted for the disposed interest balances approved by the OEB in the 2016 rate decision.
B57: 4 | C57: Include Account 1595 as part of Group 1 accounts (lines 30-36) for review and disposition if the recovery (or refund) period has been completed. If the recovery (or refund) period has not been completed, do not include the respective balance in Account 1595 for disposition at this time.
C59: Account 1595 - adjustments (2016):
C60: These were required due to a comprehensive review of all the dispositions during 2015 and 2016. It was determined that there were a number of reporting errors. Past recovery billings were applied to the wrong year or there was transposition errors whereby billings were applied to interest rather than principal or vice versa.

Sheet 4. Billing Det. for Def-Var
A1: Back to Index | K1: Yes | W1: =IF(D18="YES", "YES", "NO") -> NO
B2: =+'1. Information Sheet'!B2 -> INCENTIVE REGULATION MODEL FOR 2020 FILERS
B13: Information from the most recent RRR (2018 for 2020 IRM)
W14: source: LRAMVA Workform
D15: Total Metered kWh | E15: Total Metered kW | F15: Metered kWh for Non-RPP Customers (excluding WMP) | G15: Metered kW for Non-RPP Customers (excluding WMP) | H15: Metered kWh for Wholesale Market Participants (WMP) | I15: Metered kW for Wholesale Market Participants (WMP) | J15: Total Metered kWh less WMP consumption (if applicable) | K15: Total Metered kW less WMP consumption (if applicable) | L15: 1595 Recovery Proportion (2009) 1 | M15: 1595 Recovery Proportion (2010) 1 | N15: 1595 Recovery Proportion (2011) 1 | O15: 1595 Recovery Proportion (2012) 1 | P15: 1595 Recovery Proportion (2013) 1 | Q15: 1595 Recovery Proportion (2014) 1 | R15: 1595 Recovery Proportion (2015) 1 | S15: 1595 Recovery Proportion (2016) 1 | T15: 1595 Recovery Proportion (2017) 1 | U15: 1595 Recovery Proportion (2018) 1 | V15: 1595 Recovery Proportion (2019) 1 | W15: 1568 LRAM Variance Account Class Allocation ($ amounts) | X15: Number of Customers for Residential and GS<50 classes3
B16: Rate Class | C16: Unit
A17: ='11. RTSR - Current Rates'!A16 -> R_TN | B17: ='Model Specs'!C15 -> RESIDENTIAL SERVICE CLASSIFICATION | C17: kWh | D17: 2783708695 | F17: 71000892.07 | J17: =D17-H17 -> 2783708695 | K17: =E17-I17 -> 0 | L17: 0.0977 | M17: 0.0977 | N17: 0.0977 | O17: 0.0977 | P17: 0.0977 | Q17: 0.0977 | R17: 0.0977 | S17: 0.0977 | T17: 0.0977 | U17: 0.0977 | V17: 0.0977 | W17: ='[13]1. LRAMVA Summary'!$D$84 -> 1632388.239 | X17: 334683
A18: ='11. RTSR - Current Rates'!A17 -> GSL_TN | B18: ='Model Specs'!C16 -> GENERAL SERVICE LESS THAN 50 kW SERVICE CLASSIFICATION | C18: kWh | D18: 1049615664 | F18: 188602212.6 | J18: =D18-H18 -> 1049615664 | K18: =E18-I18 -> 0 | L18: 0.054 | M18: 0.054 | N18: 0.054 | O18: 0.054 | P18: 0.054 | Q18: 0.054 | R18: 0.054 | S18: 0.054 | T18: 0.054 | U18: 0.054 | V18: 0.054 | W18: ='[13]1. LRAMVA Summary'!$E$84 -> 86883.55466 | X18: 32624
A19: GSG_TN | B19: ='Model Specs'!C17 -> GENERAL SERVICE 50 to 4,999 kW SERVICE CLASSIFICATION | C19: kW | D19: 4679965944 | E19: 12192875.59 | F19: 4272995560 | G19: 11141455.65 | H19: 30400417 | I19: 81096.53579 | J19: =D19-H19 -> 4649565527 | K19: =E19-I19 -> 12111779.05 | L19: 0.8368 | M19: 0.8368 | N19: 0.8368 | O19: 0.8368 | P19: 0.8368 | Q19: 0.8368 | R19: 0.8368 | S19: 0.8368 | T19: 0.8368 | U19: 0.8368 | V19: 0.8368 | W19: ='[13]1. LRAMVA Summary'!$F$84 -> 506397.0384
A20: LU_TN | B20: ='Model Specs'!C18 -> LARGE USE SERVICE CLASSIFICATION | C20: kW | D20: 53218180.51 | E20: 102871.3272 | F20: 53218180.51 | G20: 102871.3272 | J20: 53218180.51 | K20: 102871.3272 | L20: 0.0018 | M20: 0.0018 | N20: 0.0018 | O20: 0.0018 | P20: 0.0018 | Q20: 0.0018 | R20: 0.0018 | S20: 0.0018 | T20: 0.0018 | U20: 0.0018 | V20: 0.0018 | W20: ='[13]1. LRAMVA Summary'!$G$84 -> 3630.57376
A21: USL_TN | B21: ='Model Specs'!C19 -> UNMETERED SCATTERED LOAD SERVICE CLASSIFICATION | C21: kWh | D21: 13830787.93 | F21: 214076.0963 | J21: 13830787.93 | K21: 0 | L21: 0.0004 | M21: 0.0004 | N21: 0.0004 | O21: 0.0004 | P21: 0.0004 | Q21: 0.0004 | R21: 0.0004 | S21: 0.0004 | T21: 0.0004 | U21: 0.0004 | V21: 0.0004
B22: ='Model Specs'!C20 -> STANDBY POWER SERVICE CLASSIFICATION | C22: kW | J22: 0 | K22: 0 | L22: 0 | M22: 0 | N22: 0 | O22: 0 | P22: 0 | Q22: 0 | R22: 0 | S22: 0 | T22: 0 | U22: 0 | V22: 0
A23: SEN_TN | B23: ='Model Specs'!C21 -> SENTINEL LIGHTING SERVICE CLASSIFICATION | C23: kW | D23: 286384.932 | E23: 795.983593 | F23: 12264 | G23: 26.68129032 | J23: 286384.932 | K23: 795.983593 | L23: 0 | M23: 0 | N23: 0 | O23: 0 | P23: 0 | Q23: 0 | R23: 0 | S23: 0 | T23: 0 | U23: 0 | V23: 0
A24: SL_TN | B24: ='Model Specs'!C22 -> STREET LIGHTING SERVICE CLASSIFICATION | C24: kW | D24: 48883952.93 | E24: 134152.032 | F24: 48212564 | G24: 132306.6288 | J24: 48883952.93 | K24: 134152.032 | L24: 0.0093 | M24: 0.0093 | N24: 0.0093 | O24: 0.0093 | P24: 0.0093 | Q24: 0.0093 | R24: 0.0093 | S24: 0.0093 | T24: 0.0093 | U24: 0.0093 | V24: 0.0093 | W24: ='[13]1. LRAMVA Summary'!$J$84 -> 230986.4236
J25: 0 | K25: 0
J26: 0 | K26: 0
J27: 0 | K27: 0
J28: 0 | K28: 0
C29: Total | D29: =SUM(D17:D28) -> 8629509610 | E29: =SUM(E17:E28) -> 12430694.93 | F29: 4634255750 | G29: 11376660.29 | H29: 30400417 | I29: 81096.53579 | J29: 8599109193 | K29: 12349598.4 | L29: =SUM(L17:L28) -> 1 | M29: 1 | N29: 1 | O29: 1 | P29: 1 | Q29: 1 | R29: 1 | S29: 1 | T29: =SUM(T17:T28) -> 1 | U29: 1 | V29: =SUM(V17:V28) -> 1 | W29: 2460285.83 | X29: 367307
B32: Threshold Test | W32: 1568 Account Balance from Continuity Schedule | X32: ='3. Continuity Schedule'!BU46 -> 5538855.871
B33: Total Claim (including Account 1568) | D33: ='3. Continuity Schedule'!BU48 -> -8899383.748 | W33: =IF(X32=W29,"Total Balance of Account 1568 in Column R matches the amount entered on the Continuity Schedule","Total Balance of Account 1568 in Column T DOES NOT MATCH the amount entered on the Continuity Schedule") -> Total Balance of Account 1568 in Column T DOES NOT MATCH the amount entered on the Continuity Schedule
B34: Total Claim for Threshold Test (All Group 1 Accounts) | D34: ='3. Continuity Schedule'!BU44 -> -14438239.62
B35: Threshold Test (Total claim per kWh) 2 | D35: =IFERROR(D34/D29,"") -> -0.001673123998
B36: Exceeds Threshold? | D36: =IF(D35="","",IF(OR(D35>0.001,D35<-0.001),"Yes","No")) -> Yes
B37: ELECT TO DISPOSE of the Group 1 Account Balances? | D37: Yes
B40: As per Section 3.2.5 of the 2017 Filing Requirements for Electricity Distribution Rate Applications, an applicant may elect to dispose of the Group 1 account balances below the threshold.
B41: 1 Residual Account balance to be allocated to rate classes in proportion to the recovery share as established when rate riders were implemented.
B42: 2 The Threshold Test does not include the amount in 1568.
B43: 3 The proportion of customers for the Residential and GS<50 Classes will be used to allocate Account 1551.

Sheet 5. Allocating Def-Var Balances
A1: Back to Index
B2: =+'1. Information Sheet'!B2 -> INCENTIVE REGULATION MODEL FOR 2020 FILERS
B11: No input required. This workshseet allocates the deferral/variance account balances (Group 1 and 1568) to the appropriate classes as per EDDVAR dated July 31, 2009
B13: Allocation of Group 1 Accounts (including Account 1568)
C14: % of Total kWh | D14: % of Total non-RPP kWh | E14: % of Customer Numbers ** | F14: % of Total kWh adjusted for WMP | I14: allocated based on Total less WMP | N14: allocated based on Total less WMP | O14: 1595_(2009) | P14: 1595_(2010) | Q14: 1595_(2011) | R14: 1595_(2012) | S14: 1595_(2013) | T14: 1595_(2014) | U14: 1595_(2015) | V14: 1595_(2016) | W14: 1595_(2017) | X14: 1595_(2018) | Y14: 1595_(2019) | Z14: 1568
B15: Rate Class | G15: 1550 | H15: 1551 | I15: 1580 | J15: 1580 (Class A) | K15: 1580 (Class B) | L15: 1584 | M15: 1586 | N15: 1588
B16: ='4. Billing Det. for Def-Var'!B17 -> RESIDENTIAL SERVICE CLASSIFICATION | C16: =IFERROR('4. Billing Det. for Def-Var'!D17/'4. Billing Det. for Def-Var'!D$29,"") -> 0.3225801721 | D16: =IFERROR('4. Billing Det. for Def-Var'!F17/'4. Billing Det. for Def-Var'!F$29,"") -> 0.01532088342 | E16: =IFERROR('4. Billing Det. for Def-Var'!X17/'4. Billing Det. for Def-Var'!X$29,"") -> 0.9111805656 | F16: =IFERROR('4. Billing Det. for Def-Var'!J17/'4. Billing Det. for Def-Var'!J$29,"") -> 0.3237205893 | G16: =IFERROR(G$28*C16,"") -> 183857.1345 | H16: =IFERROR(H$28*E16,"") -> -282344.1273 | I16: =IFERROR(I$28*F16,"") -> -685023.4297 | L16: =IFERROR(L$28*$C16,"") -> -641700.9881 | M16: =IFERROR(M$28*$C16,"") -> 273050.2362 | N16: =IFERROR(N$28*$F16,"") -> -954727.2949 | O16: ='4. Billing Det. for Def-Var'!L17*O$28 -> 0 | P16: ='4. Billing Det. for Def-Var'!M17*P$28 -> 0 | Q16: ='4. Billing Det. for Def-Var'!N17*Q$28 -> 0 | R16: ='4. Billing Det. for Def-Var'!O17*R$28 -> 0 | S16: ='4. Billing Det. for Def-Var'!P17*S$28 -> 0 | T16: ='4. Billing Det. for Def-Var'!Q17*T$28 -> 0 | U16: ='4. Billing Det. for Def-Var'!R17*U$28 -> 0 | V16: ='4. Billing Det. for Def-Var'!S17*V$28 -> 0 | W16: ='4. Billing Det. for Def-Var'!T17*W$28 -> 0 | X16: ='4. Billing Det. for Def-Var'!U17*X$28 -> 0 | Y16: ='4. Billing Det. for Def-Var'!V17*Y$28 -> 0 | Z16: ='4. Billing Det. for Def-Var'!W17 -> 1632388.239
B17: ='4. Billing Det. for Def-Var'!B18 -> GENERAL SERVICE LESS THAN 50 kW SERVICE CLASSIFICATION | C17: =IFERROR('4. Billing Det. for Def-Var'!D18/'4. Billing Det. for Def-Var'!D$29,"") -> 0.1216309746 | D17: =IFERROR('4. Billing Det. for Def-Var'!F18/'4. Billing Det. for Def-Var'!F$29,"") -> 0.04069741136 | E17: =IFERROR('4. Billing Det. for Def-Var'!X18/'4. Billing Det. for Def-Var'!X$29,"") -> 0.08881943442 | F17: =IFERROR('4. Billing Det. for Def-Var'!J18/'4. Billing Det. for Def-Var'!J$29,"") -> 0.1220609764 | G17: =IFERROR(G$28*C17,"") -> 69324.54131 | H17: =IFERROR(H$28*E17,"") -> -27522.14725 | I17: =IFERROR(I$28*F17,"") -> -258292.5877 | L17: =IFERROR(L$28*$C17,"") -> -241957.5763 | M17: 102955.3867 | N17: =IFERROR(N$28*$F17,"") -> -359986.2032 | O17: ='4. Billing Det. for Def-Var'!L18*O$28 -> 0 | P17: ='4. Billing Det. for Def-Var'!M18*P$28 -> 0 | Q17: ='4. Billing Det. for Def-Var'!N18*Q$28 -> 0 | R17: ='4. Billing Det. for Def-Var'!O18*R$28 -> 0 | S17: ='4. Billing Det. for Def-Var'!P18*S$28 -> 0 | T17: ='4. Billing Det. for Def-Var'!Q18*T$28 -> 0 | U17: ='4. Billing Det. for Def-Var'!R18*U$28 -> 0 | V17: ='4. Billing Det. for Def-Var'!S18*V$28 -> 0 | W17: ='4. Billing Det. for Def-Var'!T18*W$28 -> 0 | X17: ='4. Billing Det. for Def-Var'!U18*X$28 -> 0 | Y17: ='4. Billing Det. for Def-Var'!V18*Y$28 -> 0 | Z17: ='4. Billing Det. for Def-Var'!W18 -> 86883.55466
B18: ='4. Billing Det. for Def-Var'!B19 -> GENERAL SERVICE 50 to 4,999 kW SERVICE CLASSIFICATION | C18: =IFERROR('4. Billing Det. for Def-Var'!D19/'4. Billing Det. for Def-Var'!D$29,"") -> 0.5423211927 | D18: =IFERROR('4. Billing Det. for Def-Var'!F19/'4. Billing Det. for Def-Var'!F$29,"") -> 0.9220456943 | E18: =IFERROR('4. Billing Det. for Def-Var'!X19/'4. Billing Det. for Def-Var'!X$29,"") -> 0 | F18: =IFERROR('4. Billing Det. for Def-Var'!J19/'4. Billing Det. for Def-Var'!J$29,"") -> 0.5407031615 | G18: =IFERROR(G$28*C18,"") -> 309100.2768 | H18: =IFERROR(H$28*E18,"") -> 0 | I18: =IFERROR(I$28*F18,"") -> -1144179.105 | L18: -1078826.522 | M18: 459051.5555 | N18: =IFERROR(N$28*$F18,"") -> -1594659.357 | O18: ='4. Billing Det. for Def-Var'!L19*O$28 -> 0 | P18: ='4. Billing Det. for Def-Var'!M19*P$28 -> 0 | Q18: ='4. Billing Det. for Def-Var'!N19*Q$28 -> 0 | R18: ='4. Billing Det. for Def-Var'!O19*R$28 -> 0 | S18: ='4. Billing Det. for Def-Var'!P19*S$28 -> 0 | T18: ='4. Billing Det. for Def-Var'!Q19*T$28 -> 0 | U18: ='4. Billing Det. for Def-Var'!R19*U$28 -> 0 | V18: ='4. Billing Det. for Def-Var'!S19*V$28 -> 0 | W18: ='4. Billing Det. for Def-Var'!T19*W$28 -> 0 | X18: ='4. Billing Det. for Def-Var'!U19*X$28 -> 0 | Y18: ='4. Billing Det. for Def-Var'!V19*Y$28 -> 0 | Z18: ='4. Billing Det. for Def-Var'!W19 -> 506397.0384
B19: ='4. Billing Det. for Def-Var'!B20 -> LARGE USE SERVICE CLASSIFICATION | C19: =IFERROR('4. Billing Det. for Def-Var'!D20/'4. Billing Det. for Def-Var'!D$29,"") -> 0.006166999391 | D19: =IFERROR('4. Billing Det. for Def-Var'!F20/'4. Billing Det. for Def-Var'!F$29,"") -> 0.01148365204 | E19: =IFERROR('4. Billing Det. for Def-Var'!X20/'4. Billing Det. for Def-Var'!X$29,"") -> 0 | F19: =IFERROR('4. Billing Det. for Def-Var'!J20/'4. Billing Det. for Def-Var'!J$29,"") -> 0.006188801574 | G19: 3514.930349 | H19: 0 | I19: =IFERROR(I$28*F19,"") -> -13096.09034 | L19: -12267.86376 | M19: 5220.099641 | N19: -18252.21497 | O19: ='4. Billing Det. for Def-Var'!L20*O$28 -> 0 | P19: ='4. Billing Det. for Def-Var'!M20*P$28 -> 0 | Q19: ='4. Billing Det. for Def-Var'!N20*Q$28 -> 0 | R19: ='4. Billing Det. for Def-Var'!O20*R$28 -> 0 | S19: ='4. Billing Det. for Def-Var'!P20*S$28 -> 0 | T19: ='4. Billing Det. for Def-Var'!Q20*T$28 -> 0 | U19: ='4. Billing Det. for Def-Var'!R20*U$28 -> 0 | V19: ='4. Billing Det. for Def-Var'!S20*V$28 -> 0 | W19: ='4. Billing Det. for Def-Var'!T20*W$28 -> 0 | X19: ='4. Billing Det. for Def-Var'!U20*X$28 -> 0 | Y19: ='4. Billing Det. for Def-Var'!V20*Y$28 -> 0 | Z19: ='4. Billing Det. for Def-Var'!W20 -> 3630.57376
B20: ='4. Billing Det. for Def-Var'!B21 -> UNMETERED SCATTERED LOAD SERVICE CLASSIFICATION | C20: =IFERROR('4. Billing Det. for Def-Var'!D21/'4. Billing Det. for Def-Var'!D$29,"") -> 0.001602731621 | D20: =IFERROR('4. Billing Det. for Def-Var'!F21/'4. Billing Det. for Def-Var'!F$29,"") -> 4.619427754e-05 | E20: =IFERROR('4. Billing Det. for Def-Var'!X21/'4. Billing Det. for Def-Var'!X$29,"") -> 0 | F20: =IFERROR('4. Billing Det. for Def-Var'!J21/'4. Billing Det. for Def-Var'!J$29,"") -> 0.001608397756 | G20: 913.4896339 | H20: 0 | I20: -3403.521999 | L20: -3188.275517 | M20: 1356.643358 | N20: -4743.538994 | O20: ='4. Billing Det. for Def-Var'!L21*O$28 -> 0 | P20: ='4. Billing Det. for Def-Var'!M21*P$28 -> 0 | Q20: ='4. Billing Det. for Def-Var'!N21*Q$28 -> 0 | R20: ='4. Billing Det. for Def-Var'!O21*R$28 -> 0 | S20: ='4. Billing Det. for Def-Var'!P21*S$28 -> 0 | T20: ='4. Billing Det. for Def-Var'!Q21*T$28 -> 0 | U20: ='4. Billing Det. for Def-Var'!R21*U$28 -> 0 | V20: ='4. Billing Det. for Def-Var'!S21*V$28 -> 0 | W20: ='4. Billing Det. for Def-Var'!T21*W$28 -> 0 | X20: ='4. Billing Det. for Def-Var'!U21*X$28 -> 0 | Y20: ='4. Billing Det. for Def-Var'!V21*Y$28 -> 0 | Z20: ='4. Billing Det. for Def-Var'!W21 -> 0
B21: ='4. Billing Det. for Def-Var'!B22 -> STANDBY POWER SERVICE CLASSIFICATION | C21: =IFERROR('4. Billing Det. for Def-Var'!D22/'4. Billing Det. for Def-Var'!D$29,"") -> 0 | D21: =IFERROR('4. Billing Det. for Def-Var'!F22/'4. Billing Det. for Def-Var'!F$29,"") -> 0 | E21: =IFERROR('4. Billing Det. for Def-Var'!X22/'4. Billing Det. for Def-Var'!X$29,"") -> 0 | F21: =IFERROR('4. Billing Det. for Def-Var'!J22/'4. Billing Det. for Def-Var'!J$29,"") -> 0 | G21: 0 | H21: 0 | I21: 0 | L21: 0 | M21: 0 | N21: 0 | O21: ='4. Billing Det. for Def-Var'!L22*O$28 -> 0 | P21: ='4. Billing Det. for Def-Var'!M22*P$28 -> 0 | Q21: ='4. Billing Det. for Def-Var'!N22*Q$28 -> 0 | R21: ='4. Billing Det. for Def-Var'!O22*R$28 -> 0 | S21: ='4. Billing Det. for Def-Var'!P22*S$28 -> 0 | T21: ='4. Billing Det. for Def-Var'!Q22*T$28 -> 0 | U21: ='4. Billing Det. for Def-Var'!R22*U$28 -> 0 | V21: ='4. Billing Det. for Def-Var'!S22*V$28 -> 0 | W21: ='4. Billing Det. for Def-Var'!T22*W$28 -> 0 | X21: ='4. Billing Det. for Def-Var'!U22*X$28 -> 0 | Y21: ='4. Billing Det. for Def-Var'!V22*Y$28 -> 0 | Z21: ='4. Billing Det. for Def-Var'!W22 -> 0
B22: ='4. Billing Det. for Def-Var'!B23 -> SENTINEL LIGHTING SERVICE CLASSIFICATION | C22: =IFERROR('4. Billing Det. for Def-Var'!D23/'4. Billing Det. for Def-Var'!D$29,"") -> 3.318669831e-05 | D22: =IFERROR('4. Billing Det. for Def-Var'!F23/'4. Billing Det. for Def-Var'!F$29,"") -> 2.646379627e-06 | E22: =IFERROR('4. Billing Det. for Def-Var'!X23/'4. Billing Det. for Def-Var'!X$29,"") -> 0 | F22: =IFERROR('4. Billing Det. for Def-Var'!J23/'4. Billing Det. for Def-Var'!J$29,"") -> 3.330402319e-05 | G22: 18.91502263 | H22: 0 | I22: -70.47446764 | L22: -66.01750182 | M22: 28.09111222 | N22: -98.22130882 | O22: ='4. Billing Det. for Def-Var'!L23*O$28 -> 0 | P22: ='4. Billing Det. for Def-Var'!M23*P$28 -> 0 | Q22: ='4. Billing Det. for Def-Var'!N23*Q$28 -> 0 | R22: ='4. Billing Det. for Def-Var'!O23*R$28 -> 0 | S22: ='4. Billing Det. for Def-Var'!P23*S$28 -> 0 | T22: ='4. Billing Det. for Def-Var'!Q23*T$28 -> 0 | U22: ='4. Billing Det. for Def-Var'!R23*U$28 -> 0 | V22: ='4. Billing Det. for Def-Var'!S23*V$28 -> 0 | W22: ='4. Billing Det. for Def-Var'!T23*W$28 -> 0 | X22: ='4. Billing Det. for Def-Var'!U23*X$28 -> 0 | Y22: ='4. Billing Det. for Def-Var'!V23*Y$28 -> 0 | Z22: ='4. Billing Det. for Def-Var'!W23 -> 0
B23: ='4. Billing Det. for Def-Var'!B24 -> STREET LIGHTING SERVICE CLASSIFICATION | C23: =IFERROR('4. Billing Det. for Def-Var'!D24/'4. Billing Det. for Def-Var'!D$29,"") -> 0.005664742858 | D23: =IFERROR('4. Billing Det. for Def-Var'!F24/'4. Billing Det. for Def-Var'!F$29,"") -> 0.01040351819 | E23: =IFERROR('4. Billing Det. for Def-Var'!X24/'4. Billing Det. for Def-Var'!X$29,"") -> 0 | F23: =IFERROR('4. Billing Det. for Def-Var'!J24/'4. Billing Det. for Def-Var'!J$29,"") -> 0.005684769414 | G23: 3228.665243 | H23: 0 | I23: -12029.51054 | L23: -11268.7369 | M23: 4794.961096 | N23: -16765.70692 | O23: ='4. Billing Det. for Def-Var'!L24*O$28 -> 0 | P23: ='4. Billing Det. for Def-Var'!M24*P$28 -> 0 | Q23: ='4. Billing Det. for Def-Var'!N24*Q$28 -> 0 | R23: ='4. Billing Det. for Def-Var'!O24*R$28 -> 0 | S23: ='4. Billing Det. for Def-Var'!P24*S$28 -> 0 | T23: ='4. Billing Det. for Def-Var'!Q24*T$28 -> 0 | U23: ='4. Billing Det. for Def-Var'!R24*U$28 -> 0 | V23: ='4. Billing Det. for Def-Var'!S24*V$28 -> 0 | W23: ='4. Billing Det. for Def-Var'!T24*W$28 -> 0 | X23: ='4. Billing Det. for Def-Var'!U24*X$28 -> 0 | Y23: ='4. Billing Det. for Def-Var'!V24*Y$28 -> 0 | Z23: ='4. Billing Det. for Def-Var'!W24 -> 230986.4236
O24: ='4. Billing Det. for Def-Var'!L25*O$28 -> 0 | P24: ='4. Billing Det. for Def-Var'!M25*P$28 -> 0 | Q24: ='4. Billing Det. for Def-Var'!N25*Q$28 -> 0 | R24: ='4. Billing Det. for Def-Var'!O25*R$28 -> 0 | S24: ='4. Billing Det. for Def-Var'!P25*S$28 -> 0 | T24: ='4. Billing Det. for Def-Var'!Q25*T$28 -> 0 | U24: ='4. Billing Det. for Def-Var'!R25*U$28 -> 0 | V24: ='4. Billing Det. for Def-Var'!S25*V$28 -> 0 | W24: ='4. Billing Det. for Def-Var'!T25*W$28 -> 0 | X24: ='4. Billing Det. for Def-Var'!U25*X$28 -> 0 | Y24: ='4. Billing Det. for Def-Var'!V25*Y$28 -> 0 | Z24: ='4. Billing Det. for Def-Var'!W25 -> 0
C28: =SUM(C16:C27) -> 1 | D28: =SUM(D16:D27) -> 1 | E28: =SUM(E16:E27) -> 1 | F28: =SUM(F16:F27) -> 1 | G28: ='3. Continuity Schedule'!BU21 -> 569957.9529 | H28: ='3. Continuity Schedule'!BU22 -> -309866.2745 | I28: ='3. Continuity Schedule'!BU23+(IF('6.2 CBR B'!$U$18="TRUE",'6.2a CBR B_Allocation'!D25,0)) -> -2116094.72 | L28: ='3. Continuity Schedule'!BU26 -> -1989275.98 | M28: ='3. Continuity Schedule'!BU27 -> 846456.9737 | N28: ='3. Continuity Schedule'!BU28 -> -2949232.537 | O28: =IF('3. Continuity Schedule'!$BT30="Yes",'3. Continuity Schedule'!$BU30,0) -> 0 | P28: =IF('3. Continuity Schedule'!$BT31="Yes",'3. Continuity Schedule'!$BU31,0) -> 0 | Q28: =IF('3. Continuity Schedule'!$BT32="Yes",'3. Continuity Schedule'!$BU32,0) -> 0 | R28: =IF('3. Continuity Schedule'!$BT33="Yes",'3. Continuity Schedule'!$BU33,0) -> 0 | S28: =IF('3. Continuity Schedule'!$BT34="Yes",'3. Continuity Schedule'!$BU34,0) -> 0 | T28: =IF('3. Continuity Schedule'!$BT35="Yes",'3. Continuity Schedule'!$BU35,0) -> 0 | U28: =IF('3. Continuity Schedule'!$BT36="Yes",'3. Continuity Schedule'!$BU36,0) -> 0 | V28: =IF('3. Continuity Schedule'!$BT37="Yes",'3. Continuity Schedule'!$BU37,0) -> 0 | W28: =IF('3. Continuity Schedule'!$BT38="Yes",'3. Continuity Schedule'!$BU38,0) -> 0 | X28: =IF('3. Continuity Schedule'!$BT39="Yes",'3. Continuity Schedule'!$BU39,0) -> 0 | Y28: =IF('3. Continuity Schedule'!$BT40="Yes",'3. Continuity Schedule'!$BU40,0) -> 0 | Z28: =SUM(Z16:Z27) -> 2460285.83
G29: =SUM(G16:G27)-G28 -> 0 | H29: =SUM(H16:H27)-H28 -> 0 | I29: 0 | J29: 0 | K29: 0 | L29: 0 | M29: 0 | N29: 0 | P29: 0 | Q29: 0 | R29: 0 | S29: 0 | T29: 0 | U29: 0 | V29: 0 | Z29: 0
B32: ** Used to allocate Account 1551 as this account records the variances arising from the Smart Metering Entity Charges to Residential and GS<50 customers.

Sheet 6. Class A Consumption Data
A1: Back to Index
B2: =+'1. Information Sheet'!B2 -> INCENTIVE REGULATION MODEL FOR 2020 FILERS
A12: 1 | B12: Please select the Year the Account 1580 CBR Class B was Last Disposed. | C12: 2017 | D12: (e.g. If in the 2018 EDR process, you received approval to dispose the GA variance account balance as at December 31, 2016, enter 2016.)
C14: Years since Account 1589 GA balance was last disposed (up to 2016) | E14: =C12 -> 2017 | F14: =E14-1 -> 2016
A17: 2a | B17: Did you have any customers who transitioned between Class A and Class B (transition customers) during the period the Account 1589 GA balance accumulated (i.e. from the year after the balance was last disposed to 2017)? | C17: Yes | D17: (e.g. If you received approval to dispose of the GA variance account balance as at December 31, 2015, the period the GA variance accumulated would be 2016 and 2017.)
A19: 2b | B19: Did you have any customers who transitioned between Class A and Class B (transition customers) during the period the Account 1580, sub-account CBR Class B balance accumulated (i.e. from the year after the balance was last disposed to 2017)? | C19: Yes | D19: (e.g. If you received approval to dispose of the CBR Class B balance as at December 31, 2016, the period the CBR Class B variance accumulated would be 2017.)
A23: 3a | B23: Enter the number of transition customers you had during the period the Account 1589 GA balance accumulated. | C23: 43
C26: Transition Customers - Non-loss Adjusted Billing Determinants by Customer
C27: Customer | D27: Rate Class | E27: 2018 kWh | H27: 2018 kW | K27: Class A/B
E28: Jan to Jun | F28: Jul to Dec | H28: Jan to Jun | I28: Jul to Dec | K28: Jan to Jun | L28: Jul to Dec | M28: July to December
C29: Customer 1 | D29: GENERAL SERVICE 50 to 4,999 kW SERVICE CLASSIFICATION | E29: 1995230.463 | F29: 2091600.68 | G29: 2018 kWh | H29: 4551.837024 | I29: 4878.842975 | J29: 2018 kW | K29: A | L29: B
C30: Customer 2 | D30: GENERAL SERVICE 50 to 4,999 kW SERVICE CLASSIFICATION | E30: 2573696.697 | F30: 3711081.466 | G30: 2018 kWh | H30: 6565.595616 | I30: 9346.83243 | J30: 2018 kW | K30: A | L30: B
C31: Customer 3 | D31: GENERAL SERVICE 50 to 4,999 kW SERVICE CLASSIFICATION | E31: 3031715.217 | F31: 3021305.136 | G31: 2018 kWh | H31: 6764.700061 | I31: 6733.500031 | J31: 2018 kW | K31: A | L31: B
C32: Customer 4 | D32: GENERAL SERVICE 50 to 4,999 kW SERVICE CLASSIFICATION | E32: 3273069.726 | F32: 3394484.53 | G32: 2018 kWh | H32: 6016.078503 | I32: 6590.497552 | J32: 2018 kW | K32: A | L32: B
C33: Customer 5 | D33: GENERAL SERVICE 50 to 4,999 kW SERVICE CLASSIFICATION | E33: 2607651.718 | F33: 2804908.91 | G33: 2018 kWh | H33: 5944.099497 | I33: 6329.649298 | J33: 2018 kW | K33: A | L33: B
C34: Customer 6 | D34: GENERAL SERVICE 50 to 4,999 kW SERVICE CLASSIFICATION | E34: 1691163.396 | F34: 1722799.31 | G34: 2018 kWh | H34: 5295.086927 | I34: 5362.329022 | J34: 2018 kW | K34: A | L34: B
C35: Customer 7 | D35: GENERAL SERVICE 50 to 4,999 kW SERVICE CLASSIFICATION | E35: 1617994.745 | F35: 1703529.236 | G35: 2018 kWh | H35: 5061.284927 | I35: 4934.614039 | J35: 2018 kW | K35: A | L35: B
C36: Customer 8 | D36: GENERAL SERVICE 50 to 4,999 kW SERVICE CLASSIFICATION | E36: 2772233.76 | F36: 2905931.995 | G36: 2018 kWh | H36: 5112.741776 | I36: 5446.232596 | J36: 2018 kW | K36: A | L36: B
C37: Customer 9 | D37: GENERAL SERVICE 50 to 4,999 kW SERVICE CLASSIFICATION | E37: 4849431.183 | F37: 4925392.991 | G37: 2018 kWh | H37: 7300.8 | I37: 7509.599854 | J37: 2018 kW | K37: A | L37: B
C38: Customer 10 | D38: GENERAL SERVICE 50 to 4,999 kW SERVICE CLASSIFICATION | E38: 1149437.937 | F38: 980292.638 | G38: 2018 kWh | H38: 2704.329591 | I38: 2612.434441 | J38: 2018 kW | K38: A | L38: B
C39: Customer 11 | D39: GENERAL SERVICE 50 to 4,999 kW SERVICE CLASSIFICATION | E39: 2956228.135 | F39: 3300084.817 | G39: 2018 kWh | H39: 6670.799951 | I39: 8479.799926 | J39: 2018 kW | K39: A | L39: B
C40: Customer 12 | D40: GENERAL SERVICE 50 to 4,999 kW SERVICE CLASSIFICATION | E40: 166853.1012 | F40: 218664.6081 | G40: 2018 kWh | H40: 1573.033242 | I40: 2165.660381 | J40: 2018 kW | K40: A | L40: B
C41: Customer 13 | D41: GENERAL SERVICE 50 to 4,999 kW SERVICE CLASSIFICATION | E41: 7824932.33 | F41: 13245285.24 | G41: 2018 kWh | H41: 16758.72 | I41: 27941.76 | J41: 2018 kW | K41: B | L41: A
C42: Customer 14 | D42: GENERAL SERVICE 50 to 4,999 kW SERVICE CLASSIFICATION | E42: 6112326.486 | F42: 6648005.722 | G42: 2018 kWh | H42: 10666.65795 | I42: 11847.52759 | J42: 2018 kW | K42: B | L42: A
C43: Customer 15 | D43: GENERAL SERVICE 50 to 4,999 kW SERVICE CLASSIFICATION | E43: 4483968.173 | F43: 4770994.39 | G43: 2018 kWh | H43: 10128.00002 | I43: 10833.60034 | J43: 2018 kW | K43: B | L43: A
C44: Customer 16 | D44: GENERAL SERVICE 50 to 4,999 kW SERVICE CLASSIFICATION | E44: 5165598.406 | F44: 4914611.774 | G44: 2018 kWh | H44: 12629.22795 | I44: 13909.89554 | J44: 2018 kW | K44: B | L44: A
C45: Customer 17 | D45: GENERAL SERVICE 50 to 4,999 kW SERVICE CLASSIFICATION | E45: 4699213.078 | F45: 4836115.671 | G45: 2018 kWh | H45: 12146.73256 | I45: 12739.80863 | J45: 2018 kW | K45: B | L45: A
C46: Customer 18 | D46: GENERAL SERVICE 50 to 4,999 kW SERVICE CLASSIFICATION | E46: 2066444.464 | F46: 2133092.483 | G46: 2018 kWh | H46: 7622.400098 | I46: 8198.400268 | J46: 2018 kW | K46: B | L46: A
C47: Customer 19 | D47: GENERAL SERVICE 50 to 4,999 kW SERVICE CLASSIFICATION | E47: 4870282.002 | F47: 4313319.246 | G47: 2018 kWh | H47: 12662.49801 | I47: 13194.7198 | J47: 2018 kW | K47: B | L47: A
C48: Customer 20 | D48: GENERAL SERVICE 50 to 4,999 kW SERVICE CLASSIFICATION | E48: 1936691.041 | F48: 2031944.347 | G48: 2018 kWh | H48: 7053.259455 | I48: 7139.8499 | J48: 2018 kW | K48: B | L48: A
C49: Customer 21 | D49: GENERAL SERVICE 50 to 4,999 kW SERVICE CLASSIFICATION | E49: 2802169.661 | F49: 2083685.995 | G49: 2018 kWh | H49: 7533.052976 | I49: 7466.803649 | J49: 2018 kW | K49: B | L49: A
C50: Customer 22 | D50: GENERAL SERVICE 50 to 4,999 kW SERVICE CLASSIFICATION | E50: 2014215.664 | F50: 2040936.079 | G50: 2018 kWh | H50: 6300.099 | I50: 6197.228637 | J50: 2018 kW | K50: B | L50: A
C51: Customer 23 | D51: GENERAL SERVICE 50 to 4,999 kW SERVICE CLASSIFICATION | E51: 2356506.098 | F51: 2486476.299 | G51: 2018 kWh | H51: 7110.58208 | I51: 7225.963263 | J51: 2018 kW | K51: B | L51: A
C52: Customer 24 | D52: GENERAL SERVICE 50 to 4,999 kW SERVICE CLASSIFICATION | E52: 2103529.381 | F52: 2587481.701 | G52: 2018 kWh | H52: 6841.867031 | I52: 7416.038329 | J52: 2018 kW | K52: B | L52: A
C53: Customer 25 | D53: GENERAL SERVICE 50 to 4,999 kW SERVICE CLASSIFICATION | E53: 1605781.861 | F53: 1570353.363 | G53: 2018 kWh | H53: 6038.765666 | I53: 5807.558772 | J53: 2018 kW | K53: B | L53: A
C54: Customer 26 | D54: GENERAL SERVICE 50 to 4,999 kW SERVICE CLASSIFICATION | E54: 1600746.779 | F54: 1444262.525 | G54: 2018 kWh | H54: 5754.13819 | I54: 5536.512653 | J54: 2018 kW | K54: B | L54: A
C55: Customer 27 | D55: GENERAL SERVICE 50 to 4,999 kW SERVICE CLASSIFICATION | E55: 2140429 | F55: 1819431 | G55: 2018 kWh | H55: 7958.971774 | I55: 6418.991157 | J55: 2018 kW | K55: B | L55: A
C56: Customer 28 | D56: GENERAL SERVICE 50 to 4,999 kW SERVICE CLASSIFICATION | E56: 1895749.262 | F56: 1916980.279 | G56: 2018 kWh | H56: 4492.290963 | I56: 4489.610519 | J56: 2018 kW | K56: B | L56: A
C57: Customer 29 | D57: GENERAL SERVICE 50 to 4,999 kW SERVICE CLASSIFICATION | E57: 2249016.535 | F57: 2177422.735 | G57: 2018 kWh | H57: 4586.400037 | I57: 4604.340833 | J57: 2018 kW | K57: B | L57: A
C58: Customer 30 | D58: GENERAL SERVICE 50 to 4,999 kW SERVICE CLASSIFICATION | E58: 2034948.111 | F58: 2045810.876 | G58: 2018 kWh | H58: 4183.442976 | I58: 4378.862094 | J58: 2018 kW | K58: B | L58: A
C59: Customer 31 | D59: GENERAL SERVICE 50 to 4,999 kW SERVICE CLASSIFICATION | E59: 1654918.152 | F59: 1632483.41 | G59: 2018 kWh | H59: 4940.508009 | I59: 4982.245148 | J59: 2018 kW | K59: B | L59: A
C60: Customer 32 | D60: GENERAL SERVICE 50 to 4,999 kW SERVICE CLASSIFICATION | E60: 2206686.674 | F60: 2259350.485 | G60: 2018 kWh | H60: 4507.111258 | I60: 4893.600221 | J60: 2018 kW | K60: B | L60: A
C61: Customer 33 | D61: GENERAL SERVICE 50 to 4,999 kW SERVICE CLASSIFICATION | E61: 1666590.901 | F61: 1634045.644 | G61: 2018 kWh | H61: 4413.818409 | I61: 4635.306025 | J61: 2018 kW | K61: B | L61: A
C62: Customer 34 | D62: GENERAL SERVICE 50 to 4,999 kW SERVICE CLASSIFICATION | E62: 2435579.221 | F62: 2416891.386 | G62: 2018 kWh | H62: 4678.157197 | I62: 5178.828781 | J62: 2018 kW | K62: B | L62: A
C63: Customer 35 | D63: GENERAL SERVICE 50 to 4,999 kW SERVICE CLASSIFICATION | E63: 2055538.575 | F63: 2254892.193 | G63: 2018 kWh | H63: 3867.6 | I63: 4168.357103 | J63: 2018 kW | K63: B | L63: A
C64: Customer 36 | D64: GENERAL SERVICE 50 to 4,999 kW SERVICE CLASSIFICATION | E64: 1566061.863 | F64: 1675906.282 | G64: 2018 kWh | H64: 3398.504065 | I64: 3687.043832 | J64: 2018 kW | K64: B | L64: A
C65: Customer 37 | D65: GENERAL SERVICE 50 to 4,999 kW SERVICE CLASSIFICATION | E65: 1343291.76 | F65: 1348216.554 | G65: 2018 kWh | H65: 4069.573049 | I65: 3964.720302 | J65: 2018 kW | K65: B | L65: A
C66: Customer 38 | D66: GENERAL SERVICE 50 to 4,999 kW SERVICE CLASSIFICATION | E66: 1436514.36 | F66: 1513806.06 | G66: 2018 kWh | H66: 3130.800012 | I66: 3334.800078 | J66: 2018 kW | K66: B | L66: A
C67: Customer 39 | D67: GENERAL SERVICE 50 to 4,999 kW SERVICE CLASSIFICATION | E67: 1419971.5 | F67: 1253130.5 | G67: 2018 kWh | H67: 3412 | I67: 3282.866803 | J67: 2018 kW | K67: B | L67: A
C68: Customer 40 | D68: GENERAL SERVICE 50 to 4,999 kW SERVICE CLASSIFICATION | E68: 6283197.38 | F68: 7397622.194 | G68: 2018 kWh | H68: 13174.55993 | I68: 16219.35971 | J68: 2018 kW | K68: B | L68: A
C69: Customer 41 | D69: GENERAL SERVICE 50 to 4,999 kW SERVICE CLASSIFICATION | E69: 1798580.462 | F69: 1704183.668 | G69: 2018 kWh | H69: 4286.400024 | I69: 4070.400146 | J69: 2018 kW | K69: B | L69: A
C70: Customer 42 | D70: GENERAL SERVICE 50 to 4,999 kW SERVICE CLASSIFICATION | E70: 2175504 | F70: 2453904.617 | G70: 2018 kWh | H70: 5564.592 | I70: 6458.361072 | J70: 2018 kW | K70: B | L70: A
C71: Customer 43 | D71: GENERAL SERVICE 50 to 4,999 kW SERVICE CLASSIFICATION | E71: 1732680 | F71: 1776366.86 | G71: 2018 kWh | H71: 3456.54 | I71: 3522.725036 | J71: 2018 kW | K71: B | L71: A
C72: Customer 44 | G72: =IF(D72<>"",E$27,"") -> 
C73: Customer 45
C74: Customer 46
C75: Customer 47
C76: Customer 48
C77: Customer 49
C78: Customer 50
C79: Customer 51
C80: Customer 52
C81: Customer 53
C82: Customer 54
C83: Customer 55
C84: Customer 56
C85: Customer 57
C86: Customer 58
C87: Customer 59
C88: Customer 60
C89: Customer 61
C90: Customer 62
C91: Customer 63
C92: Customer 64
C93: Customer 65
C94: Customer 66 | G94: =IF(D94<>"",E$27,"") -> 
C95: Customer 67
C96: Customer 68
C97: Customer 69
C98: Customer 70
C99: Customer 71
C100: Customer 72
C101: Customer 73
C102: Customer 74
C103: Customer 75
C104: Customer 76
C105: Customer 77
C106: Customer 78
C107: Customer 79
C108: Customer 80
C109: Customer 81
C110: Customer 82
C111: Customer 83
C112: Customer 84
C113: Customer 85
C114: Customer 86
C115: Customer 87
C116: Customer 88
C117: Customer 89
C118: Customer 90
C119: Customer 91
C120: Customer 92
C121: Customer 93
C122: Customer 94
C123: Customer 95
C124: Customer 96
C125: Customer 97
C126: Customer 98
C127: Customer 99
C128: Customer 100
C129: Customer 101
C130: Customer 102 | G130: =IF(D130<>"",E$27,"") -> 
C131: Customer 103
C132: Customer 104
C133: Customer 105
C134: Customer 106
C135: Customer 107
C136: Customer 108
C137: Customer 109
C138: Customer 110
C139: Customer 111
C140: Customer 112
C141: Customer 113
C142: Customer 114
C143: Customer 115
C144: Customer 116
C145: Customer 117
C146: Customer 118
C147: Customer 119
C148: Customer 120
C149: Customer 121
C150: Customer 122
C151: Customer 123
C152: Customer 124
C153: Customer 125
C154: Customer 126
C155: Customer 127
C156: Customer 128
C157: Customer 129
C158: Customer 130
C159: Customer 131
C160: Customer 132
C161: Customer 133
C162: Customer 134
C163: Customer 135
C164: Customer 136
C165: Customer 137
C166: Customer 138
C167: Customer 139
C168: Customer 140
C169: Customer 141
C170: Customer 142
C171: Customer 143
C172: Customer 144
C173: Customer 145
C174: Customer 146
C175: Customer 147
C176: Customer 148
C177: Customer 149
C178: Customer 150
A186: 3b | B186: Enter the number of customers who were Class A during the entire period since the Account 1589 GA balance accumulated (i.e. did not transition between Class A and B). | C186: 103
C189: Class A Customers - Billing Determinants by Customer
C190: Customer | D190: Rate Class | E190: kWh | H190: kW
C191: Customer A1 | D191: LARGE USE SERVICE CLASSIFICATION | E191: 45287692.69 | H191: 65832.55751
C192: Customer A2 | D192: LARGE USE SERVICE CLASSIFICATION | E192: 7930487.821 | H192: 37038.76967
C193: Customer A3 | D193: GENERAL SERVICE 50 to 4,999 kW SERVICE CLASSIFICATION | E193: 32273780.56 | H193: 60409.19932
C194: Customer A4 | D194: GENERAL SERVICE 50 to 4,999 kW SERVICE CLASSIFICATION | E194: 35739612 | H194: 61250.27849
C195: Customer A5 | D195: GENERAL SERVICE 50 to 4,999 kW SERVICE CLASSIFICATION | E195: 29718349.16 | H195: 54896.53969
C196: Customer A6 | D196: GENERAL SERVICE 50 to 4,999 kW SERVICE CLASSIFICATION | E196: 27737024.33 | H196: 48643.20107
C197: Customer A7 | D197: GENERAL SERVICE 50 to 4,999 kW SERVICE CLASSIFICATION | E197: 31831882.57 | H197: 49463.63293
C198: Customer A8 | D198: GENERAL SERVICE 50 to 4,999 kW SERVICE CLASSIFICATION | E198: 23657614.27 | H198: 44938.08
C199: Customer A9 | D199: GENERAL SERVICE 50 to 4,999 kW SERVICE CLASSIFICATION | E199: 25308341.73 | H199: 37699.20083
C200: Customer A10 | D200: GENERAL SERVICE 50 to 4,999 kW SERVICE CLASSIFICATION | E200: 21443888.85 | H200: 39007.27916
C201: Customer A11 | D201: GENERAL SERVICE 50 to 4,999 kW SERVICE CLASSIFICATION | E201: 16558279.86 | H201: 37435.20076
C202: Customer A12 | D202: GENERAL SERVICE 50 to 4,999 kW SERVICE CLASSIFICATION | E202: 13784844.61 | H202: 39061.38452
C203: Customer A13 | D203: GENERAL SERVICE 50 to 4,999 kW SERVICE CLASSIFICATION | E203: 21458320.53 | H203: 35936.2059
C204: Customer A14 | D204: GENERAL SERVICE 50 to 4,999 kW SERVICE CLASSIFICATION | E204: 21689921.15 | H204: 35226.57759
C205: Customer A15 | D205: GENERAL SERVICE 50 to 4,999 kW SERVICE CLASSIFICATION | E205: 20305738.42 | H205: 36822.12722
C206: Customer A16 | D206: GENERAL SERVICE 50 to 4,999 kW SERVICE CLASSIFICATION | E206: 19957550.77 | H206: 36910.79934
C207: Customer A17 | D207: GENERAL SERVICE 50 to 4,999 kW SERVICE CLASSIFICATION | E207: 18507178.43 | H207: 33844.80226
C208: Customer A18 | D208: GENERAL SERVICE 50 to 4,999 kW SERVICE CLASSIFICATION | E208: 13659155.33 | H208: 32870.40068
C209: Customer A19 | D209: GENERAL SERVICE 50 to 4,999 kW SERVICE CLASSIFICATION | E209: 21058595.34 | H209: 35598.81849
C210: Customer A20 | D210: GENERAL SERVICE 50 to 4,999 kW SERVICE CLASSIFICATION | E210: 17724659.12 | H210: 33201.31309
C211: Customer A21 | D211: GENERAL SERVICE 50 to 4,999 kW SERVICE CLASSIFICATION | E211: 17133717.93 | H211: 31051.93584
C212: Customer A22 | D212: GENERAL SERVICE 50 to 4,999 kW SERVICE CLASSIFICATION | E212: 12838626.5 | H212: 30427.21024
C213: Customer A23 | D213: GENERAL SERVICE 50 to 4,999 kW SERVICE CLASSIFICATION | E213: 15790031.57 | H213: 32418.19848
C214: Customer A24 | D214: GENERAL SERVICE 50 to 4,999 kW SERVICE CLASSIFICATION | E214: 10510981.85 | H214: 32081.09334
C215: Customer A25 | D215: GENERAL SERVICE 50 to 4,999 kW SERVICE CLASSIFICATION | E215: 17379670.05 | H215: 30574.79946
C216: Customer A26 | D216: GENERAL SERVICE 50 to 4,999 kW SERVICE CLASSIFICATION | E216: 8463631.539 | H216: 29472.0006
C217: Customer A27 | D217: GENERAL SERVICE 50 to 4,999 kW SERVICE CLASSIFICATION | E217: 14449979.45 | H217: 31440.00034
C218: Customer A28 | D218: GENERAL SERVICE 50 to 4,999 kW SERVICE CLASSIFICATION | E218: 16931844.46 | H218: 29752.94009
C219: Customer A29 | D219: GENERAL SERVICE 50 to 4,999 kW SERVICE CLASSIFICATION | E219: 4872726.5 | H219: 30727.4909
C220: Customer A30 | D220: GENERAL SERVICE 50 to 4,999 kW SERVICE CLASSIFICATION | E220: 12588721.09 | H220: 29817.60058
C221: Customer A31 | D221: GENERAL SERVICE 50 to 4,999 kW SERVICE CLASSIFICATION | E221: 13504643.39 | H221: 29318.40063
C222: Customer A32 | D222: GENERAL SERVICE 50 to 4,999 kW SERVICE CLASSIFICATION | E222: 14712354.61 | H222: 29755.20078
C223: Customer A33 | D223: GENERAL SERVICE 50 to 4,999 kW SERVICE CLASSIFICATION | E223: 12797658.55 | H223: 27876.70974
C224: Customer A34 | D224: GENERAL SERVICE 50 to 4,999 kW SERVICE CLASSIFICATION | E224: 16711618.14 | H224: 25268.39952
C225: Customer A35 | D225: GENERAL SERVICE 50 to 4,999 kW SERVICE CLASSIFICATION | E225: 10744363.13 | H225: 23300.64
C226: Customer A36 | D226: GENERAL SERVICE 50 to 4,999 kW SERVICE CLASSIFICATION | E226: 11874894 | H226: 24302.14743
C227: Customer A37 | D227: GENERAL SERVICE 50 to 4,999 kW SERVICE CLASSIFICATION | E227: 13720360.15 | H227: 26888.41222
... 113 more rows

Sheet 6.1a GA Allocation
A1: Back to Index
B2: =+'1. Information Sheet'!B2 -> INCENTIVE REGULATION MODEL FOR 2020 FILERS
B11: This tab allocates the GA balance to former Class B non-interval customers who contributed to the current GA balance but are now Class A customers. The tables below calculate specific amounts for each customer who made the change. Consistent with both decisions for 2016 rates and EDDVAR, distributors are generally expected to settle the amount through 12 equal adjustments to bills. A one-time settlement is acceptable if the affected customer has expressed a clear preference for this approach. (see Filing Requirements section 3.2.5.2)
B14: Year of Group 1 Account Balance Last Disposed | C14: 2017 | D14: (e.g. If in the 2019 EDR process, you received approval to dispose the GA variance account balance as of December 31, 2016, please enter 2016 in cell C14.)
B16: Allocation of total Non-RPP Consumption (kWh) between Current Class B and Class A/B Transition Customers
D17: Total | E17: =C14+1 -> 2018 | F17: =E17-1 -> 2017 | G17: =F17-1 -> 2016
B18: Total Non-RPP Class B Consumption for Years During Balance Accumulation (Non-RPP Consumption LESS WMP Consumption and Consumption for Class A customers who were Class A for partial or full year) | C18: A | D18: =SUM(E18:G18) -> 3314561496 | E18: =N25 -> 3314561496 | H18: from Cell N25
B19: Transition Customers' Class B Consumption (i.e. full year or partial year) | C19: B | D19: =SUM(E19:G19) -> 116517739.5 | E19: =E189 -> 116517739.5 | F19: =F189 -> 0 | G19: 0
B20: Transition Customers' Portion of Total Consumption | C20: C=B/A | D20: =IFERROR(+D19/D18,0) -> 0.0351532894
L21: Sheet 4 | M21: total non-RPP kWh | N21: ='4. Billing Det. for Def-Var'!F29+'4. Billing Det. for Def-Var'!H29 -> 4664656167
L22: Sheet 4 | M22: WMP kWh | N22: ='4. Billing Det. for Def-Var'!H29 -> 30400417
B23: Allocation of Total GA Balance $ | L23: Sheet 6.1 | M23: Class A (full) | N23: ='6.1 GA'!E29 -> 1198622538
L24: Sheet 6.1 | M24: Class A (partial) | N24: =SUM(IF('6. Class A Consumption Data'!$K$28:$L$71="a",'6. Class A Consumption Data'!$E$28:$F$71)) -> 121071715.7
B25: Total GA Balance | C25: D | D25: ='3. Continuity Schedule'!BU29 -> -8490184.747 | N25: =N21-N22-N23-N24 -> 3314561496
B26: Transition Customers Portion of GA Balance | C26: E=C*D | D26: =+D20*D25 -> -298457.9215
B27: GA Balance to be disposed to Current Class B Customers through Rate Rider | C27: F=D-E | D27: =+D25-D26 -> -8191726.826
B30: Allocation of GA Balances to Class A/B Transition Customers
B32: Default Monthly Equal Payments Recovery Period (in months) | D32: 12
B34: Proposed Monthly Equal Payments Recovery Period (in months) | D34: 12
B37: # of Class A/B Transition Customers | C37: ='6. Class A Consumption Data'!C23 -> 43
B38: Customer | D38: Total Metered Consumption (kWh) for Transition Customers During the Period WhenThey Were Class B Customers | E38: Metered Consumption (kWh) for Transition Customers During the Period When They Were Class B Customers in 2018 | F38: Metered Consumption (kWh) for Transition Customers During the Period When They Were Class B Customers in 2017 | G38: Metered Consumption (kWh) for Transition Customers During the Period When They Were Class B Customers in 2016 | H38: % of kWh | I38: Customer Specific GA Allocation for the Period When They Were a Class B customer | J38: Monthly Equal Payments
B39: Customer 1 | D39: =SUM(E39:G39) -> 2091600.68 | E39: =SUM(IF('6. Class A Consumption Data'!K29:L29="B",'6. Class A Consumption Data'!E29:F29)) -> 2091600.68 | H39: =IFERROR(+D39/$D$189,0) -> 0.01795092051 | I39: =H39*$D$26 -> -5357.594424 | J39: =ROUND(IF(ISERROR(I39),0,IF(OR(ISBLANK($D$34), OR($D$34=0, $D$34="")), I39/($D$32), I39/($D$34))),2) -> -446.47
B40: Customer 2 | D40: 3711081.466 | E40: =SUM(IF('6. Class A Consumption Data'!K30:L30="B",'6. Class A Consumption Data'!E30:F30)) -> 3711081.466 | H40: =IFERROR(+D40/$D$189,0) -> 0.03184992673 | I40: =H40*$D$26 -> -9505.862932 | J40: =ROUND(IF(ISERROR(I40),0,IF(OR(ISBLANK($D$34), OR($D$34=0, $D$34="")), I40/($D$32), I40/($D$34))),2) -> -792.16
B41: Customer 3 | D41: 3021305.136 | E41: =SUM(IF('6. Class A Consumption Data'!K31:L31="B",'6. Class A Consumption Data'!E31:F31)) -> 3021305.136 | H41: 0.02593000129 | I41: -7739.014291 | J41: -644.92
B42: Customer 4 | D42: 3394484.53 | E42: =SUM(IF('6. Class A Consumption Data'!K32:L32="B",'6. Class A Consumption Data'!E32:F32)) -> 3394484.53 | H42: 0.02913277021 | I42: -8694.906044 | J42: -724.58
B43: Customer 5 | D43: 2804908.91 | E43: =SUM(IF('6. Class A Consumption Data'!K33:L33="B",'6. Class A Consumption Data'!E33:F33)) -> 2804908.91 | H43: 0.02407280575 | I43: -7184.71957 | J43: -598.73
B44: Customer 6 | D44: 1722799.31 | E44: =SUM(IF('6. Class A Consumption Data'!K34:L34="B",'6. Class A Consumption Data'!E34:F34)) -> 1722799.31 | H44: 0.01478572548 | I44: -4412.916894 | J44: -367.74
B45: Customer 7 | D45: 1703529.236 | E45: =SUM(IF('6. Class A Consumption Data'!K35:L35="B",'6. Class A Consumption Data'!E35:F35)) -> 1703529.236 | H45: 0.01462034231 | I45: -4363.556977 | J45: -363.63
B46: Customer 8 | D46: 2905931.995 | E46: =SUM(IF('6. Class A Consumption Data'!K36:L36="B",'6. Class A Consumption Data'!E36:F36)) -> 2905931.995 | H46: 0.02493982468 | I46: -7443.488236 | J46: -620.29
B47: Customer 9 | D47: 4925392.991 | E47: =SUM(IF('6. Class A Consumption Data'!K37:L37="B",'6. Class A Consumption Data'!E37:F37)) -> 4925392.991 | H47: 0.04227161471 | I47: -12616.29827 | J47: -1051.36
B48: Customer 10 | D48: 980292.638 | E48: =SUM(IF('6. Class A Consumption Data'!K38:L38="B",'6. Class A Consumption Data'!E38:F38)) -> 980292.638 | H48: 0.008413247993 | I48: -2511.000509 | J48: -209.25
B49: Customer 11 | D49: 3300084.817 | E49: =SUM(IF('6. Class A Consumption Data'!K39:L39="B",'6. Class A Consumption Data'!E39:F39)) -> 3300084.817 | H49: 0.02832259561 | I49: -8453.103017 | J49: -704.43
B50: Customer 12 | D50: 218664.6081 | E50: =SUM(IF('6. Class A Consumption Data'!K40:L40="B",'6. Class A Consumption Data'!E40:F40)) -> 218664.6081 | H50: 0.001876663666 | I50: -560.105137 | J50: -46.68
B51: Customer 13 | D51: 7824932.33 | E51: =SUM(IF('6. Class A Consumption Data'!K41:L41="B",'6. Class A Consumption Data'!E41:F41)) -> 7824932.33 | H51: 0.06715657516 | I51: -20043.41184 | J51: -1670.28
B52: Customer 14 | D52: 6112326.486 | E52: =SUM(IF('6. Class A Consumption Data'!K42:L42="B",'6. Class A Consumption Data'!E42:F42)) -> 6112326.486 | H52: 0.05245833392 | I52: -15656.60531 | J52: -1304.72
B53: Customer 15 | D53: 4483968.173 | E53: =SUM(IF('6. Class A Consumption Data'!K43:L43="B",'6. Class A Consumption Data'!E43:F43)) -> 4483968.173 | H53: 0.03848313735 | I53: -11485.59718 | J53: -957.13
B54: Customer 16 | D54: 5165598.406 | E54: =SUM(IF('6. Class A Consumption Data'!K44:L44="B",'6. Class A Consumption Data'!E44:F44)) -> 5165598.406 | H54: 0.04433314985 | I54: -13231.57976 | J54: -1102.63
B55: Customer 17 | D55: 4699213.078 | E55: =SUM(IF('6. Class A Consumption Data'!K45:L45="B",'6. Class A Consumption Data'!E45:F45)) -> 4699213.078 | H55: 0.04033045181 | I55: -12036.94282 | J55: -1003.08
B56: Customer 18 | D56: 2066444.464 | E56: =SUM(IF('6. Class A Consumption Data'!K46:L46="B",'6. Class A Consumption Data'!E46:F46)) -> 2066444.464 | H56: 0.01773502021 | I56: -5293.157268 | J56: -441.1
B57: Customer 19 | D57: 4870282.002 | E57: =SUM(IF('6. Class A Consumption Data'!K47:L47="B",'6. Class A Consumption Data'!E47:F47)) -> 4870282.002 | H57: 0.04179863103 | I57: -12475.13254 | J57: -1039.59
B58: Customer 20 | D58: 1936691.041 | E58: =SUM(IF('6. Class A Consumption Data'!K48:L48="B",'6. Class A Consumption Data'!E48:F48)) -> 1936691.041 | H58: 0.01662142648 | I58: -4960.7964 | J58: -413.4
B59: Customer 21 | D59: 2802169.661 | E59: =SUM(IF('6. Class A Consumption Data'!K49:L49="B",'6. Class A Consumption Data'!E49:F49)) -> 2802169.661 | H59: 0.02404929647 | I59: -7177.703038 | J59: -598.14
B60: Customer 22 | D60: 2014215.664 | E60: =SUM(IF('6. Class A Consumption Data'!K50:L50="B",'6. Class A Consumption Data'!E50:F50)) -> 2014215.664 | H60: 0.01728677257 | I60: -5159.374212 | J60: -429.95
B61: Customer 23 | D61: 2356506.098 | E61: =SUM(IF('6. Class A Consumption Data'!K51:L51="B",'6. Class A Consumption Data'!E51:F51)) -> 2356506.098 | H61: 0.02022444057 | I61: -6036.144496 | J61: -503.01
B62: Customer 24 | D62: 2103529.381 | E62: =SUM(IF('6. Class A Consumption Data'!K52:L52="B",'6. Class A Consumption Data'!E52:F52)) -> 2103529.381 | H62: 0.01805329721 | I62: -5388.14956 | J62: -449.01
B63: Customer 25 | D63: 1605781.861 | E63: =SUM(IF('6. Class A Consumption Data'!K53:L53="B",'6. Class A Consumption Data'!E53:F53)) -> 1605781.861 | H63: 0.01378143679 | I63: -4113.178978 | J63: -342.76
B64: Customer 26 | D64: 1600746.779 | E64: =SUM(IF('6. Class A Consumption Data'!K54:L54="B",'6. Class A Consumption Data'!E54:F54)) -> 1600746.779 | H64: 0.01373822378 | I64: -4100.281714 | J64: -341.69
B65: Customer 27 | D65: 2140429 | E65: =SUM(IF('6. Class A Consumption Data'!K55:L55="B",'6. Class A Consumption Data'!E55:F55)) -> 2140429 | H65: 0.01836998391 | I65: -5482.667216 | J65: -456.89
B66: Customer 28 | D66: 1895749.262 | E66: =SUM(IF('6. Class A Consumption Data'!K56:L56="B",'6. Class A Consumption Data'!E56:F56)) -> 1895749.262 | H66: 0.01627004841 | I66: -4855.924831 | J66: -404.66
B67: Customer 29 | D67: 2249016.535 | E67: =SUM(IF('6. Class A Consumption Data'!K57:L57="B",'6. Class A Consumption Data'!E57:F57)) -> 2249016.535 | H67: 0.01930192385 | I67: -5760.812072 | J67: -480.07
B68: Customer 30 | D68: 2034948.111 | E68: =SUM(IF('6. Class A Consumption Data'!K58:L58="B",'6. Class A Consumption Data'!E58:F58)) -> 2034948.111 | H68: 0.0174647064 | I68: -5212.479973 | J68: -434.37
B69: Customer 31 | D69: 1654918.152 | E69: =SUM(IF('6. Class A Consumption Data'!K59:L59="B",'6. Class A Consumption Data'!E59:F59)) -> 1654918.152 | H69: 0.01420314331 | I69: -4239.040629 | J69: -353.25
B70: Customer 32 | D70: 2206686.674 | E70: =SUM(IF('6. Class A Consumption Data'!K60:L60="B",'6. Class A Consumption Data'!E60:F60)) -> 2206686.674 | H70: 0.01893863272 | I70: -5652.384958 | J70: -471.03
B71: Customer 33 | D71: =SUM(E71:G71) -> 1666590.901 | E71: =SUM(IF('6. Class A Consumption Data'!K61:L61="B",'6. Class A Consumption Data'!E61:F61)) -> 1666590.901 | H71: 0.01430332332 | I71: -4268.94015 | J71: -355.75
B72: Customer 34 | D72: 2435579.221 | E72: =SUM(IF('6. Class A Consumption Data'!K62:L62="B",'6. Class A Consumption Data'!E62:F62)) -> 2435579.221 | H72: 0.02090307649 | I72: -6238.688761 | J72: -519.89
B73: Customer 35 | D73: 2055538.575 | E73: =SUM(IF('6. Class A Consumption Data'!K63:L63="B",'6. Class A Consumption Data'!E63:F63)) -> 2055538.575 | H73: 0.01764142167 | I73: -5265.222044 | J73: -438.77
B74: Customer 36 | D74: 1566061.863 | E74: =SUM(IF('6. Class A Consumption Data'!K64:L64="B",'6. Class A Consumption Data'!E64:F64)) -> 1566061.863 | H74: 0.01344054451 | I74: -4011.436977 | J74: -334.29
B75: Customer 37 | D75: 1343291.76 | E75: =SUM(IF('6. Class A Consumption Data'!K65:L65="B",'6. Class A Consumption Data'!E65:F65)) -> 1343291.76 | H75: 0.0115286459 | I75: -3440.815694 | J75: -286.73
B76: Customer 38 | D76: 1436514.36 | E76: =SUM(IF('6. Class A Consumption Data'!K66:L66="B",'6. Class A Consumption Data'!E66:F66)) -> 1436514.36 | H76: 0.01232871807 | I76: -3679.603569 | J76: -306.63
B77: Customer 39 | D77: 1419971.5 | E77: =SUM(IF('6. Class A Consumption Data'!K67:L67="B",'6. Class A Consumption Data'!E67:F67)) -> 1419971.5 | H77: 0.01218674089 | I77: -3637.229355 | J77: -303.1
B78: Customer 40 | D78: 6283197.38 | E78: =SUM(IF('6. Class A Consumption Data'!K68:L68="B",'6. Class A Consumption Data'!E68:F68)) -> 6283197.38 | H78: 0.05392481357 | I78: -16094.28777 | J78: -1341.19
B79: Customer 41 | D79: 1798580.462 | E79: =SUM(IF('6. Class A Consumption Data'!K69:L69="B",'6. Class A Consumption Data'!E69:F69)) -> 1798580.462 | H79: 0.01543610844 | I79: -4607.028841 | J79: -383.92
B80: Customer 42 | D80: 2175504 | E80: =SUM(IF('6. Class A Consumption Data'!K70:L70="B",'6. Class A Consumption Data'!E70:F70)) -> 2175504 | H80: 0.01867101104 | I80: -5572.511147 | J80: -464.38
B81: Customer 43 | D81: 1732680 | E81: =SUM(IF('6. Class A Consumption Data'!K71:L71="B",'6. Class A Consumption Data'!E71:F71)) -> 1732680 | H81: 0.01487052536 | I81: -4438.22609 | J81: -369.85
B82: Customer 44 | D82: 0 | E82: =SUM(IF('6. Class A Consumption Data'!K72:L72="B",'6. Class A Consumption Data'!E72:F72)) -> 0 | H82: 0 | I82: 0 | J82: 0
B83: Customer 45 | D83: 0 | E83: =SUM(IF('6. Class A Consumption Data'!K73:L73="B",'6. Class A Consumption Data'!E73:F73)) -> 0 | H83: 0 | I83: 0 | J83: 0
B84: Customer 46 | D84: 0 | E84: =SUM(IF('6. Class A Consumption Data'!K74:L74="B",'6. Class A Consumption Data'!E74:F74)) -> 0 | H84: 0 | I84: 0 | J84: 0
B85: Customer 47 | D85: 0 | E85: =SUM(IF('6. Class A Consumption Data'!K75:L75="B",'6. Class A Consumption Data'!E75:F75)) -> 0 | H85: 0 | I85: 0 | J85: 0
B86: Customer 48 | D86: 0 | E86: =SUM(IF('6. Class A Consumption Data'!K76:L76="B",'6. Class A Consumption Data'!E76:F76)) -> 0 | H86: 0 | I86: 0 | J86: 0
B87: Customer 49 | D87: 0 | E87: =SUM(IF('6. Class A Consumption Data'!K77:L77="B",'6. Class A Consumption Data'!E77:F77)) -> 0 | H87: 0 | I87: 0 | J87: 0
B88: Customer 50 | D88: 0 | E88: =SUM(IF('6. Class A Consumption Data'!K78:L78="B",'6. Class A Consumption Data'!E78:F78)) -> 0 | H88: 0 | I88: 0 | J88: 0
B89: Customer 51 | D89: 0 | E89: =SUM(IF('6. Class A Consumption Data'!K79:L79="B",'6. Class A Consumption Data'!E79:F79)) -> 0 | H89: 0 | I89: 0 | J89: 0
B90: Customer 52 | D90: 0 | E90: =SUM(IF('6. Class A Consumption Data'!K80:L80="B",'6. Class A Consumption Data'!E80:F80)) -> 0 | H90: 0 | I90: 0 | J90: 0
B91: Customer 53 | D91: 0 | E91: =SUM(IF('6. Class A Consumption Data'!K81:L81="B",'6. Class A Consumption Data'!E81:F81)) -> 0 | H91: 0 | I91: 0 | J91: 0
B92: Customer 54 | D92: 0 | E92: =SUM(IF('6. Class A Consumption Data'!K82:L82="B",'6. Class A Consumption Data'!E82:F82)) -> 0 | H92: 0 | I92: 0 | J92: 0
B93: Customer 55 | D93: 0 | E93: =SUM(IF('6. Class A Consumption Data'!K83:L83="B",'6. Class A Consumption Data'!E83:F83)) -> 0 | H93: 0 | I93: 0 | J93: 0
B94: Customer 56 | D94: 0 | E94: =SUM(IF('6. Class A Consumption Data'!K84:L84="B",'6. Class A Consumption Data'!E84:F84)) -> 0 | H94: 0 | I94: 0 | J94: 0
B95: Customer 57 | D95: 0 | E95: =SUM(IF('6. Class A Consumption Data'!K85:L85="B",'6. Class A Consumption Data'!E85:F85)) -> 0 | H95: 0 | I95: 0 | J95: 0
B96: Customer 58 | D96: 0 | E96: =SUM(IF('6. Class A Consumption Data'!K86:L86="B",'6. Class A Consumption Data'!E86:F86)) -> 0 | H96: 0 | I96: 0 | J96: 0
B97: Customer 59 | D97: 0 | E97: =SUM(IF('6. Class A Consumption Data'!K87:L87="B",'6. Class A Consumption Data'!E87:F87)) -> 0 | H97: 0 | I97: 0 | J97: 0
B98: Customer 60 | D98: 0 | E98: =SUM(IF('6. Class A Consumption Data'!K88:L88="B",'6. Class A Consumption Data'!E88:F88)) -> 0 | H98: 0 | I98: 0 | J98: 0
B99: Customer 61 | D99: 0 | E99: =SUM(IF('6. Class A Consumption Data'!K89:L89="B",'6. Class A Consumption Data'!E89:F89)) -> 0 | H99: 0 | I99: 0 | J99: 0
B100: Customer 62 | D100: 0 | E100: =SUM(IF('6. Class A Consumption Data'!K90:L90="B",'6. Class A Consumption Data'!E90:F90)) -> 0 | H100: 0 | I100: 0 | J100: 0
B101: Customer 63 | D101: 0 | E101: =SUM(IF('6. Class A Consumption Data'!K91:L91="B",'6. Class A Consumption Data'!E91:F91)) -> 0 | H101: 0 | I101: 0 | J101: 0
B102: Customer 64 | D102: 0 | E102: =SUM(IF('6. Class A Consumption Data'!K92:L92="B",'6. Class A Consumption Data'!E92:F92)) -> 0 | H102: 0 | I102: 0 | J102: 0
B103: Customer 65 | D103: =SUM(E103:G103) -> 0 | E103: =SUM(IF('6. Class A Consumption Data'!K93:L93="B",'6. Class A Consumption Data'!E93:F93)) -> 0 | H103: 0 | I103: 0 | J103: 0
B104: Customer 66 | D104: 0 | E104: =SUM(IF('6. Class A Consumption Data'!K94:L94="B",'6. Class A Consumption Data'!E94:F94)) -> 0 | H104: =IFERROR(+D104/$D$189,0) -> 0 | I104: =H104*$D$26 -> 0 | J104: =ROUND(IF(ISERROR(I104),0,IF(OR(ISBLANK($D$34), OR($D$34=0, $D$34="")), I104/($D$32), I104/($D$34))),2) -> 0
B105: Customer 67 | D105: 0 | E105: =SUM(IF('6. Class A Consumption Data'!K95:L95="B",'6. Class A Consumption Data'!E95:F95)) -> 0 | H105: 0 | I105: 0 | J105: 0
B106: Customer 68 | D106: 0 | E106: =SUM(IF('6. Class A Consumption Data'!K96:L96="B",'6. Class A Consumption Data'!E96:F96)) -> 0 | H106: 0 | I106: 0 | J106: 0
B107: Customer 69 | D107: 0 | E107: =SUM(IF('6. Class A Consumption Data'!K97:L97="B",'6. Class A Consumption Data'!E97:F97)) -> 0 | H107: 0 | I107: 0 | J107: 0
B108: Customer 70 | D108: 0 | E108: =SUM(IF('6. Class A Consumption Data'!K98:L98="B",'6. Class A Consumption Data'!E98:F98)) -> 0 | H108: 0 | I108: 0 | J108: 0
B109: Customer 71 | D109: 0 | E109: =SUM(IF('6. Class A Consumption Data'!K99:L99="B",'6. Class A Consumption Data'!E99:F99)) -> 0 | H109: 0 | I109: 0 | J109: 0
B110: Customer 72 | D110: 0 | E110: =SUM(IF('6. Class A Consumption Data'!K100:L100="B",'6. Class A Consumption Data'!E100:F100)) -> 0 | H110: 0 | I110: 0 | J110: 0
B111: Customer 73 | D111: 0 | E111: =SUM(IF('6. Class A Consumption Data'!K101:L101="B",'6. Class A Consumption Data'!E101:F101)) -> 0 | H111: 0 | I111: 0 | J111: 0
B112: Customer 74 | D112: 0 | E112: =SUM(IF('6. Class A Consumption Data'!K102:L102="B",'6. Class A Consumption Data'!E102:F102)) -> 0 | H112: 0 | I112: 0 | J112: 0
B113: Customer 75 | D113: 0 | E113: =SUM(IF('6. Class A Consumption Data'!K103:L103="B",'6. Class A Consumption Data'!E103:F103)) -> 0 | H113: 0 | I113: 0 | J113: 0
B114: Customer 76 | D114: 0 | E114: =SUM(IF('6. Class A Consumption Data'!K104:L104="B",'6. Class A Consumption Data'!E104:F104)) -> 0 | H114: 0 | I114: 0 | J114: 0
B115: Customer 77 | D115: 0 | E115: =SUM(IF('6. Class A Consumption Data'!K105:L105="B",'6. Class A Consumption Data'!E105:F105)) -> 0 | H115: 0 | I115: 0 | J115: 0
B116: Customer 78 | D116: 0 | E116: =SUM(IF('6. Class A Consumption Data'!K106:L106="B",'6. Class A Consumption Data'!E106:F106)) -> 0 | H116: 0 | I116: 0 | J116: 0
B117: Customer 79 | D117: 0 | E117: =SUM(IF('6. Class A Consumption Data'!K107:L107="B",'6. Class A Consumption Data'!E107:F107)) -> 0 | H117: 0 | I117: 0 | J117: 0
B118: Customer 80 | D118: 0 | E118: =SUM(IF('6. Class A Consumption Data'!K108:L108="B",'6. Class A Consumption Data'!E108:F108)) -> 0 | H118: 0 | I118: 0 | J118: 0
B119: Customer 81 | D119: 0 | E119: =SUM(IF('6. Class A Consumption Data'!K109:L109="B",'6. Class A Consumption Data'!E109:F109)) -> 0 | H119: 0 | I119: 0 | J119: 0
B120: Customer 82 | D120: 0 | E120: =SUM(IF('6. Class A Consumption Data'!K110:L110="B",'6. Class A Consumption Data'!E110:F110)) -> 0 | H120: 0 | I120: 0 | J120: 0
B121: Customer 83 | D121: 0 | E121: =SUM(IF('6. Class A Consumption Data'!K111:L111="B",'6. Class A Consumption Data'!E111:F111)) -> 0 | H121: 0 | I121: 0 | J121: 0
B122: Customer 84 | D122: 0 | E122: =SUM(IF('6. Class A Consumption Data'!K112:L112="B",'6. Class A Consumption Data'!E112:F112)) -> 0 | H122: 0 | I122: 0 | J122: 0
B123: Customer 85 | D123: 0 | E123: =SUM(IF('6. Class A Consumption Data'!K113:L113="B",'6. Class A Consumption Data'!E113:F113)) -> 0 | H123: 0 | I123: 0 | J123: 0
B124: Customer 86 | D124: 0 | E124: =SUM(IF('6. Class A Consumption Data'!K114:L114="B",'6. Class A Consumption Data'!E114:F114)) -> 0 | H124: 0 | I124: 0 | J124: 0
B125: Customer 87 | D125: 0 | E125: =SUM(IF('6. Class A Consumption Data'!K115:L115="B",'6. Class A Consumption Data'!E115:F115)) -> 0 | H125: 0 | I125: 0 | J125: 0
B126: Customer 88 | D126: 0 | E126: =SUM(IF('6. Class A Consumption Data'!K116:L116="B",'6. Class A Consumption Data'!E116:F116)) -> 0 | H126: 0 | I126: 0 | J126: 0
B127: Customer 89 | D127: 0 | E127: =SUM(IF('6. Class A Consumption Data'!K117:L117="B",'6. Class A Consumption Data'!E117:F117)) -> 0 | H127: 0 | I127: 0 | J127: 0
B128: Customer 90 | D128: 0 | E128: =SUM(IF('6. Class A Consumption Data'!K118:L118="B",'6. Class A Consumption Data'!E118:F118)) -> 0 | H128: 0 | I128: 0 | J128: 0
B129: Customer 91 | D129: 0 | E129: =SUM(IF('6. Class A Consumption Data'!K119:L119="B",'6. Class A Consumption Data'!E119:F119)) -> 0 | H129: 0 | I129: 0 | J129: 0
B130: Customer 92 | D130: 0 | E130: =SUM(IF('6. Class A Consumption Data'!K120:L120="B",'6. Class A Consumption Data'!E120:F120)) -> 0 | H130: 0 | I130: 0 | J130: 0
B131: Customer 93 | D131: 0 | E131: =SUM(IF('6. Class A Consumption Data'!K121:L121="B",'6. Class A Consumption Data'!E121:F121)) -> 0 | H131: 0 | I131: 0 | J131: 0
B132: Customer 94 | D132: 0 | E132: =SUM(IF('6. Class A Consumption Data'!K122:L122="B",'6. Class A Consumption Data'!E122:F122)) -> 0 | H132: 0 | I132: 0 | J132: 0
B133: Customer 95 | D133: 0 | E133: =SUM(IF('6. Class A Consumption Data'!K123:L123="B",'6. Class A Consumption Data'!E123:F123)) -> 0 | H133: 0 | I133: 0 | J133: 0
B134: Customer 96 | D134: 0 | E134: =SUM(IF('6. Class A Consumption Data'!K124:L124="B",'6. Class A Consumption Data'!E124:F124)) -> 0 | H134: 0 | I134: 0 | J134: 0
B135: Customer 97 | D135: =SUM(E135:G135) -> 0 | E135: =SUM(IF('6. Class A Consumption Data'!K125:L125="B",'6. Class A Consumption Data'!E125:F125)) -> 0 | H135: 0 | I135: 0 | J135: 0
B136: Customer 98 | D136: 0 | E136: =SUM(IF('6. Class A Consumption Data'!K126:L126="B",'6. Class A Consumption Data'!E126:F126)) -> 0 | H136: 0 | I136: 0 | J136: 0
B137: Customer 99 | D137: 0 | E137: =SUM(IF('6. Class A Consumption Data'!K127:L127="B",'6. Class A Consumption Data'!E127:F127)) -> 0 | H137: 0 | I137: 0 | J137: 0
B138: Customer 100 | D138: 0 | E138: =SUM(IF('6. Class A Consumption Data'!K128:L128="B",'6. Class A Consumption Data'!E128:F128)) -> 0 | H138: 0 | I138: 0 | J138: 0
B139: Customer 101 | D139: 0 | E139: =SUM(IF('6. Class A Consumption Data'!K129:L129="B",'6. Class A Consumption Data'!E129:F129)) -> 0 | H139: 0 | I139: 0 | J139: 0
B140: Customer 102 | D140: =SUM(E140:G140) -> 0 | E140: =SUM(IF('6. Class A Consumption Data'!K130:L130="B",'6. Class A Consumption Data'!E130:F130)) -> 0 | H140: 0 | I140: 0 | J140: 0
B141: Customer 103 | D141: 0 | E141: =SUM(IF('6. Class A Consumption Data'!K131:L131="B",'6. Class A Consumption Data'!E131:F131)) -> 0 | H141: 0 | I141: 0 | J141: 0
B142: Customer 104 | D142: 0 | E142: =SUM(IF('6. Class A Consumption Data'!K132:L132="B",'6. Class A Consumption Data'!E132:F132)) -> 0 | H142: 0 | I142: 0 | J142: 0
B143: Customer 105 | D143: 0 | E143: =SUM(IF('6. Class A Consumption Data'!K133:L133="B",'6. Class A Consumption Data'!E133:F133)) -> 0 | H143: 0 | I143: 0 | J143: 0
B144: Customer 106 | D144: 0 | E144: =SUM(IF('6. Class A Consumption Data'!K134:L134="B",'6. Class A Consumption Data'!E134:F134)) -> 0 | H144: 0 | I144: 0 | J144: 0
B145: Customer 107 | D145: 0 | E145: =SUM(IF('6. Class A Consumption Data'!K135:L135="B",'6. Class A Consumption Data'!E135:F135)) -> 0 | H145: 0 | I145: 0 | J145: 0
B146: Customer 108 | D146: 0 | E146: =SUM(IF('6. Class A Consumption Data'!K136:L136="B",'6. Class A Consumption Data'!E136:F136)) -> 0 | H146: 0 | I146: 0 | J146: 0
B147: Customer 109 | D147: 0 | E147: =SUM(IF('6. Class A Consumption Data'!K137:L137="B",'6. Class A Consumption Data'!E137:F137)) -> 0 | H147: 0 | I147: 0 | J147: 0
B148: Customer 110 | D148: 0 | E148: =SUM(IF('6. Class A Consumption Data'!K138:L138="B",'6. Class A Consumption Data'!E138:F138)) -> 0 | H148: 0 | I148: 0 | J148: 0
B149: Customer 111 | D149: 0 | E149: =SUM(IF('6. Class A Consumption Data'!K139:L139="B",'6. Class A Consumption Data'!E139:F139)) -> 0 | H149: 0 | I149: 0 | J149: 0
B150: Customer 112 | D150: 0 | E150: =SUM(IF('6. Class A Consumption Data'!K140:L140="B",'6. Class A Consumption Data'!E140:F140)) -> 0 | H150: 0 | I150: 0 | J150: 0
B151: Customer 113 | D151: 0 | E151: =SUM(IF('6. Class A Consumption Data'!K141:L141="B",'6. Class A Consumption Data'!E141:F141)) -> 0 | H151: 0 | I151: 0 | J151: 0
B152: Customer 114 | D152: 0 | E152: =SUM(IF('6. Class A Consumption Data'!K142:L142="B",'6. Class A Consumption Data'!E142:F142)) -> 0 | H152: 0 | I152: 0 | J152: 0
B153: Customer 115 | D153: 0 | E153: =SUM(IF('6. Class A Consumption Data'!K143:L143="B",'6. Class A Consumption Data'!E143:F143)) -> 0 | H153: 0 | I153: 0 | J153: 0
B154: Customer 116 | D154: 0 | E154: =SUM(IF('6. Class A Consumption Data'!K144:L144="B",'6. Class A Consumption Data'!E144:F144)) -> 0 | H154: 0 | I154: 0 | J154: 0
B155: Customer 117 | D155: 0 | E155: =SUM(IF('6. Class A Consumption Data'!K145:L145="B",'6. Class A Consumption Data'!E145:F145)) -> 0 | H155: 0 | I155: 0 | J155: 0
B156: Customer 118 | D156: 0 | E156: =SUM(IF('6. Class A Consumption Data'!K146:L146="B",'6. Class A Consumption Data'!E146:F146)) -> 0 | H156: 0 | I156: 0 | J156: 0
B157: Customer 119 | D157: 0 | E157: =SUM(IF('6. Class A Consumption Data'!K147:L147="B",'6. Class A Consumption Data'!E147:F147)) -> 0 | H157: 0 | I157: 0 | J157: 0
B158: Customer 120 | D158: 0 | E158: =SUM(IF('6. Class A Consumption Data'!K148:L148="B",'6. Class A Consumption Data'!E148:F148)) -> 0 | H158: 0 | I158: 0 | J158: 0
B159: Customer 121 | D159: 0 | E159: =SUM(IF('6. Class A Consumption Data'!K149:L149="B",'6. Class A Consumption Data'!E149:F149)) -> 0 | H159: 0 | I159: 0 | J159: 0
B160: Customer 122 | D160: 0 | E160: =SUM(IF('6. Class A Consumption Data'!K150:L150="B",'6. Class A Consumption Data'!E150:F150)) -> 0 | H160: 0 | I160: 0 | J160: 0
B161: Customer 123 | D161: 0 | E161: =SUM(IF('6. Class A Consumption Data'!K151:L151="B",'6. Class A Consumption Data'!E151:F151)) -> 0 | H161: 0 | I161: 0 | J161: 0
B162: Customer 124 | D162: 0 | E162: =SUM(IF('6. Class A Consumption Data'!K152:L152="B",'6. Class A Consumption Data'!E152:F152)) -> 0 | H162: 0 | I162: 0 | J162: 0
B163: Customer 125 | D163: 0 | E163: =SUM(IF('6. Class A Consumption Data'!K153:L153="B",'6. Class A Consumption Data'!E153:F153)) -> 0 | H163: 0 | I163: 0 | J163: 0
B164: Customer 126 | D164: 0 | E164: =SUM(IF('6. Class A Consumption Data'!K154:L154="B",'6. Class A Consumption Data'!E154:F154)) -> 0 | H164: 0 | I164: 0 | J164: 0
B165: Customer 127 | D165: 0 | E165: =SUM(IF('6. Class A Consumption Data'!K155:L155="B",'6. Class A Consumption Data'!E155:F155)) -> 0 | H165: 0 | I165: 0 | J165: 0
B166: Customer 128 | D166: 0 | E166: =SUM(IF('6. Class A Consumption Data'!K156:L156="B",'6. Class A Consumption Data'!E156:F156)) -> 0 | H166: 0 | I166: 0 | J166: 0
B167: Customer 129 | D167: 0 | E167: =SUM(IF('6. Class A Consumption Data'!K157:L157="B",'6. Class A Consumption Data'!E157:F157)) -> 0 | H167: 0 | I167: 0 | J167: 0
B168: Customer 130 | D168: 0 | E168: =SUM(IF('6. Class A Consumption Data'!K158:L158="B",'6. Class A Consumption Data'!E158:F158)) -> 0 | H168: =IFERROR(+D168/$D$189,0) -> 0 | I168: =H168*$D$26 -> 0 | J168: =ROUND(IF(ISERROR(I168),0,IF(OR(ISBLANK($D$34), OR($D$34=0, $D$34="")), I168/($D$32), I168/($D$34))),2) -> 0
B169: Customer 131 | D169: 0 | E169: =SUM(IF('6. Class A Consumption Data'!K159:L159="B",'6. Class A Consumption Data'!E159:F159)) -> 0 | H169: 0 | I169: 0 | J169: 0
B170: Customer 132 | D170: 0 | E170: =SUM(IF('6. Class A Consumption Data'!K160:L160="B",'6. Class A Consumption Data'!E160:F160)) -> 0 | H170: 0 | I170: 0 | J170: 0
B171: Customer 133 | D171: 0 | E171: =SUM(IF('6. Class A Consumption Data'!K161:L161="B",'6. Class A Consumption Data'!E161:F161)) -> 0 | H171: 0 | I171: 0 | J171: 0
B172: Customer 134 | D172: 0 | E172: =SUM(IF('6. Class A Consumption Data'!K162:L162="B",'6. Class A Consumption Data'!E162:F162)) -> 0 | H172: 0 | I172: 0 | J172: 0
B173: Customer 135 | D173: 0 | E173: =SUM(IF('6. Class A Consumption Data'!K163:L163="B",'6. Class A Consumption Data'!E163:F163)) -> 0 | H173: 0 | I173: 0 | J173: 0
B174: Customer 136 | D174: 0 | E174: =SUM(IF('6. Class A Consumption Data'!K164:L164="B",'6. Class A Consumption Data'!E164:F164)) -> 0 | H174: 0 | I174: 0 | J174: 0
B175: Customer 137 | D175: 0 | E175: =SUM(IF('6. Class A Consumption Data'!K165:L165="B",'6. Class A Consumption Data'!E165:F165)) -> 0 | H175: 0 | I175: 0 | J175: 0
B176: Customer 138 | D176: 0 | E176: =SUM(IF('6. Class A Consumption Data'!K166:L166="B",'6. Class A Consumption Data'!E166:F166)) -> 0 | H176: 0 | I176: 0 | J176: 0
B177: Customer 139 | D177: 0 | E177: =SUM(IF('6. Class A Consumption Data'!K167:L167="B",'6. Class A Consumption Data'!E167:F167)) -> 0 | H177: 0 | I177: 0 | J177: 0
B178: Customer 140 | D178: 0 | E178: =SUM(IF('6. Class A Consumption Data'!K168:L168="B",'6. Class A Consumption Data'!E168:F168)) -> 0 | H178: 0 | I178: 0 | J178: 0
B179: Customer 141 | D179: 0 | E179: =SUM(IF('6. Class A Consumption Data'!K169:L169="B",'6. Class A Consumption Data'!E169:F169)) -> 0 | H179: 0 | I179: 0 | J179: 0
B180: Customer 142 | D180: 0 | E180: =SUM(IF('6. Class A Consumption Data'!K170:L170="B",'6. Class A Consumption Data'!E170:F170)) -> 0 | H180: 0 | I180: 0 | J180: 0
B181: Customer 143 | D181: 0 | E181: =SUM(IF('6. Class A Consumption Data'!K171:L171="B",'6. Class A Consumption Data'!E171:F171)) -> 0 | H181: 0 | I181: 0 | J181: 0
B182: Customer 144 | D182: 0 | E182: =SUM(IF('6. Class A Consumption Data'!K172:L172="B",'6. Class A Consumption Data'!E172:F172)) -> 0 | H182: 0 | I182: 0 | J182: 0
B183: Customer 145 | D183: 0 | E183: =SUM(IF('6. Class A Consumption Data'!K173:L173="B",'6. Class A Consumption Data'!E173:F173)) -> 0 | H183: 0 | I183: 0 | J183: 0
B184: Customer 146 | D184: 0 | E184: =SUM(IF('6. Class A Consumption Data'!K174:L174="B",'6. Class A Consumption Data'!E174:F174)) -> 0 | H184: 0 | I184: 0 | J184: 0
B185: Customer 147 | D185: 0 | E185: =SUM(IF('6. Class A Consumption Data'!K175:L175="B",'6. Class A Consumption Data'!E175:F175)) -> 0 | H185: 0 | I185: 0 | J185: 0
B186: Customer 148 | D186: 0 | E186: =SUM(IF('6. Class A Consumption Data'!K176:L176="B",'6. Class A Consumption Data'!E176:F176)) -> 0 | H186: 0 | I186: 0 | J186: 0
B187: Customer 149 | D187: 0 | E187: =SUM(IF('6. Class A Consumption Data'!K177:L177="B",'6. Class A Consumption Data'!E177:F177)) -> 0 | H187: 0 | I187: 0 | J187: 0
B188: Customer 150 | D188: 0 | E188: =SUM(IF('6. Class A Consumption Data'!K178:L178="B",'6. Class A Consumption Data'!E178:F178)) -> 0 | H188: 0 | I188: 0 | J188: 0
B189: Total for all Customers | D189: =SUM(D39:D188) -> 116517739.5 | E189: =SUM(E39:E188) -> 116517739.5 | F189: 0 | G189: 0 | H189: =SUM(H39:H188) -> 1 | I189: =SUM(I39:I188) -> -298457.9215

Sheet 6.1 GA
A1: Back to Index
B2: =+'1. Information Sheet'!B2 -> INCENTIVE REGULATION MODEL FOR 2020 FILERS
K6: Default Rate Rider Recovery Period (in months) | M6: 12
K8: Proposed Rate Rider Recovery Period (in months) | M8: 12 | N8: =IF(M8>0, "Rate Rider Recovery to be used below", "If no rate rider recovery period is proposed then the default recovery period of 12 months will be used") -> Rate Rider Recovery to be used below
B12: The purpose of this tab is to calculate the GA rate riders for all current Class B customers who did not transition between Class A and B in the period since the Account 1589 GA was last disposed. Calculations in this tab will be modified upon completion of tab 6.1a, which allocates a portion of the GA balance to transition customers, if applicable. Effective January 2017, the billing determinant and all rate riders for the disposition of GA balances will be calculated on an energy basis (kWhs) regardless of the billing determinant used for distribution rates for the particular class (see Chapter 3, Filing Requirements, section 3.2.5.2)
C14: Total Metered Non-RPP 2018 Consumption excluding WMP | E14: Total Metered 2018 Consumption for Class A Customers that were Class A for the entire period GA blance accumulated | G14: Total Metered 2018 Consumption for Customers that Transitioned Between Class A and B during the period GA balance accumulated | I14: Non-RPP Metered Consumption for Current Class B Customers (Non-RPP Consumption excluding WMP, Class A and Transition Customers' Consumption) | K14: % of total kWh | L14: Total GA $ allocated to Current Class B Customers | M14: GA Rate Rider | O14: Revenue Reconciliation | P14: Variance
C15: kWh | D15: kW | E15: kWh | F15: kW | G15: kWh | H15: kW | I15: kWh | J15: kW
B17: ='4. Billing Det. for Def-Var'!B17 -> RESIDENTIAL SERVICE CLASSIFICATION | C17: ='4. Billing Det. for Def-Var'!F17 -> 71000892.07 | D17: ='4. Billing Det. for Def-Var'!G17 -> 0 | E17: =SUM(IF('6. Class A Consumption Data'!$D$191:$D$340=$B17,'6. Class A Consumption Data'!E$191:E$340)) -> 0 | G17: =SUM(IF('6. Class A Consumption Data'!$D$29:$D$178=$B17,'6. Class A Consumption Data'!E$29:F$178)) -> 0 | I17: =ROUND(C17-E17-G17,0) -> 71000892 | K17: =IFERROR(I17/I$29,"") -> 0.02220135101 | L17: =IFERROR(L$29*K17,"") -> -181867.4027 | M17: =ROUND(IF(ISERROR(L17/I17),0,IF(OR(ISBLANK($M$8), OR($M$8=0, $M$8="")), L17/I17/($M$6/12), L17/I17/($M$8/12))),4) -> -0.0026 | N17: kwh | O17: =ROUND(M17,4)*I17 -> -184602.3192 | P17: =L17-O17 -> 2734.916549
B18: ='4. Billing Det. for Def-Var'!B18 -> GENERAL SERVICE LESS THAN 50 kW SERVICE CLASSIFICATION | C18: ='4. Billing Det. for Def-Var'!F18 -> 188602212.6 | D18: ='4. Billing Det. for Def-Var'!G18 -> 0 | E18: =SUM(IF('6. Class A Consumption Data'!$D$191:$D$340=$B18,'6. Class A Consumption Data'!E$191:E$340)) -> 0 | G18: =SUM(IF('6. Class A Consumption Data'!$D$29:$D$178=$B18,'6. Class A Consumption Data'!E$29:F$178)) -> 0 | I18: =ROUND(C18-E18-G18,0) -> 188602213 | K18: =IFERROR(I18/I$29,"") -> 0.05897424405 | L18: =IFERROR(L$29*K18,"") -> -483100.897 | M18: =ROUND(IF(ISERROR(L18/I18),0,IF(OR(ISBLANK($M$8), OR($M$8=0, $M$8="")), L18/I18/($M$6/12), L18/I18/($M$8/12))),4) -> -0.0026 | N18: kwh | O18: =ROUND(M18,4)*I18 -> -490365.7538 | P18: =L18-O18 -> 7264.856806
B19: ='4. Billing Det. for Def-Var'!B19 -> GENERAL SERVICE 50 to 4,999 kW SERVICE CLASSIFICATION | C19: ='4. Billing Det. for Def-Var'!F19 -> 4272995560 | D19: ='4. Billing Det. for Def-Var'!G19 -> 11141455.65 | E19: =SUM(IF('6. Class A Consumption Data'!$D$191:$D$340=$B19,'6. Class A Consumption Data'!E$191:E$340)) -> 1145404358 | G19: =SUM(IF('6. Class A Consumption Data'!$D$29:$D$178=$B19,'6. Class A Consumption Data'!E$29:F$178)) -> 237589455.2 | I19: 2890001748 | K19: 0.903677988 | L19: =IFERROR(L$29*K19,"") -> -7402683.217 | M19: -0.0026 | N19: kwh | O19: -7514004.545 | P19: 111321.3283
B20: ='4. Billing Det. for Def-Var'!B20 -> LARGE USE SERVICE CLASSIFICATION | C20: ='4. Billing Det. for Def-Var'!F20 -> 53218180.51 | D20: ='4. Billing Det. for Def-Var'!G20 -> 102871.3272 | E20: =SUM(IF('6. Class A Consumption Data'!$D$191:$D$340=$B20,'6. Class A Consumption Data'!E$191:E$340)) -> 53218180.51 | G20: =SUM(IF('6. Class A Consumption Data'!$D$29:$D$178=$B20,'6. Class A Consumption Data'!E$29:F$178)) -> 0 | I20: 0 | K20: 0 | L20: =IFERROR(L$29*K20,"") -> 0 | M20: 0 | N20: kwh | O20: 0 | P20: 0
B21: ='4. Billing Det. for Def-Var'!B21 -> UNMETERED SCATTERED LOAD SERVICE CLASSIFICATION | C21: ='4. Billing Det. for Def-Var'!F21 -> 214076.0963 | D21: ='4. Billing Det. for Def-Var'!G21 -> 0 | E21: =SUM(IF('6. Class A Consumption Data'!$D$191:$D$340=$B21,'6. Class A Consumption Data'!E$191:E$340)) -> 0 | G21: =SUM(IF('6. Class A Consumption Data'!$D$29:$D$178=$B21,'6. Class A Consumption Data'!E$29:F$178)) -> 0 | I21: 214076 | K21: =IFERROR(I21/I$29,"") -> 6.693967196e-05 | L21: -548.3515065 | M21: -0.0026 | N21: kwh | O21: -556.5976 | P21: 8.246093515
B22: ='4. Billing Det. for Def-Var'!B22 -> STANDBY POWER SERVICE CLASSIFICATION | C22: ='4. Billing Det. for Def-Var'!F22 -> 0 | D22: ='4. Billing Det. for Def-Var'!G22 -> 0 | E22: =SUM(IF('6. Class A Consumption Data'!$D$191:$D$340=$B22,'6. Class A Consumption Data'!E$191:E$340)) -> 0 | G22: =SUM(IF('6. Class A Consumption Data'!$D$29:$D$178=$B22,'6. Class A Consumption Data'!E$29:F$178)) -> 0 | I22: 0 | K22: 0 | L22: 0 | M22: 0 | O22: 0 | P22: 0
B23: ='4. Billing Det. for Def-Var'!B23 -> SENTINEL LIGHTING SERVICE CLASSIFICATION | C23: ='4. Billing Det. for Def-Var'!F23 -> 12264 | D23: ='4. Billing Det. for Def-Var'!G23 -> 26.68129032 | E23: =SUM(IF('6. Class A Consumption Data'!$D$191:$D$340=$B23,'6. Class A Consumption Data'!E$191:E$340)) -> 0 | G23: =SUM(IF('6. Class A Consumption Data'!$D$29:$D$178=$B23,'6. Class A Consumption Data'!E$29:F$178)) -> 0 | I23: 12264 | K23: 3.83484434e-06 | L23: -31.41399725 | M23: -0.0026 | N23: kwh | O23: -31.8864 | P23: 0.4724027489
B24: ='4. Billing Det. for Def-Var'!B24 -> STREET LIGHTING SERVICE CLASSIFICATION | C24: ='4. Billing Det. for Def-Var'!F24 -> 48212564 | D24: ='4. Billing Det. for Def-Var'!G24 -> 132306.6288 | E24: =SUM(IF('6. Class A Consumption Data'!$D$191:$D$340=$B24,'6. Class A Consumption Data'!E$191:E$340)) -> 0 | G24: =SUM(IF('6. Class A Consumption Data'!$D$29:$D$178=$B24,'6. Class A Consumption Data'!E$29:F$178)) -> 0 | I24: 48212564 | K24: 0.01507564238 | L24: -123495.5441 | M24: -0.0026 | N24: kwh | O24: -125352.6664 | P24: 1857.12229
C29: =SUM(C17:C28) -> 4634255750 | D29: =SUM(D17:D28) -> 11376660.29 | E29: 1198622538 | F29: 0 | G29: 237589455.2 | H29: 0 | I29: 3198043757 | J29: 0 | K29: 1 | L29: ='6.1a GA Allocation'!D27 -> -8191726.826 | O29: =SUM(O17:O28) -> -8314913.768 | P29: =SUM(P17:P28) -> 123186.9424
L30: from Sheet 6.1a
O31: NOTE: if rate rider is at 5 decimal places, then the balance dispostion is in full

Sheet 6.2a CBR B_Allocation
A1: Back to Index
B2: =+'1. Information Sheet'!B2 -> INCENTIVE REGULATION MODEL FOR 2020 FILERS
B11: This tab allocates the CBR Class B balance to transition customers (i.e Class A customers who were former Class B customers and Class B customers who were former Class A customers) who contributed to the current CBR Class B balance. The tables below calculate specific amounts for each customer who made the change. The general CBR Class B rate rider is not to be charged to the transition customers that are allocated amounts in the table below. Consistent with prior decisions, distributors are generally expected to settle the amount through 12 equal adjustments to bills.
B14: Please enter the Year the Account 1580 CBR Class B was Last Disposed. | C14: 2017 | D14: (Note: Account 1580, Sub-account CBR Class B was established starting in 2015)
B16: Allocation of totalConsumption (kWh) between Current Class B and Class A/B Transition Customers
D17: Total | E17: =C14+1 -> 2018 | F17: =E17-1 -> 2017 | G17: =F17-1 -> 2016
B18: Total Class B Consumption for Years During Balance Accumulation (Total Consumption LESS WMP Consumption and Consumption for Class A customers who were Class A for partial or full year) | C18: A | D18: =SUM(E18:G18) -> 7279414939 | E18: =N25 -> 7279414939 | H18: from Cell N25
B19: Transition Customers' Class B Consumption (i.e. full year or partial year) | C19: B | D19: =SUM(E19:G19) -> 116517739.5 | E19: =E183 -> 116517739.5 | F19: =F183 -> 0 | G19: 0
B20: Transition Customers' Portion of Total Consumption | C20: C=B/A | D20: =IFERROR(+D19/D18,0) -> 0.01600647037
L21: Sheet 4 | M21: total kWh | N21: ='4. Billing Det. for Def-Var'!D29 -> 8629509610
L22: Sheet 4 | M22: WMP kWh | N22: ='4. Billing Det. for Def-Var'!H29 -> 30400417
B23: Allocation of Total CBR Class B Balance $ | L23: Sheet 6.1 | M23: Class A (full) | N23: ='6.1 GA'!E29 -> 1198622538
L24: Sheet 6.1 | M24: Class A (partial) | N24: =SUM(IF('6. Class A Consumption Data'!$K$28:$L$71="a",'6. Class A Consumption Data'!$E$28:$F$71)) -> 121071715.7
B25: Total CBR Class B Balance | C25: D | D25: ='3. Continuity Schedule'!BU25 -> -229043.1011 | H25: =IF('6.2 CBR B'!U18="TRUE","NO MONTHLY EQUAL PAYMENTS. The entire OEB-approved CBR Class B amount is transferred into Account 1580 WMS control account to be disposed through the general purpose Group 1 DVA rate riders. ","") -> NO MONTHLY EQUAL PAYMENTS. The entire OEB-approved CBR Class B amount is transferred into Account 1580 WMS control account to be disposed through the general purpose Group 1 DVA rate riders. | N25: =N21-N22-N23-N24 -> 7279414939
B26: Transition Customers Portion of CBR Class B Balance | C26: E=D*C | D26: =+D20*D25 -> -3666.171611
B27: CBR Class B Balance to be disposed to Current Class B Customers through Rate Rider | C27: F=D-E | D27: =+D25-D26 -> -225376.9295
B29: Allocation of CBR Class B Balances to Transition Customers
B31: # of Class A/B Transition Customers | C31: ='6. Class A Consumption Data'!C23 -> 43
B32: Customer | D32: Total Metered Consumption (kWh) for Transition Customers During the Period WhenThey Were Class B Customers | E32: Metered Consumption (kWh) for Transition Customers During the Period When They Were Class B Customers in 2018 | F32: Metered Consumption (kWh) for Transition Customers During the Period When They Were Class B Customers in 2017 | G32: Metered Consumption (kWh) for Transition Customers During the Period When They Were Class B Customers in 2016 | H32: % of kWh | I32: Customer Specific CBR Class B Allocation for the Period When They Were a Class B Customer | J32: Monthly Equal Payments
B33: Customer 1 | D33: =SUM(E33:G33) -> 2091600.68 | E33: =SUM(IF('6. Class A Consumption Data'!K29:L29="B",'6. Class A Consumption Data'!E29:F29)) -> 2091600.68 | H33: =IFERROR(+D33/$D$183,0) -> 0.01795092051 | I33: =IF('6.2 CBR B'!U$18="TRUE","",+H33*$D$26) ->  | J33: =IF('6.2 CBR B'!U$18="TRUE","",+I33/12) -> 
B34: Customer 2 | D34: 3711081.466 | E34: =SUM(IF('6. Class A Consumption Data'!K30:L30="B",'6. Class A Consumption Data'!E30:F30)) -> 3711081.466 | H34: =IFERROR(+D34/$D$183,0) -> 0.03184992673 | I34: =IF('6.2 CBR B'!U$18="TRUE","",+H34*$D$26) ->  | J34: =IF('6.2 CBR B'!U$18="TRUE","",+I34/12) -> 
B35: Customer 3 | D35: 3021305.136 | E35: =SUM(IF('6. Class A Consumption Data'!K31:L31="B",'6. Class A Consumption Data'!E31:F31)) -> 3021305.136 | H35: 0.02593000129 | I35: =IF('6.2 CBR B'!U$18="TRUE","",+H35*$D$26) ->  | J35: =IF('6.2 CBR B'!U$18="TRUE","",+I35/12) -> 
B36: Customer 4 | D36: 3394484.53 | E36: =SUM(IF('6. Class A Consumption Data'!K32:L32="B",'6. Class A Consumption Data'!E32:F32)) -> 3394484.53 | H36: 0.02913277021 | I36: =IF('6.2 CBR B'!U$18="TRUE","",+H36*$D$26) ->  | J36: =IF('6.2 CBR B'!U$18="TRUE","",+I36/12) -> 
B37: Customer 5 | D37: 2804908.91 | E37: =SUM(IF('6. Class A Consumption Data'!K33:L33="B",'6. Class A Consumption Data'!E33:F33)) -> 2804908.91 | H37: 0.02407280575 | I37: =IF('6.2 CBR B'!U$18="TRUE","",+H37*$D$26) ->  | J37: =IF('6.2 CBR B'!U$18="TRUE","",+I37/12) -> 
B38: Customer 6 | D38: 1722799.31 | E38: =SUM(IF('6. Class A Consumption Data'!K34:L34="B",'6. Class A Consumption Data'!E34:F34)) -> 1722799.31 | H38: 0.01478572548 | I38: =IF('6.2 CBR B'!U$18="TRUE","",+H38*$D$26) ->  | J38: =IF('6.2 CBR B'!U$18="TRUE","",+I38/12) -> 
B39: Customer 7 | D39: 1703529.236 | E39: =SUM(IF('6. Class A Consumption Data'!K35:L35="B",'6. Class A Consumption Data'!E35:F35)) -> 1703529.236 | H39: 0.01462034231 | I39: =IF('6.2 CBR B'!U$18="TRUE","",+H39*$D$26) ->  | J39: =IF('6.2 CBR B'!U$18="TRUE","",+I39/12) -> 
B40: Customer 8 | D40: 2905931.995 | E40: =SUM(IF('6. Class A Consumption Data'!K36:L36="B",'6. Class A Consumption Data'!E36:F36)) -> 2905931.995 | H40: 0.02493982468 | I40: =IF('6.2 CBR B'!U$18="TRUE","",+H40*$D$26) ->  | J40: =IF('6.2 CBR B'!U$18="TRUE","",+I40/12) -> 
B41: Customer 9 | D41: 4925392.991 | E41: =SUM(IF('6. Class A Consumption Data'!K37:L37="B",'6. Class A Consumption Data'!E37:F37)) -> 4925392.991 | H41: 0.04227161471 | I41: =IF('6.2 CBR B'!U$18="TRUE","",+H41*$D$26) ->  | J41: =IF('6.2 CBR B'!U$18="TRUE","",+I41/12) -> 
B42: Customer 10 | D42: 980292.638 | E42: =SUM(IF('6. Class A Consumption Data'!K38:L38="B",'6. Class A Consumption Data'!E38:F38)) -> 980292.638 | H42: 0.008413247993 | I42: =IF('6.2 CBR B'!U$18="TRUE","",+H42*$D$26) ->  | J42: =IF('6.2 CBR B'!U$18="TRUE","",+I42/12) -> 
B43: Customer 11 | D43: 3300084.817 | E43: =SUM(IF('6. Class A Consumption Data'!K39:L39="B",'6. Class A Consumption Data'!E39:F39)) -> 3300084.817 | H43: 0.02832259561 | I43: =IF('6.2 CBR B'!U$18="TRUE","",+H43*$D$26) ->  | J43: =IF('6.2 CBR B'!U$18="TRUE","",+I43/12) -> 
B44: Customer 12 | D44: 218664.6081 | E44: =SUM(IF('6. Class A Consumption Data'!K40:L40="B",'6. Class A Consumption Data'!E40:F40)) -> 218664.6081 | H44: 0.001876663666 | I44: =IF('6.2 CBR B'!U$18="TRUE","",+H44*$D$26) ->  | J44: =IF('6.2 CBR B'!U$18="TRUE","",+I44/12) -> 
B45: Customer 13 | D45: 7824932.33 | E45: =SUM(IF('6. Class A Consumption Data'!K41:L41="B",'6. Class A Consumption Data'!E41:F41)) -> 7824932.33 | H45: 0.06715657516 | I45: =IF('6.2 CBR B'!U$18="TRUE","",+H45*$D$26) ->  | J45: =IF('6.2 CBR B'!U$18="TRUE","",+I45/12) -> 
B46: Customer 14 | D46: 6112326.486 | E46: =SUM(IF('6. Class A Consumption Data'!K42:L42="B",'6. Class A Consumption Data'!E42:F42)) -> 6112326.486 | H46: 0.05245833392 | I46: =IF('6.2 CBR B'!U$18="TRUE","",+H46*$D$26) ->  | J46: =IF('6.2 CBR B'!U$18="TRUE","",+I46/12) -> 
B47: Customer 15 | D47: 4483968.173 | E47: =SUM(IF('6. Class A Consumption Data'!K43:L43="B",'6. Class A Consumption Data'!E43:F43)) -> 4483968.173 | H47: 0.03848313735 | I47: =IF('6.2 CBR B'!U$18="TRUE","",+H47*$D$26) ->  | J47: =IF('6.2 CBR B'!U$18="TRUE","",+I47/12) -> 
B48: Customer 16 | D48: 5165598.406 | E48: =SUM(IF('6. Class A Consumption Data'!K44:L44="B",'6. Class A Consumption Data'!E44:F44)) -> 5165598.406 | H48: 0.04433314985 | I48: =IF('6.2 CBR B'!U$18="TRUE","",+H48*$D$26) ->  | J48: =IF('6.2 CBR B'!U$18="TRUE","",+I48/12) -> 
B49: Customer 17 | D49: 4699213.078 | E49: =SUM(IF('6. Class A Consumption Data'!K45:L45="B",'6. Class A Consumption Data'!E45:F45)) -> 4699213.078 | H49: 0.04033045181 | I49: =IF('6.2 CBR B'!U$18="TRUE","",+H49*$D$26) ->  | J49: =IF('6.2 CBR B'!U$18="TRUE","",+I49/12) -> 
B50: Customer 18 | D50: 2066444.464 | E50: =SUM(IF('6. Class A Consumption Data'!K46:L46="B",'6. Class A Consumption Data'!E46:F46)) -> 2066444.464 | H50: 0.01773502021 | I50: =IF('6.2 CBR B'!U$18="TRUE","",+H50*$D$26) ->  | J50: =IF('6.2 CBR B'!U$18="TRUE","",+I50/12) -> 
B51: Customer 19 | D51: 4870282.002 | E51: =SUM(IF('6. Class A Consumption Data'!K47:L47="B",'6. Class A Consumption Data'!E47:F47)) -> 4870282.002 | H51: 0.04179863103 | I51: =IF('6.2 CBR B'!U$18="TRUE","",+H51*$D$26) ->  | J51: =IF('6.2 CBR B'!U$18="TRUE","",+I51/12) -> 
B52: Customer 20 | D52: 1936691.041 | E52: =SUM(IF('6. Class A Consumption Data'!K48:L48="B",'6. Class A Consumption Data'!E48:F48)) -> 1936691.041 | H52: 0.01662142648 | I52: =IF('6.2 CBR B'!U$18="TRUE","",+H52*$D$26) ->  | J52: =IF('6.2 CBR B'!U$18="TRUE","",+I52/12) -> 
B53: Customer 21 | D53: 2802169.661 | E53: =SUM(IF('6. Class A Consumption Data'!K49:L49="B",'6. Class A Consumption Data'!E49:F49)) -> 2802169.661 | H53: 0.02404929647 | I53: =IF('6.2 CBR B'!U$18="TRUE","",+H53*$D$26) ->  | J53: =IF('6.2 CBR B'!U$18="TRUE","",+I53/12) -> 
B54: Customer 22 | D54: 2014215.664 | E54: =SUM(IF('6. Class A Consumption Data'!K50:L50="B",'6. Class A Consumption Data'!E50:F50)) -> 2014215.664 | H54: 0.01728677257 | I54: =IF('6.2 CBR B'!U$18="TRUE","",+H54*$D$26) ->  | J54: =IF('6.2 CBR B'!U$18="TRUE","",+I54/12) -> 
B55: Customer 23 | D55: 2356506.098 | E55: =SUM(IF('6. Class A Consumption Data'!K51:L51="B",'6. Class A Consumption Data'!E51:F51)) -> 2356506.098 | H55: 0.02022444057 | I55: =IF('6.2 CBR B'!U$18="TRUE","",+H55*$D$26) ->  | J55: =IF('6.2 CBR B'!U$18="TRUE","",+I55/12) -> 
B56: Customer 24 | D56: 2103529.381 | E56: =SUM(IF('6. Class A Consumption Data'!K52:L52="B",'6. Class A Consumption Data'!E52:F52)) -> 2103529.381 | H56: 0.01805329721 | I56: =IF('6.2 CBR B'!U$18="TRUE","",+H56*$D$26) ->  | J56: =IF('6.2 CBR B'!U$18="TRUE","",+I56/12) -> 
B57: Customer 25 | D57: 1605781.861 | E57: =SUM(IF('6. Class A Consumption Data'!K53:L53="B",'6. Class A Consumption Data'!E53:F53)) -> 1605781.861 | H57: 0.01378143679 | I57: =IF('6.2 CBR B'!U$18="TRUE","",+H57*$D$26) ->  | J57: =IF('6.2 CBR B'!U$18="TRUE","",+I57/12) -> 
B58: Customer 26 | D58: 1600746.779 | E58: =SUM(IF('6. Class A Consumption Data'!K54:L54="B",'6. Class A Consumption Data'!E54:F54)) -> 1600746.779 | H58: 0.01373822378 | I58: =IF('6.2 CBR B'!U$18="TRUE","",+H58*$D$26) ->  | J58: =IF('6.2 CBR B'!U$18="TRUE","",+I58/12) -> 
B59: Customer 27 | D59: 2140429 | E59: =SUM(IF('6. Class A Consumption Data'!K55:L55="B",'6. Class A Consumption Data'!E55:F55)) -> 2140429 | H59: 0.01836998391 | I59: =IF('6.2 CBR B'!U$18="TRUE","",+H59*$D$26) ->  | J59: =IF('6.2 CBR B'!U$18="TRUE","",+I59/12) -> 
B60: Customer 28 | D60: 1895749.262 | E60: =SUM(IF('6. Class A Consumption Data'!K56:L56="B",'6. Class A Consumption Data'!E56:F56)) -> 1895749.262 | H60: 0.01627004841 | I60: =IF('6.2 CBR B'!U$18="TRUE","",+H60*$D$26) ->  | J60: =IF('6.2 CBR B'!U$18="TRUE","",+I60/12) -> 
B61: Customer 29 | D61: 2249016.535 | E61: =SUM(IF('6. Class A Consumption Data'!K57:L57="B",'6. Class A Consumption Data'!E57:F57)) -> 2249016.535 | H61: 0.01930192385 | I61: =IF('6.2 CBR B'!U$18="TRUE","",+H61*$D$26) ->  | J61: =IF('6.2 CBR B'!U$18="TRUE","",+I61/12) -> 
B62: Customer 30 | D62: 2034948.111 | E62: =SUM(IF('6. Class A Consumption Data'!K58:L58="B",'6. Class A Consumption Data'!E58:F58)) -> 2034948.111 | H62: 0.0174647064 | I62: =IF('6.2 CBR B'!U$18="TRUE","",+H62*$D$26) ->  | J62: =IF('6.2 CBR B'!U$18="TRUE","",+I62/12) -> 
B63: Customer 31 | D63: 1654918.152 | E63: =SUM(IF('6. Class A Consumption Data'!K59:L59="B",'6. Class A Consumption Data'!E59:F59)) -> 1654918.152 | H63: 0.01420314331 | I63: =IF('6.2 CBR B'!U$18="TRUE","",+H63*$D$26) ->  | J63: =IF('6.2 CBR B'!U$18="TRUE","",+I63/12) -> 
B64: Customer 32 | D64: 2206686.674 | E64: =SUM(IF('6. Class A Consumption Data'!K60:L60="B",'6. Class A Consumption Data'!E60:F60)) -> 2206686.674 | H64: 0.01893863272 | I64: =IF('6.2 CBR B'!U$18="TRUE","",+H64*$D$26) ->  | J64: =IF('6.2 CBR B'!U$18="TRUE","",+I64/12) -> 
B65: Customer 33 | D65: 1666590.901 | E65: =SUM(IF('6. Class A Consumption Data'!K61:L61="B",'6. Class A Consumption Data'!E61:F61)) -> 1666590.901 | H65: 0.01430332332 | I65: =IF('6.2 CBR B'!U$18="TRUE","",+H65*$D$26) ->  | J65: =IF('6.2 CBR B'!U$18="TRUE","",+I65/12) -> 
B66: Customer 34 | D66: 2435579.221 | E66: =SUM(IF('6. Class A Consumption Data'!K62:L62="B",'6. Class A Consumption Data'!E62:F62)) -> 2435579.221 | H66: 0.02090307649 | I66: =IF('6.2 CBR B'!U$18="TRUE","",+H66*$D$26) ->  | J66: =IF('6.2 CBR B'!U$18="TRUE","",+I66/12) -> 
B67: Customer 35 | D67: 2055538.575 | E67: =SUM(IF('6. Class A Consumption Data'!K63:L63="B",'6. Class A Consumption Data'!E63:F63)) -> 2055538.575 | H67: 0.01764142167 | I67: =IF('6.2 CBR B'!U$18="TRUE","",+H67*$D$26) ->  | J67: =IF('6.2 CBR B'!U$18="TRUE","",+I67/12) -> 
B68: Customer 36 | D68: 1566061.863 | E68: =SUM(IF('6. Class A Consumption Data'!K64:L64="B",'6. Class A Consumption Data'!E64:F64)) -> 1566061.863 | H68: 0.01344054451 | I68: =IF('6.2 CBR B'!U$18="TRUE","",+H68*$D$26) ->  | J68: =IF('6.2 CBR B'!U$18="TRUE","",+I68/12) -> 
B69: Customer 37 | D69: 1343291.76 | E69: =SUM(IF('6. Class A Consumption Data'!K65:L65="B",'6. Class A Consumption Data'!E65:F65)) -> 1343291.76 | H69: 0.0115286459 | I69: =IF('6.2 CBR B'!U$18="TRUE","",+H69*$D$26) ->  | J69: =IF('6.2 CBR B'!U$18="TRUE","",+I69/12) -> 
B70: Customer 38 | D70: 1436514.36 | E70: =SUM(IF('6. Class A Consumption Data'!K66:L66="B",'6. Class A Consumption Data'!E66:F66)) -> 1436514.36 | H70: 0.01232871807 | I70: =IF('6.2 CBR B'!U$18="TRUE","",+H70*$D$26) ->  | J70: =IF('6.2 CBR B'!U$18="TRUE","",+I70/12) -> 
B71: Customer 39 | D71: 1419971.5 | E71: =SUM(IF('6. Class A Consumption Data'!K67:L67="B",'6. Class A Consumption Data'!E67:F67)) -> 1419971.5 | H71: 0.01218674089 | I71: =IF('6.2 CBR B'!U$18="TRUE","",+H71*$D$26) ->  | J71: =IF('6.2 CBR B'!U$18="TRUE","",+I71/12) -> 
B72: Customer 40 | D72: 6283197.38 | E72: =SUM(IF('6. Class A Consumption Data'!K68:L68="B",'6. Class A Consumption Data'!E68:F68)) -> 6283197.38 | H72: 0.05392481357 | I72: =IF('6.2 CBR B'!U$18="TRUE","",+H72*$D$26) ->  | J72: =IF('6.2 CBR B'!U$18="TRUE","",+I72/12) -> 
B73: Customer 41 | D73: 1798580.462 | E73: =SUM(IF('6. Class A Consumption Data'!K69:L69="B",'6. Class A Consumption Data'!E69:F69)) -> 1798580.462 | H73: 0.01543610844 | I73: =IF('6.2 CBR B'!U$18="TRUE","",+H73*$D$26) ->  | J73: =IF('6.2 CBR B'!U$18="TRUE","",+I73/12) -> 
B74: Customer 42 | D74: 2175504 | E74: =SUM(IF('6. Class A Consumption Data'!K70:L70="B",'6. Class A Consumption Data'!E70:F70)) -> 2175504 | H74: 0.01867101104 | I74: =IF('6.2 CBR B'!U$18="TRUE","",+H74*$D$26) ->  | J74: =IF('6.2 CBR B'!U$18="TRUE","",+I74/12) -> 
B75: Customer 43 | D75: 1732680 | E75: =SUM(IF('6. Class A Consumption Data'!K71:L71="B",'6. Class A Consumption Data'!E71:F71)) -> 1732680 | H75: 0.01487052536 | I75: =IF('6.2 CBR B'!U$18="TRUE","",+H75*$D$26) ->  | J75: =IF('6.2 CBR B'!U$18="TRUE","",+I75/12) -> 
B76: Customer 44 | D76: 0 | E76: =SUM(IF('6. Class A Consumption Data'!K72:L72="B",'6. Class A Consumption Data'!E72:F72)) -> 0 | H76: 0 | I76: =IF('6.2 CBR B'!U$18="TRUE","",+H76*$D$26) ->  | J76: =IF('6.2 CBR B'!U$18="TRUE","",+I76/12) -> 
B77: Customer 45 | D77: 0 | E77: =SUM(IF('6. Class A Consumption Data'!K73:L73="B",'6. Class A Consumption Data'!E73:F73)) -> 0 | H77: 0 | I77: =IF('6.2 CBR B'!U$18="TRUE","",+H77*$D$26) ->  | J77: =IF('6.2 CBR B'!U$18="TRUE","",+I77/12) -> 
B78: Customer 46 | D78: 0 | E78: =SUM(IF('6. Class A Consumption Data'!K74:L74="B",'6. Class A Consumption Data'!E74:F74)) -> 0 | H78: 0 | I78: =IF('6.2 CBR B'!U$18="TRUE","",+H78*$D$26) ->  | J78: =IF('6.2 CBR B'!U$18="TRUE","",+I78/12) -> 
B79: Customer 47 | D79: 0 | E79: =SUM(IF('6. Class A Consumption Data'!K75:L75="B",'6. Class A Consumption Data'!E75:F75)) -> 0 | H79: 0 | I79: =IF('6.2 CBR B'!U$18="TRUE","",+H79*$D$26) ->  | J79: =IF('6.2 CBR B'!U$18="TRUE","",+I79/12) -> 
B80: Customer 48 | D80: 0 | E80: =SUM(IF('6. Class A Consumption Data'!K76:L76="B",'6. Class A Consumption Data'!E76:F76)) -> 0 | H80: 0 | I80: =IF('6.2 CBR B'!U$18="TRUE","",+H80*$D$26) ->  | J80: =IF('6.2 CBR B'!U$18="TRUE","",+I80/12) -> 
B81: Customer 49 | D81: 0 | E81: =SUM(IF('6. Class A Consumption Data'!K77:L77="B",'6. Class A Consumption Data'!E77:F77)) -> 0 | H81: 0 | I81: =IF('6.2 CBR B'!U$18="TRUE","",+H81*$D$26) ->  | J81: =IF('6.2 CBR B'!U$18="TRUE","",+I81/12) -> 
B82: Customer 50 | D82: 0 | E82: =SUM(IF('6. Class A Consumption Data'!K78:L78="B",'6. Class A Consumption Data'!E78:F78)) -> 0 | H82: 0 | I82: =IF('6.2 CBR B'!U$18="TRUE","",+H82*$D$26) ->  | J82: =IF('6.2 CBR B'!U$18="TRUE","",+I82/12) -> 
B83: Customer 51 | D83: 0 | E83: =SUM(IF('6. Class A Consumption Data'!K79:L79="B",'6. Class A Consumption Data'!E79:F79)) -> 0 | H83: 0 | I83: =IF('6.2 CBR B'!U$18="TRUE","",+H83*$D$26) ->  | J83: =IF('6.2 CBR B'!U$18="TRUE","",+I83/12) -> 
B84: Customer 52 | D84: 0 | E84: =SUM(IF('6. Class A Consumption Data'!K80:L80="B",'6. Class A Consumption Data'!E80:F80)) -> 0 | H84: 0 | I84: =IF('6.2 CBR B'!U$18="TRUE","",+H84*$D$26) ->  | J84: =IF('6.2 CBR B'!U$18="TRUE","",+I84/12) -> 
B85: Customer 53 | D85: 0 | E85: =SUM(IF('6. Class A Consumption Data'!K81:L81="B",'6. Class A Consumption Data'!E81:F81)) -> 0 | H85: 0 | I85: =IF('6.2 CBR B'!U$18="TRUE","",+H85*$D$26) ->  | J85: =IF('6.2 CBR B'!U$18="TRUE","",+I85/12) -> 
B86: Customer 54 | D86: 0 | E86: =SUM(IF('6. Class A Consumption Data'!K82:L82="B",'6. Class A Consumption Data'!E82:F82)) -> 0 | H86: 0 | I86: =IF('6.2 CBR B'!U$18="TRUE","",+H86*$D$26) ->  | J86: =IF('6.2 CBR B'!U$18="TRUE","",+I86/12) -> 
B87: Customer 55 | D87: 0 | E87: =SUM(IF('6. Class A Consumption Data'!K83:L83="B",'6. Class A Consumption Data'!E83:F83)) -> 0 | H87: 0 | I87: =IF('6.2 CBR B'!U$18="TRUE","",+H87*$D$26) ->  | J87: =IF('6.2 CBR B'!U$18="TRUE","",+I87/12) -> 
B88: Customer 56 | D88: 0 | E88: =SUM(IF('6. Class A Consumption Data'!K84:L84="B",'6. Class A Consumption Data'!E84:F84)) -> 0 | H88: 0 | I88: =IF('6.2 CBR B'!U$18="TRUE","",+H88*$D$26) ->  | J88: =IF('6.2 CBR B'!U$18="TRUE","",+I88/12) -> 
B89: Customer 57 | D89: 0 | E89: =SUM(IF('6. Class A Consumption Data'!K85:L85="B",'6. Class A Consumption Data'!E85:F85)) -> 0 | H89: 0 | I89: =IF('6.2 CBR B'!U$18="TRUE","",+H89*$D$26) ->  | J89: =IF('6.2 CBR B'!U$18="TRUE","",+I89/12) -> 
B90: Customer 58 | D90: 0 | E90: =SUM(IF('6. Class A Consumption Data'!K86:L86="B",'6. Class A Consumption Data'!E86:F86)) -> 0 | H90: 0 | I90: =IF('6.2 CBR B'!U$18="TRUE","",+H90*$D$26) ->  | J90: =IF('6.2 CBR B'!U$18="TRUE","",+I90/12) -> 
B91: Customer 59 | D91: 0 | E91: =SUM(IF('6. Class A Consumption Data'!K87:L87="B",'6. Class A Consumption Data'!E87:F87)) -> 0 | H91: 0 | I91: =IF('6.2 CBR B'!U$18="TRUE","",+H91*$D$26) ->  | J91: =IF('6.2 CBR B'!U$18="TRUE","",+I91/12) -> 
B92: Customer 60 | D92: 0 | E92: =SUM(IF('6. Class A Consumption Data'!K88:L88="B",'6. Class A Consumption Data'!E88:F88)) -> 0 | H92: 0 | I92: =IF('6.2 CBR B'!U$18="TRUE","",+H92*$D$26) ->  | J92: =IF('6.2 CBR B'!U$18="TRUE","",+I92/12) -> 
B93: Customer 61 | D93: 0 | E93: =SUM(IF('6. Class A Consumption Data'!K89:L89="B",'6. Class A Consumption Data'!E89:F89)) -> 0 | H93: 0 | I93: =IF('6.2 CBR B'!U$18="TRUE","",+H93*$D$26) ->  | J93: =IF('6.2 CBR B'!U$18="TRUE","",+I93/12) -> 
B94: Customer 62 | D94: 0 | E94: =SUM(IF('6. Class A Consumption Data'!K90:L90="B",'6. Class A Consumption Data'!E90:F90)) -> 0 | H94: 0 | I94: =IF('6.2 CBR B'!U$18="TRUE","",+H94*$D$26) ->  | J94: =IF('6.2 CBR B'!U$18="TRUE","",+I94/12) -> 
B95: Customer 63 | D95: 0 | E95: =SUM(IF('6. Class A Consumption Data'!K91:L91="B",'6. Class A Consumption Data'!E91:F91)) -> 0 | H95: 0 | I95: =IF('6.2 CBR B'!U$18="TRUE","",+H95*$D$26) ->  | J95: =IF('6.2 CBR B'!U$18="TRUE","",+I95/12) -> 
B96: Customer 64 | D96: 0 | E96: =SUM(IF('6. Class A Consumption Data'!K92:L92="B",'6. Class A Consumption Data'!E92:F92)) -> 0 | H96: 0 | I96: =IF('6.2 CBR B'!U$18="TRUE","",+H96*$D$26) ->  | J96: =IF('6.2 CBR B'!U$18="TRUE","",+I96/12) -> 
B97: Customer 65 | D97: =SUM(E97:G97) -> 0 | E97: =SUM(IF('6. Class A Consumption Data'!K93:L93="B",'6. Class A Consumption Data'!E93:F93)) -> 0 | H97: 0 | I97: =IF('6.2 CBR B'!U$18="TRUE","",+H97*$D$26) ->  | J97: =IF('6.2 CBR B'!U$18="TRUE","",+I97/12) -> 
B98: Customer 66 | D98: 0 | E98: =SUM(IF('6. Class A Consumption Data'!K94:L94="B",'6. Class A Consumption Data'!E94:F94)) -> 0 | H98: =IFERROR(+D98/$D$183,0) -> 0 | I98: =IF('6.2 CBR B'!U$18="TRUE","",+H98*$D$26) ->  | J98: =IF('6.2 CBR B'!U$18="TRUE","",+I98/12) -> 
B99: Customer 67 | D99: 0 | E99: =SUM(IF('6. Class A Consumption Data'!K95:L95="B",'6. Class A Consumption Data'!E95:F95)) -> 0 | H99: 0 | I99: =IF('6.2 CBR B'!U$18="TRUE","",+H99*$D$26) ->  | J99: =IF('6.2 CBR B'!U$18="TRUE","",+I99/12) -> 
B100: Customer 68 | D100: 0 | E100: =SUM(IF('6. Class A Consumption Data'!K96:L96="B",'6. Class A Consumption Data'!E96:F96)) -> 0 | H100: 0 | I100: =IF('6.2 CBR B'!U$18="TRUE","",+H100*$D$26) ->  | J100: =IF('6.2 CBR B'!U$18="TRUE","",+I100/12) -> 
B101: Customer 69 | D101: 0 | E101: =SUM(IF('6. Class A Consumption Data'!K97:L97="B",'6. Class A Consumption Data'!E97:F97)) -> 0 | H101: 0 | I101: =IF('6.2 CBR B'!U$18="TRUE","",+H101*$D$26) ->  | J101: =IF('6.2 CBR B'!U$18="TRUE","",+I101/12) -> 
B102: Customer 70 | D102: 0 | E102: =SUM(IF('6. Class A Consumption Data'!K98:L98="B",'6. Class A Consumption Data'!E98:F98)) -> 0 | H102: 0 | I102: =IF('6.2 CBR B'!U$18="TRUE","",+H102*$D$26) ->  | J102: =IF('6.2 CBR B'!U$18="TRUE","",+I102/12) -> 
B103: Customer 71 | D103: 0 | E103: =SUM(IF('6. Class A Consumption Data'!K99:L99="B",'6. Class A Consumption Data'!E99:F99)) -> 0 | H103: 0 | I103: =IF('6.2 CBR B'!U$18="TRUE","",+H103*$D$26) ->  | J103: =IF('6.2 CBR B'!U$18="TRUE","",+I103/12) -> 
B104: Customer 72 | D104: 0 | E104: =SUM(IF('6. Class A Consumption Data'!K100:L100="B",'6. Class A Consumption Data'!E100:F100)) -> 0 | H104: 0 | I104: =IF('6.2 CBR B'!U$18="TRUE","",+H104*$D$26) ->  | J104: =IF('6.2 CBR B'!U$18="TRUE","",+I104/12) -> 
B105: Customer 73 | D105: 0 | E105: =SUM(IF('6. Class A Consumption Data'!K101:L101="B",'6. Class A Consumption Data'!E101:F101)) -> 0 | H105: 0 | I105: =IF('6.2 CBR B'!U$18="TRUE","",+H105*$D$26) ->  | J105: =IF('6.2 CBR B'!U$18="TRUE","",+I105/12) -> 
B106: Customer 74 | D106: 0 | E106: =SUM(IF('6. Class A Consumption Data'!K102:L102="B",'6. Class A Consumption Data'!E102:F102)) -> 0 | H106: 0 | I106: =IF('6.2 CBR B'!U$18="TRUE","",+H106*$D$26) ->  | J106: =IF('6.2 CBR B'!U$18="TRUE","",+I106/12) -> 
B107: Customer 75 | D107: 0 | E107: =SUM(IF('6. Class A Consumption Data'!K103:L103="B",'6. Class A Consumption Data'!E103:F103)) -> 0 | H107: 0 | I107: =IF('6.2 CBR B'!U$18="TRUE","",+H107*$D$26) ->  | J107: =IF('6.2 CBR B'!U$18="TRUE","",+I107/12) -> 
B108: Customer 76 | D108: 0 | E108: =SUM(IF('6. Class A Consumption Data'!K104:L104="B",'6. Class A Consumption Data'!E104:F104)) -> 0 | H108: 0 | I108: =IF('6.2 CBR B'!U$18="TRUE","",+H108*$D$26) ->  | J108: =IF('6.2 CBR B'!U$18="TRUE","",+I108/12) -> 
B109: Customer 77 | D109: 0 | E109: =SUM(IF('6. Class A Consumption Data'!K105:L105="B",'6. Class A Consumption Data'!E105:F105)) -> 0 | H109: 0 | I109: =IF('6.2 CBR B'!U$18="TRUE","",+H109*$D$26) ->  | J109: =IF('6.2 CBR B'!U$18="TRUE","",+I109/12) -> 
B110: Customer 78 | D110: 0 | E110: =SUM(IF('6. Class A Consumption Data'!K106:L106="B",'6. Class A Consumption Data'!E106:F106)) -> 0 | H110: 0 | I110: =IF('6.2 CBR B'!U$18="TRUE","",+H110*$D$26) ->  | J110: =IF('6.2 CBR B'!U$18="TRUE","",+I110/12) -> 
B111: Customer 79 | D111: 0 | E111: =SUM(IF('6. Class A Consumption Data'!K107:L107="B",'6. Class A Consumption Data'!E107:F107)) -> 0 | H111: 0 | I111: =IF('6.2 CBR B'!U$18="TRUE","",+H111*$D$26) ->  | J111: =IF('6.2 CBR B'!U$18="TRUE","",+I111/12) -> 
B112: Customer 80 | D112: 0 | E112: =SUM(IF('6. Class A Consumption Data'!K108:L108="B",'6. Class A Consumption Data'!E108:F108)) -> 0 | H112: 0 | I112: =IF('6.2 CBR B'!U$18="TRUE","",+H112*$D$26) ->  | J112: =IF('6.2 CBR B'!U$18="TRUE","",+I112/12) -> 
B113: Customer 81 | D113: 0 | E113: =SUM(IF('6. Class A Consumption Data'!K109:L109="B",'6. Class A Consumption Data'!E109:F109)) -> 0 | H113: 0 | I113: =IF('6.2 CBR B'!U$18="TRUE","",+H113*$D$26) ->  | J113: =IF('6.2 CBR B'!U$18="TRUE","",+I113/12) -> 
B114: Customer 82 | D114: 0 | E114: =SUM(IF('6. Class A Consumption Data'!K110:L110="B",'6. Class A Consumption Data'!E110:F110)) -> 0 | H114: 0 | I114: =IF('6.2 CBR B'!U$18="TRUE","",+H114*$D$26) ->  | J114: =IF('6.2 CBR B'!U$18="TRUE","",+I114/12) -> 
B115: Customer 83 | D115: 0 | E115: =SUM(IF('6. Class A Consumption Data'!K111:L111="B",'6. Class A Consumption Data'!E111:F111)) -> 0 | H115: 0 | I115: =IF('6.2 CBR B'!U$18="TRUE","",+H115*$D$26) ->  | J115: =IF('6.2 CBR B'!U$18="TRUE","",+I115/12) -> 
B116: Customer 84 | D116: 0 | E116: =SUM(IF('6. Class A Consumption Data'!K112:L112="B",'6. Class A Consumption Data'!E112:F112)) -> 0 | H116: 0 | I116: =IF('6.2 CBR B'!U$18="TRUE","",+H116*$D$26) ->  | J116: =IF('6.2 CBR B'!U$18="TRUE","",+I116/12) -> 
B117: Customer 85 | D117: 0 | E117: =SUM(IF('6. Class A Consumption Data'!K113:L113="B",'6. Class A Consumption Data'!E113:F113)) -> 0 | H117: 0 | I117: =IF('6.2 CBR B'!U$18="TRUE","",+H117*$D$26) ->  | J117: =IF('6.2 CBR B'!U$18="TRUE","",+I117/12) -> 
B118: Customer 86 | D118: 0 | E118: =SUM(IF('6. Class A Consumption Data'!K114:L114="B",'6. Class A Consumption Data'!E114:F114)) -> 0 | H118: 0 | I118: =IF('6.2 CBR B'!U$18="TRUE","",+H118*$D$26) ->  | J118: =IF('6.2 CBR B'!U$18="TRUE","",+I118/12) -> 
B119: Customer 87 | D119: 0 | E119: =SUM(IF('6. Class A Consumption Data'!K115:L115="B",'6. Class A Consumption Data'!E115:F115)) -> 0 | H119: 0 | I119: =IF('6.2 CBR B'!U$18="TRUE","",+H119*$D$26) ->  | J119: =IF('6.2 CBR B'!U$18="TRUE","",+I119/12) -> 
B120: Customer 88 | D120: 0 | E120: =SUM(IF('6. Class A Consumption Data'!K116:L116="B",'6. Class A Consumption Data'!E116:F116)) -> 0 | H120: 0 | I120: =IF('6.2 CBR B'!U$18="TRUE","",+H120*$D$26) ->  | J120: =IF('6.2 CBR B'!U$18="TRUE","",+I120/12) -> 
B121: Customer 89 | D121: 0 | E121: =SUM(IF('6. Class A Consumption Data'!K117:L117="B",'6. Class A Consumption Data'!E117:F117)) -> 0 | H121: 0 | I121: =IF('6.2 CBR B'!U$18="TRUE","",+H121*$D$26) ->  | J121: =IF('6.2 CBR B'!U$18="TRUE","",+I121/12) -> 
B122: Customer 90 | D122: 0 | E122: =SUM(IF('6. Class A Consumption Data'!K118:L118="B",'6. Class A Consumption Data'!E118:F118)) -> 0 | H122: 0 | I122: =IF('6.2 CBR B'!U$18="TRUE","",+H122*$D$26) ->  | J122: =IF('6.2 CBR B'!U$18="TRUE","",+I122/12) -> 
B123: Customer 91 | D123: 0 | E123: =SUM(IF('6. Class A Consumption Data'!K119:L119="B",'6. Class A Consumption Data'!E119:F119)) -> 0 | H123: 0 | I123: =IF('6.2 CBR B'!U$18="TRUE","",+H123*$D$26) ->  | J123: =IF('6.2 CBR B'!U$18="TRUE","",+I123/12) -> 
B124: Customer 92 | D124: 0 | E124: =SUM(IF('6. Class A Consumption Data'!K120:L120="B",'6. Class A Consumption Data'!E120:F120)) -> 0 | H124: 0 | I124: =IF('6.2 CBR B'!U$18="TRUE","",+H124*$D$26) ->  | J124: =IF('6.2 CBR B'!U$18="TRUE","",+I124/12) -> 
B125: Customer 93 | D125: 0 | E125: =SUM(IF('6. Class A Consumption Data'!K121:L121="B",'6. Class A Consumption Data'!E121:F121)) -> 0 | H125: 0 | I125: =IF('6.2 CBR B'!U$18="TRUE","",+H125*$D$26) ->  | J125: =IF('6.2 CBR B'!U$18="TRUE","",+I125/12) -> 
B126: Customer 94 | D126: 0 | E126: =SUM(IF('6. Class A Consumption Data'!K122:L122="B",'6. Class A Consumption Data'!E122:F122)) -> 0 | H126: 0 | I126: =IF('6.2 CBR B'!U$18="TRUE","",+H126*$D$26) ->  | J126: =IF('6.2 CBR B'!U$18="TRUE","",+I126/12) -> 
B127: Customer 95 | D127: 0 | E127: =SUM(IF('6. Class A Consumption Data'!K123:L123="B",'6. Class A Consumption Data'!E123:F123)) -> 0 | H127: 0 | I127: =IF('6.2 CBR B'!U$18="TRUE","",+H127*$D$26) ->  | J127: =IF('6.2 CBR B'!U$18="TRUE","",+I127/12) -> 
B128: Customer 96 | D128: 0 | E128: =SUM(IF('6. Class A Consumption Data'!K124:L124="B",'6. Class A Consumption Data'!E124:F124)) -> 0 | H128: 0 | I128: =IF('6.2 CBR B'!U$18="TRUE","",+H128*$D$26) ->  | J128: =IF('6.2 CBR B'!U$18="TRUE","",+I128/12) -> 
B129: Customer 97 | D129: 0 | E129: =SUM(IF('6. Class A Consumption Data'!K125:L125="B",'6. Class A Consumption Data'!E125:F125)) -> 0 | H129: 0 | I129: =IF('6.2 CBR B'!U$18="TRUE","",+H129*$D$26) ->  | J129: =IF('6.2 CBR B'!U$18="TRUE","",+I129/12) -> 
B130: Customer 98 | D130: 0 | E130: =SUM(IF('6. Class A Consumption Data'!K126:L126="B",'6. Class A Consumption Data'!E126:F126)) -> 0 | H130: 0 | I130: =IF('6.2 CBR B'!U$18="TRUE","",+H130*$D$26) ->  | J130: =IF('6.2 CBR B'!U$18="TRUE","",+I130/12) -> 
B131: Customer 99 | D131: 0 | E131: =SUM(IF('6. Class A Consumption Data'!K127:L127="B",'6. Class A Consumption Data'!E127:F127)) -> 0 | H131: 0 | I131: =IF('6.2 CBR B'!U$18="TRUE","",+H131*$D$26) ->  | J131: =IF('6.2 CBR B'!U$18="TRUE","",+I131/12) -> 
B132: Customer 100 | D132: 0 | E132: =SUM(IF('6. Class A Consumption Data'!K128:L128="B",'6. Class A Consumption Data'!E128:F128)) -> 0 | H132: 0 | I132: =IF('6.2 CBR B'!U$18="TRUE","",+H132*$D$26) ->  | J132: =IF('6.2 CBR B'!U$18="TRUE","",+I132/12) -> 
B133: Customer 101 | D133: 0 | E133: =SUM(IF('6. Class A Consumption Data'!K129:L129="B",'6. Class A Consumption Data'!E129:F129)) -> 0 | H133: 0 | I133: =IF('6.2 CBR B'!U$18="TRUE","",+H133*$D$26) ->  | J133: =IF('6.2 CBR B'!U$18="TRUE","",+I133/12) -> 
B134: Customer 102 | D134: =SUM(E134:G134) -> 0 | E134: =SUM(IF('6. Class A Consumption Data'!K130:L130="B",'6. Class A Consumption Data'!E130:F130)) -> 0 | H134: 0 | I134: =IF('6.2 CBR B'!U$18="TRUE","",+H134*$D$26) ->  | J134: =IF('6.2 CBR B'!U$18="TRUE","",+I134/12) -> 
B135: Customer 103 | D135: 0 | E135: =SUM(IF('6. Class A Consumption Data'!K131:L131="B",'6. Class A Consumption Data'!E131:F131)) -> 0 | H135: 0 | I135: =IF('6.2 CBR B'!U$18="TRUE","",+H135*$D$26) ->  | J135: =IF('6.2 CBR B'!U$18="TRUE","",+I135/12) -> 
B136: Customer 104 | D136: 0 | E136: =SUM(IF('6. Class A Consumption Data'!K132:L132="B",'6. Class A Consumption Data'!E132:F132)) -> 0 | H136: 0 | I136: =IF('6.2 CBR B'!U$18="TRUE","",+H136*$D$26) ->  | J136: =IF('6.2 CBR B'!U$18="TRUE","",+I136/12) -> 
B137: Customer 105 | D137: 0 | E137: =SUM(IF('6. Class A Consumption Data'!K133:L133="B",'6. Class A Consumption Data'!E133:F133)) -> 0 | H137: 0 | I137: =IF('6.2 CBR B'!U$18="TRUE","",+H137*$D$26) ->  | J137: =IF('6.2 CBR B'!U$18="TRUE","",+I137/12) -> 
B138: Customer 106 | D138: 0 | E138: =SUM(IF('6. Class A Consumption Data'!K134:L134="B",'6. Class A Consumption Data'!E134:F134)) -> 0 | H138: 0 | I138: =IF('6.2 CBR B'!U$18="TRUE","",+H138*$D$26) ->  | J138: =IF('6.2 CBR B'!U$18="TRUE","",+I138/12) -> 
B139: Customer 107 | D139: 0 | E139: =SUM(IF('6. Class A Consumption Data'!K135:L135="B",'6. Class A Consumption Data'!E135:F135)) -> 0 | H139: 0 | I139: =IF('6.2 CBR B'!U$18="TRUE","",+H139*$D$26) ->  | J139: =IF('6.2 CBR B'!U$18="TRUE","",+I139/12) -> 
B140: Customer 108 | D140: 0 | E140: =SUM(IF('6. Class A Consumption Data'!K136:L136="B",'6. Class A Consumption Data'!E136:F136)) -> 0 | H140: 0 | I140: =IF('6.2 CBR B'!U$18="TRUE","",+H140*$D$26) ->  | J140: =IF('6.2 CBR B'!U$18="TRUE","",+I140/12) -> 
B141: Customer 109 | D141: 0 | E141: =SUM(IF('6. Class A Consumption Data'!K137:L137="B",'6. Class A Consumption Data'!E137:F137)) -> 0 | H141: 0 | I141: =IF('6.2 CBR B'!U$18="TRUE","",+H141*$D$26) ->  | J141: =IF('6.2 CBR B'!U$18="TRUE","",+I141/12) -> 
B142: Customer 110 | D142: 0 | E142: =SUM(IF('6. Class A Consumption Data'!K138:L138="B",'6. Class A Consumption Data'!E138:F138)) -> 0 | H142: 0 | I142: =IF('6.2 CBR B'!U$18="TRUE","",+H142*$D$26) ->  | J142: =IF('6.2 CBR B'!U$18="TRUE","",+I142/12) -> 
B143: Customer 111 | D143: 0 | E143: =SUM(IF('6. Class A Consumption Data'!K139:L139="B",'6. Class A Consumption Data'!E139:F139)) -> 0 | H143: 0 | I143: =IF('6.2 CBR B'!U$18="TRUE","",+H143*$D$26) ->  | J143: =IF('6.2 CBR B'!U$18="TRUE","",+I143/12) -> 
B144: Customer 112 | D144: 0 | E144: =SUM(IF('6. Class A Consumption Data'!K140:L140="B",'6. Class A Consumption Data'!E140:F140)) -> 0 | H144: 0 | I144: =IF('6.2 CBR B'!U$18="TRUE","",+H144*$D$26) ->  | J144: =IF('6.2 CBR B'!U$18="TRUE","",+I144/12) -> 
B145: Customer 113 | D145: 0 | E145: =SUM(IF('6. Class A Consumption Data'!K141:L141="B",'6. Class A Consumption Data'!E141:F141)) -> 0 | H145: 0 | I145: =IF('6.2 CBR B'!U$18="TRUE","",+H145*$D$26) ->  | J145: =IF('6.2 CBR B'!U$18="TRUE","",+I145/12) -> 
B146: Customer 114 | D146: 0 | E146: =SUM(IF('6. Class A Consumption Data'!K142:L142="B",'6. Class A Consumption Data'!E142:F142)) -> 0 | H146: 0 | I146: =IF('6.2 CBR B'!U$18="TRUE","",+H146*$D$26) ->  | J146: =IF('6.2 CBR B'!U$18="TRUE","",+I146/12) -> 
B147: Customer 115 | D147: 0 | E147: =SUM(IF('6. Class A Consumption Data'!K143:L143="B",'6. Class A Consumption Data'!E143:F143)) -> 0 | H147: 0 | I147: =IF('6.2 CBR B'!U$18="TRUE","",+H147*$D$26) ->  | J147: =IF('6.2 CBR B'!U$18="TRUE","",+I147/12) -> 
B148: Customer 116 | D148: 0 | E148: =SUM(IF('6. Class A Consumption Data'!K144:L144="B",'6. Class A Consumption Data'!E144:F144)) -> 0 | H148: 0 | I148: =IF('6.2 CBR B'!U$18="TRUE","",+H148*$D$26) ->  | J148: =IF('6.2 CBR B'!U$18="TRUE","",+I148/12) -> 
B149: Customer 117 | D149: 0 | E149: =SUM(IF('6. Class A Consumption Data'!K145:L145="B",'6. Class A Consumption Data'!E145:F145)) -> 0 | H149: 0 | I149: =IF('6.2 CBR B'!U$18="TRUE","",+H149*$D$26) ->  | J149: =IF('6.2 CBR B'!U$18="TRUE","",+I149/12) -> 
B150: Customer 118 | D150: 0 | E150: =SUM(IF('6. Class A Consumption Data'!K146:L146="B",'6. Class A Consumption Data'!E146:F146)) -> 0 | H150: 0 | I150: =IF('6.2 CBR B'!U$18="TRUE","",+H150*$D$26) ->  | J150: =IF('6.2 CBR B'!U$18="TRUE","",+I150/12) -> 
B151: Customer 119 | D151: 0 | E151: =SUM(IF('6. Class A Consumption Data'!K147:L147="B",'6. Class A Consumption Data'!E147:F147)) -> 0 | H151: 0 | I151: =IF('6.2 CBR B'!U$18="TRUE","",+H151*$D$26) ->  | J151: =IF('6.2 CBR B'!U$18="TRUE","",+I151/12) -> 
B152: Customer 120 | D152: 0 | E152: =SUM(IF('6. Class A Consumption Data'!K148:L148="B",'6. Class A Consumption Data'!E148:F148)) -> 0 | H152: 0 | I152: =IF('6.2 CBR B'!U$18="TRUE","",+H152*$D$26) ->  | J152: =IF('6.2 CBR B'!U$18="TRUE","",+I152/12) -> 
B153: Customer 121 | D153: 0 | E153: =SUM(IF('6. Class A Consumption Data'!K149:L149="B",'6. Class A Consumption Data'!E149:F149)) -> 0 | H153: 0 | I153: =IF('6.2 CBR B'!U$18="TRUE","",+H153*$D$26) ->  | J153: =IF('6.2 CBR B'!U$18="TRUE","",+I153/12) -> 
B154: Customer 122 | D154: 0 | E154: =SUM(IF('6. Class A Consumption Data'!K150:L150="B",'6. Class A Consumption Data'!E150:F150)) -> 0 | H154: 0 | I154: =IF('6.2 CBR B'!U$18="TRUE","",+H154*$D$26) ->  | J154: =IF('6.2 CBR B'!U$18="TRUE","",+I154/12) -> 
B155: Customer 123 | D155: 0 | E155: =SUM(IF('6. Class A Consumption Data'!K151:L151="B",'6. Class A Consumption Data'!E151:F151)) -> 0 | H155: 0 | I155: =IF('6.2 CBR B'!U$18="TRUE","",+H155*$D$26) ->  | J155: =IF('6.2 CBR B'!U$18="TRUE","",+I155/12) -> 
B156: Customer 124 | D156: 0 | E156: =SUM(IF('6. Class A Consumption Data'!K152:L152="B",'6. Class A Consumption Data'!E152:F152)) -> 0 | H156: 0 | I156: =IF('6.2 CBR B'!U$18="TRUE","",+H156*$D$26) ->  | J156: =IF('6.2 CBR B'!U$18="TRUE","",+I156/12) -> 
B157: Customer 125 | D157: 0 | E157: =SUM(IF('6. Class A Consumption Data'!K153:L153="B",'6. Class A Consumption Data'!E153:F153)) -> 0 | H157: 0 | I157: =IF('6.2 CBR B'!U$18="TRUE","",+H157*$D$26) ->  | J157: =IF('6.2 CBR B'!U$18="TRUE","",+I157/12) -> 
B158: Customer 126 | D158: 0 | E158: =SUM(IF('6. Class A Consumption Data'!K154:L154="B",'6. Class A Consumption Data'!E154:F154)) -> 0 | H158: 0 | I158: =IF('6.2 CBR B'!U$18="TRUE","",+H158*$D$26) ->  | J158: =IF('6.2 CBR B'!U$18="TRUE","",+I158/12) -> 
B159: Customer 127 | D159: 0 | E159: =SUM(IF('6. Class A Consumption Data'!K155:L155="B",'6. Class A Consumption Data'!E155:F155)) -> 0 | H159: 0 | I159: =IF('6.2 CBR B'!U$18="TRUE","",+H159*$D$26) ->  | J159: =IF('6.2 CBR B'!U$18="TRUE","",+I159/12) -> 
B160: Customer 128 | D160: 0 | E160: =SUM(IF('6. Class A Consumption Data'!K156:L156="B",'6. Class A Consumption Data'!E156:F156)) -> 0 | H160: 0 | I160: =IF('6.2 CBR B'!U$18="TRUE","",+H160*$D$26) ->  | J160: =IF('6.2 CBR B'!U$18="TRUE","",+I160/12) -> 
B161: Customer 129 | D161: 0 | E161: =SUM(IF('6. Class A Consumption Data'!K157:L157="B",'6. Class A Consumption Data'!E157:F157)) -> 0 | H161: 0 | I161: =IF('6.2 CBR B'!U$18="TRUE","",+H161*$D$26) ->  | J161: =IF('6.2 CBR B'!U$18="TRUE","",+I161/12) -> 
B162: Customer 130 | D162: 0 | E162: =SUM(IF('6. Class A Consumption Data'!K158:L158="B",'6. Class A Consumption Data'!E158:F158)) -> 0 | H162: =IFERROR(+D162/$D$183,0) -> 0 | I162: =IF('6.2 CBR B'!U$18="TRUE","",+H162*$D$26) ->  | J162: =IF('6.2 CBR B'!U$18="TRUE","",+I162/12) -> 
B163: Customer 131 | D163: 0 | E163: =SUM(IF('6. Class A Consumption Data'!K159:L159="B",'6. Class A Consumption Data'!E159:F159)) -> 0 | H163: 0 | I163: =IF('6.2 CBR B'!U$18="TRUE","",+H163*$D$26) ->  | J163: =IF('6.2 CBR B'!U$18="TRUE","",+I163/12) -> 
B164: Customer 132 | D164: 0 | E164: =SUM(IF('6. Class A Consumption Data'!K160:L160="B",'6. Class A Consumption Data'!E160:F160)) -> 0 | H164: 0 | I164: =IF('6.2 CBR B'!U$18="TRUE","",+H164*$D$26) ->  | J164: =IF('6.2 CBR B'!U$18="TRUE","",+I164/12) -> 
B165: Customer 133 | D165: 0 | E165: =SUM(IF('6. Class A Consumption Data'!K161:L161="B",'6. Class A Consumption Data'!E161:F161)) -> 0 | H165: 0 | I165: =IF('6.2 CBR B'!U$18="TRUE","",+H165*$D$26) ->  | J165: =IF('6.2 CBR B'!U$18="TRUE","",+I165/12) -> 
B166: Customer 134 | D166: 0 | E166: =SUM(IF('6. Class A Consumption Data'!K162:L162="B",'6. Class A Consumption Data'!E162:F162)) -> 0 | H166: 0 | I166: =IF('6.2 CBR B'!U$18="TRUE","",+H166*$D$26) ->  | J166: =IF('6.2 CBR B'!U$18="TRUE","",+I166/12) -> 
B167: Customer 135 | D167: 0 | E167: =SUM(IF('6. Class A Consumption Data'!K163:L163="B",'6. Class A Consumption Data'!E163:F163)) -> 0 | H167: 0 | I167: =IF('6.2 CBR B'!U$18="TRUE","",+H167*$D$26) ->  | J167: =IF('6.2 CBR B'!U$18="TRUE","",+I167/12) -> 
B168: Customer 136 | D168: 0 | E168: =SUM(IF('6. Class A Consumption Data'!K164:L164="B",'6. Class A Consumption Data'!E164:F164)) -> 0 | H168: 0 | I168: =IF('6.2 CBR B'!U$18="TRUE","",+H168*$D$26) ->  | J168: =IF('6.2 CBR B'!U$18="TRUE","",+I168/12) -> 
B169: Customer 137 | D169: 0 | E169: =SUM(IF('6. Class A Consumption Data'!K165:L165="B",'6. Class A Consumption Data'!E165:F165)) -> 0 | H169: 0 | I169: =IF('6.2 CBR B'!U$18="TRUE","",+H169*$D$26) ->  | J169: =IF('6.2 CBR B'!U$18="TRUE","",+I169/12) -> 
B170: Customer 138 | D170: 0 | E170: =SUM(IF('6. Class A Consumption Data'!K166:L166="B",'6. Class A Consumption Data'!E166:F166)) -> 0 | H170: 0 | I170: =IF('6.2 CBR B'!U$18="TRUE","",+H170*$D$26) ->  | J170: =IF('6.2 CBR B'!U$18="TRUE","",+I170/12) -> 
B171: Customer 139 | D171: 0 | E171: =SUM(IF('6. Class A Consumption Data'!K167:L167="B",'6. Class A Consumption Data'!E167:F167)) -> 0 | H171: 0 | I171: =IF('6.2 CBR B'!U$18="TRUE","",+H171*$D$26) ->  | J171: =IF('6.2 CBR B'!U$18="TRUE","",+I171/12) -> 
B172: Customer 140 | D172: 0 | E172: =SUM(IF('6. Class A Consumption Data'!K168:L168="B",'6. Class A Consumption Data'!E168:F168)) -> 0 | H172: 0 | I172: =IF('6.2 CBR B'!U$18="TRUE","",+H172*$D$26) ->  | J172: =IF('6.2 CBR B'!U$18="TRUE","",+I172/12) -> 
B173: Customer 141 | D173: 0 | E173: =SUM(IF('6. Class A Consumption Data'!K169:L169="B",'6. Class A Consumption Data'!E169:F169)) -> 0 | H173: 0 | I173: =IF('6.2 CBR B'!U$18="TRUE","",+H173*$D$26) ->  | J173: =IF('6.2 CBR B'!U$18="TRUE","",+I173/12) -> 
B174: Customer 142 | D174: 0 | E174: =SUM(IF('6. Class A Consumption Data'!K170:L170="B",'6. Class A Consumption Data'!E170:F170)) -> 0 | H174: 0 | I174: =IF('6.2 CBR B'!U$18="TRUE","",+H174*$D$26) ->  | J174: =IF('6.2 CBR B'!U$18="TRUE","",+I174/12) -> 
B175: Customer 143 | D175: 0 | E175: =SUM(IF('6. Class A Consumption Data'!K171:L171="B",'6. Class A Consumption Data'!E171:F171)) -> 0 | H175: 0 | I175: =IF('6.2 CBR B'!U$18="TRUE","",+H175*$D$26) ->  | J175: =IF('6.2 CBR B'!U$18="TRUE","",+I175/12) -> 
B176: Customer 144 | D176: 0 | E176: =SUM(IF('6. Class A Consumption Data'!K172:L172="B",'6. Class A Consumption Data'!E172:F172)) -> 0 | H176: 0 | I176: =IF('6.2 CBR B'!U$18="TRUE","",+H176*$D$26) ->  | J176: =IF('6.2 CBR B'!U$18="TRUE","",+I176/12) -> 
B177: Customer 145 | D177: 0 | E177: =SUM(IF('6. Class A Consumption Data'!K173:L173="B",'6. Class A Consumption Data'!E173:F173)) -> 0 | H177: 0 | I177: =IF('6.2 CBR B'!U$18="TRUE","",+H177*$D$26) ->  | J177: =IF('6.2 CBR B'!U$18="TRUE","",+I177/12) -> 
B178: Customer 146 | D178: 0 | E178: =SUM(IF('6. Class A Consumption Data'!K174:L174="B",'6. Class A Consumption Data'!E174:F174)) -> 0 | H178: 0 | I178: =IF('6.2 CBR B'!U$18="TRUE","",+H178*$D$26) ->  | J178: =IF('6.2 CBR B'!U$18="TRUE","",+I178/12) -> 
B179: Customer 147 | D179: 0 | E179: =SUM(IF('6. Class A Consumption Data'!K175:L175="B",'6. Class A Consumption Data'!E175:F175)) -> 0 | H179: 0 | I179: =IF('6.2 CBR B'!U$18="TRUE","",+H179*$D$26) ->  | J179: =IF('6.2 CBR B'!U$18="TRUE","",+I179/12) -> 
B180: Customer 148 | D180: 0 | E180: =SUM(IF('6. Class A Consumption Data'!K176:L176="B",'6. Class A Consumption Data'!E176:F176)) -> 0 | H180: 0 | I180: =IF('6.2 CBR B'!U$18="TRUE","",+H180*$D$26) ->  | J180: =IF('6.2 CBR B'!U$18="TRUE","",+I180/12) -> 
B181: Customer 149 | D181: 0 | E181: =SUM(IF('6. Class A Consumption Data'!K177:L177="B",'6. Class A Consumption Data'!E177:F177)) -> 0 | H181: 0 | I181: =IF('6.2 CBR B'!U$18="TRUE","",+H181*$D$26) ->  | J181: =IF('6.2 CBR B'!U$18="TRUE","",+I181/12) -> 
B182: Customer 150 | D182: 0 | E182: =SUM(IF('6. Class A Consumption Data'!K178:L178="B",'6. Class A Consumption Data'!E178:F178)) -> 0 | H182: 0 | I182: =IF('6.2 CBR B'!U$18="TRUE","",+H182*$D$26) ->  | J182: =IF('6.2 CBR B'!U$18="TRUE","",+I182/12) -> 
B183: Total for all Customers | D183: =SUM(D33:D182) -> 116517739.5 | E183: =SUM(E33:E182) -> 116517739.5 | F183: 0 | G183: 0 | H183: =SUM(H33:H182) -> 1 | I183: =SUM(I33:I182) -> 0

Sheet 6.2 CBR B
A1: Back to Index
B2: =+'1. Information Sheet'!B2 -> INCENTIVE REGULATION MODEL FOR 2020 FILERS
K11: If the allocated Account 1580 sub-account CBR Class B amount does not produce a rate rider in one or more rate class (except for the Standby rate class), a distributor is to transfer the entire OEB-approved CBR Class B amount into Account 1580 WMS control account to be disposed through the general purpose Group 1 DVA rate riders. (see Accounting Guidance, Capacity Based Recovery xxxxx, 2018)
B13: The purpose of this tab is to calculate the CBR rate riders for all current Class B customers who did not transition between Class A and B in the period since the Account 1580, sub-account CBR Class B balance accumulated.
B15: Please select the Year the Account 1580 CBR Class B was Last Disposed. | C15: 2017 | D15: (Note: Account 1580, Sub-account CBR Class B was established starting in 2015)
U18: =IF(MIN(U22:U26,U28:U29)<0.0001,"TRUE","FALSE") -> TRUE
C19: Total Metered Minus WMP | E19: Total Metered 2018 Consumption for Class A customers that were Class A for the entire period CBR Class B balance accumulated | G19: Total Metered 2018 Consumption for Customers that Transitioned Between Class A and B during the period CBR Class B balance accumulated | I19: Metered Consumption for Current Class B Customers (Total Consumption LESS WMP, Class A and Transition Customers' Consumption) | K19: % of total kWh | L19: Total CBR $ allocated to Current Class B Customers | M19: CBR Rate Rider | O19: Revenue Reconciliation | P19: Variance | U19: CBR Rate Rider
C20: kWh | D20: kW | E20: kWh | F20: kW | G20: kWh | H20: kW | I20: kWh | J20: kW
B22: ='4. Billing Det. for Def-Var'!B17 -> RESIDENTIAL SERVICE CLASSIFICATION | C22: ='4. Billing Det. for Def-Var'!D17-'4. Billing Det. for Def-Var'!H17 -> 2783708695 | D22: ='4. Billing Det. for Def-Var'!E17-'4. Billing Det. for Def-Var'!I17 -> 0 | E22: =SUM(IF('6. Class A Consumption Data'!$D$191:$D$340=$B22,'6. Class A Consumption Data'!E$191:E$340)) -> 0 | F22: =SUM(IF('6. Class A Consumption Data'!$D$191:$D$340=$B22,'6. Class A Consumption Data'!H$191:H$340)) -> 0 | G22: =SUM(IF('6. Class A Consumption Data'!$D$29:$D$178=$B22,'6. Class A Consumption Data'!E$29:F$178)) -> 0 | H22: =SUM(IF('6. Class A Consumption Data'!$D$29:$D$178=$B22,'6. Class A Consumption Data'!H$29:I$178)) -> 0 | I22: =ROUND(C22-E22-G22,0) -> 2783708695 | J22: =ROUND(D22-F22-H22,0) -> 0 | K22: =IFERROR(I22/I$34,"") -> 0.3886288771 | L22: =IFERROR(L$34*K22,"") -> -87587.98304 | M22: =IF(U$18="TRUE",0,U22) -> 0 | N22: kwh | O22: =IFERROR(IF(J22=0,ROUND(M22,4)*I22,ROUND(M22,4)*J22),"") -> 0 | P22: =IFERROR(L22-O22,"") -> -87587.98304 | U22: =IFERROR(IF($J22=0,$L22/$I22,$L22/$J22),"") -> -3.14644931e-05 | V22: kwh
B23: ='4. Billing Det. for Def-Var'!B18 -> GENERAL SERVICE LESS THAN 50 kW SERVICE CLASSIFICATION | C23: ='4. Billing Det. for Def-Var'!D18-'4. Billing Det. for Def-Var'!H18 -> 1049615664 | D23: ='4. Billing Det. for Def-Var'!E18-'4. Billing Det. for Def-Var'!I18 -> 0 | E23: =SUM(IF('6. Class A Consumption Data'!$D$191:$D$340=$B23,'6. Class A Consumption Data'!E$191:E$340)) -> 0 | F23: =SUM(IF('6. Class A Consumption Data'!$D$191:$D$340=$B23,'6. Class A Consumption Data'!H$191:H$340)) -> 0 | G23: =SUM(IF('6. Class A Consumption Data'!$D$29:$D$178=$B23,'6. Class A Consumption Data'!E$29:F$178)) -> 0 | H23: =SUM(IF('6. Class A Consumption Data'!$D$29:$D$178=$B23,'6. Class A Consumption Data'!H$29:I$178)) -> 0 | I23: =ROUND(C23-E23-G23,0) -> 1049615664 | J23: 0 | K23: =IFERROR(I23/I$34,"") -> 0.146535073 | L23: =IFERROR(L$34*K23,"") -> -33025.62482 | M23: =IF(U$18="TRUE",0,U23) -> 0 | N23: kwh | O23: =IFERROR(IF(J23=0,ROUND(M23,4)*I23,ROUND(M23,4)*J23),"") -> 0 | P23: =IFERROR(L23-O23,"") -> -33025.62482 | U23: -3.14644931e-05 | V23: kwh
B24: ='4. Billing Det. for Def-Var'!B19 -> GENERAL SERVICE 50 to 4,999 kW SERVICE CLASSIFICATION | C24: ='4. Billing Det. for Def-Var'!D19-'4. Billing Det. for Def-Var'!H19 -> 4649565527 | D24: ='4. Billing Det. for Def-Var'!E19-'4. Billing Det. for Def-Var'!I19 -> 12111779.05 | E24: =SUM(IF('6. Class A Consumption Data'!$D$191:$D$340=$B24,'6. Class A Consumption Data'!E$191:E$340)) -> 1145404358 | F24: =SUM(IF('6. Class A Consumption Data'!$D$191:$D$340=$B24,'6. Class A Consumption Data'!H$191:H$340)) -> 2328059.212 | G24: =SUM(IF('6. Class A Consumption Data'!$D$29:$D$178=$B24,'6. Class A Consumption Data'!E$29:F$178)) -> 237589455.2 | H24: =SUM(IF('6. Class A Consumption Data'!$D$29:$D$178=$B24,'6. Class A Consumption Data'!H$29:I$178)) -> 581063.7366 | I24: 3266571714 | J24: 9202656 | K24: 0.456040569 | L24: -102781.0232 | M24: 0 | N24: kW | O24: 0 | P24: -102781.0232 | U24: -0.01116862601 | V24: kW
B25: ='4. Billing Det. for Def-Var'!B20 -> LARGE USE SERVICE CLASSIFICATION | C25: ='4. Billing Det. for Def-Var'!D20-'4. Billing Det. for Def-Var'!H20 -> 53218180.51 | D25: ='4. Billing Det. for Def-Var'!E20-'4. Billing Det. for Def-Var'!I20 -> 102871.3272 | E25: =SUM(IF('6. Class A Consumption Data'!$D$191:$D$340=$B25,'6. Class A Consumption Data'!E$191:E$340)) -> 53218180.51 | F25: =SUM(IF('6. Class A Consumption Data'!$D$191:$D$340=$B25,'6. Class A Consumption Data'!H$191:H$340)) -> 102871.3272 | G25: =SUM(IF('6. Class A Consumption Data'!$D$29:$D$178=$B25,'6. Class A Consumption Data'!E$29:F$178)) -> 0 | H25: =SUM(IF('6. Class A Consumption Data'!$D$29:$D$178=$B25,'6. Class A Consumption Data'!H$29:I$178)) -> 0 | I25: 0 | J25: 0 | K25: 0 | L25: 0 | M25: 0 | N25: kW | O25: 0 | P25: 0 | V25: kW
B26: ='4. Billing Det. for Def-Var'!B21 -> UNMETERED SCATTERED LOAD SERVICE CLASSIFICATION | C26: ='4. Billing Det. for Def-Var'!D21-'4. Billing Det. for Def-Var'!H21 -> 13830787.93 | D26: ='4. Billing Det. for Def-Var'!E21-'4. Billing Det. for Def-Var'!I21 -> 0 | E26: =SUM(IF('6. Class A Consumption Data'!$D$191:$D$340=$B26,'6. Class A Consumption Data'!E$191:E$340)) -> 0 | F26: =SUM(IF('6. Class A Consumption Data'!$D$191:$D$340=$B26,'6. Class A Consumption Data'!H$191:H$340)) -> 0 | G26: =SUM(IF('6. Class A Consumption Data'!$D$29:$D$178=$B26,'6. Class A Consumption Data'!E$29:F$178)) -> 0 | H26: =SUM(IF('6. Class A Consumption Data'!$D$29:$D$178=$B26,'6. Class A Consumption Data'!H$29:I$178)) -> 0 | I26: 13830788 | J26: 0 | K26: 0.001930892991 | L26: -435.1787337 | M26: 0 | N26: kwh | O26: 0 | P26: -435.1787337 | U26: -3.14644931e-05 | V26: kwh
B27: ='4. Billing Det. for Def-Var'!B22 -> STANDBY POWER SERVICE CLASSIFICATION | C27: ='4. Billing Det. for Def-Var'!D22-'4. Billing Det. for Def-Var'!H22 -> 0 | D27: ='4. Billing Det. for Def-Var'!E22-'4. Billing Det. for Def-Var'!I22 -> 0 | E27: =SUM(IF('6. Class A Consumption Data'!$D$191:$D$340=$B27,'6. Class A Consumption Data'!E$191:E$340)) -> 0 | F27: =SUM(IF('6. Class A Consumption Data'!$D$191:$D$340=$B27,'6. Class A Consumption Data'!H$191:H$340)) -> 0 | G27: =SUM(IF('6. Class A Consumption Data'!$D$29:$D$178=$B27,'6. Class A Consumption Data'!E$29:F$178)) -> 0 | H27: =SUM(IF('6. Class A Consumption Data'!$D$29:$D$178=$B27,'6. Class A Consumption Data'!H$29:I$178)) -> 0 | I27: 0 | J27: 0 | K27: 0 | L27: 0 | M27: 0 | N27: kW | O27: 0 | P27: 0 | V27: kW
B28: ='4. Billing Det. for Def-Var'!B23 -> SENTINEL LIGHTING SERVICE CLASSIFICATION | C28: ='4. Billing Det. for Def-Var'!D23-'4. Billing Det. for Def-Var'!H23 -> 286384.932 | D28: ='4. Billing Det. for Def-Var'!E23-'4. Billing Det. for Def-Var'!I23 -> 795.983593 | E28: =SUM(IF('6. Class A Consumption Data'!$D$191:$D$340=$B28,'6. Class A Consumption Data'!E$191:E$340)) -> 0 | F28: =SUM(IF('6. Class A Consumption Data'!$D$191:$D$340=$B28,'6. Class A Consumption Data'!H$191:H$340)) -> 0 | G28: =SUM(IF('6. Class A Consumption Data'!$D$29:$D$178=$B28,'6. Class A Consumption Data'!E$29:F$178)) -> 0 | H28: =SUM(IF('6. Class A Consumption Data'!$D$29:$D$178=$B28,'6. Class A Consumption Data'!H$29:I$178)) -> 0 | I28: 286385 | J28: 796 | K28: 3.998172695e-05 | L28: -9.010958858 | M28: 0 | N28: kW | O28: 0 | P28: -9.010958858 | U28: -0.01132030007 | V28: kW
B29: ='4. Billing Det. for Def-Var'!B24 -> STREET LIGHTING SERVICE CLASSIFICATION | C29: ='4. Billing Det. for Def-Var'!D24-'4. Billing Det. for Def-Var'!H24 -> 48883952.93 | D29: ='4. Billing Det. for Def-Var'!E24-'4. Billing Det. for Def-Var'!I24 -> 134152.032 | E29: =SUM(IF('6. Class A Consumption Data'!$D$191:$D$340=$B29,'6. Class A Consumption Data'!E$191:E$340)) -> 0 | F29: =SUM(IF('6. Class A Consumption Data'!$D$191:$D$340=$B29,'6. Class A Consumption Data'!H$191:H$340)) -> 0 | G29: =SUM(IF('6. Class A Consumption Data'!$D$29:$D$178=$B29,'6. Class A Consumption Data'!E$29:F$178)) -> 0 | H29: =SUM(IF('6. Class A Consumption Data'!$D$29:$D$178=$B29,'6. Class A Consumption Data'!H$29:I$178)) -> 0 | I29: 48883953 | J29: 134152 | K29: 0.006824606251 | L29: -1538.108802 | M29: 0 | N29: kW | O29: 0 | P29: -1538.108802 | U29: -0.01146541835 | V29: kW
C34: =SUM(C22:C33) -> 8599109193 | D34: =SUM(D22:D33) -> 12349598.4 | E34: 1198622538 | F34: 2430930.539 | G34: 237589455.2 | H34: 581063.7366 | I34: 7162897199 | J34: 9337604 | K34: 1 | L34: ='6.2a CBR B_Allocation'!D27 -> -225376.9295 | O34: =SUM(O22:O33) -> 0 | P34: =SUM(P22:P33) -> -225376.9295
L35: from Sheet 6.2a

Sheet 8. Calculation of Def-Var RR
A1: Back to Index
B2: =+'1. Information Sheet'!B2 -> INCENTIVE REGULATION MODEL FOR 2020 FILERS
B11: IInput required at cells D14 and D15. This workshseet calculates rate riders related to the Deferral/Variance Account Disposition (if applicable) and rate riders for Account 1568. Rate Riders will not be generated for the microFIT class.
B13: Default Rate Rider Recovery Period (in months) | D13: 12
B14: DVA Proposed Rate Rider Recovery Period (in months) | D14: 12 | E14: =IF(D14>0, "Rate Rider Recovery to be used below", "If no rate rider recovery period is proposed then the default recovery period of 12 months will be used") -> Rate Rider Recovery to be used below
B15: LRAM Proposed Rate Rider Recovery Period (in months) | D15: 12 | E15: =IF(D15>0, "Rate Rider Recovery to be used below", "If no rate rider recovery period is proposed then the default recovery period of 12 months will be used") -> Rate Rider Recovery to be used below
D17: Total Metered kWh | E17: Metered kW or kVA | F17: Total Metered kWh less WMP consumption | G17: Total Metered kW less WMP consumption | H17: Allocation of Group 1 Account Balances to All Classes 2 | I17: Allocation of Group 1 Account Balances to Non-WMP Classes Only (if Applicable) 2 | J17: Deferral/Variance Account Rate Rider 2 | K17: Deferral/Variance Account Rate Rider for Non-WMP (if applicable) 2 | L17: Account 1568 Rate Rider
B18: Rate Class | C18: Unit | M18: Revenue Reconciliation: | O18: Revenue Reconcilation 1
B19: ='4. Billing Det. for Def-Var'!B17 -> RESIDENTIAL SERVICE CLASSIFICATION | C19: ='4. Billing Det. for Def-Var'!C17 -> kWh | D19: ='4. Billing Det. for Def-Var'!D17 -> 2783708695 | E19: ='4. Billing Det. for Def-Var'!E17 -> 0 | F19: ='4. Billing Det. for Def-Var'!J17 -> 2783708695 | G19: ='4. Billing Det. for Def-Var'!K17 -> 0 | H19: =IFERROR(SUM('5. Allocating Def-Var Balances'!G16:V16)-I19,"") -> -2106888.469 | J19: =ROUND(IF(C19="kWh",IF(ISERROR(H19/D19),0,IF(OR(ISBLANK(D$14), OR(D$14=0, D$14="")), H19/D19/(D$13/12), H19/D19/(D$14/12))),IF(ISERROR(H19/E19),0,IF(OR(ISBLANK(D$14), OR(D$14=0, D$14="")), H19/E19/(D$13/12), H19/E19/(D$14/12)))),4) -> -0.0008 | K19: =ROUND(IF(C19="kWh",IF(ISERROR(I19/F19),0,IF(OR(ISBLANK(D$14), OR(D$14=0, D$14="")), I19/F19/(D$13/12), I19/F19/(D$14/12))),IF(ISERROR(I19/G19),0,IF(OR(ISBLANK(D$14), OR(D$14=0, D$14="")), I19/G19/(D$13/12), I19/G19/(D$14/12)))),4) -> 0 | L19: =IF(C19="kWh",ROUND(IF(ISERROR('4. Billing Det. for Def-Var'!W17/D19), 0, IF(OR(ISBLANK(D$15), OR(D$15=0, D$15="")), ('4. Billing Det. for Def-Var'!W17/D19)/(D$13/12), ('4. Billing Det. for Def-Var'!W17/D19)/(D$15/12))),4),ROUND(IF(ISERROR('4. Billing Det. for Def-Var'!W17/E19), 0, IF(OR(ISBLANK(D$15), OR(D$15=0, D$15="")), ('4. Billing Det. for Def-Var'!W17/E19)/(D$13/12), ('4. Billing Det. for Def-Var'!W17/E19)/(D$15/12))),4)) -> 0.0006 | M19: =IF(C19="kWh",J19*D19,E19*J19) -> -2226966.956 | N19: =IF(C19="kWh",K19*F19,G19*K19) -> 0
B20: ='4. Billing Det. for Def-Var'!B18 -> GENERAL SERVICE LESS THAN 50 kW SERVICE CLASSIFICATION | C20: ='4. Billing Det. for Def-Var'!C18 -> kWh | D20: ='4. Billing Det. for Def-Var'!D18 -> 1049615664 | E20: ='4. Billing Det. for Def-Var'!E18 -> 0 | F20: ='4. Billing Det. for Def-Var'!J18 -> 1049615664 | G20: ='4. Billing Det. for Def-Var'!K18 -> 0 | H20: =IFERROR(SUM('5. Allocating Def-Var Balances'!G17:V17)-I20,"") -> -715478.5865 | J20: =ROUND(IF(C20="kWh",IF(ISERROR(H20/D20),0,IF(OR(ISBLANK(D$14), OR(D$14=0, D$14="")), H20/D20/(D$13/12), H20/D20/(D$14/12))),IF(ISERROR(H20/E20),0,IF(OR(ISBLANK(D$14), OR(D$14=0, D$14="")), H20/E20/(D$13/12), H20/E20/(D$14/12)))),4) -> -0.0007 | K20: =ROUND(IF(C20="kWh",IF(ISERROR(I20/F20),0,IF(OR(ISBLANK(D$14), OR(D$14=0, D$14="")), I20/F20/(D$13/12), I20/F20/(D$14/12))),IF(ISERROR(I20/G20),0,IF(OR(ISBLANK(D$14), OR(D$14=0, D$14="")), I20/G20/(D$13/12), I20/G20/(D$14/12)))),4) -> 0 | L20: =IF(C20="kWh",ROUND(IF(ISERROR('4. Billing Det. for Def-Var'!W18/D20), 0, IF(OR(ISBLANK(D$15), OR(D$15=0, D$15="")), ('4. Billing Det. for Def-Var'!W18/D20)/(D$13/12), ('4. Billing Det. for Def-Var'!W18/D20)/(D$15/12))),4),ROUND(IF(ISERROR('4. Billing Det. for Def-Var'!W18/E20), 0, IF(OR(ISBLANK(D$15), OR(D$15=0, D$15="")), ('4. Billing Det. for Def-Var'!W18/E20)/(D$13/12), ('4. Billing Det. for Def-Var'!W18/E20)/(D$15/12))),4)) -> 0.0001 | M20: =IF(C20="kWh",J20*D20,E20*J20) -> -734730.965 | N20: =IF(C20="kWh",K20*F20,G20*K20) -> 0
B21: ='4. Billing Det. for Def-Var'!B19 -> GENERAL SERVICE 50 to 4,999 kW SERVICE CLASSIFICATION | C21: ='4. Billing Det. for Def-Var'!C19 -> kW | D21: ='4. Billing Det. for Def-Var'!D19 -> 4679965944 | E21: ='4. Billing Det. for Def-Var'!E19 -> 12192875.59 | F21: ='4. Billing Det. for Def-Var'!J19 -> 4649565527 | G21: ='4. Billing Det. for Def-Var'!K19 -> 12111779.05 | H21: =IFERROR(SUM('5. Allocating Def-Var Balances'!G18:V18)-I21,"") -> -310674.69 | I21: =IFERROR('5. Allocating Def-Var Balances'!I18+'5. Allocating Def-Var Balances'!N18,0) -> -2738838.462 | J21: -0.0255 | K21: -0.2261 | L21: =IF(C21="kWh",ROUND(IF(ISERROR('4. Billing Det. for Def-Var'!W19/D21), 0, IF(OR(ISBLANK(D$15), OR(D$15=0, D$15="")), ('4. Billing Det. for Def-Var'!W19/D21)/(D$13/12), ('4. Billing Det. for Def-Var'!W19/D21)/(D$15/12))),4),ROUND(IF(ISERROR('4. Billing Det. for Def-Var'!W19/E21), 0, IF(OR(ISBLANK(D$15), OR(D$15=0, D$15="")), ('4. Billing Det. for Def-Var'!W19/E21)/(D$13/12), ('4. Billing Det. for Def-Var'!W19/E21)/(D$15/12))),4)) -> 0.0415 | M21: -310918.3276 | N21: -2738473.244
B22: ='4. Billing Det. for Def-Var'!B20 -> LARGE USE SERVICE CLASSIFICATION | C22: ='4. Billing Det. for Def-Var'!C20 -> kW | D22: ='4. Billing Det. for Def-Var'!D20 -> 53218180.51 | E22: ='4. Billing Det. for Def-Var'!E20 -> 102871.3272 | F22: ='4. Billing Det. for Def-Var'!J20 -> 53218180.51 | G22: ='4. Billing Det. for Def-Var'!K20 -> 102871.3272 | H22: =IFERROR(SUM('5. Allocating Def-Var Balances'!G19:V19)-I22,"") -> -34881.13908 | J22: -0.3391 | K22: =ROUND(IF(C22="kWh",IF(ISERROR(I22/F22),0,IF(OR(ISBLANK(D$14), OR(D$14=0, D$14="")), I22/F22/(D$13/12), I22/F22/(D$14/12))),IF(ISERROR(I22/G22),0,IF(OR(ISBLANK(D$14), OR(D$14=0, D$14="")), I22/G22/(D$13/12), I22/G22/(D$14/12)))),4) -> 0 | L22: =IF(C22="kWh",ROUND(IF(ISERROR('4. Billing Det. for Def-Var'!W20/D22), 0, IF(OR(ISBLANK(D$15), OR(D$15=0, D$15="")), ('4. Billing Det. for Def-Var'!W20/D22)/(D$13/12), ('4. Billing Det. for Def-Var'!W20/D22)/(D$15/12))),4),ROUND(IF(ISERROR('4. Billing Det. for Def-Var'!W20/E22), 0, IF(OR(ISBLANK(D$15), OR(D$15=0, D$15="")), ('4. Billing Det. for Def-Var'!W20/E22)/(D$13/12), ('4. Billing Det. for Def-Var'!W20/E22)/(D$15/12))),4)) -> 0.0353 | M22: -34883.66705 | N22: 0
B23: ='4. Billing Det. for Def-Var'!B21 -> UNMETERED SCATTERED LOAD SERVICE CLASSIFICATION | C23: ='4. Billing Det. for Def-Var'!C21 -> kWh | D23: ='4. Billing Det. for Def-Var'!D21 -> 13830787.93 | E23: ='4. Billing Det. for Def-Var'!E21 -> 0 | F23: ='4. Billing Det. for Def-Var'!J21 -> 13830787.93 | G23: ='4. Billing Det. for Def-Var'!K21 -> 0 | H23: =IFERROR(SUM('5. Allocating Def-Var Balances'!G20:V20)-I23,"") -> -9065.203518 | J23: -0.0007 | K23: 0 | L23: =IF(C23="kWh",ROUND(IF(ISERROR('4. Billing Det. for Def-Var'!W21/D23), 0, IF(OR(ISBLANK(D$15), OR(D$15=0, D$15="")), ('4. Billing Det. for Def-Var'!W21/D23)/(D$13/12), ('4. Billing Det. for Def-Var'!W21/D23)/(D$15/12))),4),ROUND(IF(ISERROR('4. Billing Det. for Def-Var'!W21/E23), 0, IF(OR(ISBLANK(D$15), OR(D$15=0, D$15="")), ('4. Billing Det. for Def-Var'!W21/E23)/(D$13/12), ('4. Billing Det. for Def-Var'!W21/E23)/(D$15/12))),4)) -> 0 | M23: -9681.551548 | N23: 0
B24: ='4. Billing Det. for Def-Var'!B22 -> STANDBY POWER SERVICE CLASSIFICATION | C24: ='4. Billing Det. for Def-Var'!C22 -> kW | D24: ='4. Billing Det. for Def-Var'!D22 -> 0 | E24: ='4. Billing Det. for Def-Var'!E22 -> 0 | F24: ='4. Billing Det. for Def-Var'!J22 -> 0 | G24: ='4. Billing Det. for Def-Var'!K22 -> 0 | H24: =IFERROR(SUM('5. Allocating Def-Var Balances'!G21:V21)-I24,"") -> 0 | J24: 0 | K24: 0 | L24: =IF(C24="kWh",ROUND(IF(ISERROR('4. Billing Det. for Def-Var'!W22/D24), 0, IF(OR(ISBLANK(D$15), OR(D$15=0, D$15="")), ('4. Billing Det. for Def-Var'!W22/D24)/(D$13/12), ('4. Billing Det. for Def-Var'!W22/D24)/(D$15/12))),4),ROUND(IF(ISERROR('4. Billing Det. for Def-Var'!W22/E24), 0, IF(OR(ISBLANK(D$15), OR(D$15=0, D$15="")), ('4. Billing Det. for Def-Var'!W22/E24)/(D$13/12), ('4. Billing Det. for Def-Var'!W22/E24)/(D$15/12))),4)) -> 0 | M24: 0 | N24: 0
B25: ='4. Billing Det. for Def-Var'!B23 -> SENTINEL LIGHTING SERVICE CLASSIFICATION | C25: ='4. Billing Det. for Def-Var'!C23 -> kW | D25: ='4. Billing Det. for Def-Var'!D23 -> 286384.932 | E25: ='4. Billing Det. for Def-Var'!E23 -> 795.983593 | F25: ='4. Billing Det. for Def-Var'!J23 -> 286384.932 | G25: ='4. Billing Det. for Def-Var'!K23 -> 795.983593 | H25: =IFERROR(SUM('5. Allocating Def-Var Balances'!G22:V22)-I25,"") -> -187.7071434 | J25: -0.2358 | K25: 0 | L25: =IF(C25="kWh",ROUND(IF(ISERROR('4. Billing Det. for Def-Var'!W23/D25), 0, IF(OR(ISBLANK(D$15), OR(D$15=0, D$15="")), ('4. Billing Det. for Def-Var'!W23/D25)/(D$13/12), ('4. Billing Det. for Def-Var'!W23/D25)/(D$15/12))),4),ROUND(IF(ISERROR('4. Billing Det. for Def-Var'!W23/E25), 0, IF(OR(ISBLANK(D$15), OR(D$15=0, D$15="")), ('4. Billing Det. for Def-Var'!W23/E25)/(D$13/12), ('4. Billing Det. for Def-Var'!W23/E25)/(D$15/12))),4)) -> 0 | M25: -187.6929312 | N25: 0
B26: ='4. Billing Det. for Def-Var'!B24 -> STREET LIGHTING SERVICE CLASSIFICATION | C26: ='4. Billing Det. for Def-Var'!C24 -> kW | D26: ='4. Billing Det. for Def-Var'!D24 -> 48883952.93 | E26: ='4. Billing Det. for Def-Var'!E24 -> 134152.032 | F26: ='4. Billing Det. for Def-Var'!J24 -> 48883952.93 | G26: ='4. Billing Det. for Def-Var'!K24 -> 134152.032 | H26: =IFERROR(SUM('5. Allocating Def-Var Balances'!G23:V23)-I26,"") -> -32040.32803 | J26: -0.2388 | K26: 0 | L26: =IF(C26="kWh",ROUND(IF(ISERROR('4. Billing Det. for Def-Var'!W24/D26), 0, IF(OR(ISBLANK(D$15), OR(D$15=0, D$15="")), ('4. Billing Det. for Def-Var'!W24/D26)/(D$13/12), ('4. Billing Det. for Def-Var'!W24/D26)/(D$15/12))),4),ROUND(IF(ISERROR('4. Billing Det. for Def-Var'!W24/E26), 0, IF(OR(ISBLANK(D$15), OR(D$15=0, D$15="")), ('4. Billing Det. for Def-Var'!W24/E26)/(D$13/12), ('4. Billing Det. for Def-Var'!W24/E26)/(D$15/12))),4)) -> 1.7218 | M26: -32035.50523 | N26: 0
M29: =SUM(M19:M28) -> -3349404.665 | N29: =SUM(N19:N28) -> -2738473.244 | O29: =SUM(M29:N29) -> -6087877.91
B32: 1 When calculating the revenue reconciliation for distributors with Class A customers, the balances of sub-account 1580-CBR Class A and B will not be taken into consideration since the rate riders, if any, are calculated outside of the model.
B33: 2 Only for rate classes with WMP customers are the Deferral/Variance Account Rate Riders for Non-WMP (column H and J) calculated separately. For all rate classes without WMP customers, balances in account 1580 and 1588 are included in column H and disposed through a combined Deferral/Variance Account and Rate Rider.

Sheet 9. STS-Tax Change
A1: Back to Index | U1: Tax Rates | V1: Effective
B2: =+'1. Information Sheet'!B2 -> INCENTIVE REGULATION MODEL FOR 2020 FILERS | U2: Federal & Provincial | V2: 2016-01-01
U3: As of June 20, 2012
U5: Federal income tax | V5: 0.38
U6: General corporate rate | V6: -0.1
U7: Federal tax abatement | V7: =SUM(V5:V6) -> 0.28
U8: Adjusted federal rate | V8: -0.13
U9: Rate reduction | V9: =V7+V8 -> 0.15
U10: Ontario income tax | V10: 0.115
U12: Combined federal and Ontario | V12: =V9+V10 -> 0.265
B13: Summary - Sharing of Tax Change Forecast Amounts
U14: Federal & Ontario Small Business
B15: ="For the " & '1. Information Sheet'!G32 & " year, enter any Tax Credits from the Cost of Service Tax Calculation (Positive #)" -> For the 2017 year, enter any Tax Credits from the Cost of Service Tax Calculation (Positive #) | U15: Federal small business threshold | V15: 500000
U16: Ontario Small Business Threshold | V16: 500000
B18: 1. Tax Related Amounts Forecast from Capital Tax Rate Changes | M18: 2018 | O18: =M18+1 -> 2019 | U18: Federal small business rate | V18: 0.105
B19: Taxable Capital (if you are not claiming capital tax, please enter your OEB-Approved Rate Base) | O19: =M19 -> 0
U20: Ontario small business rate | V20: 0.045
B21: Deduction from taxable capital up to $15,000,000 | O21: =M21 -> 0
B23: Net Taxable Capital | M23: =M19-M21 -> 0 | O23: =O19-O21 -> 0
B25: Rate | O25: 0 | U25: Ontario Tax Rate (Maximum 11.5%)
U26: Federal tax rate (Maximum 15%)
B27: Ontario Capital Tax (Deductible, not grossed-up) | M27: =IF(M23>0, M23*M25, 0)*181/365 -> 0 | O27: 0 | U27: Combined tax rate (Maximum 26.5%)
B29: 2. Tax Related Amounts Forecast from lncome Tax Rate Changes
B30: Regulatory Taxable Income | O30: =M30 -> 0
B32: Corporate Tax Rate | O32: =IF(ratebase>15000000, 26.5%, IF(ratebase<10000000, 15%, 15%+11.5%*((ratebase-10000000)/5000000))) -> 0.15
B34: Tax Impact | M34: =M30*M32-M15 -> 0 | O34: =O30*O32-M15 -> 0
B36: Grossed-up Tax Amount | M36: =M34/(1-M32) -> 0 | O36: =O34/(1-O32) -> 0
B38: Tax Related Amounts Forecast from Capital Tax Rate Changes | M38: =M27 -> 0 | O38: =O27 -> 0
B40: Tax Related Amounts Forecast from lncome Tax Rate Changes | M40: =M36 -> 0 | O40: =O36 -> 0
B42: Total Tax Related Amounts | M42: =SUM(M40,M38) -> 0 | O42: =SUM(O40,O38) -> 0
B44: Incremental Tax Savings | O44: =O42-M42 -> 0
B46: Sharing of Tax Amount (50%) | O46: =0.5*O44 -> 0

Sheet 10. Shared Tax - RR
A1: Back to Index
B2: =+'1. Information Sheet'!B2 -> INCENTIVE REGULATION MODEL FOR 2020 FILERS
B12: Calculation of Rebased Revenue Requirement and Allocation of Tax Sharing Amount. Enter data from the last OEB-Approved Cost of Service application in columns D through I.
B13: As per Chapter 3 Filing Requirements, shared tax rate riders are based on a 1 year disposition.
B15: Rate Class | D15: Re-based Billed Customers or Connections | E15: Re-based Billed kWh | F15: Re-based Billed kW | G15: Re-based Service Charge | H15: Re-based Distribution Volumetric Rate kWh | I15: Re-based Distribution Volumetric Rate kW | J15: Service Charge Revenue | K15: Distribution Volumetric Rate Revenue kWh | L15: Distribution Volumetric Rate Revenue kW | M15: Revenue Requirement from Rates | N15: Service Charge % Revenue | O15: Distribution Volumetric Rate % Revenue kWh | P15: Distribution Volumetric Rate % Revenue kW | Q15: Total % Revenue
D16: A | E16: B | F16: C | G16: D | H16: E | I16: F | J16: G = A * D *12 | K16: H = B * E | L16: I = C * F | M16: J = G + H + I | N16: K = G / J | O16: L = H / J | P16: M = I / J | Q16: N = J / R
B17: ='4. Billing Det. for Def-Var'!B17 -> RESIDENTIAL SERVICE CLASSIFICATION | C17: ='4. Billing Det. for Def-Var'!C17 -> kWh | D17: 331460.9167 | E17: 2689802037 | F17: 0 | G17: 18.51 | H17: 0.013 | J17: =G17*D17*12 -> 73624098.81 | K17: =E17*H17 -> 34967426.48 | L17: =F17*I17 -> 0 | M17: =J17+K17+L17 -> 108591525.3 | N17: =IF(ISERROR(J17/M17),0,J17/M17) -> 0.6779912025 | O17: =IF(ISERROR(K17/M17),0,K17/M17) -> 0.3220087975 | P17: =IF(ISERROR(L17/M17),0,L17/M17) -> 0 | Q17: =IF(ISERROR(M17/M30),0,M17/M30) -> 0.5380729566
B18: ='4. Billing Det. for Def-Var'!B18 -> GENERAL SERVICE LESS THAN 50 kW SERVICE CLASSIFICATION | C18: ='4. Billing Det. for Def-Var'!C18 -> kWh | D18: 32775.08333 | E18: 1031991524 | F18: 0 | G18: 28.74 | H18: 0.0183 | J18: 11303470.74 | K18: 18885444.89 | L18: 0 | M18: 30188915.63 | N18: 0.3744245365 | O18: 0.6255754635 | P18: 0 | Q18: =IF(ISERROR(M18/M30),0,M18/M30) -> 0.1495866187
B19: ='4. Billing Det. for Def-Var'!B19 -> GENERAL SERVICE 50 to 4,999 kW SERVICE CLASSIFICATION | C19: ='4. Billing Det. for Def-Var'!C19 -> kW | D19: 5080.583333 | E19: 4566530904 | F19: 12192631.56 | G19: 140.97 | I19: 4.2037 | J19: 8594517.99 | K19: 0 | L19: 51254165.3 | M19: 59848683.29 | N19: 0.1436041282 | O19: 0 | P19: 0.8563958718 | Q19: =IF(ISERROR(M19/M30),0,M19/M30) -> 0.2965512997
B20: ='4. Billing Det. for Def-Var'!B20 -> LARGE USE SERVICE CLASSIFICATION | C20: ='4. Billing Det. for Def-Var'!C20 -> kW | D20: 2 | E20: 75964677.2 | F20: 149678.9801 | G20: 6073.68 | I20: 2.2421 | J20: 145768.32 | K20: 0 | L20: 335595.2413 | M20: 481363.5613 | N20: 0.3028237526 | O20: 0 | P20: 0.6971762474 | Q20: =IF(ISERROR(M20/M30),0,M20/M30) -> 0.002385165085
B21: ='4. Billing Det. for Def-Var'!B21 -> UNMETERED SCATTERED LOAD SERVICE CLASSIFICATION | C21: ='4. Billing Det. for Def-Var'!C21 -> kWh | D21: 3043.583333 | E21: 14542413.3 | G21: 8.6 | H21: 0.0195 | J21: 314097.8 | K21: 283577.0594 | L21: 0 | M21: 597674.8594 | N21: 0.5255328965 | O21: 0.4744671035 | P21: 0 | Q21: =IF(ISERROR(M21/M30),0,M21/M30) -> 0.002961489654
B22: ='4. Billing Det. for Def-Var'!B22 -> STANDBY POWER SERVICE CLASSIFICATION | C22: ='4. Billing Det. for Def-Var'!C22 -> kW | I22: 2.8081 | J22: 0 | K22: 0 | L22: 0 | M22: 0 | N22: 0 | O22: 0 | P22: 0 | Q22: =IF(ISERROR(M22/M30),0,M22/M30) -> 0
B23: ='4. Billing Det. for Def-Var'!B23 -> SENTINEL LIGHTING SERVICE CLASSIFICATION | C23: ='4. Billing Det. for Def-Var'!C23 -> kW | D23: 207 | E23: 377900.014 | F23: 974.7851233 | G23: 4.19 | I23: 9.8694 | J23: 10407.96 | K23: 0 | L23: 9620.544296 | M23: 20028.5043 | N23: 0.5196573766 | O23: 0 | P23: 0.4803426234 | Q23: =IF(ISERROR(M23/M30),0,M23/M30) -> 9.924159822e-05
B24: ='4. Billing Det. for Def-Var'!B24 -> STREET LIGHTING SERVICE CLASSIFICATION | C24: ='4. Billing Det. for Def-Var'!C24 -> kW | D24: 89728.75 | E24: 45603290.64 | F24: 127502.8492 | G24: 1.19 | I24: 6.3222 | J24: 1281326.55 | K24: 0 | L24: 806098.5135 | M24: 2087425.064 | N24: 0.6138311609 | O24: 0 | P24: 0.3861688391 | Q24: =IF(ISERROR(M24/M30),0,M24/M30) -> 0.01034322865
B25: ='4. Billing Det. for Def-Var'!B25 -> 0 | C25: ='4. Billing Det. for Def-Var'!C25 -> 0 | J25: 0 | K25: 0 | L25: 0 | M25: 0 | N25: 0 | O25: 0 | P25: 0 | Q25: =IF(ISERROR(M25/M30),0,M25/M30) -> 0
J26: =G26*D26*12 -> 0 | K26: =E26*H26 -> 0 | L26: =F26*I26 -> 0 | M26: =J26+K26+L26 -> 0 | N26: =IF(ISERROR(J26/M26),0,J26/M26) -> 0 | O26: =IF(ISERROR(K26/M26),0,K26/M26) -> 0 | P26: =IF(ISERROR(L26/M26),0,L26/M26) -> 0 | Q26: =IF(ISERROR(M26/M31),0,M26/M31) -> 0
J27: 0 | K27: 0 | L27: 0 | M27: 0 | N27: 0 | O27: 0 | P27: 0 | Q27: 0
J28: 0 | K28: 0 | L28: 0 | M28: 0 | N28: 0 | O28: 0 | P28: 0 | Q28: 0
J29: 0 | K29: 0 | L29: 0 | M29: 0 | N29: 0 | O29: 0 | P29: 0 | Q29: 0
B30: Total | D30: =SUM(D17:D29) -> 462297.9167 | E30: =SUM(E17:E29) -> 8424812745 | F30: 12470788.18 | J30: =SUM(J17:J29) -> 95273688.17 | K30: =SUM(K17:K29) -> 54136448.42 | L30: 52405479.59 | M30: 201815616.2 | Q30: =SUM(Q17:Q29) -> 1
B33: Rate Class | D33: Total kWh (most recent RRR filing) | E33: Total kW (most recent RRR filing) | F33: Allocation of Tax Savings by Rate Class | G33: Distribution Rate Rider
B34: =B17 -> RESIDENTIAL SERVICE CLASSIFICATION | C34: kWh | D34: ='4. Billing Det. for Def-Var'!D17 -> 2783708695 | E34: ='4. Billing Det. for Def-Var'!E17 -> 0 | F34: =F$48*Q17 -> 0 | G34: =ROUND(F34/'4. Billing Det. for Def-Var'!X17,2) -> 0 | H34: $/Customer | I34: If the allocated tax sharing amount does not produce a rate rider in one or more rate class (except for the Standby rate class), a distributor is required to transfer the entire OEB-approved tax sharing amount into account 1595 for disposition at a later date (see Filing Requirements, Appendix B)
B35: GENERAL SERVICE LESS THAN 50 kW SERVICE CLASSIFICATION | C35: kWh | D35: ='4. Billing Det. for Def-Var'!D18 -> 1049615664 | E35: ='4. Billing Det. for Def-Var'!E18 -> 0 | F35: =F$48*Q18 -> 0 | G35: =IFERROR(ROUND(IF(E35<>0,F35/E35,F35/D35),4),"") -> 0 | H35: $/kWh
B36: GENERAL SERVICE 50 to 4,999 kW SERVICE CLASSIFICATION | C36: kW | D36: ='4. Billing Det. for Def-Var'!D19 -> 4679965944 | E36: ='4. Billing Det. for Def-Var'!E19 -> 12192875.59 | F36: 0 | G36: =IFERROR(ROUND(IF(E36<>0,F36/E36,F36/D36),4),"") -> 0 | H36: $/kW
B37: LARGE USE SERVICE CLASSIFICATION | C37: kW | D37: ='4. Billing Det. for Def-Var'!D20 -> 53218180.51 | E37: ='4. Billing Det. for Def-Var'!E20 -> 102871.3272 | F37: 0 | G37: 0 | H37: $/kW
B38: UNMETERED SCATTERED LOAD SERVICE CLASSIFICATION | C38: kWh | D38: ='4. Billing Det. for Def-Var'!D21 -> 13830787.93 | E38: ='4. Billing Det. for Def-Var'!E21 -> 0 | F38: 0 | G38: 0 | H38: $/kWh
B39: STANDBY POWER SERVICE CLASSIFICATION | C39: kW | D39: ='4. Billing Det. for Def-Var'!D22 -> 0 | E39: ='4. Billing Det. for Def-Var'!E22 -> 0 | F39: 0 | H39: $/kWh
B40: SENTINEL LIGHTING SERVICE CLASSIFICATION | C40: kW | D40: ='4. Billing Det. for Def-Var'!D23 -> 286384.932 | E40: ='4. Billing Det. for Def-Var'!E23 -> 795.983593 | F40: 0 | G40: 0 | H40: $/kW
B41: STREET LIGHTING SERVICE CLASSIFICATION | C41: kW | D41: ='4. Billing Det. for Def-Var'!D24 -> 48883952.93 | E41: ='4. Billing Det. for Def-Var'!E24 -> 134152.032 | F41: 0 | G41: 0 | H41: $/kW
B42: 0 | C42: 0 | D42: ='4. Billing Det. for Def-Var'!D25 -> 0 | E42: ='4. Billing Det. for Def-Var'!E25 -> 0 | F42: 0 | G42: =IFERROR(ROUND(IF(E42<>"",F42/E42,F42/D42),4),"") -> 
F43: =F$48*Q30 -> 0
F44: =F$48*Q31 -> 0
F45: 0
F46: 0
D48: =SUM(D34:D47) -> 8629509610 | E48: =SUM(E34:E47) -> 12430694.93 | F48: =ROUND('9. STS-Tax Change'!O46,2) -> 0

Sheet 11. RTSR - Current Rates
A1: Back to Index | BA1: 1
B2: =+'1. Information Sheet'!B2 -> INCENTIVE REGULATION MODEL FOR 2020 FILERS
B13: Columns F and G must match the data from the most recent RRR filing (Tab 4). Rates have been imported from Tab "RATES". Loss Factor has been imported from "Model Specs" tab. If the data needs to be modified, please make the necessary adjustments and note the changes in your manager's summary.
B15: Rate Class | C15: Rate Description | D15: Unit | E15: Rate | F15: Non-Loss Adjusted Metered kWh | G15: Non-Loss Adjusted Metered kW | H15: Applicable Loss Factor | I15: Loss Adjusted Billed kWh
A16: R_TN | B16: ='4. Billing Det. for Def-Var'!B17 -> RESIDENTIAL SERVICE CLASSIFICATION | C16: Retail Transmission Rate – Network Service Rate | D16: $/kWh | E16: =IFERROR(VLOOKUP(A16,_xlnm.DATABASE,8,FALSE),0) -> 0.0073 | F16: ='4. Billing Det. for Def-Var'!D17 -> 2783708695 | G16: ='4. Billing Det. for Def-Var'!E17 -> 0 | H16: =LLF -> 1.0369 | I16: =F16*H16 -> 2886427546
A17: GSL_TN | B17: ='4. Billing Det. for Def-Var'!B18 -> GENERAL SERVICE LESS THAN 50 kW SERVICE CLASSIFICATION | C17: Retail Transmission Rate – Network Service Rate | D17: $/kWh | E17: 0.0065 | F17: ='4. Billing Det. for Def-Var'!D18 -> 1049615664 | G17: ='4. Billing Det. for Def-Var'!E18 -> 0 | H17: 1.0369 | I17: =F17*H17 -> 1088346482
A18: GSG_TN | B18: ='4. Billing Det. for Def-Var'!B19 -> GENERAL SERVICE 50 to 4,999 kW SERVICE CLASSIFICATION | C18: Retail Transmission Rate – Network Service Rate | D18: $/kW | E18: 2.613 | F18: 2132030326 | G18: 5938471.499 | H18: 1.0369 | I18: 2210702245
A19: LU_TN | B19: ='4. Billing Det. for Def-Var'!B20 -> LARGE USE SERVICE CLASSIFICATION | C19: Retail Transmission Rate – Network Service Rate | D19: $/kW | E19: 3.1569 | F19: ='4. Billing Det. for Def-Var'!D20 -> 53218180.51 | G19: ='4. Billing Det. for Def-Var'!E20 -> 102871.3272 | H19: 1.0145 | I19: 53989844.13
A20: USL_TN | B20: ='4. Billing Det. for Def-Var'!B21 -> UNMETERED SCATTERED LOAD SERVICE CLASSIFICATION | C20: Retail Transmission Rate – Network Service Rate | D20: $/kWh | E20: 0.0062 | F20: ='4. Billing Det. for Def-Var'!D21 -> 13830787.93 | G20: ='4. Billing Det. for Def-Var'!E21 -> 0 | H20: 1.0369 | I20: 14341144
B21: ='4. Billing Det. for Def-Var'!B22 -> STANDBY POWER SERVICE CLASSIFICATION | I21: 0
A22: SEN_TN | B22: ='4. Billing Det. for Def-Var'!B23 -> SENTINEL LIGHTING SERVICE CLASSIFICATION | C22: Retail Transmission Rate – Network Service Rate | D22: $/kW | E22: 2.0304 | F22: ='4. Billing Det. for Def-Var'!D23 -> 286384.932 | G22: ='4. Billing Det. for Def-Var'!E23 -> 795.983593 | H22: 1.0369 | I22: 296952.536
A23: SL_TN | B23: ='4. Billing Det. for Def-Var'!B24 -> STREET LIGHTING SERVICE CLASSIFICATION | C23: Retail Transmission Rate – Network Service Rate | D23: $/kW | E23: 2.6275 | F23: ='4. Billing Det. for Def-Var'!D24 -> 48883952.93 | G23: ='4. Billing Det. for Def-Var'!E24 -> 134152.032 | H23: 1.0369 | I23: 50687770.79
A24: GSGI_TN | B24: GENERAL SERVICE 50 to 4,999 kW SERVICE CLASSIFICATION_INTERVAL | C24: Retail Transmission Rate – Network Service Rate – Interval Metered | D24: $/kW | E24: 2.7391 | F24: =2517535201.10426+'4. Billing Det. for Def-Var'!H19 -> 2547935618 | G24: 6254404.091 | H24: 1.0369 | I24: 2641954442
A29: R_TC | B29: =B16 -> RESIDENTIAL SERVICE CLASSIFICATION | C29: Retail Transmission Rate – Line and Transformation Connection Service Rate | D29: $/kWh | E29: =IFERROR(VLOOKUP(A29,_xlnm.DATABASE,8,FALSE),0) -> 0.004 | F29: =F16 -> 2783708695 | G29: =G16 -> 0 | H29: =H16 -> 1.0369 | I29: =F29*H29 -> 2886427546
A30: GSL_TC | B30: =B17 -> GENERAL SERVICE LESS THAN 50 kW SERVICE CLASSIFICATION | C30: Retail Transmission Rate – Line and Transformation Connection Service Rate | D30: $/kWh | E30: 0.0035 | F30: =F17 -> 1049615664 | G30: 0 | H30: 1.0369 | I30: 1088346482
A31: GSG_TC | B31: GENERAL SERVICE 50 to 4,999 kW SERVICE CLASSIFICATION | C31: Retail Transmission Rate – Line and Transformation Connection Service Rate | D31: $/kW | E31: 1.3338 | F31: 2132030326 | G31: 5938471.499 | H31: 1.0369 | I31: 2210702245
A32: LU_TC | B32: LARGE USE SERVICE CLASSIFICATION | C32: Retail Transmission Rate – Line and Transformation Connection Service Rate | D32: $/kW | E32: 1.3931 | F32: 53218180.51 | G32: 102871.3272 | H32: 1.0145 | I32: 53989844.13
A33: USL_TC | B33: UNMETERED SCATTERED LOAD SERVICE CLASSIFICATION | C33: Retail Transmission Rate – Line and Transformation Connection Service Rate | D33: $/kWh | E33: 0.0037 | F33: 13830787.93 | G33: 0 | H33: 1.0369 | I33: 14341144
B34: STANDBY POWER SERVICE CLASSIFICATION
A35: SEN_TC | B35: SENTINEL LIGHTING SERVICE CLASSIFICATION | C35: Retail Transmission Rate – Line and Transformation Connection Service Rate | D35: $/kW | E35: 0.9868 | F35: 286384.932 | G35: 795.983593 | H35: 1.0369 | I35: 296952.536
A36: SL_TC | B36: STREET LIGHTING SERVICE CLASSIFICATION | C36: Retail Transmission Rate – Line and Transformation Connection Service Rate | D36: $/kW | E36: 1.4291 | F36: 48883952.93 | G36: 134152.032 | H36: 1.0369 | I36: 50687770.79
A37: GSGI_TC | B37: GENERAL SERVICE 50 to 4,999 kW SERVICE CLASSIFICATION_INTERVAL | C37: Retail Transmission Rate – Line and Transformation Connection Service Rate – Interval Metered | D37: $/kW | E37: 1.4431 | F37: 2547935618 | G37: 6254404.091 | H37: 1.0369 | I37: 2641954442

Sheet 12. RTSR-UTRs & Sub-Tx
A1: Back to Index
B2: =+'1. Information Sheet'!B2 -> INCENTIVE REGULATION MODEL FOR 2020 FILERS
B12: Uniform Transmission Rates | C12: Unit | E12: 2018 | G12: 2019 | I12: 2020
B14: Rate Description | E14: Rate | G14: Rate | I14: Rate
B16: Network Service Rate | C16: kW | E16: 3.61 | G16: 3.71 | I16: =G16 -> 3.71
B18: Line Connection Service Rate | C18: kW | E18: 0.95 | G18: 0.94 | I18: =G18 -> 0.94
B20: Transformation Connection Service Rate | C20: kW | E20: 2.34 | G20: 2.25 | I20: =G20 -> 2.25
B23: Hydro One Sub-Transmission Rates | C23: Unit | E23: =E12 -> 2018 | G23: =G12 -> 2019 | I23: =I12 -> 2020
B27: Rate Description | E27: Rate | G27: Rate | I27: Rate
B29: Network Service Rate | C29: kW | E29: 3.1942 | G29: 3.1942 | I29: =G29 -> 3.1942
B31: Line Connection Service Rate | C31: kW | E31: 0.771 | G31: 0.771 | I31: =G31 -> 0.771
B33: Transformation Connection Service Rate | C33: kW | E33: 1.7493 | G33: 1.7493 | I33: =G33 -> 1.7493
B35: Both Line and Transformation Connection Service Rate | C35: kW | E35: =SUM(E33,E31) -> 2.5203 | G35: =SUM(G33,G31) -> 2.5203 | I35: =G35 -> 2.5203
B38: If needed, add extra host here. (I) | C38: Unit | E38: =E12 -> 2018 | G38: =G12 -> 2019 | I38: =I12 -> 2020
B42: Rate Description | E42: Rate | G42: Rate | I42: Rate
B44: Network Service Rate | C44: kW
B46: Line Connection Service Rate | C46: kW
B48: Transformation Connection Service Rate | C48: kW
B50: Both Line and Transformation Connection Service Rate | C50: kW | E50: =E46+E48 -> 0 | G50: =G48+G46 -> 0 | I50: =I48+I46 -> 0
B53: If needed, add extra host here. (II) | C53: Unit | E53: =E12 -> 2018 | G53: =G12 -> 2019 | I53: =I12 -> 2020
B57: Rate Description | E57: Rate | G57: Rate | I57: Rate
B59: Network Service Rate | C59: kW
B61: Line Connection Service Rate | C61: kW
B63: Transformation Connection Service Rate | C63: kW
B65: Both Line and Transformation Connection Service Rate | C65: kW | E65: =E61+E63 -> 0 | G65: =G63+G61 -> 0 | I65: =I63+I61 -> 0
E67: Historical 2018 | G67: Current 2019 | I67: Forecast 2020
B68: Low Voltage Switchgear Credit (if applicable, enter as a negative value) | C68: $

Sheet 13. RTSR-Historic Wholesale
A1: Back to Index
B2: =+'1. Information Sheet'!B2 -> INCENTIVE REGULATION MODEL FOR 2020 FILERS
B13: In the green shaded cells, enter billing detail for wholesale transmission for the same reporting period as the billing determinants on Tab 10. For Hydro One Sub-transmission Rates, if you are charged a combined Line and Transformer connection rate, please ensure that both the Line Connection and Transformation Connection columns are completed. If any of the Hydro One Sub-transmission rates (column E, I and M) are highlighted in orange, please double check the billing data entered in "Units Billed" and "Amount" columns. The highlighted rates do not match the Hydro One Sub-transmission rates approved for that time period. If data has been entered correctly, please provide explanation for the discrepancy in rates.
B16: IESO | D16: Network | H16: Line Connection | L16: Transformation Connection | P16: Total Line
B17: Month | D17: Units Billed | E17: Rate | F17: Amount | H17: Units Billed | I17: Rate | J17: Amount | L17: Units Billed | M17: Rate | N17: Amount | P17: Amount
B19: January | D19: 1124526 | E19: =IF(D19<>0,F19/D19,0) -> 3.61 | F19: 4059538.86 | H19: 1230273 | I19: =IF(H19<>0,J19/H19,0) -> 0.95 | J19: 1168759.35 | L19: 340030 | M19: =IF(L19<>0,N19/L19,0) -> 2.34 | N19: 795670.2 | P19: =J19+N19 -> 1964429.55
B20: February | D20: 1049890 | E20: 3.61 | F20: 3790102.9 | H20: 1143993 | I20: 0.95 | J20: 1086793.35 | L20: 330690 | M20: 2.34 | N20: 773814.6 | P20: 1860607.95
B21: March | D21: 999211 | E21: 3.61 | F21: 3607151.71 | H21: 1084525 | I21: 0.95 | J21: 1030298.75 | L21: 323280 | M21: 2.34 | N21: 756475.2 | P21: 1786773.95
B22: April | D22: 1023691 | E22: 3.61 | F22: 3695524.51 | H22: 1147143.021 | I22: 0.95 | J22: 1089785.87 | L22: 336247 | M22: 2.34 | N22: 786817.98 | P22: =J22+N22 -> 1876603.85
B23: May | D23: 1332299 | E23: 3.61 | F23: 4809599.39 | H23: 1469228 | I23: 0.95 | J23: 1395766.6 | L23: 412295 | M23: 2.34 | N23: 964770.3 | P23: 2360536.9
B24: June | D24: 1440995 | E24: 3.61 | F24: 5201991.95 | H24: 1580394 | I24: 0.95 | J24: 1501374.3 | L24: 435990 | M24: 2.34 | N24: 1020216.6 | P24: 2521590.9
B25: July | D25: 1604064.343 | E25: 3.61 | F25: 5790672.28 | H25: 1660687.189 | I25: 0.95 | J25: 1577652.83 | L25: 462013.8077 | M25: 2.34 | N25: 1081112.31 | P25: 2658765.14
B26: August | D26: 1487366.349 | E26: 3.61 | F26: 5369392.52 | H26: 1587636.263 | I26: 0.95 | J26: 1508254.45 | L26: 438287.5385 | M26: 2.34 | N26: 1025592.84 | P26: 2533847.29
B27: September | D27: 1586316.524 | E27: 3.61 | F27: 5726602.65 | H27: 1665140.221 | I27: 0.95 | J27: 1581883.21 | L27: 443077.6282 | M27: 2.34 | N27: 1036801.65 | P27: 2618684.86
B28: October | D28: 1077073 | E28: 3.61 | F28: 3888233.53 | H28: 1194675.137 | I28: 0.95 | J28: 1134941.38 | L28: 336337.0769 | M28: 2.34 | N28: 787028.76 | P28: 1921970.14
B29: November | D29: 1098919.778 | E29: 3.61 | F29: 3967100.4 | H29: 1170194.295 | I29: 0.95 | J29: 1111684.58 | L29: 341276.4829 | M29: 2.34 | N29: 798586.97 | P29: 1910271.55
B30: December | D30: 1078458.321 | E30: 3.61 | F30: 3893234.54 | H30: 1193776.232 | I30: 0.95 | J30: 1134087.42 | L30: 324162.6197 | M30: 2.34 | N30: 758540.53 | P30: 1892627.95
B32: Total | D32: =SUM(D19:D30) -> 14902810.32 | E32: =IF(D32<>0,F32/D32,0) -> 3.61 | F32: =SUM(F19:F30) -> 53799145.24 | H32: =SUM(H19:H30) -> 16127665.36 | I32: =IF(H32<>0,J32/H32,0) -> 0.95 | J32: =SUM(J19:J30) -> 15321282.09 | L32: =SUM(L19:L30) -> 4523687.154 | M32: =IF(L32<>0,N32/L32,0) -> 2.34 | N32: =SUM(N19:N30) -> 10585427.94 | P32: =SUM(P19:P30) -> 25906710.03
B34: Hydro One | D34: Network | H34: Line Connection | L34: Transformation Connection | P34: Total Line
B36: Month | D36: Units Billed | E36: Rate | F36: Amount | H36: Units Billed | I36: Rate | J36: Amount | L36: Units Billed | M36: Rate | N36: Amount | P36: Amount
B38: January | D38: 231845.4605 | E38: =IF(D38<>0,F38/D38,0) -> 3.1942 | F38: 740560.77 | H38: 233091.3978 | I38: =IF(H38<>0,J38/H38,0) -> 2.5203 | J38: 587460.25 | L38: 280069.4988 | M38: =IF(L38<>0,N38/L38,0) -> 1.2052 | N38: 337539.76 | P38: =J38+N38 -> 925000.01
B39: February | D39: 227573.1388 | E39: =IF(D39<>0,F39/D39,0) -> 3.1942 | F39: 726914.12 | H39: 227583.133 | I39: 2.5203 | J39: 573577.77 | L39: 270693.6442 | M39: 1.2052 | N39: 326239.98 | P39: =J39+N39 -> 899817.75
B40: March | D40: 203246.6251 | E40: 3.1942 | F40: 649210.37 | H40: 206368.7299 | I40: 2.5203 | J40: 520111.11 | L40: 257795.9924 | M40: 1.2052 | N40: 310695.73 | P40: 830806.84
B41: April | D41: 193855.6227 | E41: 3.1942 | F41: 619213.63 | H41: 198923.5369 | I41: 2.5203 | J41: 501346.99 | L41: 253006.1567 | M41: 1.2052 | N41: 304923.02 | P41: 806270.01
B42: May | D42: 257607.2913 | E42: 3.1942 | F42: 822849.21 | H42: 257607.2848 | I42: 2.5203 | J42: 649247.64 | L42: 323846.6147 | M42: 1.2052 | N42: 390299.94 | P42: 1039547.58
B43: June | D43: 263625.0172 | E43: 3.1942 | F43: 842071.03 | H43: 266286.8032 | I43: 2.5203 | J43: 671122.63 | L43: 325179.3893 | M43: 1.2052 | N43: 391906.2 | P43: 1063028.83
B44: July | D44: 281868.3555 | E44: 3.1942 | F44: 900343.9013 | H44: 288857.8662 | I44: 2.5203 | J44: 728008.4803 | L44: 334327.1158 | M44: 1.2052 | N44: 402931.04 | P44: 1130939.52
B45: August | D45: 260171.6937 | E45: 3.1942 | F45: 831040.424 | H45: 260882.7025 | I45: 2.5203 | J45: 657502.6751 | L45: 337533.9539 | M45: 1.2052 | N45: 406795.9213 | P45: 1064298.596
B46: September | D46: 274369.0902 | E46: 3.1942 | F46: 876389.7478 | H46: 274774.6611 | I46: 2.5203 | J46: 692514.5784 | L46: 355684.64 | M46: 1.2052 | N46: 428671.1282 | P46: 1121185.707
B47: October | D47: 193279.9654 | E47: 3.1942 | F47: 617374.8653 | H47: 195706.5978 | I47: 2.5203 | J47: 493239.3385 | L47: 256945.7488 | M47: 1.2052 | N47: 309671.0165 | P47: 802910.355
B48: November | D48: 201096.8599 | E48: 3.1942 | F48: 642343.59 | H48: 202080.7523 | I48: 2.5203 | J48: 509304.12 | L48: 259528.0866 | M48: 1.2052 | N48: 312783.25 | P48: 822087.37
B49: December | D49: 200972.637 | E49: 3.1942 | F49: 641946.797 | H49: 201432.7195 | I49: 2.5203 | J49: 507670.8829 | L49: 251290.4168 | M49: 1.2052 | N49: 302855.2104 | P49: 810526.0933
B51: Total | D51: =SUM(D38:D49) -> 2789511.757 | E51: =IF(D51<>0,F51/D51,0) -> 3.1942 | F51: =SUM(F38:F49) -> 8910258.455 | H51: =SUM(H38:H49) -> 2813596.185 | I51: =IF(H51<>0,J51/H51,0) -> 2.5203 | J51: =SUM(J38:J49) -> 7091106.465 | L51: =SUM(L38:L49) -> 3505901.258 | M51: =IF(L51<>0,N51/L51,0) -> 1.2052 | N51: =SUM(N38:N49) -> 4225312.196 | P51: =SUM(P38:P49) -> 11316418.66
B53: Add Extra Host Here (I) | D53: Network | H53: Line Connection | L53: Transformation Connection | P53: Total Line
B54: (if needed)
B55: Month | D55: Units Billed | E55: Rate | F55: Amount | H55: Units Billed | I55: Rate | J55: Amount | L55: Units Billed | M55: Rate | N55: Amount | P55: Amount
B57: January | E57: =IF(D57<>0,F57/D57,0) -> 0 | I57: =IF(H57<>0,J57/H57,0) -> 0 | M57: =IF(L57<>0,N57/L57,0) -> 0 | P57: =J57+N57 -> 0
B58: February | E58: 0 | I58: 0 | M58: 0 | P58: 0
B59: March | E59: 0 | I59: 0 | M59: 0 | P59: 0
B60: April | E60: 0 | I60: 0 | M60: 0 | P60: 0
B61: May | E61: 0 | I61: 0 | M61: 0 | P61: 0
B62: June | E62: 0 | I62: 0 | M62: 0 | P62: 0
B63: July | E63: 0 | I63: 0 | M63: 0 | P63: 0
B64: August | E64: 0 | I64: 0 | M64: 0 | P64: 0
B65: September | E65: 0 | I65: 0 | M65: 0 | P65: 0
B66: October | E66: 0 | I66: 0 | M66: 0 | P66: 0
B67: November | E67: 0 | I67: 0 | M67: 0 | P67: 0
B68: December | E68: 0 | I68: 0 | M68: 0 | P68: 0
B70: Total | D70: =SUM(D57:D68) -> 0 | E70: =IF(D70<>0,F70/D70,0) -> 0 | F70: =SUM(F57:F68) -> 0 | H70: =SUM(H57:H68) -> 0 | I70: =IF(H70<>0,J70/H70,0) -> 0 | J70: =SUM(J57:J68) -> 0 | L70: =SUM(L57:L68) -> 0 | M70: =IF(L70<>0,N70/L70,0) -> 0 | N70: =SUM(N57:N68) -> 0 | P70: =SUM(P57:P68) -> 0
B72: Add Extra Host Here (II) | D72: Network | H72: Line Connection | L72: Transformation Connection | P72: Total Line
B73: (if needed)
B74: Month | D74: Units Billed | E74: Rate | F74: Amount | H74: Units Billed | I74: Rate | J74: Amount | L74: Units Billed | M74: Rate | N74: Amount | P74: Amount
B76: January | E76: =IF(D76<>0,F76/D76,0) -> 0 | I76: =IF(H76<>0,J76/H76,0) -> 0 | M76: =IF(L76<>0,N76/L76,0) -> 0 | P76: =J76+N76 -> 0
B77: February | E77: 0 | I77: 0 | M77: 0 | P77: 0
B78: March | E78: 0 | I78: 0 | M78: 0 | P78: 0
B79: April | E79: 0 | I79: 0 | M79: 0 | P79: 0
B80: May | E80: 0 | I80: 0 | M80: 0 | P80: 0
B81: June | E81: 0 | I81: 0 | M81: 0 | P81: 0
B82: July | E82: 0 | I82: 0 | M82: 0 | P82: 0
B83: August | E83: 0 | I83: 0 | M83: 0 | P83: 0
B84: September | E84: 0 | I84: 0 | M84: 0 | P84: 0
B85: October | E85: 0 | I85: 0 | M85: 0 | P85: 0
B86: November | E86: 0 | I86: 0 | M86: 0 | P86: 0
B87: December | E87: 0 | I87: 0 | M87: 0 | P87: 0
B89: Total | D89: =SUM(D76:D87) -> 0 | E89: =IF(D89<>0,F89/D89,0) -> 0 | F89: =SUM(F76:F87) -> 0 | H89: =SUM(H76:H87) -> 0 | I89: =IF(H89<>0,J89/H89,0) -> 0 | J89: =SUM(J76:J87) -> 0 | L89: =SUM(L76:L87) -> 0 | M89: =IF(L89<>0,N89/L89,0) -> 0 | N89: =SUM(N76:N87) -> 0 | P89: =SUM(P76:P87) -> 0
B91: Total | D91: Network | H91: Line Connection | L91: Transformation Connection | P91: Total Line
B93: Month | D93: Units Billed | E93: Rate | F93: Amount | H93: Units Billed | I93: Rate | J93: Amount | L93: Units Billed | M93: Rate | N93: Amount | P93: Amount
B95: January | D95: =D19+D38+D57+D76 -> 1356371.461 | E95: =IF(D95<>0,F95/D95,0) -> 3.538927034 | F95: =F19+F38+F57+F76 -> 4800099.63 | H95: =H19+H38+H57+H76 -> 1463364.398 | I95: =IF(H95<>0,J95/H95,0) -> 1.200124591 | J95: =J19+J38+J57+J76 -> 1756219.6 | L95: =L19+L38+L57+L76 -> 620099.4988 | M95: =IF(L95<>0,N95/L95,0) -> 1.827464725 | N95: =N19+N38+N57+N76 -> 1133209.96 | P95: =J95+N95 -> 2889429.56
B96: February | D96: =D20+D39+D58+D77 -> 1277463.139 | E96: 3.535927482 | F96: =F20+F39+F58+F77 -> 4517017.02 | H96: =H20+H39+H58+H77 -> 1371576.133 | I96: 1.210557023 | J96: =J20+J39+J58+J77 -> 1660371.12 | L96: =L20+L39+L58+L77 -> 601383.6442 | M96: 1.829206016 | N96: =N20+N39+N58+N77 -> 1100054.58 | P96: 2760425.7
B97: March | D97: 1202457.625 | E97: 3.539718981 | F97: 4256362.08 | H97: 1290893.73 | I97: 1.201036014 | J97: 1550409.86 | L97: 581075.9924 | M97: 1.8365428 | N97: 1067170.93 | P97: 2617580.79
B98: April | D98: 1217546.623 | E98: 3.543797058 | F98: 4314738.14 | H98: 1346066.558 | I98: 1.182061058 | J98: 1591132.86 | L98: 589253.1567 | M98: 1.852753757 | N98: 1091741 | P98: 2682873.86
B99: May | D99: 1589906.291 | E99: 3.542629292 | F99: 5632448.6 | H99: 1726835.285 | I99: 1.184255533 | J99: 2045014.24 | L99: 736141.6147 | M99: 1.840773858 | N99: 1355070.24 | P99: 3400084.48
B100: June | D100: 1704620.017 | E100: 3.545695181 | F100: 6044062.98 | H100: 1846680.803 | I100: 1.176433375 | J100: 2172496.93 | L100: 761169.3893 | M100: 1.855201772 | N100: 1412122.8 | P100: 3584619.73
B101: July | D101: 1885932.699 | E101: 3.547855226 | F101: 6691016.181 | H101: 1949545.056 | I101: 1.182666337 | J101: 2305661.31 | L101: 796340.9235 | M101: 1.863577905 | N101: 1484043.35 | P101: 3789704.66
B102: August | D102: 1747538.043 | E102: 3.548096117 | F102: 6200432.944 | H102: 1848518.966 | I102: 1.171617476 | J102: 2165757.125 | L102: 775821.4924 | M102: 1.846286517 | N102: 1432388.761 | P102: 3598145.886
B103: September | D103: 1860685.614 | E103: 3.548687833 | F103: 6602992.398 | H103: 1939914.882 | I103: 1.172421434 | J103: 2274397.788 | L103: 798762.2682 | M103: 1.834679524 | N103: 1465472.778 | P103: 3739870.567
B104: October | D104: 1270352.965 | E104: 3.546737417 | F104: 4505608.395 | H104: 1390381.735 | I104: 1.171031435 | J104: 1628180.719 | L104: 593282.8258 | M104: 1.848527766 | N104: 1096699.777 | P104: 2724880.495
B105: November | D105: 1300016.638 | E105: 3.545680766 | F105: 4609443.99 | H105: 1372275.047 | I105: 1.181241839 | J105: 1620988.7 | L105: 600804.5695 | M105: 1.849803208 | N105: 1111370.22 | P105: 2732358.92
B106: December | D106: 1279430.958 | E106: 3.544686259 | F106: 4535181.337 | H106: 1395208.951 | I106: 1.176711418 | J106: 1641758.303 | L106: 575453.0365 | M106: 1.844452411 | N106: 1061395.74 | P106: 2703154.043
B108: Total | D108: =SUM(D95:D106) -> 17692322.07 | E108: =IF(D108<>0,F108/D108,0) -> 3.544441676 | F108: =SUM(F95:F106) -> 62709403.7 | H108: =SUM(H95:H106) -> 18941261.54 | I108: =IF(H108<>0,J108/H108,0) -> 1.183257435 | J108: =SUM(J95:J106) -> 22412388.56 | L108: =SUM(L95:L106) -> 8029588.412 | M108: =IF(L108<>0,N108/L108,0) -> 1.844520463 | N108: =SUM(N95:N106) -> 14810740.14 | P108: =SUM(P95:P106) -> 37223128.69
N110: Low Voltage Switchgear Credit (if applicable) | P110: ='12. RTSR-UTRs & Sub-Tx'!E68 -> 0
N112: Total including deduction for Low Voltage Switchgear Credit | P112: =P108+P110 -> 37223128.69

Sheet 14. RTSR-Current Wholesale
A1: Back to Index
B2: =+'1. Information Sheet'!B2 -> INCENTIVE REGULATION MODEL FOR 2020 FILERS
B13: The purpose of this sheet is to calculate the expected billing when current 2019 Uniform Transmission Rates are applied against historical 2018 transmission units.
B16: IESO | D16: Network | H16: Line Connection | L16: Transformation Connection | P16: Total Line
B18: Month | D18: Units Billed | E18: Rate | F18: Amount | H18: Units Billed | I18: Rate | J18: Amount | L18: Units Billed | M18: Rate | N18: Amount | P18: Amount
B20: January | D20: ='13. RTSR-Historic Wholesale'!D19 -> 1124526 | E20: ='12. RTSR-UTRs & Sub-Tx'!G16 -> 3.71 | F20: =D20*E20 -> 4171991.46 | H20: ='13. RTSR-Historic Wholesale'!H19 -> 1230273 | I20: ='12. RTSR-UTRs & Sub-Tx'!G18 -> 0.94 | J20: =H20*I20 -> 1156456.62 | L20: ='13. RTSR-Historic Wholesale'!L19 -> 340030 | M20: ='12. RTSR-UTRs & Sub-Tx'!G20 -> 2.25 | N20: =L20*M20 -> 765067.5 | P20: =J20+N20 -> 1921524.12
B21: February | D21: ='13. RTSR-Historic Wholesale'!D20 -> 1049890 | E21: =E20 -> 3.71 | F21: =D21*E21 -> 3895091.9 | H21: ='13. RTSR-Historic Wholesale'!H20 -> 1143993 | I21: =I20 -> 0.94 | J21: =H21*I21 -> 1075353.42 | L21: ='13. RTSR-Historic Wholesale'!L20 -> 330690 | M21: =M20 -> 2.25 | N21: =L21*M21 -> 744052.5 | P21: 1819405.92
B22: March | D22: ='13. RTSR-Historic Wholesale'!D21 -> 999211 | E22: =E21 -> 3.71 | F22: 3707072.81 | H22: ='13. RTSR-Historic Wholesale'!H21 -> 1084525 | I22: =I21 -> 0.94 | J22: 1019453.5 | L22: ='13. RTSR-Historic Wholesale'!L21 -> 323280 | M22: =M21 -> 2.25 | N22: 727380 | P22: 1746833.5
B23: April | D23: ='13. RTSR-Historic Wholesale'!D22 -> 1023691 | E23: 3.71 | F23: 3797893.61 | H23: ='13. RTSR-Historic Wholesale'!H22 -> 1147143.021 | I23: 0.94 | J23: 1078314.44 | L23: ='13. RTSR-Historic Wholesale'!L22 -> 336247 | M23: 2.25 | N23: 756555.75 | P23: 1834870.19
B24: May | D24: ='13. RTSR-Historic Wholesale'!D23 -> 1332299 | E24: 3.71 | F24: 4942829.29 | H24: ='13. RTSR-Historic Wholesale'!H23 -> 1469228 | I24: 0.94 | J24: 1381074.32 | L24: ='13. RTSR-Historic Wholesale'!L23 -> 412295 | M24: 2.25 | N24: 927663.75 | P24: 2308738.07
B25: June | D25: ='13. RTSR-Historic Wholesale'!D24 -> 1440995 | E25: 3.71 | F25: 5346091.45 | H25: ='13. RTSR-Historic Wholesale'!H24 -> 1580394 | I25: 0.94 | J25: 1485570.36 | L25: ='13. RTSR-Historic Wholesale'!L24 -> 435990 | M25: 2.25 | N25: 980977.5 | P25: 2466547.86
B26: July | D26: ='13. RTSR-Historic Wholesale'!D25 -> 1604064.343 | E26: 3.71 | F26: 5951078.714 | H26: ='13. RTSR-Historic Wholesale'!H25 -> 1660687.189 | I26: 0.94 | J26: 1561045.958 | L26: ='13. RTSR-Historic Wholesale'!L25 -> 462013.8077 | M26: 2.25 | N26: 1039531.067 | P26: 2600577.025
B27: August | D27: ='13. RTSR-Historic Wholesale'!D26 -> 1487366.349 | E27: 3.71 | F27: 5518129.155 | H27: ='13. RTSR-Historic Wholesale'!H26 -> 1587636.263 | I27: 0.94 | J27: 1492378.087 | L27: ='13. RTSR-Historic Wholesale'!L26 -> 438287.5385 | M27: 2.25 | N27: 986146.9615 | P27: 2478525.049
B28: September | D28: ='13. RTSR-Historic Wholesale'!D27 -> 1586316.524 | E28: 3.71 | F28: 5885234.302 | H28: ='13. RTSR-Historic Wholesale'!H27 -> 1665140.221 | I28: 0.94 | J28: 1565231.808 | L28: ='13. RTSR-Historic Wholesale'!L27 -> 443077.6282 | M28: 2.25 | N28: 996924.6635 | P28: 2562156.471
B29: October | D29: ='13. RTSR-Historic Wholesale'!D28 -> 1077073 | E29: 3.71 | F29: 3995940.83 | H29: ='13. RTSR-Historic Wholesale'!H28 -> 1194675.137 | I29: 0.94 | J29: 1122994.629 | L29: ='13. RTSR-Historic Wholesale'!L28 -> 336337.0769 | M29: 2.25 | N29: 756758.4231 | P29: 1879753.052
B30: November | D30: ='13. RTSR-Historic Wholesale'!D29 -> 1098919.778 | E30: 3.71 | F30: 4076992.378 | H30: ='13. RTSR-Historic Wholesale'!H29 -> 1170194.295 | I30: 0.94 | J30: 1099982.637 | L30: ='13. RTSR-Historic Wholesale'!L29 -> 341276.4829 | M30: 2.25 | N30: 767872.0865 | P30: 1867854.724
B31: December | D31: ='13. RTSR-Historic Wholesale'!D30 -> 1078458.321 | E31: 3.71 | F31: 4001080.372 | H31: ='13. RTSR-Historic Wholesale'!H30 -> 1193776.232 | I31: 0.94 | J31: 1122149.658 | L31: ='13. RTSR-Historic Wholesale'!L30 -> 324162.6197 | M31: 2.25 | N31: 729365.8942 | P31: 1851515.552
B33: Total | D33: =SUM(D20:D31) -> 14902810.32 | E33: =IF(D33<>0,F33/D33,0) -> 3.71 | F33: =SUM(F20:F31) -> 55289426.27 | H33: =SUM(H20:H31) -> 16127665.36 | I33: =IF(H33<>0,J33/H33,0) -> 0.94 | J33: =SUM(J20:J31) -> 15160005.44 | L33: =SUM(L20:L31) -> 4523687.154 | M33: =IF(L33<>0,N33/L33,0) -> 2.25 | N33: =SUM(N20:N31) -> 10178296.1 | P33: =SUM(P20:P31) -> 25338301.53
B35: Hydro One | D35: Network | H35: Line Connection | L35: Transformation Connection | P35: Total Line
B37: Month | D37: Units Billed | E37: Rate | F37: Amount | H37: Units Billed | I37: Rate | J37: Amount | L37: Units Billed | M37: Rate | N37: Amount | P37: Amount
B39: January | D39: ='13. RTSR-Historic Wholesale'!D38 -> 231845.4605 | E39: ='12. RTSR-UTRs & Sub-Tx'!G29 -> 3.1942 | F39: =D39*E39 -> 740560.77 | H39: ='13. RTSR-Historic Wholesale'!H38 -> 233091.3978 | I39: ='12. RTSR-UTRs & Sub-Tx'!G31 -> 0.771 | J39: =H39*I39 -> 179713.4677 | L39: ='13. RTSR-Historic Wholesale'!L38 -> 280069.4988 | M39: ='12. RTSR-UTRs & Sub-Tx'!G33 -> 1.7493 | N39: =L39*M39 -> 489925.5743 | P39: =J39+N39 -> 669639.0421
B40: February | D40: ='13. RTSR-Historic Wholesale'!D39 -> 227573.1388 | E40: =E39 -> 3.1942 | F40: =D40*E40 -> 726914.12 | H40: ='13. RTSR-Historic Wholesale'!H39 -> 227583.133 | I40: =I39 -> 0.771 | J40: =H40*I40 -> 175466.5955 | L40: ='13. RTSR-Historic Wholesale'!L39 -> 270693.6442 | M40: =M39 -> 1.7493 | N40: =L40*M40 -> 473524.3918 | P40: 648990.9873
B41: March | D41: ='13. RTSR-Historic Wholesale'!D40 -> 203246.6251 | E41: =E40 -> 3.1942 | F41: 649210.37 | H41: ='13. RTSR-Historic Wholesale'!H40 -> 206368.7299 | I41: =I40 -> 0.771 | J41: 159110.2908 | L41: ='13. RTSR-Historic Wholesale'!L40 -> 257795.9924 | M41: =M40 -> 1.7493 | N41: 450962.5294 | P41: 610072.8202
B42: April | D42: ='13. RTSR-Historic Wholesale'!D41 -> 193855.6227 | E42: 3.1942 | F42: 619213.63 | H42: ='13. RTSR-Historic Wholesale'!H41 -> 198923.5369 | I42: 0.771 | J42: 153370.0469 | L42: ='13. RTSR-Historic Wholesale'!L41 -> 253006.1567 | M42: =M41 -> 1.7493 | N42: 442583.6698 | P42: 595953.7168
B43: May | D43: ='13. RTSR-Historic Wholesale'!D42 -> 257607.2913 | E43: 3.1942 | F43: 822849.21 | H43: ='13. RTSR-Historic Wholesale'!H42 -> 257607.2848 | I43: 0.771 | J43: 198615.2166 | L43: ='13. RTSR-Historic Wholesale'!L42 -> 323846.6147 | M43: 1.7493 | N43: 566504.883 | P43: 765120.0997
B44: June | D44: ='13. RTSR-Historic Wholesale'!D43 -> 263625.0172 | E44: 3.1942 | F44: 842071.03 | H44: ='13. RTSR-Historic Wholesale'!H43 -> 266286.8032 | I44: 0.771 | J44: 205307.1252 | L44: ='13. RTSR-Historic Wholesale'!L43 -> 325179.3893 | M44: 1.7493 | N44: 568836.3057 | P44: 774143.431
B45: July | D45: ='13. RTSR-Historic Wholesale'!D44 -> 281868.3555 | E45: 3.1942 | F45: 900343.9013 | H45: ='13. RTSR-Historic Wholesale'!H44 -> 288857.8662 | I45: 0.771 | J45: 222709.4149 | L45: ='13. RTSR-Historic Wholesale'!L44 -> 334327.1158 | M45: 1.7493 | N45: 584838.4237 | P45: 807547.8386
B46: August | D46: ='13. RTSR-Historic Wholesale'!D45 -> 260171.6937 | E46: 3.1942 | F46: 831040.424 | H46: ='13. RTSR-Historic Wholesale'!H45 -> 260882.7025 | I46: 0.771 | J46: 201140.5636 | L46: ='13. RTSR-Historic Wholesale'!L45 -> 337533.9539 | M46: 1.7493 | N46: 590448.1456 | P46: 791588.7093
B47: September | D47: ='13. RTSR-Historic Wholesale'!D46 -> 274369.0902 | E47: 3.1942 | F47: 876389.7478 | H47: ='13. RTSR-Historic Wholesale'!H46 -> 274774.6611 | I47: 0.771 | J47: 211851.2637 | L47: ='13. RTSR-Historic Wholesale'!L46 -> 355684.64 | M47: 1.7493 | N47: 622199.1408 | P47: 834050.4045
B48: October | D48: ='13. RTSR-Historic Wholesale'!D47 -> 193279.9654 | E48: 3.1942 | F48: 617374.8653 | H48: ='13. RTSR-Historic Wholesale'!H47 -> 195706.5978 | I48: 0.771 | J48: 150889.7869 | L48: ='13. RTSR-Historic Wholesale'!L47 -> 256945.7488 | M48: 1.7493 | N48: 449475.1985 | P48: 600364.9854
B49: November | D49: ='13. RTSR-Historic Wholesale'!D48 -> 201096.8599 | E49: 3.1942 | F49: 642343.59 | H49: ='13. RTSR-Historic Wholesale'!H48 -> 202080.7523 | I49: 0.771 | J49: 155804.26 | L49: ='13. RTSR-Historic Wholesale'!L48 -> 259528.0866 | M49: 1.7493 | N49: 453992.4819 | P49: 609796.7419
B50: December | D50: ='13. RTSR-Historic Wholesale'!D49 -> 200972.637 | E50: 3.1942 | F50: 641946.797 | H50: ='13. RTSR-Historic Wholesale'!H49 -> 201432.7195 | I50: 0.771 | J50: 155304.6267 | L50: ='13. RTSR-Historic Wholesale'!L49 -> 251290.4168 | M50: 1.7493 | N50: 439582.3262 | P50: 594886.9529
B52: Total | D52: =SUM(D39:D50) -> 2789511.757 | E52: =IF(D52<>0,F52/D52,0) -> 3.1942 | F52: =SUM(F39:F50) -> 8910258.455 | H52: =SUM(H39:H50) -> 2813596.185 | I52: =IF(H52<>0,J52/H52,0) -> 0.771 | J52: =SUM(J39:J50) -> 2169282.659 | L52: =SUM(L39:L50) -> 3505901.258 | M52: =IF(L52<>0,N52/L52,0) -> 1.7493 | N52: =SUM(N39:N50) -> 6132873.071 | P52: =SUM(P39:P50) -> 8302155.73
B54: Add Extra Host Here (I) | D54: Network | H54: Line Connection | L54: Transformation Connection | P54: Total Line
B56: Month | D56: Units Billed | E56: Rate | F56: Amount | H56: Units Billed | I56: Rate | J56: Amount | L56: Units Billed | M56: Rate | N56: Amount | P56: Amount
B58: January | D58: ='13. RTSR-Historic Wholesale'!D57 -> 0 | E58: ='12. RTSR-UTRs & Sub-Tx'!G44 -> 0 | F58: =D58*E58 -> 0 | H58: ='13. RTSR-Historic Wholesale'!H57 -> 0 | I58: ='12. RTSR-UTRs & Sub-Tx'!G46 -> 0 | J58: =H58*I58 -> 0 | L58: ='13. RTSR-Historic Wholesale'!L57 -> 0 | M58: ='12. RTSR-UTRs & Sub-Tx'!G48 -> 0 | N58: =L58*M58 -> 0 | P58: =J58+N58 -> 0
B59: February | D59: ='13. RTSR-Historic Wholesale'!D58 -> 0 | E59: =E58 -> 0 | F59: =D59*E59 -> 0 | H59: ='13. RTSR-Historic Wholesale'!H58 -> 0 | I59: =I58 -> 0 | J59: =H59*I59 -> 0 | L59: ='13. RTSR-Historic Wholesale'!L58 -> 0 | M59: =M58 -> 0 | N59: =L59*M59 -> 0 | P59: 0
B60: March | D60: ='13. RTSR-Historic Wholesale'!D59 -> 0 | E60: =E59 -> 0 | F60: 0 | H60: ='13. RTSR-Historic Wholesale'!H59 -> 0 | I60: =I59 -> 0 | J60: 0 | L60: ='13. RTSR-Historic Wholesale'!L59 -> 0 | M60: =M59 -> 0 | N60: 0 | P60: 0
B61: April | D61: ='13. RTSR-Historic Wholesale'!D60 -> 0 | E61: 0 | F61: 0 | H61: ='13. RTSR-Historic Wholesale'!H60 -> 0 | I61: 0 | J61: 0 | L61: ='13. RTSR-Historic Wholesale'!L60 -> 0 | M61: 0 | N61: 0 | P61: 0
B62: May | D62: ='13. RTSR-Historic Wholesale'!D61 -> 0 | E62: 0 | F62: 0 | H62: ='13. RTSR-Historic Wholesale'!H61 -> 0 | I62: 0 | J62: 0 | L62: ='13. RTSR-Historic Wholesale'!L61 -> 0 | M62: 0 | N62: 0 | P62: 0
B63: June | D63: ='13. RTSR-Historic Wholesale'!D62 -> 0 | E63: 0 | F63: 0 | H63: ='13. RTSR-Historic Wholesale'!H62 -> 0 | I63: 0 | J63: 0 | L63: ='13. RTSR-Historic Wholesale'!L62 -> 0 | M63: 0 | N63: 0 | P63: 0
B64: July | D64: ='13. RTSR-Historic Wholesale'!D63 -> 0 | E64: 0 | F64: 0 | H64: ='13. RTSR-Historic Wholesale'!H63 -> 0 | I64: 0 | J64: 0 | L64: ='13. RTSR-Historic Wholesale'!L63 -> 0 | M64: 0 | N64: 0 | P64: 0
B65: August | D65: ='13. RTSR-Historic Wholesale'!D64 -> 0 | E65: 0 | F65: 0 | H65: ='13. RTSR-Historic Wholesale'!H64 -> 0 | I65: 0 | J65: 0 | L65: ='13. RTSR-Historic Wholesale'!L64 -> 0 | M65: 0 | N65: 0 | P65: 0
B66: September | D66: ='13. RTSR-Historic Wholesale'!D65 -> 0 | E66: 0 | F66: 0 | H66: ='13. RTSR-Historic Wholesale'!H65 -> 0 | I66: 0 | J66: 0 | L66: ='13. RTSR-Historic Wholesale'!L65 -> 0 | M66: 0 | N66: 0 | P66: 0
B67: October | D67: ='13. RTSR-Historic Wholesale'!D66 -> 0 | E67: 0 | F67: 0 | H67: ='13. RTSR-Historic Wholesale'!H66 -> 0 | I67: 0 | J67: 0 | L67: ='13. RTSR-Historic Wholesale'!L66 -> 0 | M67: 0 | N67: 0 | P67: 0
B68: November | D68: ='13. RTSR-Historic Wholesale'!D67 -> 0 | E68: 0 | F68: 0 | H68: ='13. RTSR-Historic Wholesale'!H67 -> 0 | I68: 0 | J68: 0 | L68: ='13. RTSR-Historic Wholesale'!L67 -> 0 | M68: 0 | N68: 0 | P68: 0
B69: December | D69: ='13. RTSR-Historic Wholesale'!D68 -> 0 | E69: 0 | F69: 0 | H69: ='13. RTSR-Historic Wholesale'!H68 -> 0 | I69: 0 | J69: 0 | L69: ='13. RTSR-Historic Wholesale'!L68 -> 0 | M69: 0 | N69: 0 | P69: 0
B71: Total | D71: =SUM(D58:D69) -> 0 | E71: =IF(D71<>0,F71/D71,0) -> 0 | F71: =SUM(F58:F69) -> 0 | H71: =SUM(H58:H69) -> 0 | I71: =IF(H71<>0,J71/H71,0) -> 0 | J71: =SUM(J58:J69) -> 0 | L71: =SUM(L58:L69) -> 0 | M71: =IF(L71<>0,N71/L71,0) -> 0 | N71: =SUM(N58:N69) -> 0 | P71: =SUM(P58:P69) -> 0
B73: Add Extra Host Here (II) | D73: Network | H73: Line Connection | L73: Transformation Connection | P73: Total Line
B75: Month | D75: Units Billed | E75: Rate | F75: Amount | H75: Units Billed | I75: Rate | J75: Amount | L75: Units Billed | M75: Rate | N75: Amount | P75: Amount
B77: January | D77: ='13. RTSR-Historic Wholesale'!D76 -> 0 | E77: ='12. RTSR-UTRs & Sub-Tx'!G59 -> 0 | F77: =D77*E77 -> 0 | H77: ='13. RTSR-Historic Wholesale'!H76 -> 0 | I77: ='12. RTSR-UTRs & Sub-Tx'!G61 -> 0 | J77: =H77*I77 -> 0 | L77: ='13. RTSR-Historic Wholesale'!L76 -> 0 | M77: ='12. RTSR-UTRs & Sub-Tx'!G63 -> 0 | N77: =L77*M77 -> 0 | P77: =J77+N77 -> 0
B78: February | D78: ='13. RTSR-Historic Wholesale'!D77 -> 0 | E78: =E77 -> 0 | F78: =D78*E78 -> 0 | H78: ='13. RTSR-Historic Wholesale'!H77 -> 0 | I78: =I77 -> 0 | J78: =H78*I78 -> 0 | L78: ='13. RTSR-Historic Wholesale'!L77 -> 0 | M78: =M77 -> 0 | N78: =L78*M78 -> 0 | P78: 0
B79: March | D79: ='13. RTSR-Historic Wholesale'!D78 -> 0 | E79: =E78 -> 0 | F79: 0 | H79: ='13. RTSR-Historic Wholesale'!H78 -> 0 | I79: =I78 -> 0 | J79: 0 | L79: ='13. RTSR-Historic Wholesale'!L78 -> 0 | M79: =M78 -> 0 | N79: 0 | P79: 0
B80: April | D80: ='13. RTSR-Historic Wholesale'!D79 -> 0 | E80: 0 | F80: 0 | H80: ='13. RTSR-Historic Wholesale'!H79 -> 0 | I80: 0 | J80: 0 | L80: ='13. RTSR-Historic Wholesale'!L79 -> 0 | M80: =M79 -> 0 | N80: 0 | P80: 0
B81: May | D81: ='13. RTSR-Historic Wholesale'!D80 -> 0 | E81: 0 | F81: 0 | H81: ='13. RTSR-Historic Wholesale'!H80 -> 0 | I81: 0 | J81: 0 | L81: ='13. RTSR-Historic Wholesale'!L80 -> 0 | M81: 0 | N81: 0 | P81: 0
B82: June | D82: ='13. RTSR-Historic Wholesale'!D81 -> 0 | E82: 0 | F82: 0 | H82: ='13. RTSR-Historic Wholesale'!H81 -> 0 | I82: 0 | J82: 0 | L82: ='13. RTSR-Historic Wholesale'!L81 -> 0 | M82: 0 | N82: 0 | P82: 0
B83: July | D83: ='13. RTSR-Historic Wholesale'!D82 -> 0 | E83: 0 | F83: 0 | H83: ='13. RTSR-Historic Wholesale'!H82 -> 0 | I83: 0 | J83: 0 | L83: ='13. RTSR-Historic Wholesale'!L82 -> 0 | M83: 0 | N83: 0 | P83: 0
B84: August | D84: ='13. RTSR-Historic Wholesale'!D83 -> 0 | E84: 0 | F84: 0 | H84: ='13. RTSR-Historic Wholesale'!H83 -> 0 | I84: 0 | J84: 0 | L84: ='13. RTSR-Historic Wholesale'!L83 -> 0 | M84: 0 | N84: 0 | P84: 0
B85: September | D85: ='13. RTSR-Historic Wholesale'!D84 -> 0 | E85: 0 | F85: 0 | H85: ='13. RTSR-Historic Wholesale'!H84 -> 0 | I85: 0 | J85: 0 | L85: ='13. RTSR-Historic Wholesale'!L84 -> 0 | M85: 0 | N85: 0 | P85: 0
B86: October | D86: ='13. RTSR-Historic Wholesale'!D85 -> 0 | E86: 0 | F86: 0 | H86: ='13. RTSR-Historic Wholesale'!H85 -> 0 | I86: 0 | J86: 0 | L86: ='13. RTSR-Historic Wholesale'!L85 -> 0 | M86: 0 | N86: 0 | P86: 0
B87: November | D87: ='13. RTSR-Historic Wholesale'!D86 -> 0 | E87: 0 | F87: 0 | H87: ='13. RTSR-Historic Wholesale'!H86 -> 0 | I87: 0 | J87: 0 | L87: ='13. RTSR-Historic Wholesale'!L86 -> 0 | M87: 0 | N87: 0 | P87: 0
B88: December | D88: ='13. RTSR-Historic Wholesale'!D87 -> 0 | E88: 0 | F88: 0 | H88: ='13. RTSR-Historic Wholesale'!H87 -> 0 | I88: 0 | J88: 0 | L88: ='13. RTSR-Historic Wholesale'!L87 -> 0 | M88: 0 | N88: 0 | P88: 0
B90: Total | D90: =SUM(D77:D88) -> 0 | E90: =IF(D90<>0,F90/D90,0) -> 0 | F90: =SUM(F77:F88) -> 0 | H90: =SUM(H77:H88) -> 0 | I90: =IF(H90<>0,J90/H90,0) -> 0 | J90: =SUM(J77:J88) -> 0 | L90: =SUM(L77:L88) -> 0 | M90: =IF(L90<>0,N90/L90,0) -> 0 | N90: =SUM(N77:N88) -> 0 | P90: =SUM(P77:P88) -> 0
B92: Total | D92: Network | H92: Line Connection | L92: Transformation Connection | P92: Total Line
B94: Month | D94: Units Billed | E94: Rate | F94: Amount | H94: Units Billed | I94: Rate | J94: Amount | L94: Units Billed | M94: Rate | N94: Amount | P94: Amount
B96: January | D96: =D20+D39+D58+D77 -> 1356371.461 | E96: =IF(D96<>0,F96/D96,0) -> 3.621833969 | F96: =F20+F39+F58+F77 -> 4912552.23 | H96: =H20+H39+H58+H77 -> 1463364.398 | I96: =IF(H96<>0,J96/H96,0) -> 0.9130809043 | J96: =J20+J39+J58+J77 -> 1336170.088 | L96: =L20+L39+L58+L77 -> 620099.4988 | M96: =IF(L96<>0,N96/L96,0) -> 2.023857585 | N96: =N20+N39+N58+N77 -> 1254993.074 | P96: =J96+N96 -> 2591163.162
B97: February | D97: =D21+D40+D59+D78 -> 1277463.139 | E97: 3.618113024 | F97: =F21+F40+F59+F78 -> 4622006.02 | H97: =H21+H40+H59+H78 -> 1371576.133 | I97: 0.9119581374 | J97: =J21+J40+J59+J78 -> 1250820.016 | L97: =L21+L40+L59+L78 -> 601383.6442 | M97: 2.024625883 | N97: =N21+N40+N59+N78 -> 1217576.892 | P97: 2468396.907
B98: March | D98: 1202457.625 | E98: 3.62281638 | F98: 4356283.18 | H98: 1290893.73 | I98: 0.9129828145 | J98: 1178563.791 | L98: 581075.9924 | M98: 2.027863042 | N98: 1178342.529 | P98: 2356906.32
B99: April | D99: 1217546.623 | E99: 3.627875235 | F99: 4417107.24 | H99: 1346066.558 | I99: 0.9150249514 | J99: 1231684.487 | L99: 589253.1567 | M99: 2.035015691 | N99: 1199139.42 | P99: 2430823.907
B100: May | D100: 1589906.291 | E100: 3.626426621 | F100: 5765678.5 | H100: 1726835.285 | I100: 0.914788776 | J100: 1579689.537 | L100: 736141.6147 | M100: 2.029729882 | N100: 1494168.633 | P100: 3073858.17
B101: June | D101: 1704620.017 | E101: 3.630229856 | F101: 6188162.48 | H101: 1846680.803 | I101: 0.9156306181 | J101: 1690877.485 | L101: 761169.3893 | M101: 2.036095812 | N101: 1549813.806 | P101: 3240691.291
B102: July | D102: 1885932.699 | E102: 3.632909392 | F102: 6851422.616 | H102: 1949545.056 | I102: 0.9149598096 | J102: 1783755.373 | L102: 796340.9235 | M102: 2.039791555 | N102: 1624369.491 | P102: 3408124.864
B103: August | D103: 1747538.043 | E103: 3.633208218 | F103: 6349169.579 | H103: 1848518.966 | I103: 0.9161489184 | J103: 1693518.651 | L103: 775821.4924 | M103: 2.032162195 | N103: 1576595.107 | P103: 3270113.758
B104: September | D104: 1860685.614 | E104: 3.633942242 | F104: 6761624.05 | H104: 1939914.882 | I104: 0.9160623942 | J104: 1777083.071 | L104: 798762.2682 | M104: 2.027040922 | N104: 1619123.804 | P104: 3396206.876
B105: October | D105: 1270352.965 | E105: 3.631522751 | F105: 4613315.695 | H105: 1390381.735 | I105: 0.9162119897 | J105: 1273884.416 | L105: 593282.8258 | M105: 2.033151086 | N105: 1206233.622 | P105: 2480118.037
B106: November | D106: 1300016.638 | E106: 3.630211975 | F106: 4719335.968 | H106: 1372275.047 | I106: 0.915113118 | J106: 1255786.897 | L106: 600804.5695 | M106: 2.03371384 | N106: 1221864.568 | P106: 2477651.466
B107: December | D107: 1279430.958 | E107: 3.628978288 | F107: 4643027.169 | H107: 1395208.951 | I107: 0.9156006944 | J107: 1277454.284 | L107: 575453.0365 | M107: 2.031352945 | N107: 1168948.22 | P107: 2446402.505
B109: Total | D109: =SUM(D96:D107) -> 17692322.07 | E109: =IF(D109<>0,F109/D109,0) -> 3.628674883 | F109: =SUM(F96:F107) -> 64199684.73 | H109: =SUM(H96:H107) -> 18941261.54 | I109: =IF(H109<>0,J109/H109,0) -> 0.914896194 | J109: =SUM(J96:J107) -> 17329288.1 | L109: =SUM(L96:L107) -> 8029588.412 | M109: =IF(L109<>0,N109/L109,0) -> 2.031382971 | N109: =SUM(N96:N107) -> 16311169.17 | P109: =SUM(P96:P107) -> 33640457.26
N111: Low Voltage Switchgear Credit (if applicable) | P111: ='12. RTSR-UTRs & Sub-Tx'!G68 -> 0
N113: Total including deduction for Low Voltage Switchgear Credit | P113: =P109+P111 -> 33640457.26

Sheet 15. RTSR-Forecast Wholesale
A1: Back to Index
B2: =+'1. Information Sheet'!B2 -> INCENTIVE REGULATION MODEL FOR 2020 FILERS
B13: The purpose of this sheet is to calculate the expected billing when forecasted 2019 Uniform Transmission Rates are applied against historical 2017 transmission units.
B16: IESO | D16: Network | H16: Line Connection | L16: Transformation Connection | P16: Total Line
B18: Month | D18: Units Billed | E18: Rate | F18: Amount | H18: Units Billed | I18: Rate | J18: Amount | L18: Units Billed | M18: Rate | N18: Amount | P18: Amount
B20: January | D20: ='13. RTSR-Historic Wholesale'!D19 -> 1124526 | E20: ='12. RTSR-UTRs & Sub-Tx'!I16 -> 3.71 | F20: =D20*E20 -> 4171991.46 | H20: ='13. RTSR-Historic Wholesale'!H19 -> 1230273 | I20: ='12. RTSR-UTRs & Sub-Tx'!I18 -> 0.94 | J20: =H20*I20 -> 1156456.62 | L20: ='13. RTSR-Historic Wholesale'!L19 -> 340030 | M20: ='12. RTSR-UTRs & Sub-Tx'!I20 -> 2.25 | N20: =L20*M20 -> 765067.5 | P20: =J20+N20 -> 1921524.12
B21: February | D21: ='13. RTSR-Historic Wholesale'!D20 -> 1049890 | E21: =E20 -> 3.71 | F21: 3895091.9 | H21: ='13. RTSR-Historic Wholesale'!H20 -> 1143993 | I21: =I20 -> 0.94 | J21: 1075353.42 | L21: ='13. RTSR-Historic Wholesale'!L20 -> 330690 | M21: =M20 -> 2.25 | N21: 744052.5 | P21: 1819405.92
B22: March | D22: ='13. RTSR-Historic Wholesale'!D21 -> 999211 | E22: 3.71 | F22: 3707072.81 | H22: ='13. RTSR-Historic Wholesale'!H21 -> 1084525 | I22: 0.94 | J22: 1019453.5 | L22: ='13. RTSR-Historic Wholesale'!L21 -> 323280 | M22: 2.25 | N22: 727380 | P22: 1746833.5
B23: April | D23: ='13. RTSR-Historic Wholesale'!D22 -> 1023691 | E23: 3.71 | F23: 3797893.61 | H23: ='13. RTSR-Historic Wholesale'!H22 -> 1147143.021 | I23: 0.94 | J23: 1078314.44 | L23: ='13. RTSR-Historic Wholesale'!L22 -> 336247 | M23: 2.25 | N23: 756555.75 | P23: 1834870.19
B24: May | D24: ='13. RTSR-Historic Wholesale'!D23 -> 1332299 | E24: 3.71 | F24: 4942829.29 | H24: ='13. RTSR-Historic Wholesale'!H23 -> 1469228 | I24: 0.94 | J24: 1381074.32 | L24: ='13. RTSR-Historic Wholesale'!L23 -> 412295 | M24: 2.25 | N24: 927663.75 | P24: 2308738.07
B25: June | D25: ='13. RTSR-Historic Wholesale'!D24 -> 1440995 | E25: 3.71 | F25: 5346091.45 | H25: ='13. RTSR-Historic Wholesale'!H24 -> 1580394 | I25: 0.94 | J25: 1485570.36 | L25: ='13. RTSR-Historic Wholesale'!L24 -> 435990 | M25: 2.25 | N25: 980977.5 | P25: 2466547.86
B26: July | D26: ='13. RTSR-Historic Wholesale'!D25 -> 1604064.343 | E26: 3.71 | F26: 5951078.714 | H26: ='13. RTSR-Historic Wholesale'!H25 -> 1660687.189 | I26: 0.94 | J26: 1561045.958 | L26: ='13. RTSR-Historic Wholesale'!L25 -> 462013.8077 | M26: 2.25 | N26: 1039531.067 | P26: 2600577.025
B27: August | D27: ='13. RTSR-Historic Wholesale'!D26 -> 1487366.349 | E27: 3.71 | F27: 5518129.155 | H27: ='13. RTSR-Historic Wholesale'!H26 -> 1587636.263 | I27: 0.94 | J27: 1492378.087 | L27: ='13. RTSR-Historic Wholesale'!L26 -> 438287.5385 | M27: 2.25 | N27: 986146.9615 | P27: 2478525.049
B28: September | D28: ='13. RTSR-Historic Wholesale'!D27 -> 1586316.524 | E28: 3.71 | F28: 5885234.302 | H28: ='13. RTSR-Historic Wholesale'!H27 -> 1665140.221 | I28: 0.94 | J28: 1565231.808 | L28: ='13. RTSR-Historic Wholesale'!L27 -> 443077.6282 | M28: 2.25 | N28: 996924.6635 | P28: 2562156.471
B29: October | D29: ='13. RTSR-Historic Wholesale'!D28 -> 1077073 | E29: 3.71 | F29: 3995940.83 | H29: ='13. RTSR-Historic Wholesale'!H28 -> 1194675.137 | I29: 0.94 | J29: 1122994.629 | L29: ='13. RTSR-Historic Wholesale'!L28 -> 336337.0769 | M29: 2.25 | N29: 756758.4231 | P29: 1879753.052
B30: November | D30: ='13. RTSR-Historic Wholesale'!D29 -> 1098919.778 | E30: 3.71 | F30: 4076992.378 | H30: ='13. RTSR-Historic Wholesale'!H29 -> 1170194.295 | I30: 0.94 | J30: 1099982.637 | L30: ='13. RTSR-Historic Wholesale'!L29 -> 341276.4829 | M30: 2.25 | N30: 767872.0865 | P30: 1867854.724
B31: December | D31: ='13. RTSR-Historic Wholesale'!D30 -> 1078458.321 | E31: 3.71 | F31: 4001080.372 | H31: ='13. RTSR-Historic Wholesale'!H30 -> 1193776.232 | I31: 0.94 | J31: 1122149.658 | L31: ='13. RTSR-Historic Wholesale'!L30 -> 324162.6197 | M31: 2.25 | N31: 729365.8942 | P31: 1851515.552
B33: Total | D33: =SUM(D20:D31) -> 14902810.32 | E33: =IF(D33<>0,F33/D33,0) -> 3.71 | F33: =SUM(F20:F31) -> 55289426.27 | H33: =SUM(H20:H31) -> 16127665.36 | I33: =IF(H33<>0,J33/H33,0) -> 0.94 | J33: =SUM(J20:J31) -> 15160005.44 | L33: =SUM(L20:L31) -> 4523687.154 | M33: =IF(L33<>0,N33/L33,0) -> 2.25 | N33: =SUM(N20:N31) -> 10178296.1 | P33: =SUM(P20:P31) -> 25338301.53
B35: Hydro One | D35: Network | H35: Line Connection | L35: Transformation Connection | P35: Total Line
B37: Month | D37: Units Billed | E37: Rate | F37: Amount | H37: Units Billed | I37: Rate | J37: Amount | L37: Units Billed | M37: Rate | N37: Amount | P37: Amount
B39: January | D39: ='13. RTSR-Historic Wholesale'!D38 -> 231845.4605 | E39: ='12. RTSR-UTRs & Sub-Tx'!I29 -> 3.1942 | F39: =D39*E39 -> 740560.77 | H39: ='13. RTSR-Historic Wholesale'!H38 -> 233091.3978 | I39: ='12. RTSR-UTRs & Sub-Tx'!I31 -> 0.771 | J39: =H39*I39 -> 179713.4677 | L39: ='13. RTSR-Historic Wholesale'!L38 -> 280069.4988 | M39: ='12. RTSR-UTRs & Sub-Tx'!I33 -> 1.7493 | N39: =L39*M39 -> 489925.5743 | P39: =J39+N39 -> 669639.0421
B40: February | D40: ='13. RTSR-Historic Wholesale'!D39 -> 227573.1388 | E40: =E39 -> 3.1942 | F40: 726914.12 | H40: ='13. RTSR-Historic Wholesale'!H39 -> 227583.133 | I40: =I39 -> 0.771 | J40: 175466.5955 | L40: ='13. RTSR-Historic Wholesale'!L39 -> 270693.6442 | M40: =M39 -> 1.7493 | N40: 473524.3918 | P40: 648990.9873
B41: March | D41: ='13. RTSR-Historic Wholesale'!D40 -> 203246.6251 | E41: 3.1942 | F41: 649210.37 | H41: ='13. RTSR-Historic Wholesale'!H40 -> 206368.7299 | I41: 0.771 | J41: 159110.2908 | L41: ='13. RTSR-Historic Wholesale'!L40 -> 257795.9924 | M41: 1.7493 | N41: 450962.5294 | P41: 610072.8202
B42: April | D42: ='13. RTSR-Historic Wholesale'!D41 -> 193855.6227 | E42: 3.1942 | F42: 619213.63 | H42: ='13. RTSR-Historic Wholesale'!H41 -> 198923.5369 | I42: 0.771 | J42: 153370.0469 | L42: ='13. RTSR-Historic Wholesale'!L41 -> 253006.1567 | M42: 1.7493 | N42: 442583.6698 | P42: 595953.7168
B43: May | D43: ='13. RTSR-Historic Wholesale'!D42 -> 257607.2913 | E43: 3.1942 | F43: 822849.21 | H43: ='13. RTSR-Historic Wholesale'!H42 -> 257607.2848 | I43: 0.771 | J43: 198615.2166 | L43: ='13. RTSR-Historic Wholesale'!L42 -> 323846.6147 | M43: 1.7493 | N43: 566504.883 | P43: 765120.0997
B44: June | D44: ='13. RTSR-Historic Wholesale'!D43 -> 263625.0172 | E44: 3.1942 | F44: 842071.03 | H44: ='13. RTSR-Historic Wholesale'!H43 -> 266286.8032 | I44: 0.771 | J44: 205307.1252 | L44: ='13. RTSR-Historic Wholesale'!L43 -> 325179.3893 | M44: 1.7493 | N44: 568836.3057 | P44: 774143.431
B45: July | D45: ='13. RTSR-Historic Wholesale'!D44 -> 281868.3555 | E45: 3.1942 | F45: 900343.9013 | H45: ='13. RTSR-Historic Wholesale'!H44 -> 288857.8662 | I45: 0.771 | J45: 222709.4149 | L45: ='13. RTSR-Historic Wholesale'!L44 -> 334327.1158 | M45: 1.7493 | N45: 584838.4237 | P45: 807547.8386
B46: August | D46: ='13. RTSR-Historic Wholesale'!D45 -> 260171.6937 | E46: 3.1942 | F46: 831040.424 | H46: ='13. RTSR-Historic Wholesale'!H45 -> 260882.7025 | I46: 0.771 | J46: 201140.5636 | L46: ='13. RTSR-Historic Wholesale'!L45 -> 337533.9539 | M46: 1.7493 | N46: 590448.1456 | P46: 791588.7093
B47: September | D47: ='13. RTSR-Historic Wholesale'!D46 -> 274369.0902 | E47: 3.1942 | F47: 876389.7478 | H47: ='13. RTSR-Historic Wholesale'!H46 -> 274774.6611 | I47: 0.771 | J47: 211851.2637 | L47: ='13. RTSR-Historic Wholesale'!L46 -> 355684.64 | M47: 1.7493 | N47: 622199.1408 | P47: 834050.4045
B48: October | D48: ='13. RTSR-Historic Wholesale'!D47 -> 193279.9654 | E48: 3.1942 | F48: 617374.8653 | H48: ='13. RTSR-Historic Wholesale'!H47 -> 195706.5978 | I48: 0.771 | J48: 150889.7869 | L48: ='13. RTSR-Historic Wholesale'!L47 -> 256945.7488 | M48: 1.7493 | N48: 449475.1985 | P48: 600364.9854
B49: November | D49: ='13. RTSR-Historic Wholesale'!D48 -> 201096.8599 | E49: 3.1942 | F49: 642343.59 | H49: ='13. RTSR-Historic Wholesale'!H48 -> 202080.7523 | I49: 0.771 | J49: 155804.26 | L49: ='13. RTSR-Historic Wholesale'!L48 -> 259528.0866 | M49: 1.7493 | N49: 453992.4819 | P49: 609796.7419
B50: December | D50: ='13. RTSR-Historic Wholesale'!D49 -> 200972.637 | E50: 3.1942 | F50: 641946.797 | H50: ='13. RTSR-Historic Wholesale'!H49 -> 201432.7195 | I50: 0.771 | J50: 155304.6267 | L50: ='13. RTSR-Historic Wholesale'!L49 -> 251290.4168 | M50: 1.7493 | N50: 439582.3262 | P50: 594886.9529
B52: Total | D52: =SUM(D39:D50) -> 2789511.757 | E52: =IF(D52<>0,F52/D52,0) -> 3.1942 | F52: =SUM(F39:F50) -> 8910258.455 | H52: =SUM(H39:H50) -> 2813596.185 | I52: =IF(H52<>0,J52/H52,0) -> 0.771 | J52: =SUM(J39:J50) -> 2169282.659 | L52: =SUM(L39:L50) -> 3505901.258 | M52: =IF(L52<>0,N52/L52,0) -> 1.7493 | N52: =SUM(N39:N50) -> 6132873.071 | P52: =SUM(P39:P50) -> 8302155.73
B54: Add Extra Host Here (I) | D54: Network | H54: Line Connection | L54: Transformation Connection | P54: Total Line
B56: Month | D56: Units Billed | E56: Rate | F56: Amount | H56: Units Billed | I56: Rate | J56: Amount | L56: Units Billed | M56: Rate | N56: Amount | P56: Amount
B58: January | D58: ='13. RTSR-Historic Wholesale'!D57 -> 0 | E58: ='12. RTSR-UTRs & Sub-Tx'!I44 -> 0 | F58: =D58*E58 -> 0 | H58: ='13. RTSR-Historic Wholesale'!H57 -> 0 | I58: ='12. RTSR-UTRs & Sub-Tx'!I46 -> 0 | J58: =H58*I58 -> 0 | L58: ='13. RTSR-Historic Wholesale'!L57 -> 0 | M58: ='12. RTSR-UTRs & Sub-Tx'!I48 -> 0 | N58: =L58*M58 -> 0 | P58: =J58+N58 -> 0
B59: February | D59: ='13. RTSR-Historic Wholesale'!D58 -> 0 | E59: =E58 -> 0 | F59: 0 | H59: ='13. RTSR-Historic Wholesale'!H58 -> 0 | I59: =I58 -> 0 | J59: 0 | L59: ='13. RTSR-Historic Wholesale'!L58 -> 0 | M59: =M58 -> 0 | N59: 0 | P59: 0
B60: March | D60: ='13. RTSR-Historic Wholesale'!D59 -> 0 | E60: 0 | F60: 0 | H60: ='13. RTSR-Historic Wholesale'!H59 -> 0 | I60: 0 | J60: 0 | L60: ='13. RTSR-Historic Wholesale'!L59 -> 0 | M60: 0 | N60: 0 | P60: 0
B61: April | D61: ='13. RTSR-Historic Wholesale'!D60 -> 0 | E61: 0 | F61: 0 | H61: ='13. RTSR-Historic Wholesale'!H60 -> 0 | I61: 0 | J61: 0 | L61: ='13. RTSR-Historic Wholesale'!L60 -> 0 | M61: 0 | N61: 0 | P61: 0
B62: May | D62: ='13. RTSR-Historic Wholesale'!D61 -> 0 | E62: 0 | F62: 0 | H62: ='13. RTSR-Historic Wholesale'!H61 -> 0 | I62: 0 | J62: 0 | L62: ='13. RTSR-Historic Wholesale'!L61 -> 0 | M62: 0 | N62: 0 | P62: 0
B63: June | D63: ='13. RTSR-Historic Wholesale'!D62 -> 0 | E63: 0 | F63: 0 | H63: ='13. RTSR-Historic Wholesale'!H62 -> 0 | I63: 0 | J63: 0 | L63: ='13. RTSR-Historic Wholesale'!L62 -> 0 | M63: 0 | N63: 0 | P63: 0
B64: July | D64: ='13. RTSR-Historic Wholesale'!D63 -> 0 | E64: 0 | F64: 0 | H64: ='13. RTSR-Historic Wholesale'!H63 -> 0 | I64: 0 | J64: 0 | L64: ='13. RTSR-Historic Wholesale'!L63 -> 0 | M64: 0 | N64: 0 | P64: 0
B65: August | D65: ='13. RTSR-Historic Wholesale'!D64 -> 0 | E65: 0 | F65: 0 | H65: ='13. RTSR-Historic Wholesale'!H64 -> 0 | I65: 0 | J65: 0 | L65: ='13. RTSR-Historic Wholesale'!L64 -> 0 | M65: 0 | N65: 0 | P65: 0
B66: September | D66: ='13. RTSR-Historic Wholesale'!D65 -> 0 | E66: 0 | F66: 0 | H66: ='13. RTSR-Historic Wholesale'!H65 -> 0 | I66: 0 | J66: 0 | L66: ='13. RTSR-Historic Wholesale'!L65 -> 0 | M66: 0 | N66: 0 | P66: 0
B67: October | D67: ='13. RTSR-Historic Wholesale'!D66 -> 0 | E67: 0 | F67: 0 | H67: ='13. RTSR-Historic Wholesale'!H66 -> 0 | I67: 0 | J67: 0 | L67: ='13. RTSR-Historic Wholesale'!L66 -> 0 | M67: 0 | N67: 0 | P67: 0
B68: November | D68: ='13. RTSR-Historic Wholesale'!D67 -> 0 | E68: 0 | F68: 0 | H68: ='13. RTSR-Historic Wholesale'!H67 -> 0 | I68: 0 | J68: 0 | L68: ='13. RTSR-Historic Wholesale'!L67 -> 0 | M68: 0 | N68: 0 | P68: 0
B69: December | D69: ='13. RTSR-Historic Wholesale'!D68 -> 0 | E69: 0 | F69: 0 | H69: ='13. RTSR-Historic Wholesale'!H68 -> 0 | I69: 0 | J69: 0 | L69: ='13. RTSR-Historic Wholesale'!L68 -> 0 | M69: 0 | N69: 0 | P69: 0
B71: Total | D71: =SUM(D58:D69) -> 0 | E71: =IF(D71<>0,F71/D71,0) -> 0 | F71: =SUM(F58:F69) -> 0 | H71: =SUM(H58:H69) -> 0 | I71: =IF(H71<>0,J71/H71,0) -> 0 | J71: =SUM(J58:J69) -> 0 | L71: =SUM(L58:L69) -> 0 | M71: =IF(L71<>0,N71/L71,0) -> 0 | N71: =SUM(N58:N69) -> 0 | P71: =SUM(P58:P69) -> 0
B73: Add Extra Host Here (II) | D73: Network | H73: Line Connection | L73: Transformation Connection | P73: Total Line
B75: Month | D75: Units Billed | E75: Rate | F75: Amount | H75: Units Billed | I75: Rate | J75: Amount | L75: Units Billed | M75: Rate | N75: Amount | P75: Amount
B77: January | D77: ='13. RTSR-Historic Wholesale'!D76 -> 0 | E77: ='12. RTSR-UTRs & Sub-Tx'!I59 -> 0 | F77: =D77*E77 -> 0 | H77: ='13. RTSR-Historic Wholesale'!H76 -> 0 | I77: ='12. RTSR-UTRs & Sub-Tx'!I61 -> 0 | J77: =H77*I77 -> 0 | L77: ='13. RTSR-Historic Wholesale'!L76 -> 0 | M77: ='12. RTSR-UTRs & Sub-Tx'!I63 -> 0 | N77: =L77*M77 -> 0 | P77: =J77+N77 -> 0
B78: February | D78: ='13. RTSR-Historic Wholesale'!D77 -> 0 | E78: =E77 -> 0 | F78: 0 | H78: ='13. RTSR-Historic Wholesale'!H77 -> 0 | I78: =I77 -> 0 | J78: 0 | L78: ='13. RTSR-Historic Wholesale'!L77 -> 0 | M78: =M77 -> 0 | N78: 0 | P78: 0
B79: March | D79: ='13. RTSR-Historic Wholesale'!D78 -> 0 | E79: 0 | F79: 0 | H79: ='13. RTSR-Historic Wholesale'!H78 -> 0 | I79: 0 | J79: 0 | L79: ='13. RTSR-Historic Wholesale'!L78 -> 0 | M79: 0 | N79: 0 | P79: 0
B80: April | D80: ='13. RTSR-Historic Wholesale'!D79 -> 0 | E80: 0 | F80: 0 | H80: ='13. RTSR-Historic Wholesale'!H79 -> 0 | I80: 0 | J80: 0 | L80: ='13. RTSR-Historic Wholesale'!L79 -> 0 | M80: 0 | N80: 0 | P80: 0
B81: May | D81: ='13. RTSR-Historic Wholesale'!D80 -> 0 | E81: 0 | F81: 0 | H81: ='13. RTSR-Historic Wholesale'!H80 -> 0 | I81: 0 | J81: 0 | L81: ='13. RTSR-Historic Wholesale'!L80 -> 0 | M81: 0 | N81: 0 | P81: 0
B82: June | D82: ='13. RTSR-Historic Wholesale'!D81 -> 0 | E82: 0 | F82: 0 | H82: ='13. RTSR-Historic Wholesale'!H81 -> 0 | I82: 0 | J82: 0 | L82: ='13. RTSR-Historic Wholesale'!L81 -> 0 | M82: 0 | N82: 0 | P82: 0
B83: July | D83: ='13. RTSR-Historic Wholesale'!D82 -> 0 | E83: 0 | F83: 0 | H83: ='13. RTSR-Historic Wholesale'!H82 -> 0 | I83: 0 | J83: 0 | L83: ='13. RTSR-Historic Wholesale'!L82 -> 0 | M83: 0 | N83: 0 | P83: 0
B84: August | D84: ='13. RTSR-Historic Wholesale'!D83 -> 0 | E84: 0 | F84: 0 | H84: ='13. RTSR-Historic Wholesale'!H83 -> 0 | I84: 0 | J84: 0 | L84: ='13. RTSR-Historic Wholesale'!L83 -> 0 | M84: 0 | N84: 0 | P84: 0
B85: September | D85: ='13. RTSR-Historic Wholesale'!D84 -> 0 | E85: 0 | F85: 0 | H85: ='13. RTSR-Historic Wholesale'!H84 -> 0 | I85: 0 | J85: 0 | L85: ='13. RTSR-Historic Wholesale'!L84 -> 0 | M85: 0 | N85: 0 | P85: 0
B86: October | D86: ='13. RTSR-Historic Wholesale'!D85 -> 0 | E86: 0 | F86: 0 | H86: ='13. RTSR-Historic Wholesale'!H85 -> 0 | I86: 0 | J86: 0 | L86: ='13. RTSR-Historic Wholesale'!L85 -> 0 | M86: 0 | N86: 0 | P86: 0
B87: November | D87: ='13. RTSR-Historic Wholesale'!D86 -> 0 | E87: 0 | F87: 0 | H87: ='13. RTSR-Historic Wholesale'!H86 -> 0 | I87: 0 | J87: 0 | L87: ='13. RTSR-Historic Wholesale'!L86 -> 0 | M87: 0 | N87: 0 | P87: 0
B88: December | D88: ='13. RTSR-Historic Wholesale'!D87 -> 0 | E88: 0 | F88: 0 | H88: ='13. RTSR-Historic Wholesale'!H87 -> 0 | I88: 0 | J88: 0 | L88: ='13. RTSR-Historic Wholesale'!L87 -> 0 | M88: 0 | N88: 0 | P88: 0
L89: ='13. RTSR-Historic Wholesale'!L88 -> 0
B90: Total | D90: =SUM(D77:D88) -> 0 | E90: =IF(D90<>0,F90/D90,0) -> 0 | F90: =SUM(F77:F88) -> 0 | H90: =SUM(H77:H88) -> 0 | I90: =IF(H90<>0,J90/H90,0) -> 0 | J90: =SUM(J77:J88) -> 0 | L90: =SUM(L77:L88) -> 0 | M90: =IF(L90<>0,N90/L90,0) -> 0 | N90: =SUM(N77:N88) -> 0 | P90: =SUM(P77:P88) -> 0
B92: Total | D92: Network | H92: Line Connection | L92: Transformation Connection | P92: Total Line
B94: Month | D94: Units Billed | E94: Rate | F94: Amount | H94: Units Billed | I94: Rate | J94: Amount | L94: Units Billed | M94: Rate | N94: Amount | P94: Amount
B96: January | D96: =D20+D39+D58+D77 -> 1356371.461 | E96: =IF(D96<>0,F96/D96,0) -> 3.621833969 | F96: =F20+F39+F58+F77 -> 4912552.23 | H96: =H20+H39+H58+H77 -> 1463364.398 | I96: =IF(H96<>0,J96/H96,0) -> 0.9130809043 | J96: =J20+J39+J58+J77 -> 1336170.088 | L96: =L20+L39+L58+L77 -> 620099.4988 | M96: =IF(L96<>0,N96/L96,0) -> 2.023857585 | N96: =N20+N39+N58+N77 -> 1254993.074 | P96: =J96+N96 -> 2591163.162
B97: February | D97: =D21+D40+D59+D78 -> 1277463.139 | E97: 3.618113024 | F97: =F21+F40+F59+F78 -> 4622006.02 | H97: =H21+H40+H59+H78 -> 1371576.133 | I97: 0.9119581374 | J97: =J21+J40+J59+J78 -> 1250820.016 | L97: =L21+L40+L59+L78 -> 601383.6442 | M97: 2.024625883 | N97: =N21+N40+N59+N78 -> 1217576.892 | P97: 2468396.907
B98: March | D98: 1202457.625 | E98: 3.62281638 | F98: 4356283.18 | H98: 1290893.73 | I98: 0.9129828145 | J98: 1178563.791 | L98: 581075.9924 | M98: 2.027863042 | N98: 1178342.529 | P98: 2356906.32
B99: April | D99: 1217546.623 | E99: 3.627875235 | F99: 4417107.24 | H99: 1346066.558 | I99: 0.9150249514 | J99: 1231684.487 | L99: 589253.1567 | M99: 2.035015691 | N99: 1199139.42 | P99: 2430823.907
B100: May | D100: 1589906.291 | E100: 3.626426621 | F100: 5765678.5 | H100: 1726835.285 | I100: 0.914788776 | J100: 1579689.537 | L100: 736141.6147 | M100: 2.029729882 | N100: 1494168.633 | P100: 3073858.17
B101: June | D101: 1704620.017 | E101: 3.630229856 | F101: 6188162.48 | H101: 1846680.803 | I101: 0.9156306181 | J101: 1690877.485 | L101: 761169.3893 | M101: 2.036095812 | N101: 1549813.806 | P101: 3240691.291
B102: July | D102: 1885932.699 | E102: 3.632909392 | F102: 6851422.616 | H102: 1949545.056 | I102: 0.9149598096 | J102: 1783755.373 | L102: 796340.9235 | M102: 2.039791555 | N102: 1624369.491 | P102: 3408124.864
B103: August | D103: 1747538.043 | E103: 3.633208218 | F103: 6349169.579 | H103: 1848518.966 | I103: 0.9161489184 | J103: 1693518.651 | L103: 775821.4924 | M103: 2.032162195 | N103: 1576595.107 | P103: 3270113.758
B104: September | D104: 1860685.614 | E104: 3.633942242 | F104: 6761624.05 | H104: 1939914.882 | I104: 0.9160623942 | J104: 1777083.071 | L104: 798762.2682 | M104: 2.027040922 | N104: 1619123.804 | P104: 3396206.876
B105: October | D105: 1270352.965 | E105: 3.631522751 | F105: 4613315.695 | H105: 1390381.735 | I105: 0.9162119897 | J105: 1273884.416 | L105: 593282.8258 | M105: 2.033151086 | N105: 1206233.622 | P105: 2480118.037
B106: November | D106: 1300016.638 | E106: 3.630211975 | F106: 4719335.968 | H106: 1372275.047 | I106: 0.915113118 | J106: 1255786.897 | L106: 600804.5695 | M106: 2.03371384 | N106: 1221864.568 | P106: 2477651.466
B107: December | D107: 1279430.958 | E107: 3.628978288 | F107: 4643027.169 | H107: 1395208.951 | I107: 0.9156006944 | J107: 1277454.284 | L107: 575453.0365 | M107: 2.031352945 | N107: 1168948.22 | P107: 2446402.505
B109: Total | D109: =SUM(D96:D107) -> 17692322.07 | E109: =IF(D109<>0,F109/D109,0) -> 3.628674883 | F109: =SUM(F96:F107) -> 64199684.73 | H109: =SUM(H96:H107) -> 18941261.54 | I109: =IF(H109<>0,J109/H109,0) -> 0.914896194 | J109: =SUM(J96:J107) -> 17329288.1 | L109: =SUM(L96:L107) -> 8029588.412 | M109: =IF(L109<>0,N109/L109,0) -> 2.031382971 | N109: =SUM(N96:N107) -> 16311169.17 | P109: =SUM(P96:P107) -> 33640457.26
N111: Low Voltage Switchgear Credit (if applicable) | P111: ='12. RTSR-UTRs & Sub-Tx'!I68 -> 0
N113: Total including deduction for Low Voltage Switchgear Credit | P113: =P109+P111 -> 33640457.26

Sheet 16. RTSR-Rates to Forecast
A1: Back to Index
B2: =+'1. Information Sheet'!B2 -> INCENTIVE REGULATION MODEL FOR 2020 FILERS
B13: The purpose of this table is to re-align the current RTS Network Rates to recover current wholesale network costs.
B15: Rate Class | C15: Rate Description | D15: Unit | E15: Current RTSR-Network | F15: Loss Adjusted Billed kWh | G15: Billed kW | H15: Billed Amount | I15: Billed Amount % | J15: Current Wholesale Billing | K15: Adjusted RTSR Network
A17: ='11. RTSR - Current Rates'!A16 -> R_TN | B17: ='11. RTSR - Current Rates'!B16 -> RESIDENTIAL SERVICE CLASSIFICATION | C17: =IFERROR(VLOOKUP(A17,RTSR,3,FALSE),"") -> Retail Transmission Rate – Network Service Rate | D17: =IFERROR(VLOOKUP(A17,RTSR,4,FALSE),"") -> $/kWh | E17: =IFERROR(VLOOKUP(A17,_xlnm.DATABASE,8,FALSE),0) -> 0.0073 | F17: =IFERROR(VLOOKUP(A17,RTSR,9,FALSE),0) -> 2886427546 | G17: =IFERROR(VLOOKUP(A17,RTSR,7,FALSE),0) -> 0 | H17: =IF(G17=0,IF(ISERROR(E17*F17),0,ROUND(E17*F17,2)),IF(ISERROR(E17*G17),0,ROUND(E17*G17,2))) -> 21070921.08 | I17: =IFERROR(H17/SUM(H$17:H$25),"") -> 0.3422737297 | J17: =IFERROR(I17*total_wholesale_TN,"") -> 21973865.54 | K17: =IF(G17=0,IF(ISERROR(J17/F17),0,J17/F17),IF(ISERROR(J17/G17),0,J17/G17)) -> 0.007612824223
A18: ='11. RTSR - Current Rates'!A17 -> GSL_TN | B18: ='11. RTSR - Current Rates'!B17 -> GENERAL SERVICE LESS THAN 50 kW SERVICE CLASSIFICATION | C18: Retail Transmission Rate – Network Service Rate | D18: $/kWh | E18: 0.0065 | F18: 1088346482 | G18: 0 | H18: =IF(G18=0,IF(ISERROR(E18*F18),0,ROUND(E18*F18,2)),IF(ISERROR(E18*G18),0,ROUND(E18*G18,2))) -> 7074252.14 | I18: =IFERROR(H18/SUM(H$17:H$25),"") -> 0.1149133754 | J18: 7377402.475 | K18: =IF(G18=0,IF(ISERROR(J18/F18),0,J18/F18),IF(ISERROR(J18/G18),0,J18/G18)) -> 0.006778542123
A19: ='11. RTSR - Current Rates'!A18 -> GSG_TN | B19: ='11. RTSR - Current Rates'!B18 -> GENERAL SERVICE 50 to 4,999 kW SERVICE CLASSIFICATION | C19: Retail Transmission Rate – Network Service Rate | D19: $/kW | E19: 2.613 | F19: 2210702245 | G19: 5938471.499 | H19: =IF(G19=0,IF(ISERROR(E19*F19),0,ROUND(E19*F19,2)),IF(ISERROR(E19*G19),0,ROUND(E19*G19,2))) -> 15517226.03 | I19: 0.2520601168 | J19: 16182180.03 | K19: 2.724973932
A20: ='11. RTSR - Current Rates'!A19 -> LU_TN | B20: ='11. RTSR - Current Rates'!B19 -> LARGE USE SERVICE CLASSIFICATION | C20: Retail Transmission Rate – Network Service Rate | D20: $/kW | E20: 3.1569 | F20: 53989844.13 | G20: 102871.3272 | H20: 324754.49 | I20: 0.005275276298 | J20: 338671.0752 | K20: 3.292181451
A21: ='11. RTSR - Current Rates'!A20 -> USL_TN | B21: ='11. RTSR - Current Rates'!B20 -> UNMETERED SCATTERED LOAD SERVICE CLASSIFICATION | C21: Retail Transmission Rate – Network Service Rate | D21: $/kWh | E21: 0.0062 | F21: 14341144 | G21: 0 | H21: 88915.09 | I21: 0.001444326965 | J21: 92725.33577 | K21: 0.006465686124
A22: ='11. RTSR - Current Rates'!A21 -> 0 | B22: ='11. RTSR - Current Rates'!B21 -> STANDBY POWER SERVICE CLASSIFICATION
A23: ='11. RTSR - Current Rates'!A22 -> SEN_TN | B23: ='11. RTSR - Current Rates'!B22 -> SENTINEL LIGHTING SERVICE CLASSIFICATION | C23: Retail Transmission Rate – Network Service Rate | D23: $/kW | E23: 2.0304 | F23: 296952.536 | G23: 795.983593 | H23: 1616.17 | I23: 2.625288812e-05 | J23: 1685.427141 | K23: 2.117414424
A24: ='11. RTSR - Current Rates'!A23 -> SL_TN | B24: ='11. RTSR - Current Rates'!B23 -> STREET LIGHTING SERVICE CLASSIFICATION | C24: Retail Transmission Rate – Network Service Rate | D24: $/kW | E24: 2.6275 | F24: 50687770.79 | G24: 134152.032 | H24: 352484.46 | I24: 0.005725718887 | J24: 367589.3474 | K24: 2.740095264
A25: ='11. RTSR - Current Rates'!A24 -> GSGI_TN | B25: ='11. RTSR - Current Rates'!B24 -> GENERAL SERVICE 50 to 4,999 kW SERVICE CLASSIFICATION_INTERVAL | C25: Retail Transmission Rate – Network Service Rate – Interval Metered | D25: $/kW | E25: 2.7391 | F25: 2641954442 | G25: 6254404.091 | H25: =IF(G25=0,IF(ISERROR(E25*F25),0,ROUND(E25*F25,2)),IF(ISERROR(E25*G25),0,ROUND(E25*G25,2))) -> 17131438.25 | I25: =IFERROR(H25/SUM(H$17:H$25),"") -> 0.278281203 | J25: =IFERROR(I25*total_wholesale_TN,"") -> 17865565.5 | K25: =IF(G25=0,IF(ISERROR(J25/F25),0,J25/F25),IF(ISERROR(J25/G25),0,J25/G25)) -> 2.856477649
B32: The purpose of this table is to re-align the current RTS Connection Rates to recover current wholesale connection costs.
B33: Rate Class | C33: Rate Description | D33: Unit | E33: Current RTSR-Connection | F33: Loss Adjusted Billed kWh | G33: Billed kW | H33: Billed Amount | I33: Billed Amount % | J33: Current Wholesale Billing | K33: Adjusted RTSR-Connection
A35: ='11. RTSR - Current Rates'!A29 -> R_TC | B35: ='11. RTSR - Current Rates'!B29 -> RESIDENTIAL SERVICE CLASSIFICATION | C35: =IFERROR(VLOOKUP(A35,RTSR,3,FALSE),"") -> Retail Transmission Rate – Line and Transformation Connection Service Rate | D35: =IFERROR(VLOOKUP(A35,RTSR,4,FALSE),"") -> $/kWh | E35: =IFERROR(VLOOKUP(A35,_xlnm.DATABASE,8,FALSE),0) -> 0.004 | F35: =IFERROR(VLOOKUP(A35,RTSR,9,FALSE),0) -> 2886427546 | G35: =IFERROR(VLOOKUP(A35,RTSR,7,FALSE),0) -> 0 | H35: =IF(G35=0,IF(ISERROR(E35*F35),0,ROUND(E35*F35,2)),IF(ISERROR(E35*G35),0,ROUND(E35*G35,2))) -> 11545710.18 | I35: =IFERROR(H35/SUM(H$35:H$43),"") -> 0.3531850093 | J35: =IFERROR(I35*total_wholesale_LinePlus,"") -> 11881305.21 | K35: =IF(G35=0,IF(ISERROR(J35/F35),0,J35/F35),IF(ISERROR(J35/G35),0,J35/G35)) -> 0.004116266569
A36: ='11. RTSR - Current Rates'!A30 -> GSL_TC | B36: ='11. RTSR - Current Rates'!B30 -> GENERAL SERVICE LESS THAN 50 kW SERVICE CLASSIFICATION | C36: Retail Transmission Rate – Line and Transformation Connection Service Rate | D36: $/kWh | E36: 0.0035 | F36: 1088346482 | G36: 0 | H36: =IF(G36=0,IF(ISERROR(E36*F36),0,ROUND(E36*F36,2)),IF(ISERROR(E36*G36),0,ROUND(E36*G36,2))) -> 3809212.69 | I36: =IFERROR(H36/SUM(H$35:H$43),"") -> 0.1165243886 | J36: 3919933.713 | K36: 0.00360173325
A37: ='11. RTSR - Current Rates'!A31 -> GSG_TC | B37: ='11. RTSR - Current Rates'!B31 -> GENERAL SERVICE 50 to 4,999 kW SERVICE CLASSIFICATION | C37: Retail Transmission Rate – Line and Transformation Connection Service Rate | D37: $/kW | E37: 1.3338 | F37: 2210702245 | G37: 5938471.499 | H37: 7920733.29 | I37: 0.2422964215 | J37: 8150962.413 | K37: 1.372569088
A38: ='11. RTSR - Current Rates'!A32 -> LU_TC | B38: ='11. RTSR - Current Rates'!B32 -> LARGE USE SERVICE CLASSIFICATION | C38: Retail Transmission Rate – Line and Transformation Connection Service Rate | D38: $/kW | E38: 1.3931 | F38: 53989844.13 | G38: 102871.3272 | H38: 143310.05 | I38: 0.004383875963 | J38: 147475.592 | K38: 1.433592781
A39: ='11. RTSR - Current Rates'!A33 -> USL_TC | B39: ='11. RTSR - Current Rates'!B33 -> UNMETERED SCATTERED LOAD SERVICE CLASSIFICATION | C39: Retail Transmission Rate – Line and Transformation Connection Service Rate | D39: $/kWh | E39: 0.0037 | F39: 14341144 | G39: 0 | H39: 53062.23 | I39: 0.001623181589 | J39: 54604.57087 | K39: 0.003807546376
A40: ='11. RTSR - Current Rates'!A34 -> 0 | B40: ='11. RTSR - Current Rates'!B34 -> STANDBY POWER SERVICE CLASSIFICATION
A41: ='11. RTSR - Current Rates'!A35 -> SEN_TC | B41: ='11. RTSR - Current Rates'!B35 -> SENTINEL LIGHTING SERVICE CLASSIFICATION | C41: Retail Transmission Rate – Line and Transformation Connection Service Rate | D41: $/kW | E41: 0.9868 | F41: 296952.536 | G41: 795.983593 | H41: 785.48 | I41: 2.402795123e-05 | J41: 808.3112663 | K41: 1.015487346
A42: ='11. RTSR - Current Rates'!A36 -> SL_TC | B42: ='11. RTSR - Current Rates'!B36 -> STREET LIGHTING SERVICE CLASSIFICATION | C42: Retail Transmission Rate – Line and Transformation Connection Service Rate | D42: $/kW | E42: 1.4291 | F42: 50687770.79 | G42: 134152.032 | H42: 191716.67 | I42: 0.005864641743 | J42: 197289.2299 | K42: 1.470639147
A43: ='11. RTSR - Current Rates'!A37 -> GSGI_TC | B43: ='11. RTSR - Current Rates'!B37 -> GENERAL SERVICE 50 to 4,999 kW SERVICE CLASSIFICATION_INTERVAL | C43: Retail Transmission Rate – Line and Transformation Connection Service Rate – Interval Metered | D43: $/kW | E43: 1.4431 | F43: 2641954442 | G43: 6254404.091 | H43: 9025730.54 | I43: 0.2760984534 | J43: 9288078.223 | K43: 1.485046071
B49: The purpose of this table is to update the re-aligned RTS Network Rates to recover future wholesale network costs.
B50: Rate Class | C50: Rate Description | D50: Unit | E50: Adjusted RTSR-Network | F50: Loss Adjusted Billed kWh | G50: Billed kW | H50: Billed Amount | I50: Billed Amount % | J50: Current Wholesale Billing | K50: Proposed RTSR-Network
A52: =A17 -> R_TN | B52: =B17 -> RESIDENTIAL SERVICE CLASSIFICATION | C52: =IFERROR(VLOOKUP(A52,RTSR,3,FALSE),"") -> Retail Transmission Rate – Network Service Rate | D52: =IFERROR(VLOOKUP(A52,RTSR,4,FALSE),"") -> $/kWh | E52: =K17 -> 0.007612824223 | F52: =F17 -> 2886427546 | G52: =G17 -> 0 | H52: =IF(G52=0,IF(ISERROR(E52*F52),0,ROUND(E52*F52,2)),IF(ISERROR(E52*G52),0,ROUND(E52*G52,2))) -> 21973865.54 | I52: =IFERROR(H52/SUM(H$52:H$60),"") -> 0.3422737297 | J52: =IFERROR(I52*forecast_wholesale_TN,"") -> 21973865.54 | K52: =IF(G52=0,IF(ISERROR(J52/F52),0,J52/F52),IF(ISERROR(J52/G52),0,J52/G52)) -> 0.007612824222
A53: =A18 -> GSL_TN | B53: GENERAL SERVICE LESS THAN 50 kW SERVICE CLASSIFICATION | C53: Retail Transmission Rate – Network Service Rate | D53: $/kWh | E53: =K18 -> 0.006778542123 | F53: =F18 -> 1088346482 | G53: 0 | H53: =IF(G53=0,IF(ISERROR(E53*F53),0,ROUND(E53*F53,2)),IF(ISERROR(E53*G53),0,ROUND(E53*G53,2))) -> 7377402.47 | I53: =IFERROR(H53/SUM(H$52:H$60),"") -> 0.1149133754 | J53: 7377402.468 | K53: =IF(G53=0,IF(ISERROR(J53/F53),0,J53/F53),IF(ISERROR(J53/G53),0,J53/G53)) -> 0.006778542117
B54: =B19 -> GENERAL SERVICE 50 to 4,999 kW SERVICE CLASSIFICATION | C54: Retail Transmission Rate – Network Service Rate | D54: $/kW | E54: 2.724973932 | F54: =F19 -> 2210702245 | G54: 5938471.499 | H54: 16182180.03 | I54: 0.2520601167 | J54: 16182180.03 | K54: 2.724973931
A55: =A20 -> LU_TN | B55: LARGE USE SERVICE CLASSIFICATION | C55: Retail Transmission Rate – Network Service Rate | D55: $/kW | E55: 3.292181451 | F55: =F20 -> 53989844.13 | G55: 102871.3272 | H55: 338671.08 | I55: 0.005275276372 | J55: 338671.0799 | K55: 3.292181497
A56: =A21 -> USL_TN | B56: UNMETERED SCATTERED LOAD SERVICE CLASSIFICATION | C56: Retail Transmission Rate – Network Service Rate | D56: $/kWh | E56: 0.006465686124 | F56: =F21 -> 14341144 | G56: 0 | H56: 92725.34 | I56: 0.00144432703 | J56: 92725.33998 | K56: 0.006465686418
A57: =A22 -> 0 | B57: STANDBY POWER SERVICE CLASSIFICATION
A58: =A23 -> SEN_TN | B58: SENTINEL LIGHTING SERVICE CLASSIFICATION | C58: Retail Transmission Rate – Network Service Rate | D58: $/kW | E58: 2.117414424 | F58: =F23 -> 296952.536 | G58: 795.983593 | H58: 1685.43 | I58: 2.625293266e-05 | J58: 1685.43 | K58: 2.117418015
A59: =A24 -> SL_TN | B59: STREET LIGHTING SERVICE CLASSIFICATION | C59: Retail Transmission Rate – Network Service Rate | D59: $/kW | E59: 2.740095264 | F59: =F24 -> 50687770.79 | G59: 134152.032 | H59: 367589.35 | I59: 0.005725718927 | J59: 367589.3499 | K59: 2.740095283
B60: =B25 -> GENERAL SERVICE 50 to 4,999 kW SERVICE CLASSIFICATION_INTERVAL | C60: Retail Transmission Rate – Network Service Rate | D60: $/kW | E60: 2.856477649 | F60: =F25 -> 2641954442 | G60: 6254404.091 | H60: 17865565.5 | I60: 0.278281203 | J60: 17865565.5 | K60: 2.856477649
B64: The purpose of this table is to update the re-aligned RTS Connection Rates to recover future wholesale connection costs.
B65: Rate Class | C65: Rate Description | D65: Unit | E65: Adjusted RTSR-Connection | F65: Loss Adjusted Billed kWh | G65: Billed kW | H65: Billed Amount | I65: Billed Amount % | J65: Current Wholesale Billing | K65: Proposed RTSR-Connection
A67: =A35 -> R_TC | B67: =B35 -> RESIDENTIAL SERVICE CLASSIFICATION | C67: =IFERROR(VLOOKUP(A67,RTSR,3,FALSE),"") -> Retail Transmission Rate – Line and Transformation Connection Service Rate | D67: =IFERROR(VLOOKUP(A67,RTSR,4,FALSE),"") -> $/kWh | E67: =K35 -> 0.004116266569 | F67: =F35 -> 2886427546 | G67: =G35 -> 0 | H67: =IF(G67=0,IF(ISERROR(E67*F67),0,ROUND(E67*F67,2)),IF(ISERROR(E67*G67),0,ROUND(E67*G67,2))) -> 11881305.21 | I67: =IFERROR(H67/SUM(H$67:H$75),"") -> 0.3531850094 | J67: =IFERROR(I67*forecast_wholesale_LNPlus,"") -> 11881305.21 | K67: =IF(G67=0,IF(ISERROR(J67/F67),0,J67/F67),IF(ISERROR(J67/G67),0,J67/G67)) -> 0.00411626657
A68: =A36 -> GSL_TC | B68: =B36 -> GENERAL SERVICE LESS THAN 50 kW SERVICE CLASSIFICATION | C68: Retail Transmission Rate – Line and Transformation Connection Service Rate | D68: $/kWh | E68: =K36 -> 0.00360173325 | F68: =F36 -> 1088346482 | G68: =G36 -> 0 | H68: =IF(G68=0,IF(ISERROR(E68*F68),0,ROUND(E68*F68,2)),IF(ISERROR(E68*G68),0,ROUND(E68*G68,2))) -> 3919933.71 | I68: =IFERROR(H68/SUM(H$67:H$75),"") -> 0.1165243885 | J68: 3919933.711 | K68: 0.003601733249
B69: =B37 -> GENERAL SERVICE 50 to 4,999 kW SERVICE CLASSIFICATION | C69: Retail Transmission Rate – Line and Transformation Connection Service Rate | D69: $/kW | E69: =K37 -> 1.372569088 | F69: =F37 -> 2210702245 | G69: 5938471.499 | H69: 8150962.41 | I69: 0.2422964215 | J69: 8150962.413 | K69: 1.372569089
A70: =A38 -> LU_TC | B70: LARGE USE SERVICE CLASSIFICATION | C70: Retail Transmission Rate – Line and Transformation Connection Service Rate | D70: $/kW | E70: =K38 -> 1.433592781 | F70: =F38 -> 53989844.13 | G70: 102871.3272 | H70: 147475.59 | I70: 0.004383875906 | J70: 147475.5901 | K70: 1.433592762
A71: =A39 -> USL_TC | B71: UNMETERED SCATTERED LOAD SERVICE CLASSIFICATION | C71: Retail Transmission Rate – Line and Transformation Connection Service Rate | D71: $/kWh | E71: =K39 -> 0.003807546376 | F71: =F39 -> 14341144 | G71: 0 | H71: 54604.57 | I71: 0.001623181564 | J71: 54604.57002 | K71: 0.003807546317
A72: =A40 -> 0 | B72: STANDBY POWER SERVICE CLASSIFICATION
A73: =A41 -> SEN_TC | B73: SENTINEL LIGHTING SERVICE CLASSIFICATION | C73: Retail Transmission Rate – Line and Transformation Connection Service Rate | D73: $/kW | E73: =K41 -> 1.015487346 | F73: =F41 -> 296952.536 | G73: 795.983593 | H73: 808.31 | I73: 2.402791359e-05 | J73: 808.3100003 | K73: 1.015485755
A74: =A42 -> SL_TC | B74: STREET LIGHTING SERVICE CLASSIFICATION | C74: Retail Transmission Rate – Line and Transformation Connection Service Rate | D74: $/kW | E74: =K42 -> 1.470639147 | F74: =F42 -> 50687770.79 | G74: 134152.032 | H74: 197289.23 | I74: 0.005864641748 | J74: 197289.2301 | K74: 1.470639149
B75: =B43 -> GENERAL SERVICE 50 to 4,999 kW SERVICE CLASSIFICATION_INTERVAL | C75: Retail Transmission Rate – Line and Transformation Connection Service Rate | D75: $/kW | E75: =K43 -> 1.485046071 | F75: =F43 -> 2641954442 | G75: 6254404.091 | H75: 9288078.22 | I75: 0.2760984534 | J75: 9288078.223 | K75: 1.485046071

Sheet 17. Rev2Cost-GDPIPI
A1: Back to Index | AA1: FALSE | AB1: 0 | AE1: NO
C2: =+'1. Information Sheet'!B2 -> INCENTIVE REGULATION MODEL FOR 2020 FILERS | S2: TRUE
C11: If applicable, please enter any adjustments related to the revenue to cost ratio model into columns C and E. The Price Escalator and Stretch Factor have been set at the 2016 values and will be updated by OEB staff at a later date.
C12: Price Escalator | D12: 0.015 | E12: Productivity Factor | F12: 0 | G12: # of Residential Customers (approved in the last CoS) | H12: 331460.9167 | I12: Effective Year of Residential Rate Design Transition (yyyy) | J12: 2017
C13: Choose Stretch Factor Group | D13: III | E13: Price Cap Index | F13: =D12-F12-D14 -> 0.012 | G13: Billed kWh for Residential Class (approved in the last CoS) | H13: 2689802037 | I13: OEB-approved # of Transition Years | J13: 4
C14: Associated Stretch Factor Value | D14: =IF(D13="I", 0%, IF(D13="II", 0.15%, IF(D13="III", 0.3%, IF(D13="IV", 0.45%, 0.6%)))) -> 0.003 | G14: Rate Design Transition Years Left | H14: 1
C15: Rate Class | D15: Current MFC | E15: MFC Adjustment from R/C Model | F15: Current Volumetric Charge | G15: DVR Adjustment from R/C Model | H15: Price Cap Index to be Applied to MFC and DVR | I15: Proposed MFC | J15: Proposed Volumetric Charge
A17: R_F | B17: R_V | C17: ='4. Billing Det. for Def-Var'!B17 -> RESIDENTIAL SERVICE CLASSIFICATION | D17: =IFERROR(VLOOKUP(A17,_xlnm.DATABASE,8,FALSE),"") -> 24.91 | F17: =IFERROR(VLOOKUP(B17,_xlnm.DATABASE,8,FALSE),"") -> 0.0045 | H17: =F$13 -> 0.012 | I17: =IFERROR(ROUND(J32*(1+F13),2),0) -> 28.29 | J17: =IFERROR(ROUND(J33*(1+F13),4),0) -> 0
A18: GSL_F | B18: GSL_V | C18: ='4. Billing Det. for Def-Var'!B18 -> GENERAL SERVICE LESS THAN 50 kW SERVICE CLASSIFICATION | D18: 29.35 | F18: 0.0187 | H18: =F$13 -> 0.012 | I18: =IFERROR(ROUND((D18+E18)*(1+F$13),2),0) -> 29.7 | J18: =IFERROR((F18+G18)*(1+F$13),0) -> 0.0189244
A19: GSG_F | B19: GSG_V | C19: ='4. Billing Det. for Def-Var'!B19 -> GENERAL SERVICE 50 to 4,999 kW SERVICE CLASSIFICATION | D19: 143.95 | F19: 4.2924 | H19: 0.012 | I19: 145.68 | J19: =IFERROR((F19+G19)*(1+F$13),0) -> 4.3439088
A20: LU_F | B20: LU_V | C20: ='4. Billing Det. for Def-Var'!B20 -> LARGE USE SERVICE CLASSIFICATION | D20: 6201.88 | F20: 2.2894 | H20: 0.012 | I20: 6276.3 | J20: =IFERROR((F20+G20)*(1+F$13),0) -> 2.3168728
A21: USL_F | B21: USL_V | C21: ='4. Billing Det. for Def-Var'!B21 -> UNMETERED SCATTERED LOAD SERVICE CLASSIFICATION | D21: 8.78 | F21: 0.0199 | H21: 0.012 | I21: 8.89 | J21: =IFERROR((F21+G21)*(1+F$13),0) -> 0.0201388
B22: SB_V | C22: ='4. Billing Det. for Def-Var'!B22 -> STANDBY POWER SERVICE CLASSIFICATION | F22: 2.8334 | H22: 0.012 | I22: 0 | J22: =IFERROR((F22+G22)*(1+F$13),0) -> 2.8674008
A23: SEN_F | B23: SEN_V | C23: ='4. Billing Det. for Def-Var'!B23 -> SENTINEL LIGHTING SERVICE CLASSIFICATION | D23: 4.28 | F23: 10.0777 | H23: 0.012 | I23: 4.33 | J23: 10.1986324
A24: SL_F | B24: SL_V | C24: ='4. Billing Det. for Def-Var'!B24 -> STREET LIGHTING SERVICE CLASSIFICATION | D24: 1.21 | F24: 6.4556 | H24: 0.012 | I24: 1.22 | J24: 6.5330672
A25: MF | C25: microFIT SERVICE CLASSIFICATION | D25: 5.4 | H25: 0.012 | I25: 5.4 | J25: 0
F26: =IFERROR(VLOOKUP(B26,RATES,4,FALSE),"") ->  | H26: 0.012 | I26: =IFERROR(ROUND((D26+E26)*(1+F$13),2),0) -> 0 | J26: =IFERROR((F26+G26)*(1+F$13),0) -> 0
H27: 0.012 | I27: 0 | J27: 0
H28: 0.012 | I28: 0 | J28: 0
C31: Rate Design Transition | E31: Revenue from Rates | F31: Current F/V Split | G31: Decoupling MFC Split | H31: Incremental Fixed Charge ($/month/year) | I31: New F/V Split | J31: Adjusted Rates1 | K31: Revenue at New F/V Split
C32: Current Residential Fixed Rate (inclusive of R/C adj.) | D32: =D17+E17 -> 24.91 | E32: =D32*COS_RES_CUSTOMERS*12 -> 99080297.21 | F32: =IF(ISERROR(E32/E34), 0, E32/E34) -> 0.8911348312 | G32: =IF(ISERROR((1-F32)/YRS_LEFT), 0, (1-F32)/YRS_LEFT) -> 0.1088651688 | H32: =IF(ISERROR(ROUND(G32*E34/COS_RES_CUSTOMERS/12, 2)), 0, ROUND(G32*E34/COS_RES_CUSTOMERS/12, 2)) -> 3.04 | I32: =G32+F32 -> 1 | J32: =IF(ISERROR(ROUND(I32*E34/COS_RES_CUSTOMERS/12, 2)), 0, ROUND(I32*E34/COS_RES_CUSTOMERS/12, 2)) -> 27.95 | K32: =ROUND(J32*COS_RES_CUSTOMERS*12, 2) -> 111171991.5
C33: Current Residential Variable Rate (inclusive of R/C adj.) | D33: =F17+G17 -> 0.0045 | E33: =D33*COS_RES_KWH -> 12104109.17 | F33: =IF(ISERROR(E33/E34), 0, E33/E34) -> 0.1088651688 | I33: =1-I32 -> 0 | J33: =IF(ISERROR(ROUND(I33*E34/COS_RES_KWH, 4)), 0, ROUND(I33*E34/COS_RES_KWH, 4)) -> 0 | K33: =ROUND(J33*COS_RES_KWH, 2) -> 0
E34: =SUM(E32+E33) -> 111184406.4 | K34: =SUM(K32+K33) -> 111171991.5
C37: =IF((J32-D32)>=4, "The Rate Design Transition has calculated a monthly fixed charge greater than or equal to $4. Please refer to Section 3.2.3 of the Chapter 3 Filing Requirements for mitigation instructions.", "") -> 
C39: 1 These are the residential rates to which the Price Cap Index will be applied to.

Sheet 18. Regulatory Charges
A1: Back to Index
B2: =+'1. Information Sheet'!B2 -> INCENTIVE REGULATION MODEL FOR 2020 FILERS
C12: Update the following rates if an OEB Decision has been issued at the time of completing this application
C14: Regulatory Charges | E14: Proposed
C15: Wholesale Market Service Rate (WMS) - not including CBR | D15: $/kWh | E15: 0.003
C16: Capacity Based Recovery (CBR) - Applicable for Class B Customers | D16: $/kWh | E16: 0.0004
B17: WMS | C17: WMS unit rate | D17: $/kWh | E17: =SUM(E15:E16) -> 0.0034
B18: RRA | C18: Rural or Remote Electricity Rate Protection Charge (RRRP) | D18: $/kWh | E18: 0.0005
C19: Standard Supply Service - Administrative Charge (if applicable) | D19: $ | E19: 0.25
C20: Ontario Electricity Support Program (OESP) | D20: $/kWh | E20: 0
C23: Time-of-Use RPP Prices
C24: As of | D24: 2019-05-01
B25: OFF | C25: Off-Peak | D25: $/kWh | E25: 0.065
B26: MID | C26: Mid-Peak | D26: $/kWh | E26: 0.094
B27: ON | C27: On-Peak | D27: $/kWh | E27: 0.134
C30: Average IESO Wholesale Market Price
B31: IESO | C31: February 2019 IESO Market Summary Report | D31: $/kWh | E31: 0.1121
C34: Smart Meter Entity Charge (SME)
C35: Smart Meter Entity Charge (SME) | D35: $ | E35: 0.57

Sheet 19. Additional Rates
A1: Back to Index | AB1: 3
B2: =+'1. Information Sheet'!B2 -> INCENTIVE REGULATION MODEL FOR 2020 FILERS
B11: In the Green Cells below, enter any proposed rate riders that are not already included in this model (e.g.: proposed ICM rate riders). Please note that existing SMIRR and SM Entity Charge do not need to be included below. In column A, the rate rider descriptions must begin with "Rate Rider for". In column B, choose the associated unit from the drop-down menu. In column C, enter the rate. All rate riders with a "$" unit should be rounded to 2 decimal places and all others rounded to 4 decimal places. In column E, enter the expiry date (e.g. April 30, 2018) or description of the expiry date in text (e.g. the effective date of the next cost of service-based rate order). In column G, choose the sub-total as applicable in the bill impact calculation from the drop-down menu
B13: RESIDENTIAL SERVICE CLASSIFICATION
A14: R_ICMF20 | B14: Rate Rider for Recovery of Incremental Capital (2020) | C14: $ | D14: =VLOOKUP(A14,'[15]Bill Impacts_2020'!$A$36:$M$43,11,FALSE) -> 0.3331185217 | E14: - effective until | F14: next cost of service based rate order | H14: A
A15: R_ICMV20 | B15: Rate Rider for Recovery of Incremental Capital (2020) | D15: =VLOOKUP(A15,'[15]Bill Impacts_2020'!$B$36:$M$43,11,FALSE) -> 5.348143113e-05 | E15: - effective until | F15: next cost of service based rate order | H15: A
A16: R_MFF20 | B16: Rate Rider for Recovery of M-factor Capital (2020) | C16: $ | D16: =VLOOKUP(A16,'[16]Bill Impacts_2020'!$A$36:$M$43,11,FALSE) -> 0.2719099352 | E16: - effective until | F16: next cost of service based rate order | H16: A
A17: R_MFV20 | B17: Rate Rider for Recovery of M-factor Capital (2020) | C17: $/kWh | D17: =VLOOKUP(A17,'[16]Bill Impacts_2020'!$B$36:$M$43,11,FALSE) -> 4.365452992e-05 | E17: - effective until | F17: next cost of service based rate order | H17: A
E18: - effective until
E19: - effective until
E20: - effective until
E21: - effective until
E22: - effective until
E23: - effective until
B26: GS<50 SERVICE CLASSIFICATION
A27: GSL_ICMF20 | B27: Rate Rider for Recovery of Incremental Capital (2020) | C27: $ | D27: =VLOOKUP(A27,'[15]Bill Impacts_2020'!$A$36:$M$43,11,FALSE) -> 0.3488177786 | E27: - effective until | F27: next cost of service based rate order | H27: A
A28: GSL_ICMV20 | B28: Rate Rider for Recovery of Incremental Capital (2020) | C28: $/kWh | D28: =VLOOKUP(A28,'[15]Bill Impacts_2020'!$B$36:$M$43,11,FALSE) -> 0.0002222450582 | E28: - effective until | F28: next cost of service based rate order | H28: A
A29: GSL_MFF20 | B29: Rate Rider for Recovery of M-factor Capital (2020) | C29: $ | D29: =VLOOKUP(A29,'[16]Bill Impacts_2020'!$A$36:$M$43,11,FALSE) -> 0.2847245452 | E29: - effective until | F29: next cost of service based rate order | H29: A
A30: GSL_MFV20 | B30: Rate Rider for Recovery of M-factor Capital (2020) | C30: $/kWh | D30: =VLOOKUP(A30,'[16]Bill Impacts_2020'!$B$36:$M$43,11,FALSE) -> 0.0001814088243 | E30: - effective until | F30: next cost of service based rate order | H30: A
E31: - effective until
E32: - effective until
E33: - effective until
E34: - effective until
E35: - effective until
B38: GS>50 SERVICE CLASSIFICATION
A39: GSG_ICMF20 | B39: Rate Rider for Recovery of Incremental Capital (2020) | C39: $ | D39: =VLOOKUP(A39,'[15]Bill Impacts_2020'!$A$36:$M$43,11,FALSE) -> 1.710811558 | E39: - effective until | F39: next cost of service based rate order | H39: A
A40: GSG_ICMV20 | B40: Rate Rider for Recovery of Incremental Capital (2020) | C40: $/kW | D40: =VLOOKUP(A40,'[15]Bill Impacts_2020'!$B$36:$M$43,11,FALSE) -> 0.05101415444 | E40: - effective until | F40: next cost of service based rate order | H40: A
A41: GSG_MFF20 | B41: Rate Rider for Recovery of M-factor Capital (2020) | C41: $ | D41: =VLOOKUP(A41,'[16]Bill Impacts_2020'!$A$36:$M$43,11,FALSE) -> 1.396459907 | E41: - effective until | F41: next cost of service based rate order | H41: A
A42: GSG_MFV20 | B42: Rate Rider for Recovery of M-factor Capital (2020) | C42: $/kW | D42: =VLOOKUP(A42,'[16]Bill Impacts_2020'!$B$36:$M$43,11,FALSE) -> 0.04164060094 | E42: - effective until | F42: next cost of service based rate order | H42: A
E43: - effective until
E44: - effective until
E45: - effective until
E46: - effective until
E47: - effective until
B50: LARGE USER SERVICE CLASSIFICATION
A51: LU_ICMF20 | B51: Rate Rider for Recovery of Incremental Capital (2020) | C51: $ | D51: =VLOOKUP(A51,'[15]Bill Impacts_2020'!$A$36:$M$43,11,FALSE) -> 73.70787068 | E51: - effective until | F51: next cost of service based rate order | H51: A
A52: LU_ICMV20 | B52: Rate Rider for Recovery of Incremental Capital (2020) | C52: $/kW | D52: =VLOOKUP(A52,'[15]Bill Impacts_2020'!$B$36:$M$43,11,FALSE) -> 0.0272089752 | E52: - effective until | F52: next cost of service based rate order | H52: A
